{"text_format":"3","workbook":"xlsx","n_sheets":14,"sheets":["SankeyParameters","Sankey","Sprachen","Admin","Anleitung","Titelblatt","Formular A","Formular B","Formular C","Formular D","Formular E","Formular F1 + F2","Beschreibungen","Report"],"not_rendered":{"charts":5,"images":2,"macros":1,"defined_names":152},"read":"whole","date_system":"1900"}

{"sheet":"SankeyParameters","index":0,"n_rows":17,"n_cols":4,"rows_kept":17,"hidden":true}
["Item","Value","Comments"]
["titles",{"$f":"\"<!DOCTYPE html>\n<meta charset=\"\"utf-8\"\">\n<title>\"&Sprachen!H22&\"</title>\"","v":"<!DOCTYPE html>\n<meta charset=\"utf-8\">\n<title>Energieflussdiagramm EVA</title>"},"Probably dont need to touch"]
["defaultStyles","<style>\n \nhtml {\n  min-width: 1040px;\n}\n\nbody {\n  position: relative;\n  font-family: \"Helvetica Neue\", Helvetica, sans-serif;\n  margin: 1em auto 4em auto;\n  width: 960px;\n}\n\nh1 {\n  font-size: 64px;\n  font-weight: 300;\n  letter-spacing: -2px;\n  margin: .3em 0 .1em 0;\n}\n\nh2 {\n  margin-top: 2em;\n}\n\nh1, h2 {\n  text-rendering: optimizeLegibility;\n}\n\nh2 a {\n  color: #ccc;\n  left: -20px;\n  position: absolute;\n  width: 740px;\n}\n\nfooter {\n  font-size: small;\n  margin-top: 8em;\n}\n\nheader aside {\n  margin-top: 82px;\n}\n\nheader aside,\nfooter aside {\n  color: #636363;\n  text-align: right;\n}\n\naside {\n  font-size: small;\n  left: 780px;\n  position: absolute;\n  width: 180px;\n}\n\n.attribution {\n  font-size: small;\n  margin-bottom: 2em;\n}\n\nbody > p, li > p {\n  line-height: 1.5em;\n}\n\nbody > p {\n  width: 720px;\n}\n\nbody > blockquote {\n  width: 640px;\n}\n\nli {\n  width: 680px;\n}\n\na {\n  color: steelblue;\n}\n\na:not(:hover) {\n  text-decoration: none;\n}\n\npre, code, textarea {\n  font-family: \"Menlo\", monospace;\n}\n\ncode {\n  line-height: 1em;\n}\n\ntextarea {\n  font-size: 100%;\n}\n\nbody > pre {\n  border-left: solid 2px #ccc;\n  padding-left: 18px;\n  margin: 2em 0 2em -20px;\n}\n\n.html .value,\n.javascript .string,\n.javascript .regexp {\n  color: #756bb1;\n}\n\n.html .tag,\n.css .tag,\n.javascript .keyword {\n  color: #3182bd;\n}\n\n.comment {\n  color: #636363;\n}\n\n.html .doctype,\n.javascript .number {\n  color: #31a354;\n}\n\n.html .attribute,\n.css .attribute,\n.javascript .class,\n.javascript .special {\n  color: #e6550d;\n}\n\nsvg {\n  font: 12px sans-serif;\n}\n\n.axis path, .axis line {\n  fill: none;\n  stroke: #000;\n  shape-rendering: crispEdges;\n}\n\nsup, sub {\n  line-height: 0;\n}\n\nq:before,\nblockquote:before {\n  content: \"â€œ\";\n}\n\nq:after,\nblockquote:after {\n  content: \"â€\u009d\";\n}\n\nblockquote:before {\n  position: absolute;\n  left: 2em;\n}\n\nblockquote:after {\n  position: absolute;\n}\n\n</style>","Default Style - change general layout here"]
["sankeyStyles","<style>\n  #chart {\n\n }\n .node rect {\n  cursor: move;\n  fill-opacity: .9;\n  shape-rendering: crispEdges;\n }\n .node text {\n  pointer-events: none;\n  text-shadow: 0 1px 0 #fff;\n }\n .link {\n  fill: none;\n  stroke: #000;\n  stroke-opacity: .2;\n }\n .link:hover {\n  stroke-opacity: .5;\n }\n</style>","Sankey Style - change chart specific styles here"]
["header",{"$f":"\"<body>\n\n <h3>\"&Sprachen!H22&\"\n</h3>  <div id=\"\"chart\"\"></div>\"","v":"<body>\n\n <h3>Energieflussdiagramm EVA\n</h3>  <div id=\"chart\"></div>"},"Change report header here"]
["sankeyCode"," <script src=\"http://d3js.org/d3.v3.min.js\"></script>\n\n  <script>\n  d3.sankey = function() {\n    var sankey = {},\n        nodeWidth = 24,\n        nodePadding = 8,\n        size = [1, 1],\n        nodes = [],\n        links = [];\n\n    sankey.nodeWidth = function(_) {\n      if (!arguments.length) return nodeWidth;\n      nodeWidth = +_;\n      return sankey;\n    };\n\n    sankey.nodePadding = function(_) {\n      if (!arguments.length) return nodePadding;\n      nodePadding = +_;\n      return sankey;\n    };\n  \n    sankey.nodes = function(_) {\n      if (!arguments.length) return nodes;\n      nodes = _;\n      return sankey;\n    };\n\n    sankey.links = function(_) {\n      if (!arguments.length) return links;\n      links = _;\n      return sankey;\n    };\n  \n    sankey.size = function(_) {\n      if (!arguments.length) return size;\n      size = _;\n      return sankey;\n    };\n  \n    sankey.layout = function(iterations) {\n      computeNodeLinks();\n      computeNodeValues();\n      computeNodeBreadths();\n      computeNodeDepths(iterations);\n      computeLinkDepths();\n      return sankey;\n    };\n  \n    sankey.relayout = function() {\n      computeLinkDepths();\n      return sankey;\n    };\n  \n    sankey.link = function() {\n      var curvature = .5;\n  \n      function link(d) {\n        var x0 = d.source.x + d.source.dx,\n            x1 = d.target.x,\n            xi = d3.interpolateNumber(x0, x1),\n            x2 = xi(curvature),\n            x3 = xi(1 - curvature),\n            y0 = d.source.y + d.sy + d.dy / 2,\n            y1 = d.target.y + d.ty + d.dy / 2;\n        return \"M\" + x0 + \",\" + y0\n             + \"C\" + x2 + \",\" + y0\n             + \" \" + x3 + \",\" + y1\n             + \" \" + x1 + \",\" + y1;\n      }\n  \n      link.curvature = function(_) {\n        if (!arguments.length) return curvature;\n        curvature = +_;\n        return link;\n      };\n  \n      return link;\n    };\n\n    // Populate the sourceLinks and targetLinks for each node.\n    // Also, if the source and target are not objects, assume they are indices.\n    function computeNodeLinks() {\n      nodes.forEach(function(node) {\n        node.sourceLinks = [];\n        node.targetLinks = [];\n      });\n      links.forEach(function(link) {\n        var source = link.source,\n            target = link.target;\n        if (typeof source === \"number\") source = link.source = nodes[link.source];\n        if (typeof target === \"number\") target = link.target = nodes[link.target];\n        source.sourceLinks.push(link);\n        target.targetLinks.push(link);\n      });\n    }\n  \n    // Compute the value (size) of each node by summing the associated links.\n    function computeNodeValues() {\n      nodes.forEach(function(node) {\n        node.value = Math.max(\n          d3.sum(node.sourceLinks, value),\n          d3.sum(node.targetLinks, value)\n        );\n      });\n    }\n\n    // Iteratively assign the breadth (x-position) for each node.\n    // Nodes are assigned the maximum breadth of incoming neighbors plus one;\n    // nodes with no incoming links are assigned breadth zero, while\n    // nodes with no outgoing links are assigned the maximum breadth.\n    function computeNodeBreadths() {\n      var remainingNodes = nodes,\n          nextNodes,\n          x = 0;\n  \n      while (remainingNodes.length) {\n        nextNodes = [];\n        remainingNodes.forEach(function(node) {\n          node.x = x;\n          node.dx = nodeWidth;\n          node.sourceLinks.forEach(function(link) {\n            nextNodes.push(link.target);\n          });\n        });\n        remainingNodes = nextNodes;\n        ++x;\n      }\n  \n      //\n      moveSinksRight(x);\n      scaleNodeBreadths((width - nodeWidth) / (x - 1));\n    }\n  \n    function moveSourcesRight() {\n      nodes.forEach(function(node) {\n        if (!node.targetLinks.length) {\n          node.x = d3.min(node.sourceLinks, function(d) { return d.target.x; }) - 1;\n        }\n      });\n    }\n  \n    function moveSinksRight(x) {\n      nodes.forEach(function(node) {\n        if (!node.sourceLinks.length) {\n          node.x = x - 1;\n        }\n      });\n    }\n  \n    function scaleNodeBreadths(kx) {\n      nodes.forEach(function(node) {\n        node.x *= kx;\n      });\n    }\n  \n    function computeNodeDepths(iterations) {\n      var nodesByBreadth = d3.nest()\n          .key(function(d) { return d.x; })\n          .sortKeys(d3.ascending)\n          .entries(nodes)\n          .map(function(d) { return d.values; });\n  \n      //\n      initializeNodeDepth();\n      resolveCollisions();\n      for (var alpha = 1; iterations > 0; --iterations) {\n        relaxRightToLeft(alpha *= .99);\n        resolveCollisions();\n        relaxLeftToRight(alpha);\n        resolveCollisions();\n      }\n  \n      function initializeNodeDepth() {\n        var ky = d3.min(nodesByBreadth, function(nodes) {\n          return (size[1] - (nodes.length - 1) * nodePadding) / d3.sum(nodes, value);\n        });\n  \n        nodesByBreadth.forEach(function(nodes) {\n          nodes.forEach(function(node, i) {\n            node.y = i;\n            node.dy = node.value * ky;\n          });\n        });\n  \n        links.forEach(function(link) {\n          link.dy = link.value * ky;\n        });\n      }\n  \n      function relaxLeftToRight(alpha) {\n        nodesByBreadth.forEach(function(nodes, breadth) {\n          nodes.forEach(function(node) {\n            if (node.targetLinks.length) {\n              var y = d3.sum(node.targetLinks, weightedSource) / d3.sum(node.targetLinks, value);\n              node.y += (y - center(node)) * alpha;\n            }\n          });\n        });\n  \n        function weightedSource(link) {\n          return center(link.source) * link.value;\n        }\n      }\n  \n      function relaxRightToLeft(alpha) {\n        nodesByBreadth.slice().reverse().forEach(function(nodes) {\n          nodes.forEach(function(node) {\n            if (node.sourceLinks.length) {\n              var y = d3.sum(node.sourceLinks, weightedTarget) / d3.sum(node.sourceLinks, value);\n              node.y += (y - center(node)) * alpha;\n            }\n          });\n        });\n  \n        function weightedTarget(link) {\n          return center(link.target) * link.value;\n        }\n      }\n  \n      function resolveCollisions() {\n        nodesByBreadth.forEach(function(nodes) {\n          var node,\n              dy,\n              y0 = 0,\n              n = nodes.length,\n              i;\n  \n          // Push any overlapping nodes down.\n          nodes.sort(ascendingDepth);\n          for (i = 0; i < n; ++i) {\n            node = nodes[i];\n            dy = y0 - node.y;\n            if (dy > 0) node.y += dy;\n            y0 = node.y + node.dy + nodePadding;\n          }\n  \n          // If the bottommost node goes outside the bounds, push it back up.\n          dy = y0 - nodePadding - size[1];\n          if (dy > 0) {\n            y0 = node.y -= dy;\n  \n            // Push any overlapping nodes back up.\n            for (i = n - 2; i >= 0; --i) {\n              node = nodes[i];\n              dy = node.y + node.dy + nodePadding - y0;\n              if (dy > 0) node.y -= dy;\n              y0 = node.y;\n            }\n          }\n        });\n      }\n  \n      function ascendingDepth(a, b) {\n        return a.y - b.y;\n      }\n    }\n  \n    function computeLinkDepths() {\n      nodes.forEach(function(node) {\n        node.sourceLinks.sort(ascendingTargetDepth);\n        node.targetLinks.sort(ascendingSourceDepth);\n      });\n      nodes.forEach(function(node) {\n        var sy = 0, ty = 0;\n        node.sourceLinks.forEach(function(link) {\n          link.sy = sy;\n          sy += link.dy;\n        });\n        node.targetLinks.forEach(function(link) {\n          link.ty = ty;\n          ty += link.dy;\n        });\n      });\n  \n      function ascendingSourceDepth(a, b) {\n        return a.source.y - b.source.y;\n      }\n  \n      function ascendingTargetDepth(a, b) {\n        return a.target.y - b.target.y;\n      }\n    }\n  \n    function center(node) {\n      return node.y + node.dy / 2;\n    }\n  \n    function value(link) {\n      return link.value;\n    }\n  \n    return sankey;\n  };\n</script>\n","Dont touch"]
["chartCode","<script>var margin = {\n    top : 1,\n    right : 1,\n    bottom : 6,\n    left : 1\n   }, \n   width = (mcpherSankeyData.options.width ?  mcpherSankeyData.options.width : 900) - margin.left - margin.right, \n   height = (mcpherSankeyData.options.height ?  mcpherSankeyData.options.height : 500) - margin.top - margin.bottom;\n   var formatNumber = d3.format(\",.0f\"), format = function(d) {\n    return formatNumber(d) ;\n   }, \n   color = d3.scale.category20();\n   \n   var svg = d3.select(\"#chart\")\n    .append(\"svg\")\n    .attr(\"width\", width + margin.left + margin.right)\n    .attr(\"height\", height + margin.top + margin.bottom)\n    .append(\"g\")\n    .attr(\"transform\", \"translate(\" + margin.left + \",\" + margin.top + \")\");\n    \n   var sankey = d3.sankey()\n    .nodeWidth(15)\n    .nodePadding(10)\n    .size([width, height]);\n    \n   var path = sankey.link();\n   \n   sankey.nodes(mcpherSankeyData.nodes)\n    .links(mcpherSankeyData.links)\n    .layout(32);\n    \n\n   var linkEnter = svg.append(\"g\")\n      .selectAll(\".link\")\n      .data(mcpherSankeyData.links)\n      .enter();\n\n    var link = linkEnter.append(\"path\")\n      .attr(\"class\", \"link\")\n      .attr(\"d\", path)\n      .style(\"stroke-width\", \n       function(d) {\n        return Math.max(1, d.dy);\n       })\n      .style(\"stroke\", \n       function(d) {\n        return d.color = d.color ? d.color : \"#000\";\n       })\n      .style(\"stroke-opacity\", \n       function(d) {\n        return d.opacity = d.opacity ? d.opacity : null;\n       })\n      .sort(function(a, b) {\n       return b.dy - a.dy;\n       })\n      .on('click', function(d) {\n          if (d.linkurl)window.open(d.linkurl);\n       });\n\n    \n   link.append(\"title\")\n     .text(function(d) {\n        return d.source.name + \" > \" + d.target.name + \"(\" + format(d.value) + \")\" + \n            (d.linkurl ? '\\nclick to go to ' + d.linkurl : '') ;\n      });\n      \n   var node = svg.append(\"g\")\n      .selectAll(\".node\")\n      .data(mcpherSankeyData.nodes)\n      .enter()\n      .append(\"g\")\n      .attr(\"class\", \"node\")\n      .attr(\"transform\", \n       function(d) {\n         return \"translate(\" + d.x + \",\" + d.y + \")\";\n        }\n       )\n      .call(d3.behavior.drag()\n      .origin(function(d) {\n         return d;\n        }\n       )\n      .on(\"dragstart\", function() {\n        this.parentNode.appendChild(this);\n        }\n       )\n      .on(\"drag\", dragmove));\n      \n      var nodeurl = node.append(\"a\")\n        .attr(\"xlink:href\", function(d) {return d.nodeurl ? d.nodeurl : null; });\n        \n      var rect = nodeurl.append(\"rect\")\n       .attr(\"height\", \n         function(d) {\n          return d.dy;\n         }\n        )\n       .attr(\"width\", sankey.nodeWidth())\n       .style(\"fill\", function(d) {\n          return d.color = d.color ? d.color : color(d.name.replace(/ .*/, \"\"));\n         }\n        )\n       .style(\"stroke\", function(d) {\n           return d3.rgb(d.color).darker(2);\n        });\n\n      rect.append(\"title\")\n       .text(function(d) {\n        return d.name +  \"(\" + format(d.value) + \")\" + \n            (d.nodeurl ? '\\nclick to go to ' + d.nodeurl : '') ;\n         }\n        );\n        \n      node.append(\"text\")\n      .attr(\"x\", -6)\n      .attr(\"y\", function(d) {\n          return d.dy / 2;\n         }\n        )\n      .attr(\"dy\", \".35em\")\n      .attr(\"text-anchor\", \"end\")\n      .attr(\"transform\", null)\n      .text(function(d) {\n         return d.name;\n        }\n       )\n      .filter(function(d) {\n         return d.x < width / 2;\n       }\n      )\n      .attr(\"x\", 6 + sankey.nodeWidth())\n      .attr(\"text-anchor\", \"start\");\n    \n     function dragmove(d) {\n      d3.select(this)\n       .attr(\"transform\", \"translate(\" + d.x + \",\" + (d.y = Math.max(0, Math.min(height - d.dy, d3.event.y))) + \")\");\n       sankey.relayout();\n      link.attr(\"d\", path);\n     }\n\n  </script></body>","code for the chart - touch if you know what you are doing"]
["htmlName","\\sankey.html","where to generate the executable","(davor wird %userprofile% gehängt)"]
["inheritNodeColor","yes","inherits cell color from source/target id"]
["inheritLinkColor","yes","inherits link color from value cell"]
["linkOpacity",0.5,"note if this is anything other than blank hover wont work ( 0.0-1.0 are valid range)"]
["linkurl",null,"column name for clickable urls on each link"]
["nodeurl",null,"column name for clickable urls on each node"]
[]
["sankey options","Value","Comments"]
["height",500]
["width ",900]

{"sheet":"Sankey","index":1,"n_rows":101,"n_cols":11,"rows_kept":101,"hidden":true}
["SourceID","TargetID","SourceLabel","TargetLabel","Value","linkurl","nodeurl",null,"Namensdefinition","Original","ohne ÄÖÜ (für Sankey)"]
["1-ET1","2-Bezug-Waerme",{"$f":"K2","v":"Heizoel"},{"$f":"K12","v":"Bezug Thermisch"},{"$f":"'Formular C'!I12","v":0},{"$nulls":3},"1-ET1",{"$f":"'Formular C'!B12","v":"Heizöl"},{"$f":"SUBSTITUTE(SUBSTITUTE(SUBSTITUTE(SUBSTITUTE(SUBSTITUTE(SUBSTITUTE(SUBSTITUTE(SUBSTITUTE(SUBSTITUTE(SUBSTITUTE(SUBSTITUTE(SUBSTITUTE(SUBSTITUTE(SUBSTITUTE(J2,\"ß\",\"ss\"),\"ä\",\"ae\"),\"ö\",\"oe\"),\"ü\",\"ue\"),\"Ü\",\"Ue\"),\"Ö\",\"Oe\"),\"Ä\",\"Ae\"),\"é\",\"e\"),\"É\",\"E\"),\"à\",\"a\"),\"À\",\"A\"),\"ï\",\"i\"),\"â\",\"a\"),\"è\",\"e\")","v":"Heizoel"}]
["1-ET2","2-Bezug-Waerme",{"$f":"K3","v":"Erdgas"},{"$f":"K12","v":"Bezug Thermisch"},{"$f":"'Formular C'!I13","v":0},{"$nulls":3},"1-ET2",{"$f":"'Formular C'!B13","v":"Erdgas"},{"$f":"SUBSTITUTE(SUBSTITUTE(SUBSTITUTE(SUBSTITUTE(SUBSTITUTE(SUBSTITUTE(SUBSTITUTE(SUBSTITUTE(SUBSTITUTE(SUBSTITUTE(SUBSTITUTE(SUBSTITUTE(SUBSTITUTE(SUBSTITUTE(J3,\"ß\",\"ss\"),\"ä\",\"ae\"),\"ö\",\"oe\"),\"ü\",\"ue\"),\"Ü\",\"Ue\"),\"Ö\",\"Oe\"),\"Ä\",\"Ae\"),\"é\",\"e\"),\"É\",\"E\"),\"à\",\"a\"),\"À\",\"A\"),\"ï\",\"i\"),\"â\",\"a\"),\"è\",\"e\")","v":"Erdgas"}]
["1-ET3","2-Bezug-Waerme","Fernwaerme/-kaelte",{"$f":"K12","v":"Bezug Thermisch"},{"$f":"'Formular C'!I14","v":0},{"$nulls":3},"1-ET3",{"$f":"'Formular C'!B14","v":"Fernwärme/-kälte"},"Fernwaerme/-kaelte"]
["1-ET4","2-Bezug-Waerme","Holz, Biomasse",{"$f":"K12","v":"Bezug Thermisch"},{"$f":"'Formular C'!I15","v":0},{"$nulls":3},"1-ET4",{"$f":"'Formular C'!B15","v":"Holz, Biomasse"},"Holz, Biomasse"]
["1-ET5","2-Bezug-Waerme",{"$f":"K6","v":"-"},{"$f":"K12","v":"Bezug Thermisch"},{"$f":"'Formular C'!I16","v":0},{"$nulls":3},"1-ET5",{"$f":"IF('Formular C'!B16=\"\",\"-\",'Formular C'!B16)","v":"-"},"-"]
["1-AWN","3-AWN-Direktnutzung",{"$f":"K7","v":"Abwaermenutzung"},{"$f":"K15","v":"Direktnutzung Abwaerme"},{"$f":"'Formular D'!D12","v":0},{"$nulls":3},"1-AWN",{"$f":"Sprachen!H56","v":"Abwärmenutzung"},"Abwaermenutzung"]
["1-AWN","3-WP-Nutzung",{"$f":"K7","v":"Abwaermenutzung"},{"$f":"K14","v":"WP/KM"},{"$f":"(1-'Formular D'!M11)*('Formular D'!D11+'Formular D'!F11)","v":0},{"$nulls":3},"1-S-Waerme",{"$f":"Sprachen!H57","v":"Solarwaerme"},"Solarwaerme"]
["1-UE","3-WP-Nutzung",{"$f":"K9","v":"Umweltenergie"},{"$f":"K14","v":"WP/KM"},{"$f":"'Formular D'!M11*('Formular D'!D11+'Formular D'!F11)","v":0},{"$nulls":3},"1-U-Waerme",{"$f":"Sprachen!H55","v":"Umweltenergie"},"Umweltenergie"]
["1-UE","3-UE-Direktnutzung",{"$f":"K9","v":"Umweltenergie"},{"$f":"K16","v":"Direktnutzung Umweltenergie"},{"$f":"'Formular D'!D13","v":0},{"$nulls":3},"1-Strombezug",{"$f":"Sprachen!H58","v":"Strombezug Werk"},"Strombezug Werk"]
["1-Strombezug","2-Bezug-Strom",{"$f":"K10","v":"Strombezug Werk"},{"$f":"K13","v":"Bezug Elektrisch"},{"$f":"'Formular C'!I20","v":0},{"$nulls":3},"1-SE-Strom",{"$f":"Sprachen!H59","v":"Stromproduktion Erneuerbar"},"Stromproduktion Erneuerbar"]
["1-SE-Strom","4-Strombedarf",{"$f":"K11","v":"Stromproduktion Erneuerbar"},{"$f":"K19","v":"Bedarf Elektrisch"},{"$f":"'Formular D'!F15","v":0},{"$nulls":3},"2-Bezug-Waerme",{"$f":"Sprachen!H60","v":"Bezug Thermisch"},"Bezug Thermisch"]
["2-Bezug-Waerme","3-BHWK-Umwandlung",{"$f":"K12","v":"Bezug Thermisch"},{"$f":"K17","v":"BHKW"},{"$f":"(-1)*'Formular D'!D14","v":0},{"$nulls":3},"2-Bezug-Strom",{"$f":"Sprachen!H61","v":"Bezug Elektrisch"},"Bezug Elektrisch"]
["2-Bezug-Waerme","4-Wärmebedarf",{"$f":"K12","v":"Bezug Thermisch"},{"$f":"K18","v":"Bedarf Thermisch"},{"$f":"SUM(E2:E6)-E13-E15","v":0},{"$nulls":3},"3-WP-Nutzung",{"$f":"Sprachen!H62","v":"WP/KM"},"WP/KM"]
["2-Bezug-Waerme","5-Verluste",{"$f":"K12","v":"Bezug Thermisch"},{"$f":"K59","v":"Verluste (Erzeugung/Verteilung)"},{"$f":"(-1)*'Formular D'!D17","v":0},{"$nulls":3},"3-AWN-Direktnutzung",{"$f":"Sprachen!H63","v":"Direktnutzung Abwärme"},"Direktnutzung Abwaerme"]
["2-Bezug-Strom","3-WP-Nutzung",{"$f":"K13","v":"Bezug Elektrisch"},{"$f":"K14","v":"WP/KM"},{"$f":"(-1)*'Formular D'!F11","v":0},{"$nulls":3},"3-UE-Direktnutzung",{"$f":"Sprachen!H64","v":"Direktnutzung Umweltenergie"},"Direktnutzung Umweltenergie"]
["2-Bezug-Strom","4-Strombedarf",{"$f":"K13","v":"Bezug Elektrisch"},{"$f":"K19","v":"Bedarf Elektrisch"},{"$f":"E11-E16-E18","v":0},{"$nulls":3},"3-BHWK-Umwandlung",{"$f":"Sprachen!H65","v":"BHKW"},"BHKW"]
["2-Bezug-Strom","5-Verluste",{"$f":"K13","v":"Bezug Elektrisch"},{"$f":"K59","v":"Verluste (Erzeugung/Verteilung)"},{"$f":"(-1)*'Formular D'!F17","v":0},{"$nulls":3},"4-Waermebedarf",{"$f":"Sprachen!H66","v":"Bedarf Thermisch"},"Bedarf Thermisch"]
["3-WP-Nutzung","4-Wärmebedarf",{"$f":"K14","v":"WP/KM"},{"$f":"K18","v":"Bedarf Thermisch"},{"$f":"1*'Formular D'!D11","v":0},{"$nulls":3},"4-Strombedarf",{"$f":"Sprachen!H67","v":"Bedarf Elektrisch"},"Bedarf Elektrisch"]
["3-AWN-Direktnutzung","4-Wärmebedarf",{"$f":"K15","v":"Direktnutzung Abwaerme"},{"$f":"K18","v":"Bedarf Thermisch"},{"$f":"'Formular D'!D12","v":0},{"$nulls":3},"5-HTH1",{"$f":"IF('Formular D'!B25=\"\",\"-\",'Formular D'!B25)","v":"-"},"-"]
["3-UE-Direktnutzung","4-Wärmebedarf",{"$f":"K16","v":"Direktnutzung Umweltenergie"},{"$f":"K18","v":"Bedarf Thermisch"},{"$f":"'Formular D'!D13","v":0},{"$nulls":3},"5-HTH2",{"$f":"IF('Formular D'!B26=\"\",\"-\",'Formular D'!B26)","v":"-"},"-"]
["3-BHWK-Umwandlung","4-Strombedarf",{"$f":"K17","v":"BHKW"},{"$f":"K19","v":"Bedarf Elektrisch"},{"$f":"'Formular D'!F14","v":0},{"$nulls":3},"5-HTH3",{"$f":"IF('Formular D'!B27=\"\",\"-\",'Formular D'!B27)","v":"-"},"-"]
["3-BHWK-Umwandlung","5-Verluste",{"$f":"K17","v":"BHKW"},{"$f":"K59","v":"Verluste (Erzeugung/Verteilung)"},{"$f":"E13-E22","v":0},{"$nulls":3},"5-HTH4",{"$f":"IF('Formular D'!B28=\"\",\"-\",'Formular D'!B28)","v":"-"},"-"]
["4-Wärmebedarf","5-HTH1",{"$f":"K18","v":"Bedarf Thermisch"},{"$f":"K20","v":"-"},{"$f":"'Formular D'!D25","v":0},{"$nulls":3},"5-HTH5",{"$f":"IF('Formular D'!B29=\"\",\"-\",'Formular D'!B29)","v":"-"},"-"]
["4-Wärmebedarf","5-HTH2",{"$f":"K18","v":"Bedarf Thermisch"},{"$f":"K21","v":"-"},{"$f":"'Formular D'!D26","v":0},{"$nulls":3},"5-HTW1",{"$f":"IF('Formular D'!B30=\"\",\"-\",'Formular D'!B30)","v":"-"},"-"]
["4-Wärmebedarf","5-HTH3",{"$f":"K18","v":"Bedarf Thermisch"},"-",{"$f":"'Formular D'!D27","v":0},{"$nulls":3},"5-HTW2",{"$f":"IF('Formular D'!B31=\"\",\"-\",'Formular D'!B31)","v":"-"},"-"]
["4-Wärmebedarf","5-HTH4",{"$f":"K18","v":"Bedarf Thermisch"},"-",{"$f":"'Formular D'!D28","v":0},{"$nulls":3},"5-HTW3",{"$f":"IF('Formular D'!B32=\"\",\"-\",'Formular D'!B32)","v":"-"},"-"]
["4-Wärmebedarf","5-HTH5",{"$f":"K18","v":"Bedarf Thermisch"},"-",{"$f":"'Formular D'!D29","v":0},{"$nulls":3},"5-HTW4",{"$f":"IF('Formular D'!B33=\"\",\"-\",'Formular D'!B33)","v":"-"},"-"]
["4-Wärmebedarf","5-HTW1",{"$f":"K18","v":"Bedarf Thermisch"},"-",{"$f":"'Formular D'!D30","v":0},{"$nulls":3},"5-HTW5",{"$f":"IF('Formular D'!B34=\"\",\"-\",'Formular D'!B34)","v":"-"},"-"]
["4-Wärmebedarf","5-HTW2",{"$f":"K18","v":"Bedarf Thermisch"},"-",{"$f":"'Formular D'!D31","v":0},{"$nulls":3},"5-HTL1",{"$f":"IF('Formular D'!B35=\"\",\"-\",'Formular D'!B35)","v":"-"},"-"]
["4-Wärmebedarf","5-HTW3",{"$f":"K18","v":"Bedarf Thermisch"},"-",{"$f":"'Formular D'!D32","v":0},{"$nulls":3},"5-HTL2",{"$f":"IF('Formular D'!B36=\"\",\"-\",'Formular D'!B36)","v":"-"},"-"]
["4-Wärmebedarf","5-HTW4",{"$f":"K18","v":"Bedarf Thermisch"},"-",{"$f":"'Formular D'!D33","v":0},{"$nulls":3},"5-HTL3",{"$f":"IF('Formular D'!B37=\"\",\"-\",'Formular D'!B37)","v":"-"},"-"]
["4-Wärmebedarf","5-HTW5",{"$f":"K18","v":"Bedarf Thermisch"},"-",{"$f":"'Formular D'!D34","v":0},{"$nulls":3},"5-HTL4",{"$f":"IF('Formular D'!B38=\"\",\"-\",'Formular D'!B38)","v":"-"},"-"]
["4-Wärmebedarf","5-HTL1",{"$f":"K18","v":"Bedarf Thermisch"},"-",{"$f":"'Formular D'!D35","v":0},{"$nulls":3},"5-HTL5",{"$f":"IF('Formular D'!B39=\"\",\"-\",'Formular D'!B39)","v":"-"},"-"]
["4-Wärmebedarf","5-HTL2",{"$f":"K18","v":"Bedarf Thermisch"},"-",{"$f":"'Formular D'!D36","v":0},{"$nulls":3},"5-HTB1",{"$f":"IF('Formular D'!B40=\"\",\"-\",'Formular D'!B40)","v":"-"},"-"]
["4-Wärmebedarf","5-HTL3",{"$f":"K18","v":"Bedarf Thermisch"},"-",{"$f":"'Formular D'!D37","v":0},{"$nulls":3},"5-HTB2",{"$f":"IF('Formular D'!B41=\"\",\"-\",'Formular D'!B41)","v":"-"},"-"]
["4-Wärmebedarf","5-HTL4",{"$f":"K18","v":"Bedarf Thermisch"},"-",{"$f":"'Formular D'!D38","v":0},{"$nulls":3},"5-HTB3",{"$f":"IF('Formular D'!B42=\"\",\"-\",'Formular D'!B42)","v":"-"},"-"]
["4-Wärmebedarf","5-HTL5",{"$f":"K18","v":"Bedarf Thermisch"},"-",{"$f":"'Formular D'!D39","v":0},{"$nulls":3},"5-HTB4",{"$f":"IF('Formular D'!B43=\"\",\"-\",'Formular D'!B43)","v":"-"},"-"]
["4-Wärmebedarf","5-HTB1",{"$f":"K18","v":"Bedarf Thermisch"},"-",{"$f":"'Formular D'!D40","v":0},{"$nulls":3},"5-HTB5",{"$f":"IF('Formular D'!B44=\"\",\"-\",'Formular D'!B44)","v":"-"},"-"]
["4-Wärmebedarf","5-HTB2",{"$f":"K18","v":"Bedarf Thermisch"},"-",{"$f":"'Formular D'!D41","v":0},{"$nulls":3},"5-HTD1",{"$f":"IF('Formular D'!I25=\"\",\"-\",'Formular D'!I25)","v":"-"},"-"]
["4-Wärmebedarf","5-HTB3",{"$f":"K18","v":"Bedarf Thermisch"},"-",{"$f":"'Formular D'!D42","v":0},{"$nulls":3},"5-HTD2",{"$f":"IF('Formular D'!I26=\"\",\"-\",'Formular D'!I26)","v":"-"},"-"]
["4-Wärmebedarf","5-HTB4",{"$f":"K18","v":"Bedarf Thermisch"},"-",{"$f":"'Formular D'!D43","v":0},{"$nulls":3},"5-HTD3",{"$f":"IF('Formular D'!I27=\"\",\"-\",'Formular D'!I27)","v":"-"},"-"]
["4-Wärmebedarf","5-HTB5",{"$f":"K18","v":"Bedarf Thermisch"},"-",{"$f":"'Formular D'!D44","v":0},{"$nulls":3},"5-HTD4",{"$f":"IF('Formular D'!I28=\"\",\"-\",'Formular D'!I28)","v":"-"},"-"]
["4-Wärmebedarf","5-HTD1",{"$f":"K18","v":"Bedarf Thermisch"},"-",{"$f":"'Formular D'!J25","v":0},{"$nulls":3},"5-HTD5",{"$f":"IF('Formular D'!I29=\"\",\"-\",'Formular D'!I29)","v":"-"},"-"]
["4-Wärmebedarf","5-HTD2",{"$f":"K18","v":"Bedarf Thermisch"},"-",{"$f":"'Formular D'!J26","v":0},{"$nulls":3},"5-HTA1",{"$f":"IF('Formular D'!I30=\"\",\"-\",'Formular D'!I30)","v":"-"},"-"]
["4-Wärmebedarf","5-HTD3",{"$f":"K18","v":"Bedarf Thermisch"},"-",{"$f":"'Formular D'!J27","v":0},{"$nulls":3},"5-HTA2",{"$f":"IF('Formular D'!I31=\"\",\"-\",'Formular D'!I31)","v":"-"},"-"]
["4-Wärmebedarf","5-HTD4",{"$f":"K18","v":"Bedarf Thermisch"},"-",{"$f":"'Formular D'!J28","v":0},{"$nulls":3},"5-HTA3",{"$f":"IF('Formular D'!I32=\"\",\"-\",'Formular D'!I32)","v":"-"},"-"]
["4-Wärmebedarf","5-HTD5",{"$f":"K18","v":"Bedarf Thermisch"},"-",{"$f":"'Formular D'!J29","v":0},{"$nulls":3},"5-HTA4",{"$f":"IF('Formular D'!I33=\"\",\"-\",'Formular D'!I33)","v":"-"},"-"]
["4-Wärmebedarf","5-HTA1",{"$f":"K18","v":"Bedarf Thermisch"},"-",{"$f":"'Formular D'!J30","v":0},{"$nulls":3},"5-HTA5",{"$f":"LEFT('Formular D'!I34,LEN('Formular D'!I34)-3)","v":"Diverse Verbraucher"},"Diverse Verbraucher"]
["4-Wärmebedarf","5-HTA2",{"$f":"K18","v":"Bedarf Thermisch"},"-",{"$f":"'Formular D'!J31","v":0},{"$nulls":3},"5-PP1",{"$f":"IF('Formular D'!I36=\"\",\"-\",'Formular D'!I36)","v":"-"},"-"]
["4-Wärmebedarf","5-HTA3",{"$f":"K18","v":"Bedarf Thermisch"},"-",{"$f":"'Formular D'!J32","v":0},{"$nulls":3},"5-PP2",{"$f":"IF('Formular D'!I37=\"\",\"-\",'Formular D'!I37)","v":"-"},"-"]
["4-Wärmebedarf","5-HTA4",{"$f":"K18","v":"Bedarf Thermisch"},"-",{"$f":"'Formular D'!J33","v":0},{"$nulls":3},"5-PP3",{"$f":"IF('Formular D'!I38=\"\",\"-\",'Formular D'!I38)","v":"-"},"-"]
["4-Wärmebedarf","5-HTA5",{"$f":"K18","v":"Bedarf Thermisch"},"Diverse Verbraucher",{"$f":"'Formular D'!J34","v":0},{"$nulls":3},"5-PP4",{"$f":"IF('Formular D'!I39=\"\",\"-\",'Formular D'!I39)","v":"-"},"-"]
["4-Wärmebedarf","5-PP1",{"$f":"K18","v":"Bedarf Thermisch"},{"$f":"K50","v":"-"},{"$f":"'Formular D'!J36","v":0},{"$nulls":3},"5-PP5",{"$f":"IF('Formular D'!I40=\"\",\"-\",'Formular D'!I40)","v":"-"},"-"]
["4-Wärmebedarf","5-PP2",{"$f":"K18","v":"Bedarf Thermisch"},{"$f":"K51","v":"-"},{"$f":"'Formular D'!J37","v":0},{"$nulls":3},"5-PP6",{"$f":"IF('Formular D'!I41=\"\",\"-\",'Formular D'!I41)","v":"-"},"-"]
["4-Wärmebedarf","5-PP3",{"$f":"K18","v":"Bedarf Thermisch"},{"$f":"K52","v":"-"},{"$f":"'Formular D'!J38","v":0},{"$nulls":3},"5-PP7",{"$f":"IF('Formular D'!I42=\"\",\"-\",'Formular D'!I42)","v":"-"},"-"]
["4-Wärmebedarf","5-PP4",{"$f":"K18","v":"Bedarf Thermisch"},{"$f":"K53","v":"-"},{"$f":"'Formular D'!J39","v":0},{"$nulls":3},"5-PP8",{"$f":"IF('Formular D'!I43=\"\",\"-\",'Formular D'!I43)","v":"-"},"-"]
["4-Wärmebedarf","5-PP5",{"$f":"K18","v":"Bedarf Thermisch"},{"$f":"K54","v":"-"},{"$f":"'Formular D'!J40","v":0},{"$nulls":3},"5-PP9",{"$f":"IF('Formular D'!I44=\"\",\"-\",'Formular D'!I44)","v":"-"},"-"]
["4-Wärmebedarf","5-PP6",{"$f":"K18","v":"Bedarf Thermisch"},{"$f":"K55","v":"-"},{"$f":"'Formular D'!J41","v":0},{"$nulls":3},"5-Verluste",{"$f":"Sprachen!H68","v":"Verluste (Erzeugung/Verteilung)"},"Verluste (Erzeugung/Verteilung)"]
["4-Wärmebedarf","5-PP7",{"$f":"K18","v":"Bedarf Thermisch"},"-",{"$f":"'Formular D'!J42","v":0}]
["4-Wärmebedarf","5-PP8",{"$f":"K18","v":"Bedarf Thermisch"},"-",{"$f":"'Formular D'!J43","v":0}]
["4-Wärmebedarf","5-PP9",{"$f":"K18","v":"Bedarf Thermisch"},{"$f":"K58","v":"-"},{"$f":"'Formular D'!J44","v":0}]
["4-Strombedarf","5-HTH1",{"$f":"K19","v":"Bedarf Elektrisch"},{"$f":"K20","v":"-"},{"$f":"'Formular D'!F25","v":0}]
["4-Strombedarf","5-HTH2",{"$f":"K19","v":"Bedarf Elektrisch"},{"$f":"K21","v":"-"},{"$f":"'Formular D'!F26","v":0}]
["4-Strombedarf","5-HTH3",{"$f":"K19","v":"Bedarf Elektrisch"},"-",{"$f":"'Formular D'!F27","v":0}]
["4-Strombedarf","5-HTH4",{"$f":"K19","v":"Bedarf Elektrisch"},"-",{"$f":"'Formular D'!F28","v":0}]
["4-Strombedarf","5-HTH5",{"$f":"K19","v":"Bedarf Elektrisch"},"-",{"$f":"'Formular D'!F29","v":0}]
["4-Strombedarf","5-HTW1",{"$f":"K19","v":"Bedarf Elektrisch"},{"$f":"K25","v":"-"},{"$f":"'Formular D'!F30","v":0}]
["4-Strombedarf","5-HTW2",{"$f":"K19","v":"Bedarf Elektrisch"},{"$f":"K26","v":"-"},{"$f":"'Formular D'!F31","v":0}]
["4-Strombedarf","5-HTW3",{"$f":"K19","v":"Bedarf Elektrisch"},"-",{"$f":"'Formular D'!F32","v":0}]
["4-Strombedarf","5-HTW4",{"$f":"K19","v":"Bedarf Elektrisch"},"-",{"$f":"'Formular D'!F33","v":0}]
["4-Strombedarf","5-HTW5",{"$f":"K19","v":"Bedarf Elektrisch"},"-",{"$f":"'Formular D'!F34","v":0}]
["4-Strombedarf","5-HTL1",{"$f":"K19","v":"Bedarf Elektrisch"},{"$f":"K30","v":"-"},{"$f":"'Formular D'!F35","v":0}]
["4-Strombedarf","5-HTL2",{"$f":"K19","v":"Bedarf Elektrisch"},{"$f":"K31","v":"-"},{"$f":"'Formular D'!F36","v":0}]
["4-Strombedarf","5-HTL3",{"$f":"K19","v":"Bedarf Elektrisch"},"-",{"$f":"'Formular D'!F37","v":0}]
["4-Strombedarf","5-HTL4",{"$f":"K19","v":"Bedarf Elektrisch"},"-",{"$f":"'Formular D'!F38","v":0}]
["4-Strombedarf","5-HTL5",{"$f":"K19","v":"Bedarf Elektrisch"},"-",{"$f":"'Formular D'!F39","v":0}]
["4-Strombedarf","5-HTB1",{"$f":"K19","v":"Bedarf Elektrisch"},{"$f":"K35","v":"-"},{"$f":"'Formular D'!F40","v":0}]
["4-Strombedarf","5-HTB2",{"$f":"K19","v":"Bedarf Elektrisch"},{"$f":"K36","v":"-"},{"$f":"'Formular D'!F41","v":0}]
["4-Strombedarf","5-HTB3",{"$f":"K19","v":"Bedarf Elektrisch"},"-",{"$f":"'Formular D'!F42","v":0}]
["4-Strombedarf","5-HTB4",{"$f":"K19","v":"Bedarf Elektrisch"},"-",{"$f":"'Formular D'!F43","v":0}]
["4-Strombedarf","5-HTB5",{"$f":"K19","v":"Bedarf Elektrisch"},"-",{"$f":"'Formular D'!F44","v":0}]
["4-Strombedarf","5-HTD1",{"$f":"K19","v":"Bedarf Elektrisch"},{"$f":"K40","v":"-"},{"$f":"'Formular D'!L25","v":0}]
["4-Strombedarf","5-HTD2",{"$f":"K19","v":"Bedarf Elektrisch"},{"$f":"K41","v":"-"},{"$f":"'Formular D'!L26","v":0}]
["4-Strombedarf","5-HTD3",{"$f":"K19","v":"Bedarf Elektrisch"},"-",{"$f":"'Formular D'!L27","v":0}]
["4-Strombedarf","5-HTD4",{"$f":"K19","v":"Bedarf Elektrisch"},"-",{"$f":"'Formular D'!L28","v":0}]
["4-Strombedarf","5-HTD5",{"$f":"K19","v":"Bedarf Elektrisch"},"-",{"$f":"'Formular D'!L29","v":0}]
["4-Strombedarf","5-HTA1",{"$f":"K19","v":"Bedarf Elektrisch"},{"$f":"K45","v":"-"},{"$f":"'Formular D'!L30","v":0}]
["4-Strombedarf","5-HTA2",{"$f":"K19","v":"Bedarf Elektrisch"},{"$f":"K46","v":"-"},{"$f":"'Formular D'!L31","v":0}]
["4-Strombedarf","5-HTA3",{"$f":"K19","v":"Bedarf Elektrisch"},"-",{"$f":"'Formular D'!L32","v":0}]
["4-Strombedarf","5-HTA4",{"$f":"K19","v":"Bedarf Elektrisch"},"-",{"$f":"'Formular D'!L33","v":0}]
["4-Strombedarf","5-HTA5",{"$f":"K19","v":"Bedarf Elektrisch"},"Diverse Verbraucher",{"$f":"'Formular D'!L34","v":0}]
["4-Strombedarf","5-PP1",{"$f":"K19","v":"Bedarf Elektrisch"},{"$f":"K50","v":"-"},{"$f":"'Formular D'!L36","v":0}]
["4-Strombedarf","5-PP2",{"$f":"K19","v":"Bedarf Elektrisch"},{"$f":"K51","v":"-"},{"$f":"'Formular D'!L37","v":0}]
["4-Strombedarf","5-PP3",{"$f":"K19","v":"Bedarf Elektrisch"},{"$f":"K52","v":"-"},{"$f":"'Formular D'!L38","v":0}]
["4-Strombedarf","5-PP4",{"$f":"K19","v":"Bedarf Elektrisch"},{"$f":"K53","v":"-"},{"$f":"'Formular D'!L39","v":0}]
["4-Strombedarf","5-PP5",{"$f":"K19","v":"Bedarf Elektrisch"},{"$f":"K54","v":"-"},{"$f":"'Formular D'!L40","v":0}]
["4-Strombedarf","5-PP6",{"$f":"K19","v":"Bedarf Elektrisch"},{"$f":"K55","v":"-"},{"$f":"'Formular D'!L41","v":0}]
["4-Strombedarf","5-PP7",{"$f":"K19","v":"Bedarf Elektrisch"},"-",{"$f":"'Formular D'!L42","v":0}]
["4-Strombedarf","5-PP8",{"$f":"K19","v":"Bedarf Elektrisch"},"-",{"$f":"'Formular D'!L43","v":0}]
["4-Strombedarf","5-PP9",{"$f":"K19","v":"Bedarf Elektrisch"},{"$f":"K58","v":"-"},{"$f":"'Formular D'!L44","v":0}]

{"sheet":"Sprachen","index":2,"n_rows":776,"n_cols":8,"rows_kept":776,"hidden":true,"merged":[[0,3,0,6]]}
[null,null,"Sprachen","Hinweise:\nDie FR- und IT-Texte sollten wenn immer möglich in etwa die gleiche Länge haben wie der DE-Text.\nSollten bei der Übersetzung Schwierigkeiten wegen der Excel-Formatierung entstehen, bitte Text zumindest inhaltlich übersetzten und Zelle farblich markieren, damit korrektes Format nachträglich eingestellt werden kann.\nDie Spalte \"Zuweisung\" muss für die Übersetzung nicht beachtet werden. Sie zeigt lediglich an, in welchem Arbeitsblatt und in welcher Zelle der Text im Excel-Tool angezeigt wird.\nZellen mit identischen Begriffen (Duplikaten) wurden ausgeblendet. Dies um zu verhindern dass diese fälschlicherweise doppelt übersetzt werden."]
[]
[null,null,"Zuweisung",null,"Übersetzung",null,null,"Aktive Sprache"]
["Nr.",null,"Arbeitsblatt","Zelle/Bereich","Deutsch","Französisch","Italienisch",{"$f":"Sprache","v":"DE"}]
[1,1,"Allgemein"]
[{"v":1.1,"d":"1"},2,"Allgemein","Fusszeile Links","Energieverbrauchsanalyse EVA","Analyse de consommation énergétique ACE","Analisi del consumo energetico ACE",{"$f":"IF(Sprache=\"DE\",E6,IF(Sprache=\"FR\",F6,IF(Sprache=\"IT\",G6,\"Fehler: Sprache wählen\")))","v":"Energieverbrauchsanalyse EVA"}]
[{"v":1.1,"d":"1"},3,"Allgemein","Fusszeile Mitte",{"$f":"CONCATENATE(\"EVA-Tool \",Version)","v":"EVA-Tool v1.9"},{"$f":"CONCATENATE(\"Outil ACE \",Version)","v":"Outil ACE v1.9"},{"$f":"CONCATENATE(\"Tool ACE \",Version)","v":"Tool ACE v1.9"},"EVA-Tool v1.9"]
[{"v":1.1,"d":"1"},4,"Allgemein","Fusszeile Rechts","Konferenz Kantonaler Energiefachstellen (EnFK)","Conférence des services cantonaux de l’énergie (EnFK)","Conferenza dei servizi cantonali dell’energia (EnFK)","Konferenz Kantonaler Energiefachstellen (EnFK)"]
[{"v":1.1,"d":"1"},5,"Allgemein","Blattname","Anleitung","Introduction ","Guida rapida","Anleitung"]
[{"v":1.1,"d":"1"},6,"Allgemein","Blattname","Titelblatt","Page de couverture","Frontespizio","Titelblatt"]
[{"v":1.1,"d":"1"},7,"Allgemein","Blattname","Formular A","Formulaire A","Formulario A","Formular A"]
[{"v":1.1,"d":"1"},8,"Allgemein","Blattname","Formular B","Formulaire B ","Formulario B","Formular B"]
[{"v":1.1,"d":"1"},9,"Allgemein","Blattname","Formular C","Formulaire C","Formulario C","Formular C"]
[{"v":1.1,"d":"1"},10,"Allgemein","Blattname","Formular D","Formulaire D","Formulario D","Formular D"]
[{"v":1.1,"d":"1"},11,"Allgemein","Blattname","Formular E","Formulaire E","Formulario E","Formular E"]
[{"v":1.1,"d":"1"},12,"Allgemein","Blattname","Formular F1 + F2","Formulaire F1 + F2","Formulario F1 + F2","Formular F1 + F2"]
[{"v":1.1,"d":"1"},13,"Allgemein","Blattname","Beschreibungen","Descriptions","Descrizioni","Beschreibungen"]
[{"v":1.1,"d":"1"},14,"Allgemein","Blattname","Report","Rapport","Rapporto","Report"]
[2,15,"Blatt Admin"]
[2.1,16.1,"Allgemein","MsgBox","Übertragung erfolgreich","Transfert effectué ","Trasferimento effettuato",{"$f":"IF(Sprache=\"DE\",E20,IF(Sprache=\"FR\",F20,IF(Sprache=\"IT\",G20,\"Fehler: Sprache wählen\")))","v":"Übertragung erfolgreich"}]
[2.1,16.2,"Allgemein","MsgBox","Fehler beim Starten des Snipping Tools. Bitte das Snipping Tool gemäss Anleitung manuell starten.","Erreur lors du lancement de l'Outil Capture. Veuillez démarrer l'Outil Capture manuellement suivant les instructions.","Errore al lancio dello Snipping Tool. Avviare lo Snipping Tool manualmente seguendo le istruzioni.",{"$f":"IF(Sprache=\"DE\",E21,IF(Sprache=\"FR\",F21,IF(Sprache=\"IT\",G21,\"Fehler: Sprache wählen\")))","v":"Fehler beim Starten des Snipping Tools. Bitte das Snipping Tool gemäss Anleitung manuell starten."}]
[2.1,17,"Allgemein","HTML Energieflussdiagramm","Energieflussdiagramm EVA","Diagramme des flux energetiques ACE ","Diagramma del flusso energetico ACE","Energieflussdiagramm EVA"]
[2.1,18,"Blatt Admin","A3","Version","Version ","Versione","Version"]
[2.1,19,"Blatt Admin","A4","Version:","Version: ","Versione:","Version:"]
[2.1,20,"Blatt Admin","A5","Versionsdatum:","Date de la version:","Data della versione:","Versionsdatum:"]
[2.1,21,"Blatt Admin","A7","Dropdowns","Listes déroulantes","Menu dropdown","Dropdowns"]
[2.1,22,"Blatt Admin","A8","Anzahl Gebaeude","Nombre de bâtiments ","Numero di edifici","Anzahl Gebaeude"]
[2.1,23,"Blatt Admin","A19","Massnahmenbeschreibung","Description des mesures d’amélioration ","Descrizione delle misure","Massnahmenbeschreibung"]
[2.1,24,"Blatt Admin","A20","a) im Arbeitsblatt \"Beschreibungen\"","a) dans la feuille de travail «Descriptions»","a) nel foglio di lavoro «Descrizioni»","a) im Arbeitsblatt \"Beschreibungen\""]
[2.1,25.1,"Blatt Admin","A21","b) in separatem Beilagendokument","b) dans un document annexé ","b) in un allegato a parte","b) in separatem Beilagendokument"]
[2.1,25.2,"Blatt Admin","A22","Ja oder Nein","Oui ou Non","Sì o No",{"$f":"IF(Sprache=\"DE\",E31,IF(Sprache=\"FR\",F31,IF(Sprache=\"IT\",G31,\"Fehler: Sprache wählen\")))","v":"Ja oder Nein"}]
[2.1,25.3,"Blatt Admin","A23","ja","oui","sì","ja"]
[2.1,25.4,"Blatt Admin","A24","nein","non","no","nein"]
[2.1,26,"Blatt Admin","A25","Zustand","Etat","Stato",{"$f":"IF(Sprache=\"DE\",E34,IF(Sprache=\"FR\",F34,IF(Sprache=\"IT\",G34,\"Fehler: Sprache wählen\")))","v":"Zustand"}]
[2.1,27,"Blatt Admin","A26","gut","bon","buono","gut"]
[2.1,28,"Blatt Admin","A27","mittel","moyen ","medio","mittel"]
[2.1,29,"Blatt Admin","A28","schlecht","mauvais","pessimo","schlecht"]
[2.1,30,"Blatt Admin","A29","Energieträger","Agent énergétique","Vettore energetico","Energieträger"]
[2.1,31,"Blatt Admin","A27: Buchst. Heizöl","Ö","M","O","Ö"]
[2.1,32,"Blatt Admin","A28: Buchst. Erdgas","G","G","G","G"]
[2.1,33,"Blatt Admin","A29: Buchst. Fernwärme/-kälte","F","D","T","F"]
[2.1,34,"Blatt Admin","A30: Buchst. Holz, Biomasse","H","B","L","H"]
[2.1,35,"Blatt Admin","A31: Buchst. Weitere Brennstoffe","W","A","A","W"]
[2.1,36,"Blatt Admin","A32: Buchst. Elektrische Energie","E","E","E","E"]
[2.1,37,"Blatt Admin","B27","Heizöl","Mazout","Olio combustile","Heizöl"]
[2.1,38,"Blatt Admin","B28","Erdgas","Gaz naturel","Gas naturale","Erdgas"]
[2.1,39,"Blatt Admin","B29","Fernwärme/-kälte","Chaleur ou froid à distance ","Teleriscaldamento/teleraffrescamento","Fernwärme/-kälte"]
[2.1,40,"Blatt Admin","B30","Holz, Biomasse","Bois, biomasse","Legna, biomassa","Holz, Biomasse"]
[2.1,41,"Blatt Admin","B31","Weitere Brennstoffe","Autres combustibles ","Altri combustibili","Weitere Brennstoffe"]
[2.1,42,"Blatt Admin","B32","Elektrische Energie","Energie électrique","Energia elettrica","Elektrische Energie"]
[2.1,43,"Blatt Admin","A33","Kostenanteil Energie","Part des coûts de l’énergie","Quota costi energia","Kostenanteil Energie"]
[2.1,44,"Blatt Admin","A43","Sprachwahl","Choix de la langue ","Selezione della lingua","Sprachwahl"]
[2.1,{"v":44.1,"d":"44"},"Blatt Admin","A61","Gewichtungsfaktoren","Facteurs de pondération","Fattori di ponderazione","Gewichtungsfaktoren"]
[2.2,45,"Blatt Sankey"]
[2.2,45.01,"Blatt Sankey","J7","Umweltenergie","Energie de l'environnement","Energia ambientale",{"$f":"IF(Sprache=\"DE\",E55,IF(Sprache=\"FR\",F55,IF(Sprache=\"IT\",G55,\"Fehler: Sprache wählen\")))","v":"Umweltenergie"}]
[2.2,45.02,"Blatt Sankey","J8","Abwärmenutzung","Utilisation des rejets thermiques","Utilizzo di calore residuo",{"$f":"IF(Sprache=\"DE\",E56,IF(Sprache=\"FR\",F56,IF(Sprache=\"IT\",G56,\"Fehler: Sprache wählen\")))","v":"Abwärmenutzung"}]
[2.2,45.03,"Blatt Sankey","J9","Solarwaerme","Chaleur solaire","Calore solare","Solarwaerme"]
[2.2,45.04,"Blatt Sankey","J10","Strombezug Werk","Achat Electricité de l'usine","Prelievo di elettricità stabilimento","Strombezug Werk"]
[2.2,45.05,"Blatt Sankey","J11","Stromproduktion Erneuerbar","Prod. d'électricité d'origine renouvelable","Produzione di elettricità da fonti rinnovabili","Stromproduktion Erneuerbar"]
[2.2,45.06,"Blatt Sankey","J12","Bezug Thermisch","Achat thermique","Prelievo energia termica","Bezug Thermisch"]
[2.2,45.07,"Blatt Sankey","J13","Bezug Elektrisch","Achat d'électricité","Prelievo energia elettrica","Bezug Elektrisch"]
[2.2,45.08,"Blatt Sankey","J14","WP/KM","PAC//Machine frigorifique","PC/MF","WP/KM"]
[2.2,45.09,"Blatt Sankey","J15","Direktnutzung Abwärme","Utilisation directe des rejets thermiques","Utilizzo diretto di calore residuo",{"$f":"IF(Sprache=\"DE\",E63,IF(Sprache=\"FR\",F63,IF(Sprache=\"IT\",G63,\"Fehler: Sprache wählen\")))","v":"Direktnutzung Abwärme"}]
[2.2,{"v":45.1,"d":"45.10"},"Blatt Sankey","J16","Direktnutzung Umweltenergie","Utilisation directe de l'énergie de l'env.","Utilizzo diretto di energia ambientale","Direktnutzung Umweltenergie"]
[2.2,45.11,"Blatt Sankey","J17","BHKW","CCF","CTEB","BHKW"]
[2.2,{"v":45.1200000000001,"d":"45.12"},"Blatt Sankey","J18","Bedarf Thermisch","Besoin thermique","Fabbisogno energia termica","Bedarf Thermisch"]
[2.2,{"v":45.1300000000001,"d":"45.13"},"Blatt Sankey","J19","Bedarf Elektrisch","Besoin en électricité","Fabbisogno elettricità","Bedarf Elektrisch"]
[2.2,{"v":45.1400000000001,"d":"45.14"},"Blatt Sankey","J56","Verluste (Erzeugung/Verteilung)","Pertes (production/distribution)","Perdite (produzione/distribuzione)","Verluste (Erzeugung/Verteilung)"]
["3",45,"Blatt Anleitung"]
[3.1,46,"Blatt Anleitung","A1","Kurzanleitung","Brève introduction ","Guida rapida",{"$f":"IF(Sprache=\"DE\",E70,IF(Sprache=\"FR\",F70,IF(Sprache=\"IT\",G70,\"Fehler: Sprache wählen\")))","v":"Kurzanleitung"}]
[3.1,47,"Blatt Anleitung","A2","Energieverbrauchsanalyse EVA","Analyse de consommation énergétique ACE","Analisi del consumo energetico ACE","Energieverbrauchsanalyse EVA"]
[3.1,48,"Blatt Anleitung","A5","Sprache","Langue ","Lingua","Sprache"]
[3.1,49,"Blatt Anleitung","A8","Zweck und Ziel","Buts ","Obiettivi","Zweck und Ziel"]
[3.1,50,"Blatt Anleitung","A9","Bei einer Energieverbrauchsanalyse sind Massnahmen aufzuzeigen, mit denen der gesamte Energieverbrauch in den Gebäuden und Anlagen (unter Berücksichtigung der Wirtschaftlichkeit) um 15 Prozent reduziert werden kann.","Dans une analyse de la consommation énergétique, il faut montrer les mesures d’amélioration au moyen desquelles il est possible de réduire de 15 % la consommation énergétique totale dans les bâtiments et les installations (compte tenu de la rentabilité).","In un’analisi del consumo energetico devono essere presentate le misure tramite le quali ridurre del 15% il consumo di energia complessiva degli edifici e degli impianti (tenendo conto della redditività).","Bei einer Energieverbrauchsanalyse sind Massnahmen aufzuzeigen, mit denen der gesamte Energieverbrauch in den Gebäuden und Anlagen (unter Berücksichtigung der Wirtschaftlichkeit) um 15 Prozent reduziert werden kann."]
[3.1,51,"Blatt Anleitung","A10","Die zu realisierenden Massnahmen zur Energieverbrauchsreduktion werden durch den Grossverbraucher resp. den vom Grossverbraucher beauftragten Energiespezialisten selbst deklariert. Diese Massnahmen werden anschliessend durch die zuständige kantonale Behörde genehmigt. Die Massnahmen sind innert der drei vom Kanton vorgegebenen Jahre auszuführen.","Les mesures d’amélioration à réaliser pour réduire la consommation énergétique sont déclarées par les gros consommateurs ou leur spécialiste en énergie mandaté par l'entreprise. Ces mesures sont ensuite approvuées par l’autorité cantonale compétente. Les mesures d’amélioration doivent être réalisées dans les trois ans prescrites par le canton après avoir été annoncées.","Le misure da realizzare per la riduzione del consumo di energia devono essere dichiarate dal Grande consumatore stesso o dallo specialista energetico incaricato dal Grande consumatore. Queste misure dovranno essere infine approvate dall’ente cantonale competente. Le misure dichiarate devono essere realizzate entro i tre anni previsti dal Cantone.","Die zu realisierenden Massnahmen zur Energieverbrauchsreduktion werden durch den Grossverbraucher resp. den vom Grossverbraucher beauftragten Energiespezialisten selbst deklariert. Diese Massnahmen werden anschliessend durch die zuständige kantonale Behörde genehmigt. Die Massnahmen sind innert der drei vom Kanton vorgegebenen Jahre auszuführen."]
[3.1,52,"Blatt Anleitung","A11","Die Energieträger werden mit folgenden Gewichtungsfaktoren gewichtet: Elektrizität: 2, Heizöl & Erdgas: 1, Fernwärme/-kälte (inkl. externer Abwärme): 0.6, Holz & Biomasse: 0.7, Umweltwärme (inkl. interner Abwärme) & erneuerbare Stromeigenproduktion: 0","Les agents énergétiques sont pondérés par les facteurs suivants :  électricité : 2 | mazout & gaz naturel : 1 | chaleur ou froid à distance (rejets extérieurs de chaleur compris) : 0,6 | bois & biomasse : 0,7 | chaleur ambiante (rejets intérieurs de chaleur compris) & production renouvelable d’électricité : 0","I vettori energetici sono ponderati con i seguenti fattori: elettricità: 2; olio combustibile e gas naturale: 1; teleriscaldamento/teleraffrescamento (incl. calore residuo esterno): 0,6; legna e biomassa: 0,7; calore ambientale (incl. calore residuo interno) e produzione autonoma di elettricità da fonti rinnovabili: 0","Die Energieträger werden mit folgenden Gewichtungsfaktoren gewichtet: Elektrizität: 2, Heizöl & Erdgas: 1, Fernwärme/-kälte (inkl. externer Abwärme): 0.6, Holz & Biomasse: 0.7, Umweltwärme (inkl. interner Abwärme) & erneuerbare Stromeigenproduktion: 0"]
[3.1,53,"Blatt Anleitung","A13","Aufbau","Structure","Struttura","Aufbau"]
[3.1,54,"Blatt Anleitung","A14","Dieses Excel-Tool besteht aus mehreren Arbeitsblättern:","Cet outil Excel est constitué de plusieurs feuilles de travail:","Questo tool Excel è composto da più fogli di lavoro:","Dieses Excel-Tool besteht aus mehreren Arbeitsblättern:"]
[3.1,55,"Blatt Anleitung","A26","Bedienung","Indications d’emploi","Utilizzo","Bedienung"]
[3.1,{"v":55.1,"d":"55"},"Blatt Anleitung","A40","Problembehebung","Résolution de problèmes ","Risoluzione dei problemi","Problembehebung"]
[3.1,56,"Blatt Anleitung","A44","Disclaimer","Exclusion de responsabilité","Disclaimer","Disclaimer"]
[3.1,57,"Blatt Anleitung","A45","Diese Arbeitsmappe wurde im Auftrag der Konferenz Kantonaler Energiefachstellen (EnFK) erstellt. Weder der  Auftraggeber noch der Ersteller haften für die Richtigkeit der Resultate oder Schlussfolgerungen, welche aus dieser Arbeitsmappe gezogen werden. Für die Richtigkeit der Angaben haftet der Benutzer dieser Arbeitsmappe.","Le présent classeur de travail a été réalisé sur mandat de la Conférence des services cantonaux de l’énergie (EnFK). Ni le mandant ni le mandataire ne répondent de la justesse des résultats ou des conclusions qui sont tirées du présent classeur de travail. L’utilisateur du présent classeur de travail répond lui-même de la justesse des données.","Questa cartella di lavoro è stata realizzata su incarico della Conferenza dei servizi cantonali dell’energia (EnFK). Né il committente né il creatore della cartella di lavoro rispondono della correttezza dei risultati e delle conclusioni con questa ottenuti. Della correttezza dei dati risponde l’utente della cartella di lavoro.","Diese Arbeitsmappe wurde im Auftrag der Konferenz Kantonaler Energiefachstellen (EnFK) erstellt. Weder der  Auftraggeber noch der Ersteller haften für die Richtigkeit der Resultate oder Schlussfolgerungen, welche aus dieser Arbeitsmappe gezogen werden. Für die Richtigkeit der Angaben haftet der Benutzer dieser Arbeitsmappe."]
[3.1,58,"Blatt Anleitung","B15","Titelblatt:","Feuille de titre:","Frontespizio","Titelblatt:"]
[3.1,59,"Blatt Anleitung","B16","Formular A:","Formulaire A:","Formulario A:","Formular A:"]
[3.1,60,"Blatt Anleitung","B17","Formular B:","Formulaire B:","Formulario B:","Formular B:"]
[3.1,61,"Blatt Anleitung","B18","Formular C:","Formulaire C","Formulario C:","Formular C:"]
[3.1,62,"Blatt Anleitung","B19","Formular D:","Formulaire D","Formulario D:","Formular D:"]
[3.1,63,"Blatt Anleitung","B20","Formular E:","Formulaire E","Formulario E:","Formular E:"]
[3.1,64,"Blatt Anleitung","B21","Formular F1:","Formulaire F1:","Formulario F1:","Formular F1:"]
[3.1,65,"Blatt Anleitung","B22","Formular F2:","Formulaire F2:","Formulario F2:","Formular F2:"]
[3.1,66,"Blatt Anleitung","B23","Beschreibungen:","Descriptions:","Descrizioni:","Beschreibungen:"]
[3.1,67,"Blatt Anleitung","B24","Report:","Rapport:","Rapporto:","Report:"]
[3.1,68,"Blatt Anleitung","B27","Die Eingaben müssen in chronologischer Reihenfolge von oben nach unten erfolgen. Resultate werden zum Teil erst angezeigt, wenn alle dazugehörigen zwingenden Eingabefelder ausgefüllt wurden."," Les saisies doivent être faites par ordre chronologique de haut en bas. Dans certains cas, les résultats s’affichent seulement lorsque tous les champs de saisie obligatoire correspondants sont remplis.","L’inserimento dei dati deve essere effettuato in ordine cronologico dall’alto verso il basso. In alcuni casi i risultati vengono visualizzati solo se sono stati compilati tutti i campi obbligatori.","Die Eingaben müssen in chronologischer Reihenfolge von oben nach unten erfolgen. Resultate werden zum Teil erst angezeigt, wenn alle dazugehörigen zwingenden Eingabefelder ausgefüllt wurden."]
[3.1,69,"Blatt Anleitung","B28","Bitte beachten Sie, dass diese Arbeitsmappe nur funktioniert, wenn die Makroausführung in Excel erlaubt ist (Excel-Option).","Veuillez noter que ce classeur de travail ne fonctionne que si l’exécution des macros est autorisée (option dans Excel).","Tenere presente che la cartella di lavoro funziona solo se viene consentita l’esecuzione delle macro in Microsoft Excel (Opzioni Excel).","Bitte beachten Sie, dass diese Arbeitsmappe nur funktioniert, wenn die Makroausführung in Excel erlaubt ist (Excel-Option)."]
[3.1,70,"Blatt Anleitung","B29","Die Blätter dieser Arbeitsmappe sind geschützt, um zu verhindern, dass versehentlich Formeln überschrieben werden.","Les feuilles de ce classeur de travail sont protégées pour éviter que des formules ne soient écrasées par mégarde.","I fogli di questa cartella di lavoro sono protetti per evitare che le formule contenute nelle celle vengano inavvertitamente sovrascritte.","Die Blätter dieser Arbeitsmappe sind geschützt, um zu verhindern, dass versehentlich Formeln überschrieben werden."]
[3.1,71,"Blatt Anleitung","B30","Die Felder sind zum Teil farblich markiert:","Les champs sont en partie signalés par des couleurs:","I campi per l’inserimento dei dati sono in parte suddivisi secondo il seguente codice di colore:","Die Felder sind zum Teil farblich markiert:"]
[3.1,{"v":71.1,"d":"71"},"Blatt Anleitung","B41","Diese Arbeitsmappe wurde in der Ansicht \"Seitenlayout\" erstellt. In dieser Ansicht kann es passieren, dass Excel fälschlicherweise zwei oder mehr Zellen gleichzeitig auswählt (und dadurch allenfalls Links nicht mehr funktionieren). Vergrössern oder verkleinern Sie in diesem Fall die Ansicht (Zoom) oder wählen Sie in der Registerkarte Ansicht anstatt \"Seitenlayout\" die Darstellung \"Normal\".","Ce classeur a été créé dans l’affichage \"Mise en page\". Dans Excel, il peut se produire que deux cellules ou plus soient sélectionnées simultanément par erreur avec ce type d’affichage (ce qui peut aussi avoir pour effet que les liens ne fonctionnent plus). Si c’est le cas, utilisez le zoom pour agrandir ou diminuer l’affichage ou alors changez le type d’affichage, en sélectionnant l’affichage \"Normal\" au lieu de l’affichage \"Mise en page\" dans l’onglet \"Affichage\".","Questa cartella di lavoro è stata realizzata nella visualizzazione «Layout di pagina». In questa visualizzazione può succedere che Excel selezioni erroneamente due o più celle contemporaneamente e che di conseguenza non funzionino più i link.  In questo caso è consigliabile ingrandire o rimpicciolire la visualizzazione (Zoom) oppure scegliere nella scheda «Visualizza» la visualizzazione «Normale» anziché «Layout di pagina».","Diese Arbeitsmappe wurde in der Ansicht \"Seitenlayout\" erstellt. In dieser Ansicht kann es passieren, dass Excel fälschlicherweise zwei oder mehr Zellen gleichzeitig auswählt (und dadurch allenfalls Links nicht mehr funktionieren). Vergrössern oder verkleinern Sie in diesem Fall die Ansicht (Zoom) oder wählen Sie in der Registerkarte Ansicht anstatt \"Seitenlayout\" die Darstellung \"Normal\"."]
[3.1,{"v":71.2,"d":"71"},"Blatt Anleitung","B42","Eingabemeldungen unterstützen Sie mit Hinweisen zu den Eingaben und erscheinen im Normalfall automatisch neben der Eingabezelle. Sollten die Kommentare die Eingabezellen fälschlicherweise jedoch überdecken, können diese mit der Maus verschoben werden.","Des messages s’affichent pour vous aider dans votre saisie. Ils apparaissent normalement à côté de la cellule dans laquelle vous devez effectuer votre saisie. Si par erreur, ils devaient toutefois la masquer, vous pouvez les déplacer au moyen de votre souris.","I messaggi di input forniscono indicazioni utili per l'inserimento dei dati e solitamente vengono visualizzati accanto alla cella di input quando questa viene selezionata. Se tuttavia i commenti dovessero sovrapporsi alle celle di input basta postarli con il mouse.","Eingabemeldungen unterstützen Sie mit Hinweisen zu den Eingaben und erscheinen im Normalfall automatisch neben der Eingabezelle. Sollten die Kommentare die Eingabezellen fälschlicherweise jedoch überdecken, können diese mit der Maus verschoben werden."]
[3.1,72,"Blatt Anleitung","D15","Allgemeine Angaben zum Unternehmen und zum Energiespezialisten","Renseignements généraux sur l’entreprise et sur le spécialiste en énergie","Indicazioni generali sulla ditta e lo specialista energetico","Allgemeine Angaben zum Unternehmen und zum Energiespezialisten"]
[3.1,73,"Blatt Anleitung","D16","Allgemeine Angaben zur Betriebsstätte","Renseignements généraux concernant le site d’exploitation ","Indicazioni generali sullo stabilimento","Allgemeine Angaben zur Betriebsstätte"]
[3.1,74,"Blatt Anleitung","D17","Angaben zu den Gebäuden und technischen Anlagen","Renseignements sur les bâtiments et sur les installations techniques ","Indicazioni su edifici ed impianti tecnici","Angaben zu den Gebäuden und technischen Anlagen"]
[3.1,75,"Blatt Anleitung","D18","Angaben zum Endenergiebezug","Renseignements sur l’achat d’énergie finale ","Indicazioni sul prelievo di energia finale","Angaben zum Endenergiebezug"]
[3.1,76,"Blatt Anleitung","D19","Angaben zum Energiebedarf der Hauptverbraucher","Renseignements sur les besoins en énergie des consommateurs principaux ","Indicazioni sul fabbisogno di energia dei consumatori principali","Angaben zum Energiebedarf der Hauptverbraucher"]
[3.1,77,"Blatt Anleitung","D20","Neue Massnahmen und Wirtschaftlichkeit","Nouvelles mesures d’amélioration et rentabilité ","Nuove misure e redditività","Neue Massnahmen und Wirtschaftlichkeit"]
[3.1,78,"Blatt Anleitung","D21","Deklaration der umzusetzenden neuen Massnahmen","Déclaration des mesures d’amélioration devant être mises en œuvre ","Dichiarazione delle nuove misure da attuare","Deklaration der umzusetzenden neuen Massnahmen"]
[3.1,79,"Blatt Anleitung","D22","Massnahmen der letzten 5 Jahre","Mesures d’amélioration des 5 dernières années","Misure realizzate negli ultimi 5 anni","Massnahmen der letzten 5 Jahre"]
[3.1,80,"Blatt Anleitung","D23","Beschreibung der Massnahmen von Formular E und F2","Description des mesures d’amélioration des formulaires E et F2","Descrizione delle misure dei Formulari E ed F2","Beschreibung der Massnahmen von Formular E und F2"]
[3.1,81,"Blatt Anleitung","D24","Übersicht zu den wichtigsten Daten der Energieverbrauchsanalyse","Vue d’ensemble des principales données relatives à l’analyse de la consommation énergétique ","Panoramica sui dati più rilevanti dell’analisi del consumo energetico","Übersicht zu den wichtigsten Daten der Energieverbrauchsanalyse"]
[3.1,82,"Blatt Anleitung","D32","Zwingende Angaben","Renseignements obligatoires","Indicazioni obbligatorie","Zwingende Angaben"]
[3.1,83,"Blatt Anleitung","D34","Fakultative Angaben","Renseignements facultatifs ","Indicazioni facoltative","Fakultative Angaben"]
[3.1,84,"Blatt Anleitung","D36","Wichtige Hinweise","Remarques importantes ","Avvertenze importanti","Wichtige Hinweise"]
[3.1,85,"Blatt Anleitung","D38","Zielgrösse der Energieverbrauchsanalyse","Valeur cible de l'analyse de consommation énergétique","Valore target dell’analisi del consumo energetico","Zielgrösse der Energieverbrauchsanalyse"]
[4,86,"Blatt Titelblatt"]
[4.1,87,"Blatt Titelblatt","A2","Energieverbrauchsanalyse für Grossverbraucher","Analyse de consommation énergétique pour gros consommateurs","Analisi del consumo energetico per grandi consumatori",{"$f":"IF(Sprache=\"DE\",E114,IF(Sprache=\"FR\",F114,IF(Sprache=\"IT\",G114,\"Fehler: Sprache wählen\")))","v":"Energieverbrauchsanalyse für Grossverbraucher"}]
[4.1,88,"Blatt Titelblatt","A3","Titelblatt","Page de couverture","Frontespizio","Titelblatt"]
[4.1,89,"Blatt Titelblatt","B5","Firmenname / Adresse:","Nom de l’entreprise / adresse:","Nome della ditta/indirizzo:","Firmenname / Adresse:"]
[4.1,90,"Blatt Titelblatt","B8","Kontaktperson Firma:","Contact dans l’entreprise:","Persona di contatto:","Kontaktperson Firma:"]
[4.1,91,"Blatt Titelblatt","B12","Betriebsstätte:","Site d’exploitation:","Stabilimento:","Betriebsstätte:"]
[4.1,92,"Blatt Titelblatt","B16","Energiespezialist/In / Ingenieurbüro:","Spécialiste en énergie/bureau d’ingén.","Specialista energetico/studio ingegn.:","Energiespezialist/In / Ingenieurbüro:"]
[4.1,93,"Blatt Titelblatt","B19","Kontaktperson Firma:","Contact dans l’entreprise:","Persona di contatto:","Kontaktperson Firma:"]
[4.1,94,"Blatt Titelblatt","B25","Datum der Berichterfassung:","Date de la saisie du rapport:","Data del rapporto:","Datum der Berichterfassung:"]
[4.1,95,"Blatt Titelblatt","F8","Name:","Nom:","Nome:","Name:"]
[4.1,96,"Blatt Titelblatt","F9","Tel.:","Tél.:","Tel.:","Tel.:"]
[4.1,97,"Blatt Titelblatt","F10","Email:","Courriel:","Email:","Email:"]
[4.1,99,"Blatt Titelblatt","F19","Name:","Nom:","Nome:","Name:"]
[4.1,100,"Blatt Titelblatt","F20","Tel.:","Tél.:","Tel.:","Tel.:"]
[4.1,101,"Blatt Titelblatt","F21","Email:","Courriel:","Email:","Email:"]
[4.1,102,"Blatt Titelblatt","J9","  Fax:"," Fax:","  Fax:","  Fax:"]
[4.1,103,"Blatt Titelblatt","J20","  Fax:"," Fax:","  Fax:","  Fax:"]
[4.1,104,"Blatt Titelblatt","J25","  Version:"," Version: ","  Versione:","  Version:"]
[5,105,"Blatt Formular A"]
[5.1,106,"Blatt Formular A","A1","Formular A ","Formulaire A ","Formulario A ",{"$f":"IF(Sprache=\"DE\",E132,IF(Sprache=\"FR\",F132,IF(Sprache=\"IT\",G132,\"Fehler: Sprache wählen\")))","v":"Formular A "}]
[5.1,107,"Blatt Formular A","A2","Allgemeine Angaben zur Betriebsstätte","Renseignements généraux concernant le site d’exploitation ","Indicazioni generali sullo stabilimento","Allgemeine Angaben zur Betriebsstätte"]
[5.1,108,"Blatt Formular A","A16","Beilagenverzeichnis und ergänzende Dokumente","Liste des annexes et documents complémentaires","Elenco degli allegati e dei documenti complementari","Beilagenverzeichnis und ergänzende Dokumente"]
[5.1,109,"Blatt Formular A","B5","Firmenname und Adresse:","Nom et adresse de l’entreprise","Nome della ditta e indirizzo:","Firmenname und Adresse:"]
[5.1,110,"Blatt Formular A","B6","Kontaktperson:","Contact:","Persona di contatto:","Kontaktperson:"]
[5.1,111,"Blatt Formular A","B7","Branche:","Branche:","Settore:","Branche:"]
[5.1,112,"Blatt Formular A","B8","Geschäftstätigkeit:","Activité:","Attività:","Geschäftstätigkeit:"]
[5.1,113,"Blatt Formular A","B9","Anzahl Mitarbeiter Total:","Total des collaborateurs:","Totale numero collaboratori:","Anzahl Mitarbeiter Total:"]
[5.1,114,"Blatt Formular A","B10","Anzahl Mitarbeiter auf Vollzeitstellen umgerechnet:","Nombre de collaborateurs, équivalents plein temps:","Numero collaboratori, in equivalenti a tempo pieno:","Anzahl Mitarbeiter auf Vollzeitstellen umgerechnet:"]
[5.1,115,"Blatt Formular A","B11","Betriebsorganisation:","Organisation de l’exploitation:","Organizzazione aziendale:","Betriebsorganisation:"]
[5.1,116,"Blatt Formular A","B12","Produktionszeit / Arbeitszeit:","Durée de la production ou du travail","Tempo di produzione/tempo di lavoro:","Produktionszeit / Arbeitszeit:"]
[5.1,117,"Blatt Formular A","B13","Absatz oder Umsatz pro Jahr:","Ventes ou chiffre d’affaires, par an","Vendite o fatturato annuo:","Absatz oder Umsatz pro Jahr:"]
[5.1,118,"Blatt Formular A","B14","Anzahl Gebäude:","Nombre de bâtiments:","Numero di edifici:","Anzahl Gebäude:"]
[5.1,119,"Blatt Formular A","B18","Erforderliche Beilagen:","Annexes obligatoires: ","Allegati obbligatori:","Erforderliche Beilagen:"]
[5.1,120,"Blatt Formular A","B19","Massnahmenbeschreibungen:","Descriptions des mesures d’amélioration en:","Descrizione delle misure:","Massnahmenbeschreibungen:"]
[5.1,121,"Blatt Formular A","B20","Hinweise:","Remarques:","Avvertenze:","Hinweise:"]
[5.1,122,"Blatt Formular A","B23","Situations-/Katasterplan der Gebäude:","Plans de situation ou cadastral des bâtiments ","Piano di situazione/piano catastale degli edifici:","Situations-/Katasterplan der Gebäude:"]
[5.1,123,"Blatt Formular A","B26","Fakultative Beilagen:","Annexes facultatives: ","Allegati facoltativi:","Fakultative Beilagen:"]
[5.1,124,"Blatt Formular A","B27","Berichte:","Rapports","Rapporti:","Berichte:"]
[5.1,125,"Blatt Formular A","B29","Wichtigste Grundrisse und Schemata:","Principaux plans et Schémas","Piantine e schemi più importanti:","Wichtigste Grundrisse und Schemata:"]
[5.1,126,"Blatt Formular A","B31","Weiteres:","Autres","Altro:","Weiteres:"]
[5.1,127,"Blatt Formular A","C20","- Massnahmen der Formulare E und F müssen im Blatt \"Beschreibungen\" dieses EVA-Tools oder einer Beilage nachvollziehbar beschrieben werden. Bitte per obigem Dropdown auswählen.","- Les mesures d'amélioration des formulaires E et F doivent être clairement décrites dans la feuille \"Descriptions\" de ce classeur ou dans une annexe. Utilisez la liste déroulante pour la sélection.","- Le misure dei Formulari E ed F devono essere descritte in modo chiaro nel foglio di lavoro «Descrizioni» o in un documento allegato. Selezionare una delle due opzioni nel dropdown sopra.","- Massnahmen der Formulare E und F müssen im Blatt \"Beschreibungen\" dieses EVA-Tools oder einer Beilage nachvollziehbar beschrieben werden. Bitte per obigem Dropdown auswählen."]
[5.1,128,"Blatt Formular A","C21","- Auch in der Beilage müssen Einspar- und Kostenberechnungen nachvollziehbar aufzeigt werden.","- Les calculs d’économies et de coûts doivent également être présentés clairement dans l’annexe.","- Anche nell’allegato i risparmi e i costi calcolati devono essere illustrati in modo chiaro.","- Auch in der Beilage müssen Einspar- und Kostenberechnungen nachvollziehbar aufzeigt werden."]
[5.1,129,"Blatt Formular A","E18","Auswahl Massnahmenbeschreibungen:","Sélection des descriptions des mesures d’amélioration:","Selezionare la modalità di descrizione delle misure:","Auswahl Massnahmenbeschreibungen:"]
[5.1,130,"Blatt Formular A","E22","Dokumentenname:","Nom du document:","Nome del documento:","Dokumentenname:"]
[5.1,131,"Blatt Formular A","E26","Dokumentenname:","Nom du document:","Nome del documento:","Dokumentenname:"]
[5.1,132,"Blatt Formular A","F12","Stunden pro Tag","heures par jour ","ore al giorno","Stunden pro Tag"]
[5.1,133,"Blatt Formular A","F14","Hinweis: In Formular B wird die Anzahl Eingabeblätter (zur Angabe der Gebäudedaten) automatisch dieser Eingabe angepasst.","Remarque: le nombre nombre d'onglet \"formulaire B\" (destinés aux données relatives aux bâtiments) correspond automatiquement à cette information.","Avvertenza: nel Formulario B il numero di fogli di lavoro (per l’immissione dei dati sugli edifici) corrisponde all'indicazione qui fornita.","Hinweis: In Formular B wird die Anzahl Eingabeblätter (zur Angabe der Gebäudedaten) automatisch dieser Eingabe angepasst."]
[5.1,134,"Blatt Formular A","G9","Personen","personnes","persone","Personen"]
[5.1,135,"Blatt Formular A","G10","Personen","personnes","persone","Personen"]
[5.1,136,"Blatt Formular A","K11","- schichtig","(1 = travail en 1 x 8, 2 = 2 x 8, 3 = 3 x 8)","turni lavorativi","- schichtig"]
[5.1,137,"Blatt Formular A","L12","Tage pro Woche","jours par semaine ","giorni alla settimana","Tage pro Woche"]
[5.1,138,"Blatt Formular A","O6","Tel.:  ","Tél.: ","Tel.:  ","Tel.:  "]
[5.1,139,"Blatt Formular A","X6","Email:","Courriel:","Email:","Email:"]
[5.1,140,"Blatt Formular A","V18 (in Formel)","Dokumentenname:","Nom du document:","Nome del documento:","Dokumentenname:"]
[5.1,141,"Blatt Formular A","V22","Dokumentenname:","Nom du document:","Nome del documento:","Dokumentenname:"]
[5.1,142,"Blatt Formular A","V26","Dokumentenname:","Nom du document:","Nome del documento:","Dokumentenname:"]
[6,143,"Blatt Formular B"]
[6.1,144,"Blatt Formular B","A1","Formular B ","Formulaire B","Formulario B ",{"$f":"IF(Sprache=\"DE\",E170,IF(Sprache=\"FR\",F170,IF(Sprache=\"IT\",G170,\"Fehler: Sprache wählen\")))","v":"Formular B "}]
[6.1,145,"Blatt Formular B","A2","Angaben zu den Gebäuden und Technischen Anlagen","Renseignements sur les bâtiments et sur les installations techniques ","Indicazioni su edifici ed impianti tecnici","Angaben zu den Gebäuden und Technischen Anlagen"]
[6.1,146,"Blatt Formular B","A5","Gebäudedaten","Données relatives aux bâtiments","Dati sull’edificio","Gebäudedaten"]
[6.1,147,"Blatt Formular B","A15","Anlagedaten","Données relatives aux installations ","Dati sugli impianti","Anlagedaten"]
[6.1,148,"Blatt Formular B","A16","Nr.","N°","N°","Nr."]
[6.1,149,"Blatt Formular B","A17","B.9  Energieerzeugungsanlagen","B.9 Installations de production d’énergie ","B.9  Impianti di produzione di energia","B.9  Energieerzeugungsanlagen"]
[6.1,150,"Blatt Formular B","A25","B.10  Energieverbraucher Haustechnik","B.10 Consommateurs d’énergie pour la technique du bâtiment ","B.10  Consumatori di energia tecnica impiantistica","B.10  Energieverbraucher Haustechnik"]
[6.1,151,"Blatt Formular B","A36","B.11  Energieverbraucher Prozess u. Produktion","B.11 Consommateurs d’énergie pour les processus et la production ","B.11  Consumatori di energia processi e produzione","B.11  Energieverbraucher Prozess u. Produktion"]
[6.1,152,"Blatt Formular B","B6","Gebäude-Nr.:","Bâtiment n°","N° edificio:","Gebäude-Nr.:"]
[6.1,153,"Blatt Formular B","B7","Gebäudebezeichnung:","Désignation du bâtiment","Denominazione edificio:","Gebäudebezeichnung:"]
[6.1,154,"Blatt Formular B","B8","Anzahl Geschosse:","Nombre d’étages ","Numero di piani:","Anzahl Geschosse:"]
[6.1,155,"Blatt Formular B","B9","Geschossflächen:","Surfaces de plancher","Superfici di piano:","Geschossflächen:"]
[6.1,156.1,"Blatt Formular B","B10","Nutzungsarten:","Affectations","Tipi di utilizzo:","Nutzungsarten:"]
[6.1,156.2,"Blatt Formular B","Eingabemeldungen I10 V10 AI10","Beispiele für Nutzungsarten:","Exemples d'affectation","Esempi di tipo di utilizzo:",{"$f":"IF(Sprache=\"DE\",E183,IF(Sprache=\"FR\",F183,IF(Sprache=\"IT\",G183,\"Fehler: Sprache wählen\")))","v":"Beispiele für Nutzungsarten:"}]
[6.1,156.2,"Blatt Formular B","Eingabemeldungen I10 V10 AI10","- Büro\n- Produktion\n- Lager\n- Küche\n- Restaurant\n- Kühlraum\netc.","- Bureau\n- Production\n- Dépôts\n- Cuisine\n- Restaurant\n- Chambre froide\netc.","- Ufficio\n- Produzione\n- Magazzino\n- Cucina\n- Ristorante\n- Locale frigorifero\necc.",{"$f":"IF(Sprache=\"DE\",E184,IF(Sprache=\"FR\",F184,IF(Sprache=\"IT\",G184,\"Fehler: Sprache wählen\")))","v":"- Büro\n- Produktion\n- Lager\n- Küche\n- Restaurant\n- Kühlraum\netc."}]
[6.1,157,"Blatt Formular B","B11","Baujahr:","Année de construction:","Anno di costruzione:",{"$f":"IF(Sprache=\"DE\",E185,IF(Sprache=\"FR\",F185,IF(Sprache=\"IT\",G185,\"Fehler: Sprache wählen\")))","v":"Baujahr:"}]
[6.1,158,"Blatt Formular B","B12","Sanierungen/Erweiterungen:","Rénovations/agrandissements:","Risanam./ampliam.:","Sanierungen/Erweiterungen:"]
[6.1,158,"Blatt Formular B","Eingabemeldung","Sanierungen/Erweiterungen:","Rénovations/agrandissements:","Risanamenti/ampliamenti:",{"$f":"IF(Sprache=\"DE\",E187,IF(Sprache=\"FR\",F187,IF(Sprache=\"IT\",G187,\"Fehler: Sprache wählen\")))","v":"Sanierungen/Erweiterungen:"}]
[6.1,158,"Blatt Formular B","Eingabemeldung","Bitte geben Sie das Jahr sowie die Art der Sanierung/Erweiterung an.\nBeispiele:\n- 1990: Fensterersatz Produktion\n- 2005: Erweiterung 1. Etage (Büro)","Introduisez svp l'année et le type d'assainissement/extension:\nExemples:\n- 1990: Remplacement des fenêtres Production\n- 2005: Extension 1er étage (Bureau)","Indicare l’anno e il tipo di risanamento/ampliamento.\nEsempi:\n- 1990: Sostituzione delle finestre Produzione\n- 2005: Ampliamento 1° piano (Ufficio)\n","Bitte geben Sie das Jahr sowie die Art der Sanierung/Erweiterung an.\nBeispiele:\n- 1990: Fensterersatz Produktion\n- 2005: Erweiterung 1. Etage (Büro)"]
[6.1,159,"Blatt Formular B","B13","Art der Gebäudehülle:","Type de construction:","Tipo di involucro edilizio:","Art der Gebäudehülle:"]
[6.1,160,"Blatt Formular B","B14","U-Werte:","Valeurs U:","Valori U:","U-Werte:"]
[6.1,161,"Blatt Formular B","B16","Anlage","Installation","Impianto","Anlage"]
[6.1,162,"Blatt Formular B","H9","Bruttogeschossfläche","Surface brute de plancher","Superficie utile lorda","Bruttogeschossfläche"]
[6.1,163,"Blatt Formular B","H14","Aussenwand","Paroi extérieure","Parete esterna","Aussenwand"]
[6.1,164,"Blatt Formular B","I8"," Obergeschosse"," Etages"," Piani superiori"," Obergeschosse"]
[6.1,165,"Blatt Formular B","O16","Technische Daten","Données techniques","Dati tecnici","Technische Daten"]
[6.1,166,"Blatt Formular B","R10"," m² BGF"," m² SBP"," m² SUL"," m² BGF"]
[6.1,167,"Blatt Formular B","R14"," Fenster"," Fenêtres "," Finestre"," Fenster"]
[6.1,168,"Blatt Formular B","S8"," Untergeschosse"," Sous-sols"," Piani interrati"," Untergeschosse"]
[6.1,169,"Blatt Formular B","U7","Adresse:","Adresse:","Indirizzo:","Adresse:"]
[6.1,170,"Blatt Formular B","X9"," m² BGF"," m² SBP"," m² SUL"," m² BGF"]
[6.1,171,"Blatt Formular B","X13","Sonnenschutz:","Protection solaire:","Protezione solare:","Sonnenschutz:"]
[6.1,172,"Blatt Formular B","Z14"," Boden gegen \"unbeheizt\""," Sol contre «non chauffé»"," Pavimento verso «non riscaldato»"," Boden gegen \"unbeheizt\""]
[6.1,173,"Blatt Formular B","Z16","Leistung [kW]","Puissance [kW]","Potenza [kW]","Leistung [kW]"]
[6.1,174,"Blatt Formular B","AB9","Beheizte Geschossfläche","Surface brute de plancher chauffée","Superficie di piano riscaldata","Beheizte Geschossfläche"]
[6.1,175.1,"Blatt Formular B","AC16","Betriebsst.\n[h/a]","Durée d’ex-\npl. [h/an]","Ore di funzion. \n[h/a]","Betriebsst.\n[h/a]"]
[6.1,175.2,"Blatt Formular B","AE17","WRG","Récup. de chaleur ","RdC",{"$f":"IF(Sprache=\"DE\",E206,IF(Sprache=\"FR\",F206,IF(Sprache=\"IT\",G206,\"Fehler: Sprache wählen\")))","v":"WRG"}]
[6.1,176,"Blatt Formular B","AE10"," m² BGF"," m² SBP"," m² SUL"," m² BGF"]
[6.1,177,"Blatt Formular B","AF16","Baujahr","Année de construct.","Anno di costruzione","Baujahr"]
[6.1,178,"Blatt Formular B","AI16","Zustand","Etat","Stato","Zustand"]
[6.1,179,"Blatt Formular B","AL14","Dach","Toiture","Tetto\n\n","Dach"]
[6.1,180,"Blatt Formular B","AL16","Sanie-\nrungspflicht","Obligat. de\nrénovation","Obbligo di \nrisanam.","Sanie-\nrungspflicht"]
[6.1,181,"Blatt Formular B","AR9"," m² BGF"," m² SBP"," m² SUL"," m² BGF"]
[6.1,182,"Blatt Formular B","AR10"," m² BGF"," m² SBP"," m² SUL"," m² BGF"]
[6.1,183,"Blatt Formular B","AR16","Schema (Beilage)","Schéma (annexe)","Schema (allegato)","Schema (Beilage)"]
[7,184,"Blatt Formular C"]
[7.1,185,"Blatt Formular C","A1","Formular C","Formulaire C","Formulario C",{"$f":"IF(Sprache=\"DE\",E216,IF(Sprache=\"FR\",F216,IF(Sprache=\"IT\",G216,\"Fehler: Sprache wählen\")))","v":"Formular C"}]
[7.1,186,"Blatt Formular C","A2","Angaben zum Endenergiebezug","Renseignements sur l’achat d’énergie finale ","Indicazioni sul prelievo di energia finale","Angaben zum Endenergiebezug"]
[7.1,187,"Blatt Formular C","A5","C.1  Angabe des absoluten Endenergiebezugs","C.1 Saisie de l’achat d’énergie finale en chiffres absolus","C.1 Indicazioni sul prelievo assoluto di energia finale","C.1  Angabe des absoluten Endenergiebezugs"]
[7.1,188,"Blatt Formular C","A7","Aktuellstes abgeschlossenes Kalenderjahr:","Année civile clôturée la plus récente","Anno civile concluso più recente:","Aktuellstes abgeschlossenes Kalenderjahr:"]
[7.1,189,"Blatt Formular C","A11","Thermische Energie ¹⁾:","Energie thermique ¹⁾:","Energia termica ¹⁾:","Thermische Energie ¹⁾:"]
[7.1,190,"Blatt Formular C","A12: Buchst. Heizöl","Ö","M","O","Ö"]
[7.1,191,"Blatt Formular C","A13: Buchst. Erdgas","G","G","G","G"]
[7.1,192,"Blatt Formular C","A14: Buchst. Fernwärme/-kälte","F","D","T","F"]
[7.1,193,"Blatt Formular C","A15: Buchst. Holz, Biomasse","H","B","L","H"]
[7.1,194,"Blatt Formular C","A16: Buchst. Weitere Brennstoffe","W","A","A","W"]
[7.1,195,"Blatt Formular C","A17","Thermische Energie Total","Total énergie thermique ","Totale energia termica","Thermische Energie Total"]
[7.1,196,"Blatt Formular C","A20: Buchst. Elektrische Energie","E","E","E","E"]
[7.1,197,"Blatt Formular C","A23","Jahresendenergiebezug ungewichtet","Achat annuel d’énergie finale non pondéré","Prelievo annuo di energia finale non ponderato","Jahresendenergiebezug ungewichtet"]
[7.1,198,"Blatt Formular C","A24","Jahresendenergiebezug gewichtet ²⁾","Achat annuel d’énergie finale pondéré ²⁾","Prelievo annuo di energia finale ponderato ²⁾","Jahresendenergiebezug gewichtet ²⁾"]
[7.1,199,"Blatt Formular C","A25","1) Bei Verwendung einer Photovoltaik-, WP-, oder BHKW-Anlage sind dazugehörige Energiezahlen in Formular D, Ziffer D.1 anzugeben.","1) Si vous employez une installation photovoltaïque, une PAC ou un CCF, indiquez les chiffres correspondants dans le formulaire D, chiffre D.1.","1) Se si utilizza un impianto fotovoltaico, una PC o una CTEB indicare i dati energetici corrispondenti nel Formulario D, cifra D.1.","1) Bei Verwendung einer Photovoltaik-, WP-, oder BHKW-Anlage sind dazugehörige Energiezahlen in Formular D, Ziffer D.1 anzugeben."]
[7.1,200,"Blatt Formular C","A26","2) Gewichtungsfaktoren: Elektrische Energie: 2, Heizöl & Erdgas: 1, Fernwärme/-kälte: 0.6, Holz & Biomasse: 0.7, Weitere (W): 1","2) Facteurs de pondération : énergie électrique : 2, mazout & gaz naturel : 1, chaleur ou froid à distance : 0,6, bois & biomasse : 0,7, autres (A) : 1","2) Fattori di ponderazione: elettricità: 2; olio combustibile e gas naturale: 1; teleriscaldamento/teleraffresc.: 0,6; legna e biomassa: 0,7; altri (A): 1","2) Gewichtungsfaktoren: Elektrische Energie: 2, Heizöl & Erdgas: 1, Fernwärme/-kälte: 0.6, Holz & Biomasse: 0.7, Weitere (W): 1"]
[7.1,202,"Blatt Formular C","A29","Wasserverbrauch:","Consommation d’eau","Consumo di acqua:","Wasserverbrauch:"]
[7.1,203,"Blatt Formular C","A31","C.2  Angabe der Bezugsgrösse","C.2 Saisie de la valeur de référence ","C.2  Indicazioni sul parametro di riferimento","C.2  Angabe der Bezugsgrösse"]
[7.1,204,"Blatt Formular C","A33","Bezeichnung Bezugsgrösse ³⁾","Désignation de la valeur de référence ³⁾","Denom. parametro di riferimento ³⁾","Bezeichnung Bezugsgrösse ³⁾"]
[7.1,205,"Blatt Formular C","A34","Produzierter Laufmeter","Mètre linéaire produit ","Metro lineare prodotto","Produzierter Laufmeter"]
[7.1,206,"Blatt Formular C","A35","3) Die Bezugsgrösse muss ein geeigneter Indikator für den Energieverbrauch der Betriebsstätte sein (z.B. beheizte Geschossfläche, Anzahl Mitarbeiter, Umsatz, Produktionszahlen, etc.).","3) La valeur de référence doit être un indicateur adéquat pour la consommation énergétique du site d’exploitation (par ex. surface de plancher chauffé, nombre de collaborateurs, chiffre d'affaire, chiffres de production, etc.).","3) Il parametro di riferimento deve essere un indicatore adeguato del consumo di energia dello stabilimento (p. es. superficie di piano riscaldata, numero di collaboratori, fatturato, cifre di produzione ecc.).","3) Die Bezugsgrösse muss ein geeigneter Indikator für den Energieverbrauch der Betriebsstätte sein (z.B. beheizte Geschossfläche, Anzahl Mitarbeiter, Umsatz, Produktionszahlen, etc.)."]
[7.1,207,"Blatt Formular C","A37","C.3  Resultierender spezifischer Endenergiebezug","C.3 Achat spécifique d’énergie finale qui en résulte ","C.3  Prelievo specifico di energia finale risultante","C.3  Resultierender spezifischer Endenergiebezug"]
[7.1,208,"Blatt Formular C","A40","Spez. Therm. Energie","En. therm. spécifique ","En. termica specifica","Spez. Therm. Energie"]
[7.1,209,"Blatt Formular C","A41","Spez. Elektr. Energie","En. électr. spécifique  ","En. elettrica specifica","Spez. Elektr. Energie"]
[7.1,210,"Blatt Formular C","A42","Spez. Jahresenergiebezug","Achat d’énergie spécifique annuel","Prelievo specifico annuo di energia","Spez. Jahresenergiebezug"]
[7.1,211,"Blatt Formular C","A44","Kommentar zu den Bezugsgrössen und den spezifischen Energiebezügen:","Commentaire concernant les valeurs de référence et les achats spécifiques d’énergie","Commento sui parametri di riferimento e i prelievi specifici di energia:","Kommentar zu den Bezugsgrössen und den spezifischen Energiebezügen:"]
[7.1,212,"Blatt Formular C","B12","Heizöl","Mazout","Olio combustile","Heizöl"]
[7.1,213,"Blatt Formular C","B13","Erdgas","Gaz naturel","Gas naturale","Erdgas"]
[7.1,214,"Blatt Formular C","B14","Fernwärme/-kälte","Chaleur ou froid à distance ","Teleriscald./telerafresc.","Fernwärme/-kälte"]
[7.1,215,"Blatt Formular C","B15","Holz, Biomasse","Bois, biomasse","Legna, biomassa","Holz, Biomasse"]
[7.1,216,"Blatt Formular C","B19","Thermische Energie","Energie thermique ","Energia termica","Thermische Energie"]
[7.1,217,"Blatt Formular C","B20","Elektr. Energie Total ¹⁾:","Total Energie électr. ¹⁾","Totale energia elettrica ¹⁾:","Elektr. Energie Total ¹⁾:"]
[7.1,218,"Blatt Formular C","B22","Elektrische Energie","Energie électrique","Energia elettrica","Elektrische Energie"]
[7.1,219,"Blatt Formular C","Formel C9","Energiepreis","Prix énergie ","Prezzo energia","Energiepreis"]
[7.1,219.1,"Blatt Formular C","Formel C9","Jahr?","année?","Anno?","Jahr?"]
[7.1,219.2,"Blatt Formular C","Formel A9","Bitte zuerst aktuellstes Kalenderjahr angeben!","Année civile clôturée la plus récente?!","Indicare prima l’anno civile più recente!","Bitte zuerst aktuellstes Kalenderjahr angeben!"]
[7.1,220,"Blatt Formular C","C33","Einheit","Unité","Unità","Einheit"]
[7.1,221,"Blatt Formular C","C39","Einheit","Unité","Unità","Einheit"]
[7.1,222,"Blatt Formular C","D9","Energiebezug der letzten fünf Jahre","Achat d’énergie des cinq dernières années ","Prelievo di energia degli ultimi cinque anni","Energiebezug der letzten fünf Jahre"]
[7.1,{"v":223.1,"d":"223"},"Blatt Formular C","Diagramm 1","Entwicklung Energiebezug [kWh/a]","Evolution de l’achat d’énergie [kWh/an]","Andamento prelievo di energia [kWh/a]","Entwicklung Energiebezug [kWh/a]"]
[7.1,{"v":223.2,"d":"223"},"Blatt Formular C","Diagramm 2","Entwicklung Spez. Energiebezug","Evol. de l’achat d’énergie spécifique","Andamento prelievo di energia specifico",{"$f":"IF(Sprache=\"DE\",E256,IF(Sprache=\"FR\",F256,IF(Sprache=\"IT\",G256,\"Fehler: Sprache wählen\")))","v":"Entwicklung Spez. Energiebezug"}]
[7.1,224.1,"Blatt Formular C","Eingabemeldung Zelle H7","Achtung:","Attention:","Attenzione:","Achtung:"]
[7.1,224.2,"Blatt Formular C","Eingabemeldung Zelle H7","Das aktuellste abgeschlossene Kalenderjahr darf nur mit Einverständnis des zuständigen kantonalen Amtes geändert werden.","L'année civile clôturée la plus récente ne peut être modifiée qu'avec l'accord du service cantonal responsable.","L’anno civile concluso più recente può essere modificato solo con l’accordo dell’ente cantonale competente.",{"$f":"IF(Sprache=\"DE\",E258,IF(Sprache=\"FR\",F258,IF(Sprache=\"IT\",G258,\"Fehler: Sprache wählen\")))","v":"Das aktuellste abgeschlossene Kalenderjahr darf nur mit Einverständnis des zuständigen kantonalen Amtes geändert werden."}]
[8,225,"Blatt Formular D"]
[8.1,226,"Blatt Formular D","A1","Formular D","Formulaire D","Formulario D",{"$f":"IF(Sprache=\"DE\",E260,IF(Sprache=\"FR\",F260,IF(Sprache=\"IT\",G260,\"Fehler: Sprache wählen\")))","v":"Formular D"}]
[null,227,"Blatt Formular D","Button","Energieflussdiagramm erzeugen","Créer un diagramme des flux énergétiques ","Crea diagramma del flusso energetico","Energieflussdiagramm erzeugen"]
[null,228,"Blatt Formular D","Button","Snipping Tool","Outil Capture ","Snipping Tool","Snipping Tool"]
[null,229,"Blatt Formular D","Button","Speichern und übertragen","Sauvegarder et transférer ","Salva e riporta","Speichern und übertragen"]
[8.1,230,"Blatt Formular D","A2","Angaben zum Energiebedarf der Hauptverbraucher 1 / 2","Renseignements sur les besoins en énergie des consommateurs principaux 1 / 2","Indicazioni sul fabbisogno di energia dei consumatori principali 1 / 2","Angaben zum Energiebedarf der Hauptverbraucher 1 / 2"]
[8.1,231,"Blatt Formular D","A5","D.1 Ermittlung des Energiebedarfs des aktuellen Jahres:","D.1 Détermination du besoin d’énergie de l’année en cours:","D.1 Determinazione del fabbisogno di energia dell’anno più recente:","D.1 Ermittlung des Energiebedarfs des aktuellen Jahres:"]
[8.1,232,"Blatt Formular D","A8","Aktueller Jahresenergiebezug ungewichtet:","Achat annuel actuel d’énergie non pondéré:","Prelievo attuale annuo di energia non ponderato:","Aktueller Jahresenergiebezug ungewichtet:"]
[8.1,233,"Blatt Formular D","A10","Hinweis: Die nachfolgenden fünf Eingabezeilen sind nur bei einer aktuellen Verwendung von WP-, AWN-, UE-, BHKW- oder SE-Anlagen (siehe nachfolgend) auszufüllen.  Beachten Sie auch die Eingabemeldungen.","Remarque: veuillez remplir les cinq lignes qui suivent seulement si vous employez actuellement une installation de type PAC, UDRC, EnThE, CCF, ou ER. Soyez aussi attentifs aux messages qui s’affichent.","Avvertenza: le seguenti cinque righe dovranno essere compilate solo se al momento si utilizzano impianti di tipo PC, UCR, EA, CTEB o CE (vedi qui di seguito). Considerare anche i messaggi di input.","Hinweis: Die nachfolgenden fünf Eingabezeilen sind nur bei einer aktuellen Verwendung von WP-, AWN-, UE-, BHKW- oder SE-Anlagen (siehe nachfolgend) auszufüllen.  Beachten Sie auch die Eingabemeldungen."]
[8.1,234,"Blatt Formular D","A11","Stromeigenproduktion Erneuerbar (SE):","Propre prod. d'électr. d'origine renouvelable (ER):","Prod.auton. elettr. da fonti rinnovabili (CE):","Stromeigenproduktion Erneuerbar (SE):"]
[8.1,235,"Blatt Formular D","A12","Thermische Nutzung Umweltenergie (UE):","Util. d’énergie therm. de l'environnement (EnThE):","Utilizzo termico di energia ambientale (EA):","Thermische Nutzung Umweltenergie (UE):"]
[8.1,236.1,"Blatt Formular D","A13","Wärmepumpen/Kältemaschinen (WP/KM):","Pompes à chaleur/machines frigorif. (PAC/MF):","Pompe di calore/macchine frigorifero (PC/MF):",{"$f":"IF(Sprache=\"DE\",E270,IF(Sprache=\"FR\",F270,IF(Sprache=\"IT\",G270,\"Fehler: Sprache wählen\")))","v":"Wärmepumpen/Kältemaschinen (WP/KM):"}]
[8.1,236.2,"Blatt Formular D","B13, in Formel","JAZ?","COPA?","CLA?",{"$f":"IF(Sprache=\"DE\",E271,IF(Sprache=\"FR\",F271,IF(Sprache=\"IT\",G271,\"Fehler: Sprache wählen\")))","v":"JAZ?"}]
[8.1,236.3,"Blatt Formular D","B13, in Formel","Anteil UE?","Part d'utilisation d'EnThE","Quota EA?",{"$f":"IF(Sprache=\"DE\",E272,IF(Sprache=\"FR\",F272,IF(Sprache=\"IT\",G272,\"Fehler: Sprache wählen\")))","v":"Anteil UE?"}]
[8.1,236.4,"Blatt Formular D","A14","Direktnutzung interner Abwärme (AWN):","Utilisation directe de rejets de chaleur (UDRC):","Utilizzo diretto di calore residuo interno (UCR):",{"$f":"IF(Sprache=\"DE\",E273,IF(Sprache=\"FR\",F273,IF(Sprache=\"IT\",G273,\"Fehler: Sprache wählen\")))","v":"Direktnutzung interner Abwärme (AWN):"}]
[8.1,237,"Blatt Formular D","A15","Stromeigenprod. Blockheizkraftwerk (BHKW):","Propre prod. électr. couplage chaleur-force (CCF): ","Prod.auton. elettr. cent.termoel.a blocco (CTEB):","Stromeigenprod. Blockheizkraftwerk (BHKW):"]
[8.1,238,"Blatt Formular D","A16","Energieverluste (Erzeugung/Verteilung):","Pertes énergétiques (production/ distribution):","Perdite energetiche (produzione/distribuzione):","Energieverluste (Erzeugung/Verteilung):"]
[8.1,239,"Blatt Formular D","A18","Total Energiebedarf:","Besoin d’énergie total:","Totale fabbisogno di energia:","Total Energiebedarf:"]
[8.1,240,"Blatt Formular D","A20","D.2 Aufteilung des Energiebedarfs des aktuellen Jahres nach (Haupt-)Verbrauchern:","D.2 Répartition du besoin d’énergie de l’année en cours par consommateurs (principaux):","D.2 Suddivisione del fabbisogno di energia dell’anno più recente secondo i consumatori (principali):","D.2 Aufteilung des Energiebedarfs des aktuellen Jahres nach (Haupt-)Verbrauchern:"]
[8.1,241,"Blatt Formular D","A23","Haustechnikanlagen:","Installations de technique du bâtiment:","Tecnica impiantistica:","Haustechnikanlagen:"]
[8.1,242,"Blatt Formular D","A24","Heizung","Chauffage","Riscaldamento","Heizung"]
[8.1,243,"Blatt Formular D","A29","Warmwasser","Eau chaude","Acqua calda","Warmwasser"]
[8.1,244,"Blatt Formular D","A34","Lüftung/Klima","Ventilation / climatisation ","Ventilazione / climatizzazione","Lüftung/Klima"]
[8.1,245,"Blatt Formular D","A39","Beleuchtung","Eclairage ","Illuminazione","Beleuchtung"]
[8.1,246,"Blatt Formular D","A45","2) Max. 20% Diverse. Gesamthaft muss der Energiebedarf zu 100% einzelnen Verbrauchern zugeordnet werden.","2) Max. 20 % divers Le besoin d’énergie doit être entièrement attribué aux différents consommateurs.","2) Max. il 20% a «Consumatori vari». Il 100% del fabbisogno energetico deve essere ripartito tra i singoli consumatori.","2) Max. 20% Diverse. Gesamthaft muss der Energiebedarf zu 100% einzelnen Verbrauchern zugeordnet werden."]
[8.1,247,"Blatt Formular D","A46","Hinweis: Im nachfolgenden Punkt D.3 ist ein Energieflussdiagramm zu erstellen. Beachten Sie bitte dazu die Anleitung \"In fünf Schritten zum Energieflussdiagramm\".","Remarque: il vous est demandé, au point D.3 ci-dessous, de créer un diagramme des flux énergétiques. Consultez les instructions intitulées « Le diagramme des flux énergétiques en cinq étapes ».","Avvertenza: al punto successivo D.3 deve essere creato un diagramma del flusso energetico. Consultare a tal fine l’istruzione «Creare un diagramma del flusso energetico in cinque passaggi».","Hinweis: Im nachfolgenden Punkt D.3 ist ein Energieflussdiagramm zu erstellen. Beachten Sie bitte dazu die Anleitung \"In fünf Schritten zum Energieflussdiagramm\"."]
[8.1,248,"Blatt Formular D","A47","Formular D","Formulaire D","Formulario D","Formular D"]
[8.1,249,"Blatt Formular D","A48","Angaben zum Energiebedarf der Hauptverbraucher 2 / 2","Renseignements sur les besoins en énergie des consommateurs principaux 2 / 2","Indicazioni sul fabbisogno di energia dei consumatori principali 2 / 2","Angaben zum Energiebedarf der Hauptverbraucher 2 / 2"]
[8.1,250,"Blatt Formular D","A51","D.3 Energieflussdiagramm","D.3 Diagramme des flux énergétiques ","D.3 Diagramma del flusso energetico","D.3 Energieflussdiagramm"]
[8.1,251,"Blatt Formular D","A53","In fünf Schritten zum Energieflussdiagramm:","Le diagramme des flux énergétiques en cinq étapes ","Creare un diagramma del flusso energetico in cinque passaggi:","In fünf Schritten zum Energieflussdiagramm:"]
[8.1,252,"Blatt Formular D","B54","Drücken Sie den Button \"Energieflussdiagramm erzeugen\":","Appuyez sur le bouton « Créer un diagramme des flux énergétiques »","Cliccare sul pulsante «Crea diagramma del flusso energetico»:","Drücken Sie den Button \"Energieflussdiagramm erzeugen\":"]
[null,252.1,"Blatt Formular D",null,"Bei einer allfälligen Sicherheitswarnung des Internet-Browsers: Lassen Sie geblockte Inhalte zu.","si votre navigateur affiche un avertissement concernant la sécurité, autorisez les contenus bloqués.","In caso di un messaggio di sicurezza del browser Internet: consentire i contenuti bloccati.","Bei einer allfälligen Sicherheitswarnung des Internet-Browsers: Lassen Sie geblockte Inhalte zu."]
[8.1,253,"Blatt Formular D","B55","das Energieflussdiagramm öffnet sich in Ihrem Internet-Browser.","le diagramme des flux énergétiques apparaît dans votre navigateur Internet.","il diagramma del flusso energetico è visualizzato nel browser Internet.","das Energieflussdiagramm öffnet sich in Ihrem Internet-Browser."]
[8.1,254,"Blatt Formular D","B56","Passen Sie das Energieflussdiagramm bei Bedarf an (fakultativ).","Adaptez-le s’il le faut.","Adattare il diagramma del flusso energetico se necessario (facoltativo).","Passen Sie das Energieflussdiagramm bei Bedarf an (fakultativ)."]
[8.1,255,"Blatt Formular D","B57","mit der Maus können die Balken vertikal verschoben werden.","vous pouvez déplacer les flux en utilisant la souris.","le barre possono essere spostate in verticale con il mouse.","mit der Maus können die Balken vertikal verschoben werden."]
[8.1,256,"Blatt Formular D","B58","dadurch kann die Darstellung verbessert und die Reihenfolge der Energieträger und Anlagen bei Bedarf verändert werden.","cette option vous permet d’améliorer la présentation. Vous pouvez notamment modifier l’ordre dans lequel apparaissent les installations et les agents énergétiques. ","questo permette di migliorare la rappresentazione e di modificare se necessario anche la sequenza dei vettori energetici e degli impianti.","dadurch kann die Darstellung verbessert und die Reihenfolge der Energieträger und Anlagen bei Bedarf verändert werden."]
[8.1,257,"Blatt Formular D","B59","Kopieren Sie das Energieflussdiagramm.","Copiez le diagramme.","Copiare il diagramma del flusso energetico.",{"$f":"IF(Sprache=\"DE\",E295,IF(Sprache=\"FR\",F295,IF(Sprache=\"IT\",G295,\"Fehler: Sprache wählen\")))","v":"Kopieren Sie das Energieflussdiagramm."}]
[8.1,257.1,"Blatt Formular D",null,"Internet Explorer: drücken Sie mir der rechten Maustaste auf die Grafik und wählen sie \"Kopieren\".","Internet Explorer: cliquez sur le graphique avec le bouton droit de la souris et sélectionnez \"Copier\".","Internet Explorer: cliccare sul grafico con il tasto destro del mouse e selezionare «Copia».","Internet Explorer: drücken Sie mir der rechten Maustaste auf die Grafik und wählen sie \"Kopieren\"."]
[8.1,257.1,"Blatt Formular D",null,"Firefox oder Chrome: Kopieren Sie das Energieflussdiagramm mit Hilfe eines Screenshot-Programmes:","Firefox ou Chrome: Copiez le diagramme au moyen d’un programme de capture d’écran.","Firefox o Chrome: copiare il diagramma del flusso energetico con l'aiuto di un programma di screenshot:","Firefox oder Chrome: Kopieren Sie das Energieflussdiagramm mit Hilfe eines Screenshot-Programmes:"]
[8.1,258,"Blatt Formular D","B60","auf  Computern mit dem Betriebssystem Windows Vista (oder neuer) ist standardmässig das Screenshot-Programm \"Snipping-Tool\" installiert.","le programme de capture d’écran « outil Capture » est installé par défaut sur les ordinateurs avec un système d’exploitation Windows Vista (ou plus récent).","sui computer che utilizzano il sistema operativo Windows Vista (o sistemi più recenti) è installato di default il programma «Snipping Tool».","auf  Computern mit dem Betriebssystem Windows Vista (oder neuer) ist standardmässig das Screenshot-Programm \"Snipping-Tool\" installiert."]
[8.1,259,"Blatt Formular D","B61","klicken Sie auf folgenden Button, damit sich das Programm automatisch öffnet: ","pour lancer ce programme, cliquez sur ce bouton: ","per aprire il programma basta cliccare sul seguente pulsante: ","klicken Sie auf folgenden Button, damit sich das Programm automatisch öffnet: "]
[8.1,260,"Blatt Formular D","B62","oder starten Sie das SnippingTool manuell, indem Sie in der Schaltfläche \"Start\" (Taskleiste) im Suchfeld den Begriff \"SnippingTool\" eingeben.","autre possibilité, cliquez sur le menu « Démarrer » en bas à gauche de votre écran et inscrivez « outil Capture » dans le champ de recherche.","oppure avviare il programma manualmente cliccando sul pulsante «Start» (barra delle applicazioni) e inserendo nel campo di ricerca la parola «SnippingTool».","oder starten Sie das SnippingTool manuell, indem Sie in der Schaltfläche \"Start\" (Taskleiste) im Suchfeld den Begriff \"SnippingTool\" eingeben."]
[8.1,261,"Blatt Formular D","B63","schneiden Sie das Energieflussdiagramm mit dem Screenshot-Programm aus. Es befindet sich nun automatisch in der Zwischenablage.","coupez le diagramme des flux énergétiques au moyen du programme de capture d’écran. Le diagramme est copié dans le presse-papier.","ritagliare il diagramma del flusso energetico con il programma di screenshot. Il diagramma viene copiato automaticamente negli Appunti.","schneiden Sie das Energieflussdiagramm mit dem Screenshot-Programm aus. Es befindet sich nun automatisch in der Zwischenablage."]
[8.1,262,"Blatt Formular D","B64","Fügen Sie das Energieflussdiagramm innerhalb des weissen Rahmens ein.","Collez-le à l’intérieur du cadre blanc.","Inserire il diagramma del flusso energetico all’interno del riquadro bianco.","Fügen Sie das Energieflussdiagramm innerhalb des weissen Rahmens ein."]
[8.1,263,"Blatt Formular D","B65","drücken Sie mit der rechten Maustaste auf die weisse Fläche und wählen Sie \"Einfügen\".","cliquez sur la surface blanche avec la touche droite de la souris et sélectionnez « Coller ».","cliccare sulla superficie bianca con il tasto destro del mouse e selezionare «Incolla».","drücken Sie mit der rechten Maustaste auf die weisse Fläche und wählen Sie \"Einfügen\"."]
[8.1,264,"Blatt Formular D","B66","passen Sie das Energieflussdiagramm falls nötig der Grösse der weissen Fläche an.","s’il le faut, adaptez le diagramme à la taille de la surface blanche.","se necessario, adeguare le dimensioni del diagramma alla grandezza della superficie bianca.","passen Sie das Energieflussdiagramm falls nötig der Grösse der weissen Fläche an."]
[8.1,265,"Blatt Formular D","B70","Drücken Sie den Button \"Speichern und Übertragen\"","Appuyez sur le bouton « Sauvegarder et transférer »","Cliccare sul pulsante «Salva e riporta».","Drücken Sie den Button \"Speichern und Übertragen\""]
[8.1,266,"Blatt Formular D","B71","das Energieflussdiagramm wird gespeichert und  in das Arbeitsblatt \"Report\" übertragen.","vous avez maintenant enregistré le diagramme et vous l’avez transféré dans la feuille de travail « Rapport ».","il diagramma del flusso energetico viene salvato e riportato nel foglio di lavoro «Rapporto».","das Energieflussdiagramm wird gespeichert und  in das Arbeitsblatt \"Report\" übertragen."]
[8.1,267,"Blatt Formular D","D6","Thermische Energie","Energie thermique ","Energia termica","Thermische Energie"]
[8.1,268,"Blatt Formular D","D21","Thermische Energie","Energie thermique ","Energia termica","Thermische Energie"]
[8.1,269,"Blatt Formular D","D22","Energie","Energie ","Energia","Energie"]
[8.1,270,"Blatt Formular D","E7","(Vorzeichen)","(Signe + ou -)","(Segno + o -)","(Vorzeichen)"]
[8.1,271,"Blatt Formular D","E22","Anteil","%","Quota","Anteil"]
[8.1,272,"Blatt Formular D","F6","Elektrische Energie","Energie électrique","Energia elettrica","Elektrische Energie"]
[8.1,273,"Blatt Formular D","F21","Elektrische Energie","Energie électrique","Energia elettrica","Elektrische Energie"]
[8.1,274,"Blatt Formular D","F22","Energie","Energie ","Energia","Energie"]
[8.1,275,"Blatt Formular D","G7","(Vorzeichen)","(Signe + ou -)","(Segno + o -)","(Vorzeichen)"]
[8.1,276,"Blatt Formular D","G22","Anteil","%","Quota","Anteil"]
[8.1,277.1,"Blatt Formular D","H8","Gemäss Angaben von Formular C, Ziffer C.1","Selon les données du formulaire C, chiffre C.1","Secondo le indicazioni del Formulario C, cifra C.1","Gemäss Angaben von Formular C, Ziffer C.1"]
[8.1,277.2,"Blatt Formular D","H12","Direkt genutzte Abwärme von externen Arealen ist als Fernwärme zu erfassen (Formular C, Ziffer C.1).","Les rejets thermiques de sites externes directement utilisés sont à compter comme chaleur à distance (form. C, ch. C.1).","Il calore residuo sfruttato direttamente da areali esterni deve essere indicato come teleriscaldamento (Formulario C, cifra C.1).","Direkt genutzte Abwärme von externen Arealen ist als Fernwärme zu erfassen (Formular C, Ziffer C.1)."]
[8.1,278,"Blatt Formular D","H11","Stromeigenproduktion Erneuerbar (PV, Kleinwasser, etc.) für den Eigenverbrauch; ohne Zukäufe von Zertifikaten.","Propre production d’électricité renouvelable (PV, minihydraulique, etc.) pour la consom. propre; sans l’achat de certificats.","Prod. auton. di elettr. da fonti rinnovabili (imp. FV, picc. imp. idroel. ecc.) per il consumo proprio; senza l'acquisto di certificati.","Stromeigenproduktion Erneuerbar (PV, Kleinwasser, etc.) für den Eigenverbrauch; ohne Zukäufe von Zertifikaten."]
[8.1,279.1,"Blatt Formular D","H12","Z.B. Free-Cooling oder solarthermisch erzeugte Wärme- oder Kälteenergie für den Eigengebrauch.","Par ex, free-cooling, chaleur ou froid produits par une installation solaire thermique pour sa propre consommation.","Per esempio free-cooling, calore o freddo prodotti con impianti solari termici per il consumo proprio.","Z.B. Free-Cooling oder solarthermisch erzeugte Wärme- oder Kälteenergie für den Eigengebrauch."]
[8.1,279.2,"Blatt Formular D","K11","Anteil Umweltenergie:","Part de l'énergie de l'envir.","Quota energ. ambient.:",{"$f":"IF(Sprache=\"DE\",E321,IF(Sprache=\"FR\",F321,IF(Sprache=\"IT\",G321,\"Fehler: Sprache wählen\")))","v":"Anteil Umweltenergie:"}]
[8.1,280,"Blatt Formular D","H13","(durchschn.) Jahresarbeitszahl (JAZ):","Coeff. de perf. annuel (COPA) (moyen):","Coeff. di lavoro annuo (CLA) (medio):","(durchschn.) Jahresarbeitszahl (JAZ):"]
[8.1,281,"Blatt Formular D","H14","1) Die benötigte thermische Energie wird vereinfacht mit einem Wirkungsgrad von 90% berechnet.","1) L’énergie thermique nécessaire est calculé de manière simplifiée avec un rendement de 90 %.","1) L’energia termica necessaria viene calcolata in modo semplificato con un grado di efficienza del 90%.","1) Die benötigte thermische Energie wird vereinfacht mit einem Wirkungsgrad von 90% berechnet."]
[8.1,282,"Blatt Formular D","H16","Eine Abschätzung der Energieverluste aller Energieerzeugungsanlagen und Verteilsysteme ist hier anzugeben.","Evaluation des pertes de toutes les installations de production d’énergie et de tous les systèmes de distribution.","Qui va riportata la stima delle perdite energetiche di tutti gli impianti di produzione di energia e di tutti i sistemi di distribuzione.","Eine Abschätzung der Energieverluste aller Energieerzeugungsanlagen und Verteilsysteme ist hier anzugeben."]
[8.1,283,"Blatt Formular D","H18","Dieser Energiebedarf muss nachfolgend den Haustechnik- und Prozessanlagen zugeordnet werden.","Attribuez ce besoin aux installations de technique du bâtiment et aux installations destinées aux processus.","Questo fabbisogno energetico deve essere assegnato alla tecnica impiantistica e agli impianti di processo e produzione.","Dieser Energiebedarf muss nachfolgend den Haustechnik- und Prozessanlagen zugeordnet werden."]
[8.1,284,"Blatt Formular D","H23","Haustechnikanlagen:","Installations de technique du bâtiment:","Tecnica impiantistica:","Haustechnikanlagen:"]
[8.1,285,"Blatt Formular D","H24","Druckluft","Air comprimé","Aria compressa","Druckluft"]
[8.1,286,"Blatt Formular D","H29","Andere","Autres","Altri","Andere"]
[8.1,287,"Blatt Formular D","H34","Prozess- und Produktionsanlagen:","Installations destinées aux processus et à la production","Impianti di processo e produzione:",{"$f":"IF(Sprache=\"DE\",E329,IF(Sprache=\"FR\",F329,IF(Sprache=\"IT\",G329,\"Fehler: Sprache wählen\")))","v":"Prozess- und Produktionsanlagen:"}]
[8.1,288,"Blatt Formular D","H45","Total zugeordneter Energiebedarf:","Besoin d’énergie total attribué","Totale fabbisogno di energia assegnato:","Total zugeordneter Energiebedarf:"]
[8.1,289,"Blatt Formular D","I33","Diverse Verbraucher ²⁾","Divers consommateurs ²⁾","Consumatori vari ²⁾","Diverse Verbraucher ²⁾"]
[8.1,290,"Blatt Formular D","J22","Thermische Energie","Energie thermique ","Energia termica","Thermische Energie"]
[8.1,291,"Blatt Formular D","J23","Energie","Energie ","Energia","Energie"]
[8.1,292,"Blatt Formular D","K13","1) Erzeugte thermische Energie","1) Energie thermique produite ","1) Energia termica prodotta","1) Erzeugte thermische Energie"]
[8.1,293,"Blatt Formular D","K22","Anteil","%","Quota","Anteil"]
[8.1,294,"Blatt Formular D","L21","Elektrische Energie","Energie électrique","Energia elettrica","Elektrische Energie"]
[8.1,295,"Blatt Formular D","L22","Energie","Energie ","Energia","Energie"]
[8.1,296,"Blatt Formular D","M22","Anteil","%","Quota","Anteil"]
[8.1,297,"Blatt Formular D","Eingabemeldung F11","Stromeigenproduktion Erneuerbar:","Prod. d'électr. renouvelable","Prod. di elettr. rinnovabili:","Stromeigenproduktion Erneuerbar:"]
[8.1,{"v":298.1,"d":"298"},"Blatt Formular D","Eingabemeldung F11","Stromproduktion (PV, Kleinwasser, etc.) für den Eigenverbrauch (ohne KEV, ohne Verkauf an Ökostrom-Portale, ohne Zukäufe von Zertifikaten).\n-> Bezogener Ökostrom ist in Formular C, Ziffer C.1 unter \"Elektr. Energie Total\" zu berücksichtigten.","Seulement la prod. d’électr. renouv. (PV, mini-hydr., etc.) dest. à sa propre consommation (sans RPC, ni vente à des bourses de courant écol., ni achat de certific.).\n->Indiq. l’achat d’éco-électr. dans le form. C, chiffre C.1, « Total Energie électr. ».","Prod. di elettr. (FV, piccoli imp. idroelettr., ecc.) per il cons. proprio (senza RIC, senza le vendite ai portali di corr. ecol., senza gli acquisti di certific.).\n->Riport. la corr. ecol. prelevata nel Form. C, cifra C.1 «Totale energia elettrica».","Stromproduktion (PV, Kleinwasser, etc.) für den Eigenverbrauch (ohne KEV, ohne Verkauf an Ökostrom-Portale, ohne Zukäufe von Zertifikaten).\n-> Bezogener Ökostrom ist in Formular C, Ziffer C.1 unter \"Elektr. Energie Total\" zu berücksichtigten."]
[8.1,{"v":298.2,"d":"298"},"Blatt Formular D","Eingabemeldung D12","Direktnutzung interner Abwärme","Consommation chaleur internes","Util. di calore residuo interno",{"$f":"IF(Sprache=\"DE\",E341,IF(Sprache=\"FR\",F341,IF(Sprache=\"IT\",G341,\"Fehler: Sprache wählen\")))","v":"Direktnutzung interner Abwärme"}]
[8.1,{"v":298.3,"d":"298"},"Blatt Formular D","Eingabemeldung D12","Tragen Sie hier direkt (d.h. ohne WP) genutzte interne Abwärme ein.\nDirekt genutzte externe Abwärme (z.B. von externen Arealen) ist als Fernwärme zu erfassen (Formular C, Ziffer C.1)","Introduisez ici les rejets de chaleur interne directement utilisés (càd sans PAC).\nLes rejets thermiques directement utilisés provenant de sites externes doivent être comptabilisés comme chaleur à distance (formulaire C, chiffre C.1).","Riportare qui il calore residuo interno utilizzato direttamente (ossia senza l’impiego di PC).\nIl calore residuo esterno sfruttato direttamente (p. es. da areali esterni) deve essere indicato come teleriscaldamento (Formulario C, cifra C.1).\n","Tragen Sie hier direkt (d.h. ohne WP) genutzte interne Abwärme ein.\nDirekt genutzte externe Abwärme (z.B. von externen Arealen) ist als Fernwärme zu erfassen (Formular C, Ziffer C.1)"]
[8.1,299,"Blatt Formular D","Eingabemeldung D13","Nutzung Umweltenergie","Energie de l'envir.","Utilizzo di energia ambientale","Nutzung Umweltenergie"]
[8.1,300,"Blatt Formular D","Eingabemeldung D13","Anzugeben ist die thermisch genutzte Umweltenergie (z.B. Free-Cooling, Solarthermie, ausgenommen WP/KM) für den Eigengebrauch.","Indiquez l'utilisation de la chaleur ou le froid de l'environnement (free-cooling, solaire thermique, sauf PAC/MF) pour sa propre consommation.","Indicare l’energia ambientale termica utilizzata (p. es. free-cooling, impianti solari termici, escluse PC/MF) per il consumo proprio.","Anzugeben ist die thermisch genutzte Umweltenergie (z.B. Free-Cooling, Solarthermie, ausgenommen WP/KM) für den Eigengebrauch."]
[8.1,301,"Blatt Formular D","Eingabemeldung F13","WP/KM-Strombedarf","Electr. nécessaire aux PAC/MF","Fabbisogno elettr. di PC/MF","WP/KM-Strombedarf"]
[8.1,302.1,"Blatt Formular D","Eingabemeldung F13","Der Strombedarf aller Wärmepumpen (u./o. Kältemaschinen) ist mit negativem Vorzeichen einzugeben.\nÜber die Jahresarbeitszahl JAZ wird anschliessend automatisch die erzeugte thermische Energie berechnet.","Faites précéder le besoin en électricité des pompes à chaleur (et/ou des machines frigorifiques) du signe moins -.\nLe coefficient de performance annuel (COPA) est utilisé pour le calcul de la production d’énergie thermique.","Il fabbisogno di elettricità di tutte le pompe di calore (e/o delle macchine frigorifero) deve essere riportato con segno negativo.\nIl coefficiente di lavoro annuo CLA è utilizzato in seguito per calcolare l’energia termica prodotta.\n","Der Strombedarf aller Wärmepumpen (u./o. Kältemaschinen) ist mit negativem Vorzeichen einzugeben.\nÜber die Jahresarbeitszahl JAZ wird anschliessend automatisch die erzeugte thermische Energie berechnet."]
[8.1,302.2,"Blatt Formular D","Eingabemeldung D13","Erzeugte Thermische Energie","Energie thermique produite","Energia termica prodotta","Erzeugte Thermische Energie"]
[8.1,302.3,"Blatt Formular D","Eingabemeldung D13","Diese setzt sich aus dem elektrischen Energieinput sowie der genutzten Energie der Wärmequelle (Umweltwärme, externe oder interne Abwärme) zusammen.","Celle-ci se compose de l'énergie électrique consommée, ainsi que de l'énergie soutirée à l'environnement ou provenant de rejets thermiques (internes ou externes).","Questa è composta dall’energia elettrica immessa nonché dall’energia sottratta alla fonte di calore (calore ambientale, calore residuo esterno o interno).","Diese setzt sich aus dem elektrischen Energieinput sowie der genutzten Energie der Wärmequelle (Umweltwärme, externe oder interne Abwärme) zusammen."]
[8.1,303,"Blatt Formular D","Eingabemeldung J13","JAZ","COPA","CLA","JAZ"]
[8.1,304.1,"Blatt Formular D","Eingabemeldung J13","Die durchschnittliche Jahresarbeitszahl aller Wärmepumpen wird benötigt, um aus dem Strombedarf automatisch die resultierende thermische Energie zu berechnen.","Le coefficient de performance annuel (COPA) moyen de toutes les pompes à chaleur est utilisé pour le calcul de l’énergie thermique au moyen du besoin en électricité.","Il coefficiente di lavoro annuo medio di tutte le pompe di calore è necessario per calcolare l’energia termica risultante mediante il fabbisogno di elettricità.","Die durchschnittliche Jahresarbeitszahl aller Wärmepumpen wird benötigt, um aus dem Strombedarf automatisch die resultierende thermische Energie zu berechnen."]
[8.1,304.2,"Blatt Formular D","Eingabemeldung M13","Anteil Umweltenergie","Part de l'énergie de l'envir.","Quota energia ambientale","Anteil Umweltenergie"]
[8.1,304.3,"Blatt Formular D","Eingabemeldung M13","Geben Sie an, zu welchem Anteil Umweltenergie (u./o. externe Abwärme)  als Energiequelle von den WP/KM genutzt wird.\nBsp.:\n100% = ausschliesslich Umweltenergie\n60% = 60% Umweltenergie, 40% interne Abwärme\n0% = ausschliesslich interne Abwärme","Indiquez la part de l'éner. de l'environnement (et/ou des rejets thermique externes) qui sont utilisés comme source d'éner. par les PAC/MF.\nEx.:\n100% = exclusivement de l'éner. de l'envir.\n60% = 60% éner. de l'env., 40% rejets therm. internes","Indicare quale quota di energia ambientale (e/o di calore residuo esterno) è utilizzata come fonte di energia dalle PC/MF.\nEs:\n100% = solo energia ambientale\n60% = 60% energia ambientale, 40% calore residuo interno\n0% = solo calore residuo interno\n","Geben Sie an, zu welchem Anteil Umweltenergie (u./o. externe Abwärme)  als Energiequelle von den WP/KM genutzt wird.\nBsp.:\n100% = ausschliesslich Umweltenergie\n60% = 60% Umweltenergie, 40% interne Abwärme\n0% = ausschliesslich interne Abwärme"]
[8.1,305,"Blatt Formular D","Eingabemeldung F14","BHKW-Stromeigenprod.","Propre production CCF ","Prod. di elettricità da CTEB","BHKW-Stromeigenprod."]
[8.1,306,"Blatt Formular D","Eingabemeldung F14","Nur die BHKW-Stromproduktion für den Eigenbedarf ist anzugeben.","Indiquez seulement la production d’électricité au moyen d’une CCF pour vos propres besoins.","Indicare solo la produzione di elettricità da CTEB destinata al consumo proprio.","Nur die BHKW-Stromproduktion für den Eigenbedarf ist anzugeben."]
[9,307,"Blatt Formular E"]
[9.1,308,"Blatt Formular E","A1","Formular E","Formulaire E","Formulario E",{"$f":"IF(Sprache=\"DE\",E356,IF(Sprache=\"FR\",F356,IF(Sprache=\"IT\",G356,\"Fehler: Sprache wählen\")))","v":"Formular E"}]
[9.1,309,"Blatt Formular E","A2","Neue Massnahmen und Wirtschaftlichkeit","Nouvelles mesures d’amélioration et rentabilité ","Nuove misure e redditività","Neue Massnahmen und Wirtschaftlichkeit"]
[9.1,310,"Blatt Formular E","A6","Nr.","N°","N°","Nr."]
[9.1,311,"Blatt Formular E","A11","Haustechnikanlagen / Gebäudehülle","Installations de technique du bâtiment / enveloppe du bâtiment","Tecnica impiant./involucro edilizio","Haustechnikanlagen / Gebäudehülle"]
[9.1,312,"Blatt Formular E","A26","Prozess- und Produktionsanlagen","Installations destinées aux processus et à la production ","Impianti di processo e produzione","Prozess- und Produktionsanlagen"]
[9.1,313,"Blatt Formular E","A33","S1 / Summe aller neuen Massnahmen","S1 / Somme de toutes les nouvelles mesures d’amélioration ","S1/Somma di tutte le nuove misure","S1 / Summe aller neuen Massnahmen"]
[9.1,314,"Blatt Formular E","A34","S2 / Summe aller neuen, wirtschaftlichen Massnahmen","S2 / Somme de toutes les nouvelles mesures rentables ","S2/Somma di tutte le nuove misure redditizie","S2 / Summe aller neuen, wirtschaftlichen Massnahmen"]
[9.1,315,"Blatt Formular E","A36","Bestätigung","Confirmation","Conferma","Bestätigung"]
[9.1,316,"Blatt Formular E","A38","Der/die Ingenieur/In,  Energiespezialist/In bestätigt mit dieser Unterschrift, alle Massnahmen zur Energieeffizienzsteigerung, unabhängig von einer hohen oder tiefen Payback-Dauer, auf dem Formular E aufgelistet zu haben.","Par sa signature, l’ingénieur ou le spécialiste en énergie atteste avoir dressé la liste de toutes les mesures d’amélioration de la performance énergétique, indépendamment de la durée du retour sur investissement.","L’ingegnere o lo specialista energetico conferma con la sua firma di aver elencato nel Formulario E tutte le misure di ottimizzazione dell’efficienza energetica, indipendentemente dalla durata a breve o lungo termine del payback.","Der/die Ingenieur/In,  Energiespezialist/In bestätigt mit dieser Unterschrift, alle Massnahmen zur Energieeffizienzsteigerung, unabhängig von einer hohen oder tiefen Payback-Dauer, auf dem Formular E aufgelistet zu haben."]
[9.1,317,"Blatt Formular E","A40","Ort, Datum:","Lieu et date:","Luogo, data:","Ort, Datum:"]
[9.1,318,"Blatt Formular E","B4","Gewichteter Energiebezug des aktuellsten Jahres ¹⁾ ²⁾:","Achat d’énergie pondéré de la dernière année civile clôturée ¹⁾ ²⁾:","Prelievo di energia ponderato dell’ultimo anno civile concluso ¹⁾ ²⁾:","Gewichteter Energiebezug des aktuellsten Jahres ¹⁾ ²⁾:"]
[9.1,319,"Blatt Formular E","B6","Massnahmentitel","Titre de la mesure d’amélioration ","Titolo della misura","Massnahmentitel"]
[9.1,320,"Blatt Formular E","D6","Energieeinsparung","Economie d’énergie","Risparmio energetico","Energieeinsparung"]
[9.1,321,"Blatt Formular E","D7","Ungewichtet","Non pondéré","Non ponderato","Ungewichtet"]
[9.1,322,"Blatt Formular E","D8","Einsparung 1","Economie 1","Risparmio 1","Einsparung 1"]
[9.1,323,"Blatt Formular E","D9","Art","G.","Tipo","Art"]
[9.1,324,"Blatt Formular E","F8","Einsparung 2","Economie 2","Risparmio 2","Einsparung 2"]
[9.1,325,"Blatt Formular E","F9","Art","G.","Tipo","Art"]
[9.1,326,"Blatt Formular E","H8","Total","Total","Totale","Total"]
[9.1,327,"Blatt Formular E","I7","Gewichtet ²⁾","Pondéré ²⁾","Ponderato ²⁾","Gewichtet ²⁾"]
[9.1,328,"Blatt Formular E","I8","Total","Total","Totale","Total"]
[9.1,329,"Blatt Formular E","J8","Anteil","%","Quota","Anteil"]
[9.1,330,"Blatt Formular E","J40","Unterschrift:","Signature:","Firma:","Unterschrift:"]
[9.1,331,"Blatt Formular E","K4","1) Gem. Formular C, Ziffer C.1      2) Gewichtungsfaktoren gemäss Formular C, Hinweis 2)","1) Selon le formulaire C, chiffre C.1     2) Facteurs de pond. selon le form. C, remarque 2) ","1) Sec. il Form. C, cifra C.1      2) Fattori di ponderazione sec. il Form. C, Avvertenza 2)","1) Gem. Formular C, Ziffer C.1      2) Gewichtungsfaktoren gemäss Formular C, Hinweis 2)"]
[9.1,332,"Blatt Formular E","K6","Energiepreis ¹⁾","Prix de l’énergie ¹⁾","Prezzo dell’energia ¹⁾","Energiepreis ¹⁾"]
[9.1,333,"Blatt Formular E","K8","Einspar.1","Economie 1","Risparmio 1","Einspar.1"]
[9.1,334,"Blatt Formular E","K12-L32 (in Formeln)","Preis?->C.1","Prix ? ->C.1  ","Prezzo?->C.1","Preis?->C.1"]
[9.1,335,"Blatt Formular E","K33","Hinweis: Die Richtgrösse zur Energieeinsparung mit umzusetzenden Massnahmen (gemäss Deklaration in Formular F1) liegt bei 15%.","Remarque:  L’économie d’énergie au moyen des mesures d’amélioration à mettre en œuvre (selon l’annonce, formulaire F1) est fixée à 15 % à titre indicatif.","Avvertenza: il valore indicativo del risparmio di energia da conseguire mediante le misure da attuare (secondo la dichiarazione nel Formulario F1) è del 15%.","Hinweis: Die Richtgrösse zur Energieeinsparung mit umzusetzenden Massnahmen (gemäss Deklaration in Formular F1) liegt bei 15%."]
[9.1,336,"Blatt Formular E","L8","Einspar.2","Economie 2","Risparmio 2","Einspar.2"]
[9.1,337,"Blatt Formular E","M6","Kosteneinsp.","Econ. (coûts)","Rispar. costi","Kosteneinsp."]
[9.1,338,"Blatt Formular E","M8","Total","Total","Totale","Total"]
[9.1,339,"Blatt Formular E","N6","Investitionen","Investissements","Investimenti","Investitionen"]
[9.1,340,"Blatt Formular E","N8","Total","Total","Totale",{"$f":"IF(Sprache=\"DE\",E388,IF(Sprache=\"FR\",F388,IF(Sprache=\"IT\",G388,\"Fehler: Sprache wählen\")))","v":"Total"}]
[9.1,341,"Blatt Formular E","O8","KE","%E","QE","KE"]
[9.1,342,"Blatt Formular E","P6","Payback","Retour s. investiss.","Payback","Payback"]
[9.1,343,"Blatt Formular E","P12-32 (in Formeln)","KE?","%E ?","QE?","KE?"]
[9.1,344,"Blatt Formular E","Q6","Beschrei-bung","Description","Descrizione","Beschrei-bung"]
[9.1,345,"Blatt Formular E","Q8","Klicken um zum Blatt Beschreibung zu wechseln:","Cliquez sur 1 description pour passer à la feuille «Descriptions».","Cliccare per passare al foglio «Descrizioni»:","Klicken um zum Blatt Beschreibung zu wechseln:"]
[9.1,346,"Blatt Formular E","Q12","Beschr. 1","Descr. 1","Descr. 1","Beschr. 1"]
[9.1,347,"Blatt Formular E","Q13","Beschr. 2","Descr. 2","Descr. 2","Beschr. 2"]
[9.1,348,"Blatt Formular E","Q14","Beschr. 3","Descr. 3","Descr. 3","Beschr. 3"]
[9.1,349,"Blatt Formular E","Q15","Beschr. 4","Descr. 4","Descr. 4","Beschr. 4"]
[9.1,350,"Blatt Formular E","Q16","Beschr. 5","Descr. 5","Descr. 5","Beschr. 5"]
[9.1,351,"Blatt Formular E","Q17","Beschr. 6","Descr. 6","Descr. 6","Beschr. 6"]
[9.1,352,"Blatt Formular E","Q18","Beschr. 7","Descr. 7","Descr. 7","Beschr. 7"]
[9.1,353,"Blatt Formular E","Q19","Beschr. 8","Descr. 8","Descr. 8","Beschr. 8"]
[9.1,354,"Blatt Formular E","Q20","Beschr. 9","Descr. 9","Descr. 9","Beschr. 9"]
[9.1,355,"Blatt Formular E","Q21","Beschr. 10","Descr. 10","Descr. 10","Beschr. 10"]
[9.1,356,"Blatt Formular E","Q22","Beschr. 11","Descr. 11","Descr. 11","Beschr. 11"]
[9.1,357,"Blatt Formular E","Q23","Beschr. 12","Descr. 12","Descr. 12","Beschr. 12"]
[9.1,358,"Blatt Formular E","Q24","Beschr. 13","Descr. 13","Descr. 13","Beschr. 13"]
[9.1,359,"Blatt Formular E","Q25","Beschr. 14","Descr. 14","Descr. 14","Beschr. 14"]
[9.1,360,"Blatt Formular E","Q27","Beschr. 15","Descr. 15","Descr. 15","Beschr. 15"]
[9.1,361,"Blatt Formular E","Q28","Beschr. 16","Descr. 16","Descr. 16","Beschr. 16"]
[9.1,362,"Blatt Formular E","Q29","Beschr. 17","Descr. 17","Descr. 17","Beschr. 17"]
[9.1,363,"Blatt Formular E","Q30","Beschr. 18","Descr. 18","Descr. 18","Beschr. 18"]
[9.1,364,"Blatt Formular E","Q31","Beschr. 19","Descr. 19","Descr. 19","Beschr. 19"]
[9.1,365,"Blatt Formular E","Q32","Beschr. 20","Descr. 20","Descr. 20","Beschr. 20"]
[9.1,366,"Blatt Formular E","Eingabemeldung Spalte D&F","Auswahl Energieträger","Agents énergétiques à choix","Scelta del vettore energetico","Auswahl Energieträger"]
[9.1,367,"Blatt Formular E","Eingabemeldung Spalte D&F","Ö = Heizöl\nG = Erdgas\nF = Fernwärme/ -kälte\nH = Holz, Biomasse\nW = Weitere Brennstoffe\nE = Elektrische Energie","M = mazout\nG = gaz naturel\nD = chaleur ou froid à distance\nB = bois, biomasse\nA = autres combustibles\nE = énergie électrique ","O = olio combustile\nG = gas naturale\nF = teleriscaldamento/teleraffrescamento \nL = legna, biomassa\nA = altri combustibili\nE = energia elettrica\n","Ö = Heizöl\nG = Erdgas\nF = Fernwärme/ -kälte\nH = Holz, Biomasse\nW = Weitere Brennstoffe\nE = Elektrische Energie"]
[9.1,368,"Blatt Formular E","Eingabemeldung Spalte O","Kostenanteil Energie","Part des coûts de l’énergie","Quota costi energia","Kostenanteil Energie"]
[9.1,369,"Blatt Formular E","Eingabemeldung Spalte O","Anteil der Massnahmenkosten welcher zur Steigerung der Energieeffizienz anfällt.\n0% = reine Ersatzinvestition\n100% = alle Kosten fallen für energetische Verbesserung an\n-> Berechnung siehe Wegleitung","Pourcentage des coûts des MA affecté à l’amélioration de l’efficacité énerg.\n0 % = investiss. uniq. à des fins de remplacement\n100 % = coûts sont destinés seulem. à l’amélioration de l’efficacité énerg.\n->Consultez l’aide-mémoire pour le calcul","Quota dei costi delle misure destinati all’incremento dell’efficienza energetica.\n0% = puro investimento sostitutivo\n100% = tutti i costi sono destinati esclusivamente ai miglioramenti energetici\n-> Per il calcolo vedi la guida","Anteil der Massnahmenkosten welcher zur Steigerung der Energieeffizienz anfällt.\n0% = reine Ersatzinvestition\n100% = alle Kosten fallen für energetische Verbesserung an\n-> Berechnung siehe Wegleitung"]
[10,370,"Blatt Formular F"]
[10.1,371,"Blatt Formular F","A1","Formular F1","Formulaire F1","Formulario F1",{"$f":"IF(Sprache=\"DE\",E419,IF(Sprache=\"FR\",F419,IF(Sprache=\"IT\",G419,\"Fehler: Sprache wählen\")))","v":"Formular F1"}]
[10.1,372,"Blatt Formular F","A2","Deklaration auszuführende neue Massnahmen","Annonce des nouvelles mesures d’amélioration qui doivent être mises en œuvre ","Dichiarazione delle nuove misure da attuare","Deklaration auszuführende neue Massnahmen"]
[10.1,373,"Blatt Formular F","A5","Nr.","N°","N°","Nr."]
[10.1,374,"Blatt Formular F","A9","Haustechnikanlagen / Gebäudehülle","Installations de technique du bâtiment / enveloppe du bâtiment","Tecnica impiant./involucro edilizio","Haustechnikanlagen / Gebäudehülle"]
[10.1,375,"Blatt Formular F","A24","Prozess- und Produktionsanlagen","Installations destinées aux processus et à la production ","Impianti di processo e produzione","Prozess- und Produktionsanlagen"]
[10.1,376,"Blatt Formular F","A31","S3 / Summe aller auszuführenden neuen Massnahmen","S3/Somme de toutes les nouvelles MA à mettre en œuvre ","S3/Somma di tutte le nuove misure da attuare","S3 / Summe aller auszuführenden neuen Massnahmen"]
[10.1,377,"Blatt Formular F","A36","Formular F2","Formulaire F2","Formulario F2","Formular F2"]
[10.1,378,"Blatt Formular F","A37","Realisierte Massnahmen der letzten 5 Jahre","Mesures d’amélioration mises en œuvre au cours des 5 dernières années","Misure realizzate negli ultimi 5 anni","Realisierte Massnahmen der letzten 5 Jahre"]
[10.1,379,"Blatt Formular F","A39","Hinweise:","Remarques:","Avvertenze:","Hinweise:"]
[10.1,380,"Blatt Formular F","A40","- Realisierte Massnahmen sind nur auszufüllen, falls mit den umzusetzenden neuen Massnahmen die Richtgrösse von 15% nicht erreicht wird.","- Indiquez les mesures d’amélioration mises en œuvre seulement si les nouvelles mesures d’amélioration à mettre en œuvre ne permettent pas d’atteindre le résultat indicatif de 15 %.","- Le misure realizzate devono essere indicate solo nel caso in cui le nuove misure da attuare non consentono di raggiungere il valore indicativo del 15%.","- Realisierte Massnahmen sind nur auszufüllen, falls mit den umzusetzenden neuen Massnahmen die Richtgrösse von 15% nicht erreicht wird."]
[10.1,381,"Blatt Formular F","A41","- Eine zusätzliche Begründung ist anzugeben, falls auch zusammen mit den Massnahmen der letzten 5 Jahre die Richtgrösse von 15% nicht erreicht wird.","- Si le résultat indicatif de 15 % n’est pas atteint même compte tenu des mesures d’amélioration mises en œuvre au cours des 5 dernières années, indiquez-en également la raison.","- Qualora anche con le misure realizzate negli ultimi 5 anni il valore indicativo del 15% non viene raggiunto, occorre fornire una spiegazione aggiuntiva.","- Eine zusätzliche Begründung ist anzugeben, falls auch zusammen mit den Massnahmen der letzten 5 Jahre die Richtgrösse von 15% nicht erreicht wird."]
[10.1,382,"Blatt Formular F","A45","Nr.","N°","N°","Nr."]
[10.1,383,"Blatt Formular F","A59","S4 / Summe aller realisierten Massnahmen der letzten 5 Jahre","S4/Somme de toutes les MA mises en œuvre les 5 dernières années","S4/Somma di tutte le misure realizzate negli ultimi 5 anni","S4 / Summe aller realisierten Massnahmen der letzten 5 Jahre"]
[10.1,384,"Blatt Formular F","A60","S3 / Summe aller auszuführenden neuen Massnahmen","S3/Somme de toutes les nouvelles MA à mettre en œuvre ","S3/Somma di tutte le nuove misure da attuare","S3 / Summe aller auszuführenden neuen Massnahmen"]
[10.1,385,"Blatt Formular F","A61","S5 / Summe aller realisierten und auszuführenden Massnahmen","S5/Somme de toutes les MA mises en œuvre et à mettre en œuvre ","S5/Somma di tutte le misure realizzate e di quelle nuove da attuare","S5 / Summe aller realisierten und auszuführenden Massnahmen"]
[10.1,386,"Blatt Formular F","A65","Bestätigung","Confirmation","Conferma","Bestätigung"]
[10.1,387,"Blatt Formular F","A67","Der/die Eigentümer/In der Betriebsstätte bestätigt mit dieser rechtsgültigen Unterschrift, dass er/sie:","En apposant valablement sa signature, le propriétaire du site d’exploitation certifie ","Il/la proprietario/a dello stabilimento con firma giuridicamente valida conferma che:","Der/die Eigentümer/In der Betriebsstätte bestätigt mit dieser rechtsgültigen Unterschrift, dass er/sie:"]
[10.1,388,"Blatt Formular F","A74","Ort, Dat.:","Lieu, date:","Luogo, data:","Ort, Dat.:"]
[10.1,389,"Blatt Formular F","B5","Massnahmentitel","Titre de la mesure d’amélioration ","Titolo della misura","Massnahmentitel"]
[10.1,390,"Blatt Formular F","B43","Gewichteter Energiebezug des aktuellsten Jahres ¹⁾ ²⁾:","Achat d’énergie pondéré de la dernière année civile clôturée ¹⁾ ²⁾:","Prelievo di energia ponderato dell’ultimo anno civile concluso ¹⁾ ²⁾:","Gewichteter Energiebezug des aktuellsten Jahres ¹⁾ ²⁾:"]
[10.1,391,"Blatt Formular F","B45","Massnahmentitel","Titre de la mesure d’amélioration ","Titolo della misura","Massnahmentitel"]
[10.1,392,"Blatt Formular F","D69","Die auf Formular F1 zur Umsetzung deklarierten neuen Massnahmen (Umsetzung \"ja\") innerhalb der drei vom Kanton vorgegebenen Jahre ausführt und der zuständigen Amtsstelle den Abschluss mittels Ausführungsbestätigungsschreiben meldet."," mettre en œuvre dans les trois ans prescrits par le canton  les nouvelles mesures d’amélioration annoncées sur le formulaire F1 (mise en œuvre « oui ») et annoncer au service concerné leur fin dans un courrier qui atteste de la mise en œuvre. ","si impegna ad attuare le nuove misure dichiarate nel Formulario F1 (Attuazione «sì») entro i tre anni previsti dal Cantone e a notificare la conclusione dei lavori all’ente cantonale competente con una conferma scritta dell’esecuzione.","Die auf Formular F1 zur Umsetzung deklarierten neuen Massnahmen (Umsetzung \"ja\") innerhalb der drei vom Kanton vorgegebenen Jahre ausführt und der zuständigen Amtsstelle den Abschluss mittels Ausführungsbestätigungsschreiben meldet."]
[10.1,393,"Blatt Formular F","D71","Die auf Formular F2 aufgelisteten Massnahmen (\"Realisierte Massnahmen der letzten 5 Jahre\") in den letzten fünf Jahren realisiert hat.","avoir mis en œuvre ces cinq dernières années les mesures d’amélioration du formulaire F2 (« Mesures d’amélioration mises en œuvre au cours des 5 dernières années »).","le misure elencate nel Formulario F2 («Misure realizzate negli ultimi cinque anni») sono state effettivamente realizzate negli ultimi cinque anni.","Die auf Formular F2 aufgelisteten Massnahmen (\"Realisierte Massnahmen der letzten 5 Jahre\") in den letzten fünf Jahren realisiert hat."]
[10.1,394,"Blatt Formular F","E5","Energieeinsparung","Economie d’énergie","Risparmio energetico","Energieeinsparung"]
[10.1,395,"Blatt Formular F","E6","Ungewichtet","Non pondéré","Non ponderato","Ungewichtet"]
[10.1,396,"Blatt Formular F","E7","Einsparung 1","Economie 1","Risparmio 1","Einsparung 1"]
[10.1,397,"Blatt Formular F","E8","Art","G.","Tipo","Art"]
[10.1,398,"Blatt Formular F","E45","Energieeinsparung","Economie d’énergie","Risparmio energetico","Energieeinsparung"]
[10.1,399,"Blatt Formular F","E46","Ungewichtet","Non pondéré","Non ponderato","Ungewichtet"]
[10.1,400,"Blatt Formular F","E47","Einsparung 1","Economie 1","Risparmio 1","Einsparung 1"]
[10.1,401,"Blatt Formular F","E48","Art","G.","Tipo","Art"]
[10.1,402,"Blatt Formular F","G7","Einsparung 2","Economie 2","Risparmio 2","Einsparung 2"]
[10.1,403,"Blatt Formular F","G8","Art","G.","Tipo",{"$f":"IF(Sprache=\"DE\",E451,IF(Sprache=\"FR\",F451,IF(Sprache=\"IT\",G451,\"Fehler: Sprache wählen\")))","v":"Art"}]
[10.1,404,"Blatt Formular F","G47","Einsparung 2","Economie 2","Risparmio 2","Einsparung 2"]
[10.1,405,"Blatt Formular F","G48","Art","G.","Tipo","Art"]
[10.1,406,"Blatt Formular F","I7","Total","Total","Totale","Total"]
[10.1,407,"Blatt Formular F","I47","Total","Total","Totale","Total"]
[10.1,408,"Blatt Formular F","J6","Gewichtet","Pondéré","Ponderato","Gewichtet"]
[10.1,409,"Blatt Formular F","J7","Total","Total","Totale","Total"]
[10.1,410,"Blatt Formular F","J46","Gewichtet ²⁾","Pondéré ²⁾","Ponderato ²⁾","Gewichtet ²⁾"]
[10.1,411,"Blatt Formular F","J47","Total","Total","Totale","Total"]
[10.1,412,"Blatt Formular F","K7","Anteil","%","Quota","Anteil"]
[10.1,413,"Blatt Formular F","K47","Anteil","%","Quota","Anteil"]
[10.1,414,"Blatt Formular F","L5","Investitionen","Investissements","Investimenti","Investitionen"]
[10.1,415,"Blatt Formular F","L7","Total","Total","Totale","Total"]
[10.1,416,"Blatt Formular F","L45","Energiepreis ¹⁾","Prix de l’énergie ¹⁾","Prezzo dell’energia ¹⁾","Energiepreis ¹⁾"]
[10.1,417,"Blatt Formular F","L47","Einspar.1","Economie 1","Risparmio 1","Einspar.1"]
[10.1,418,"Blatt Formular F","K73","Unterschrift:","Signature:","Firma:","Unterschrift:"]
[10.1,419,"Blatt Formular F","M7","KE","%E","QE","KE"]
[10.1,420,"Blatt Formular F","M47","Einspar.2","Economie 2","Risparmio 2","Einspar.2"]
[10.1,421,"Blatt Formular F","L60","(gemäss Formular F1)","(selon formulaire F1)","(secondo il Formulario F1)","(gemäss Formular F1)"]
[10.1,422,"Blatt Formular F","N5","Payback","Retour s. investiss.","Payback","Payback"]
[10.1,423,"Blatt Formular F","N45","Kosten-\neinsp.","Econ.\n(coûts)","Rispar. costi","Kosten-\neinsp."]
[10.1,424,"Blatt Formular F","N47","Total","Total","Totale","Total"]
[10.1,425,"Blatt Formular F","O5","Umset-zung","Mise en œuvre ","Attuazione","Umset-zung"]
[10.1,426,"Blatt Formular F","O7","ja","oui","si","ja"]
[10.1,427,"Blatt Formular F","O8","nein","non","no","nein"]
[10.1,428,"Blatt Formular F","O45","Investitionen","Investissements","Investimenti","Investitionen"]
[10.1,429,"Blatt Formular F","O47","Total","Total","Totale","Total"]
[10.1,430,"Blatt Formular F","P5","- Per Dropdown anpassbar","- Peut être adapté (listes déroulantes)","- Modificabile mediante dropdown","- Per Dropdown anpassbar"]
[10.1,431,"Blatt Formular F","P6","- Änderungen begründen","- Justifier les changements ","- Motivare le modifiche","- Änderungen begründen"]
[10.1,432,"Blatt Formular F","P7","= Umsetzung innerh. 3 Jahren","= Mise en œuvre dans les 3 ans","= attuazione entro 3 anni","= Umsetzung innerh. 3 Jahren"]
[10.1,433,"Blatt Formular F","P8","= keine Umsetzung","= pas de Mise en œuvre","= nessuna attuazione","= keine Umsetzung"]
[10.1,434,"Blatt Formular F","Q47","KE","%E","QE","KE"]
[10.1,435,"Blatt Formular F","R43",{"$f":"E379","v":"1) Gem. Formular C, Ziffer C.1      2) Gewichtungsfaktoren gemäss Formular C, Hinweis 2)"},"1) Selon le formulaire C, chiffre C.1     2) Facteurs de pond. selon le form. C, remarque 2) ","1) Sec. il Form. C, cifra C.1      2) Fattori di ponderazione sec. il Form. C, Avvertenza 2)",{"$f":"IF(Sprache=\"DE\",E483,IF(Sprache=\"FR\",F483,IF(Sprache=\"IT\",G483,\"Fehler: Sprache wählen\")))","v":"1) Gem. Formular C, Ziffer C.1      2) Gewichtungsfaktoren gemäss Formular C, Hinweis 2)"}]
[10.1,436,"Blatt Formular F","R45","Payback","Retour s. investiss.","Payback","Payback"]
[10.1,437,"Blatt Formular F","U45","Beschrei-bung","Description","Descrizione","Beschrei-bung"]
[10.1,438,"Blatt Formular F","U47","Klicken um zum Blatt Beschrei-bung zu wechseln:","Cliquez sur 1 description pour passer à la feuille «Descriptions».","Cliccare per passare al foglio «Descrizioni»:","Klicken um zum Blatt Beschrei-bung zu wechseln:"]
[10.1,439,"Blatt Formular F","U51","Beschr. 21","Descr. 21","Descr. 21","Beschr. 21"]
[10.1,440,"Blatt Formular F","U52","Beschr. 22","Descr. 22","Descr. 22","Beschr. 22"]
[10.1,441,"Blatt Formular F","U53","Beschr. 23","Descr. 23","Descr. 23","Beschr. 23"]
[10.1,442,"Blatt Formular F","U54","Beschr. 24","Descr. 24","Descr. 24","Beschr. 24"]
[10.1,443,"Blatt Formular F","U55","Beschr. 25","Descr. 25","Descr. 25","Beschr. 25"]
[10.1,444,"Blatt Formular F","U56","Beschr. 26","Descr. 26","Descr. 26","Beschr. 26"]
[10.1,445,"Blatt Formular F","U57","Beschr. 27","Descr. 27","Descr. 27","Beschr. 27"]
[10.1,446,"Blatt Formular F","U58","Beschr. 28","Descr. 28","Descr. 28","Beschr. 28"]
[10.1,447,"Blatt Formular F","P10-P30 (in Formeln)","Begründung erforderlich","Indic. des raisons obligatoire ","È richiesta la motivazione","Begründung erforderlich"]
[10.1,448,"Blatt Formular F","P10-P30 (in Formeln)","Umsetzung innerh. 3 Jahren","Mise en œuvre dans les 3 ans","Attuazione entro 3 anni","Umsetzung innerh. 3 Jahren"]
[10.1,449,"Blatt Formular F","L31 (in Formel)","=> Begründung zur Einsparung < 15%  hinzufügen und Formular F2 ausfüllen.","=> Ajouter la raison pour laquelle l’économie < 15% et remplir le formulaire F2.","=> Aggiungere la motivazione del risparmio < 15% e compilare il Formulario F2.","=> Begründung zur Einsparung < 15%  hinzufügen und Formular F2 ausfüllen."]
[10.1,450,"Blatt Formular F","L31 (in Formel)","=> i.O. da Richtgrösse von 15% erreicht: Unterschrift auf Formular F2 eintragen.","=> ok car le résultat de 15 % est atteint: apposer la signature sur le formulaire F2.","=> va bene, visto che il valore indicativo del 15% è stato raggiunto: apporre la firma sul Formulario F2.","=> i.O. da Richtgrösse von 15% erreicht: Unterschrift auf Formular F2 eintragen."]
[10.1,451,"Blatt Formular F","L51-58 (in Formeln)","Preis?->C.1","Prix ? ->C.1  ","Prezzo?->C.1","Preis?->C.1"]
[10.1,452,"Blatt Formular F","L51-58 (in Formeln)","KE?","%E ?","QE?","KE?"]
[10.1,453,"Blatt Formular F","O10-O30 (in Formeln)","ja","oui","si","ja"]
[10.1,454,"Blatt Formular F","O10-O30 (in Formeln)","nein","non","no","nein"]
[10.1,455,"Blatt Formular F","A32 (in Formel)","Begründung weshalb wirtschaftliche Massnahmen nicht umgesetzt werden können:","Expliquer pour quelles raisons les mesures d’amélioration rentables ne peuvent pas être mises en œuvre. ","Motivare perché le misure redditizie non possono essere attuate:","Begründung weshalb wirtschaftliche Massnahmen nicht umgesetzt werden können:"]
[10.1,456,"Blatt Formular F","A32 (in Formel)","Kommentar zur Deklaration auszuführender Massnahmen (fakultativ):","Commentaire concernant l’annonce des mesures d’amélioration à mettre en œuvre (facultatif)","Commento relativo alla dichiarazione delle misure da attuare (facoltativo):","Kommentar zur Deklaration auszuführender Massnahmen (fakultativ):"]
[10.1,457,"Blatt Formular F","A34 (in Formel)","Begründung weshalb die Richtgrösse von 15% Einsparung nicht erreicht werden kann:","Expliquer pour quelles raisons le résultat de 15 % ne peut pas être atteint","Motivare perché il valore indicativo del 15% non può essere raggiunto:","Begründung weshalb die Richtgrösse von 15% Einsparung nicht erreicht werden kann:"]
[10.1,458,"Blatt Formular F","A34 (in Formel)","Kommentar zum Einsparziel (fakultativ da Richtgrösse von 15% Einsparung erreicht wurde):","Commentaire concernant l’économie visée (facultatif puisque le résultat de 15 % a été atteint):","Commento relativo all’obiettivo di risparmio (facoltativo visto che il valore indicativo del 15% è stato raggiunto):","Kommentar zum Einsparziel (fakultativ da Richtgrösse von 15% Einsparung erreicht wurde):"]
[10.1,459,"Blatt Formular F","A50 (in Formel)","Eingabefelder gesperrt: Bitte zuerst Formular F1 komplett ausfüllen!","Champs de saisie bloqués: veuillez d’abord remplir complétement le formulaire F1!","Campi di input bloccati: compilare il Formulario F1 in tutte le sue parti!","Eingabefelder gesperrt: Bitte zuerst Formular F1 komplett ausfüllen!"]
[10.1,460,"Blatt Formular F","A50 (in Formel)","Massnahmen der letzten 5 Jahre (fakultativ da Richtgrösse erreicht)","Mesures d’amélioration des 5 dernières années (facultatif puisque le résultat indicatif a été atteint)","Misure realizzate negli ultimi 5 anni (facoltativo visto che il valore indicativo è stato raggiunto)","Massnahmen der letzten 5 Jahre (fakultativ da Richtgrösse erreicht)"]
[10.1,461,"Blatt Formular F","A50 (in Formel)","Massnahmen der letzten 5 Jahre","Mesures d’amélioration des 5 dernières années","Misure realizzate negli ultimi 5 anni","Massnahmen der letzten 5 Jahre"]
[10.1,462,"Blatt Formular F","A62 (in Formel)","Eingabefeld gesperrt: Bitte zuerst Formular F1 komplett ausfüllen!","Champs de saisie bloqués: Veuillez d’abord remplir complétement le formulaire F1!","Campo di input bloccato: compilare prima il Formulario F1 in tutte le sue parti!","Eingabefeld gesperrt: Bitte zuerst Formular F1 komplett ausfüllen!"]
[10.1,463,"Blatt Formular F","A62 (in Formel)","Begründung weshalb die Richtgrösse von 15% auch zusammen mit Massnahmen der letzten 5 Jahre nicht erreicht werden kann:","Expliquer pour quelles raisons le résultat de 15 % ne peut pas être atteint même compte tenu des mesures d’amélioration des 5 dernières années","Motivare perché il valore indicativo del 15% non può essere raggiunto nemmeno includendo le misure degli ultimi 5 anni:","Begründung weshalb die Richtgrösse von 15% auch zusammen mit Massnahmen der letzten 5 Jahre nicht erreicht werden kann:"]
[10.1,464,"Blatt Formular F","A62 (in Formel)","Kommentar zu den Massnahmen der letzten 5 Jahre (fakultativ da Richtgrösse von 15% zusammen mit alten Massnahmen erreicht):","Commentaire concernant les mesures d’amélioration des 5 dernières années (facultatif : en incluant les anciennes MA, le résultat de 15 % a été atteint):","Commento relativo alle misure degli ultimi 5 anni (facoltativo visto che includendo le vecchie misure il valore indicativo del 15% è stato raggiunto):","Kommentar zu den Massnahmen der letzten 5 Jahre (fakultativ da Richtgrösse von 15% zusammen mit alten Massnahmen erreicht):"]
[10.1,465,"Blatt Formular F","Eingabemeldung Spalte E&G","Auswahl Energieträger","Agents énergétiques à choix","Scelta del vettore energetico","Auswahl Energieträger"]
[10.1,466,"Blatt Formular F","Eingabemeldung Spalte E&G","Ö = Heizöl\nG = Erdgas\nF = Fernwärme/-kälte\nH = Holz, Biomasse\nW = Weitere Brennstoffe\nE = Elektrische Energie","M = mazout\nG = gaz naturel\nD = chaleur ou froid à distance\nB = bois, biomasse\nA = autres combustibles\nE = énergie électrique ","O = olio combustile\nG = gas naturale\nF = teleriscaldamento/teleraffrescamento \nL = legna, biomassa\nA = altri combustibili\nE = energia elettrica\n","Ö = Heizöl\nG = Erdgas\nF = Fernwärme/-kälte\nH = Holz, Biomasse\nW = Weitere Brennstoffe\nE = Elektrische Energie"]
[10.1,467,"Blatt Formular F","Eingabemeldung Spalte Q","Kostenanteil Energie","Part des coûts de l’énergie","Quota costi energia",{"$f":"IF(Sprache=\"DE\",E515,IF(Sprache=\"FR\",F515,IF(Sprache=\"IT\",G515,\"Fehler: Sprache wählen\")))","v":"Kostenanteil Energie"}]
[10.1,468,"Blatt Formular F","Eingabemeldung Spalte Q","Anteil der Massnahmenkosten welcher zur Steigerung der Energieeffizienz anfällt.\n0% = reine Ersatzinvestition\n100% = alle Kosten fallen für energetische Verbesserung an\n-> Berechnung siehe Wegleitung","Pourcentage des coûts des MA affecté à l’amélioration de l’efficacité énerg.\n0 % = investiss. uniq. à des fins de remplacement\n100 % = coûts sont destinés seulem. à l’amélioration de l’efficacité énerg.\n->Consultez l’aide-mémoire pour le calcul","Quota dei costi delle misure destinati all’incremento dell’efficienza energetica.\n0% = puro investimento sostitutivo\n100% = tutti i costi sono destinati esclusivamente ai miglioramenti energetici\n-> Per il calcolo vedi la guida","Anteil der Massnahmenkosten welcher zur Steigerung der Energieeffizienz anfällt.\n0% = reine Ersatzinvestition\n100% = alle Kosten fallen für energetische Verbesserung an\n-> Berechnung siehe Wegleitung"]
[11,469,"Blatt Beschreibungen"]
[11.1,470,"Blatt Beschreibungen","A1","Beschreibungen 1 / 2","Descriptions 1 / 2 ","Descrizioni 1 / 2",{"$f":"IF(Sprache=\"DE\",E518,IF(Sprache=\"FR\",F518,IF(Sprache=\"IT\",G518,\"Fehler: Sprache wählen\")))","v":"Beschreibungen 1 / 2"}]
[11.1,471,"Blatt Beschreibungen","A2","Neue Massnahmen (Formular E)","Nouvelle mesure d’amélioration (formulaire E)","Nuove misure (Formulario E)","Neue Massnahmen (Formular E)"]
[11.1,472,"Blatt Beschreibungen","A4","Hinweise:\n- Die im Formular E und F aufgeführten Massnahmen müssen in diesem Arbeitsblatt detailliert und nachvollziehbar beschrieben werden.\n- Wird für die Massnahmenbeschreibung mehr Platz benötigt, kann die Zeilenhöhe manuell angepasst werden.\n- Zeilenumbrüche können durch die Tastenkombination \"Alt\" & \"Enter\" eingefügt werden.\n","Remarques:\n- Les mesures d’amélioration qui figurent dans les formulaires E et F doivent être décrites de manière détaillée et compréhensible dans cette feuille de travail.\n- Si vous avez besoin de plus de place pour décrire les mesures d’amélioration, vous pouvez adapter la hauteur des lignes.\n- Pour passer à la ligne, pressez simultanément sur les touches Alt & Enter.","Avvertenze: \n- Le misure elencate nei Formulari E ed F devono essere descritte in questo foglio di lavoro in modo dettagliato e chiaro. \n- Se per la descrizione è necessario più spazio si può modificare manualmente l’altezza della riga. \n- Per inserire un’interruzione di riga, premere i tasti «Alt»+«Invio».","Hinweise:\n- Die im Formular E und F aufgeführten Massnahmen müssen in diesem Arbeitsblatt detailliert und nachvollziehbar beschrieben werden.\n- Wird für die Massnahmenbeschreibung mehr Platz benötigt, kann die Zeilenhöhe manuell angepasst werden.\n- Zeilenumbrüche können durch die Tastenkombination \"Alt\" & \"Enter\" eingefügt werden.\n"]
[11.1,473,"Blatt Beschreibungen","A5","- Die im Formular E und F aufgeführten Massnahmen müssen* in diesem Arbeitsblatt detailliert und nachvollziehbar beschrieben werden.","- Les mesures d’amélioration qui figurent dans les formulaires E et F doivent* être décrites de manière détaillée et compréhensible dans cette feuille de travail.","- Le misure elencate nei Formulari e ed F devono* essere descritte in questo foglio di lavoro  in modo dettagliato e chiaro.","- Die im Formular E und F aufgeführten Massnahmen müssen* in diesem Arbeitsblatt detailliert und nachvollziehbar beschrieben werden."]
[11.1,474,"Blatt Beschreibungen","A6","- Die Beschreibungsfelder werden erst angezeigt, wenn die Massnahmentitel in Formular E eingetragen wurden.","- Les champs descriptifs s’affichent seulement si les titres des mesures d’amélioration ont été indiqués dans le formulaire E.","- I campi per la descrizione delle misure sono visualizzati solamente se sono stati riportati i titoli delle misure nel Formulario E.","- Die Beschreibungsfelder werden erst angezeigt, wenn die Massnahmentitel in Formular E eingetragen wurden."]
[11.1,475,"Blatt Beschreibungen","A7","- Wird für die Massnahmenbeschreibung mehr Platz benötigt, kann die Zeilenhöhe manuell angepasst werden.","- Si vous avez besoin de plus de place pour décrire les mesures d’amélioration, vous pouvez adapter la hauteur des lignes.","- Se per la descrizione è necessario più spazio si può modificare manualmente l’altezza della riga.","- Wird für die Massnahmenbeschreibung mehr Platz benötigt, kann die Zeilenhöhe manuell angepasst werden."]
[11.1,476,"Blatt Beschreibungen","A8","- Zeilenumbrüche können durch die Tastenkombination \"Alt\" & \"Enter\" eingefügt werden.","- Pour passer à la ligne, pressez simultanément sur les touches Alt & Enter.","- Per inserire un'interruzione di riga premere i tasti «Alt»+«Invio».","- Zeilenumbrüche können durch die Tastenkombination \"Alt\" & \"Enter\" eingefügt werden."]
[11.1,477,"Blatt Beschreibungen","A9","* Alternativ können die Massnahmen auch in einem Beilagendokument beschrieben werden. Auch in der Beilage müssen Einspar- und Kostenberechnungen nachvollziehbar aufzeigt werden.","* Autre solution, décrivez les mesures d’amélioration dans un document que vous annexez. Les calculs d’économies et de coûts doivent également être présentés clairement dans cette annexe.","* In alternativa è possibile descrivere le misure in un documento allegato a parte. Anche nell’allegato i risparmi e i costi calcolati devono essere illustrati in modo chiaro.","* Alternativ können die Massnahmen auch in einem Beilagendokument beschrieben werden. Auch in der Beilage müssen Einspar- und Kostenberechnungen nachvollziehbar aufzeigt werden."]
[11.1,478,"Blatt Beschreibungen","A11","Massnahme 1, Formular E:","Mesure d’amélioration 1, formulaire E:","Misura 1, Formulario E:","Massnahme 1, Formular E:"]
[11.1,479,"Blatt Beschreibungen","A12","Detaillierte Beschreibung der Massnahme:","Description détaillée de la mesure d’amélioration:","Descrizione dettagliata della misura:","Detaillierte Beschreibung der Massnahme:"]
[11.1,480,"Blatt Beschreibungen","A15","Massnahme 2, Formular E:","Mesure d’amélioration 2, formulaire E:","Misura 2, Formulario E:","Massnahme 2, Formular E:"]
[11.1,481,"Blatt Beschreibungen","A16","Detaillierte Beschreibung der Massnahme:","Description détaillée de la mesure d’amélioration:","Descrizione dettagliata della misura:","Detaillierte Beschreibung der Massnahme:"]
[11.1,482,"Blatt Beschreibungen","A19","Massnahme 3, Formular E:","Mesure d’amélioration 3, formulaire E:","Misura 3, Formulario E:","Massnahme 3, Formular E:"]
[11.1,483,"Blatt Beschreibungen","A20","Detaillierte Beschreibung der Massnahme:","Description détaillée de la mesure d’amélioration:","Descrizione dettagliata della misura:","Detaillierte Beschreibung der Massnahme:"]
[11.1,484,"Blatt Beschreibungen","A23","Massnahme 4, Formular E:","Mesure d’amélioration 4, formulaire E:","Misura 4, Formulario E:","Massnahme 4, Formular E:"]
[11.1,485,"Blatt Beschreibungen","A24","Detaillierte Beschreibung der Massnahme:","Description détaillée de la mesure d’amélioration:","Descrizione dettagliata della misura:","Detaillierte Beschreibung der Massnahme:"]
[11.1,486,"Blatt Beschreibungen","A27","Massnahme 5, Formular E:","Mesure d’amélioration 5, formulaire E:","Misura 5, Formulario E:","Massnahme 5, Formular E:"]
[11.1,487,"Blatt Beschreibungen","A28","Detaillierte Beschreibung der Massnahme:","Description détaillée de la mesure d’amélioration:","Descrizione dettagliata della misura:","Detaillierte Beschreibung der Massnahme:"]
[11.1,488,"Blatt Beschreibungen","A31","Massnahme 6, Formular E:","Mesure d’amélioration 6, formulaire E:","Misura 6, Formulario E:","Massnahme 6, Formular E:"]
[11.1,489,"Blatt Beschreibungen","A32","Detaillierte Beschreibung der Massnahme:","Description détaillée de la mesure d’amélioration:","Descrizione dettagliata della misura:","Detaillierte Beschreibung der Massnahme:"]
[11.1,490,"Blatt Beschreibungen","A35","Massnahme 7, Formular E:","Mesure d’amélioration 7, formulaire E:","Misura 7, Formulario E:","Massnahme 7, Formular E:"]
[11.1,491,"Blatt Beschreibungen","A36","Detaillierte Beschreibung der Massnahme:","Description détaillée de la mesure d’amélioration:","Descrizione dettagliata della misura:","Detaillierte Beschreibung der Massnahme:"]
[11.1,492,"Blatt Beschreibungen","A39","Massnahme 8, Formular E:","Mesure d’amélioration 8, formulaire E:","Misura 8, Formulario E:","Massnahme 8, Formular E:"]
[11.1,493,"Blatt Beschreibungen","A40","Detaillierte Beschreibung der Massnahme:","Description détaillée de la mesure d’amélioration:","Descrizione dettagliata della misura:","Detaillierte Beschreibung der Massnahme:"]
[11.1,494,"Blatt Beschreibungen","A43","Massnahme 9, Formular E:","Mesure d’amélioration 9, formulaire E:","Misura 9, Formulario E:","Massnahme 9, Formular E:"]
[11.1,495,"Blatt Beschreibungen","A44","Detaillierte Beschreibung der Massnahme:","Description détaillée de la mesure d’amélioration:","Descrizione dettagliata della misura:","Detaillierte Beschreibung der Massnahme:"]
[11.1,496,"Blatt Beschreibungen","A47","Massnahme 10, Formular E:","Mesure d’amélioration 10, formulaire E:","Misura 10, Formulario E:","Massnahme 10, Formular E:"]
[11.1,497,"Blatt Beschreibungen","A48","Detaillierte Beschreibung der Massnahme:","Description détaillée de la mesure d’amélioration:","Descrizione dettagliata della misura:","Detaillierte Beschreibung der Massnahme:"]
[11.1,498,"Blatt Beschreibungen","A51","Massnahme 11, Formular E:","Mesure d’amélioration 11, formulaire E:","Misura 11, Formulario E:","Massnahme 11, Formular E:"]
[11.1,499,"Blatt Beschreibungen","A52","Detaillierte Beschreibung der Massnahme:","Description détaillée de la mesure d’amélioration:","Descrizione dettagliata della misura:","Detaillierte Beschreibung der Massnahme:"]
[11.1,500,"Blatt Beschreibungen","A55","Massnahme 12, Formular E:","Mesure d’amélioration 12, formulaire E:","Misura 12, Formulario E:","Massnahme 12, Formular E:"]
[11.1,501,"Blatt Beschreibungen","A56","Detaillierte Beschreibung der Massnahme:","Description détaillée de la mesure d’amélioration:","Descrizione dettagliata della misura:","Detaillierte Beschreibung der Massnahme:"]
[11.1,502,"Blatt Beschreibungen","A59","Massnahme 13, Formular E:","Mesure d’amélioration 13, formulaire E:","Misura 13, Formulario E:",{"$f":"IF(Sprache=\"DE\",E550,IF(Sprache=\"FR\",F550,IF(Sprache=\"IT\",G550,\"Fehler: Sprache wählen\")))","v":"Massnahme 13, Formular E:"}]
[11.1,503,"Blatt Beschreibungen","A60","Detaillierte Beschreibung der Massnahme:","Description détaillée de la mesure d’amélioration:","Descrizione dettagliata della misura:","Detaillierte Beschreibung der Massnahme:"]
[11.1,504,"Blatt Beschreibungen","A63","Massnahme 14, Formular E:","Mesure d’amélioration 14, formulaire E:","Misura 14, Formulario E:","Massnahme 14, Formular E:"]
[11.1,505,"Blatt Beschreibungen","A64","Detaillierte Beschreibung der Massnahme:","Description détaillée de la mesure d’amélioration:","Descrizione dettagliata della misura:","Detaillierte Beschreibung der Massnahme:"]
[11.1,506,"Blatt Beschreibungen","A67","Massnahme 15, Formular E:","Mesure d’amélioration 15, formulaire E:","Misura 15, Formulario E:","Massnahme 15, Formular E:"]
[11.1,507,"Blatt Beschreibungen","A68","Detaillierte Beschreibung der Massnahme:","Description détaillée de la mesure d’amélioration:","Descrizione dettagliata della misura:","Detaillierte Beschreibung der Massnahme:"]
[11.1,508,"Blatt Beschreibungen","A71","Massnahme 16, Formular E:","Mesure d’amélioration 16, formulaire E:","Misura 16, Formulario E:","Massnahme 16, Formular E:"]
[11.1,509,"Blatt Beschreibungen","A72","Detaillierte Beschreibung der Massnahme:","Description détaillée de la mesure d’amélioration:","Descrizione dettagliata della misura:","Detaillierte Beschreibung der Massnahme:"]
[11.1,510,"Blatt Beschreibungen","A75","Massnahme 17, Formular E:","Mesure d’amélioration 17, formulaire E:","Misura 17, Formulario E:","Massnahme 17, Formular E:"]
[11.1,511,"Blatt Beschreibungen","A76","Detaillierte Beschreibung der Massnahme:","Description détaillée de la mesure d’amélioration:","Descrizione dettagliata della misura:","Detaillierte Beschreibung der Massnahme:"]
[11.1,512,"Blatt Beschreibungen","A79","Massnahme 18, Formular E:","Mesure d’amélioration 18, formulaire E:","Misura 18, Formulario E:","Massnahme 18, Formular E:"]
[11.1,513,"Blatt Beschreibungen","A80","Detaillierte Beschreibung der Massnahme:","Description détaillée de la mesure d’amélioration:","Descrizione dettagliata della misura:","Detaillierte Beschreibung der Massnahme:"]
[11.1,514,"Blatt Beschreibungen","A83","Massnahme 19, Formular E:","Mesure d’amélioration 19, formulaire E:","Misura 19, Formulario E:","Massnahme 19, Formular E:"]
[11.1,515,"Blatt Beschreibungen","A84","Detaillierte Beschreibung der Massnahme:","Description détaillée de la mesure d’amélioration:","Descrizione dettagliata della misura:","Detaillierte Beschreibung der Massnahme:"]
[11.1,516,"Blatt Beschreibungen","A87","Massnahme 20, Formular E:","Mesure d’amélioration 20, formulaire E:","Misura 20, Formulario E:","Massnahme 20, Formular E:"]
[11.1,517,"Blatt Beschreibungen","A88","Detaillierte Beschreibung der Massnahme:","Description détaillée de la mesure d’amélioration:","Descrizione dettagliata della misura:","Detaillierte Beschreibung der Massnahme:"]
[11.1,518,"Blatt Beschreibungen","A91","Beschreibungen 2 / 2","Descriptions 2 / 2 ","Descrizioni 2 / 2","Beschreibungen 2 / 2"]
[11.1,519,"Blatt Beschreibungen","A92","Massnahmen der letzten 5 Jahre (Formular F2)","Mesures d’amélioration des 5 dernières années (formulaire F2)","Misure degli ultimi 5 anni (Formulario F2)","Massnahmen der letzten 5 Jahre (Formular F2)"]
[11.1,520,"Blatt Beschreibungen","A94","Hinweise:","Remarques:","Avvertenze:","Hinweise:"]
[11.1,521,"Blatt Beschreibungen","A95","- Die im Formular E und F aufgeführten Massnahmen müssen* in diesem Arbeitsblatt detailliert und nachvollziehbar beschrieben werden.","- Les mesures d’amélioration qui figurent dans les formulaires E et F doivent* être décrites de manière détaillée et compréhensible dans cette feuille de travail.","- Le misure elencate nei Formulari e ed F devono* essere descritte in questo foglio di lavoro  in modo dettagliato e chiaro.","- Die im Formular E und F aufgeführten Massnahmen müssen* in diesem Arbeitsblatt detailliert und nachvollziehbar beschrieben werden."]
[11.1,522,"Blatt Beschreibungen","A96","- Die Beschreibungsfelder werden erst angezeigt, wenn die Massnahmentitel in Formular F2 eingetragen wurden.","- Les champs descriptifs s’affichent seulement si les titres des mesures d’amélioration ont été indiqués dans le formulaire F2.","- I campi per la descrizione delle misure sono visualizzati solamente se sono stati riportati I titoli delle misure nel Formulario F2.","- Die Beschreibungsfelder werden erst angezeigt, wenn die Massnahmentitel in Formular F2 eingetragen wurden."]
[11.1,523,"Blatt Beschreibungen","A97","- Wird für die Massnahmenbeschreibung mehr Platz benötigt, kann die Zeilenhöhe manuell angepasst werden.","- Si vous avez besoin de plus de place pour décrire les mesures d’amélioration, vous pouvez adapter la hauteur des lignes.","- Se per la descrizione è necessario più spazio si può modificare manualmente l’altezza della riga.","- Wird für die Massnahmenbeschreibung mehr Platz benötigt, kann die Zeilenhöhe manuell angepasst werden."]
[11.1,524,"Blatt Beschreibungen","A98","- Zeilenumbrüche können durch die Tastenkombination \"Alt\" & \"Enter\" eingefügt werden.","- Pour passer à la ligne, pressez simultanément sur les touches Alt & Enter.","- Per inserire un'interruzione di riga premere i tasti «Alt»+«Invio».","- Zeilenumbrüche können durch die Tastenkombination \"Alt\" & \"Enter\" eingefügt werden."]
[11.1,525,"Blatt Beschreibungen","A99","* Alternativ können die Massnahmen auch in einem Beilagendokument beschrieben werden. Auch in der Beilage müssen Einspar- und Kostenberechnungen nachvollziehbar aufzeigt werden.","* Autre solution, décrivez les mesures d’amélioration dans un document que vous annexez. Les calculs d’économies et de coûts doivent également être présentés clairement dans cette annexe.","* In alternativa è possibile descrivere le misure in un documento allegato a parte. Anche nell’allegato i risparmi e i costi calcolati devono essere illustrati in modo chiaro.","* Alternativ können die Massnahmen auch in einem Beilagendokument beschrieben werden. Auch in der Beilage müssen Einspar- und Kostenberechnungen nachvollziehbar aufzeigt werden."]
[11.1,526,"Blatt Beschreibungen","A101","Massnahme 21, Formular F2:","Mesure d’amélioration 21, formulaire F2: ","Misura 21, Formulario F2:","Massnahme 21, Formular F2:"]
[11.1,527,"Blatt Beschreibungen","A102","Detaillierte Beschreibung der Massnahme:","Description détaillée de la mesure d’amélioration:","Descrizione dettagliata della misura:","Detaillierte Beschreibung der Massnahme:"]
[11.1,528,"Blatt Beschreibungen","A105","Massnahme 22, Formular F2:","Mesure d’amélioration 22, formulaire F2: ","Misura 22, Formulario F2:","Massnahme 22, Formular F2:"]
[11.1,529,"Blatt Beschreibungen","A106","Detaillierte Beschreibung der Massnahme:","Description détaillée de la mesure d’amélioration:","Descrizione dettagliata della misura:","Detaillierte Beschreibung der Massnahme:"]
[11.1,530,"Blatt Beschreibungen","A109","Massnahme 23, Formular F2:","Mesure d’amélioration 23, formulaire F2: ","Misura 23, Formulario F2:","Massnahme 23, Formular F2:"]
[11.1,531,"Blatt Beschreibungen","A110","Detaillierte Beschreibung der Massnahme:","Description détaillée de la mesure d’amélioration:","Descrizione dettagliata della misura:","Detaillierte Beschreibung der Massnahme:"]
[11.1,532,"Blatt Beschreibungen","A113","Massnahme 24, Formular F2:","Mesure d’amélioration 24, formulaire F2: ","Misura 24, Formulario F2:","Massnahme 24, Formular F2:"]
[11.1,533,"Blatt Beschreibungen","A114","Detaillierte Beschreibung der Massnahme:","Description détaillée de la mesure d’amélioration:","Descrizione dettagliata della misura:","Detaillierte Beschreibung der Massnahme:"]
[11.1,534,"Blatt Beschreibungen","A117","Massnahme 25, Formular F2:","Mesure d’amélioration 25, formulaire F2: ","Misura 25, Formulario F2:",{"$f":"IF(Sprache=\"DE\",E582,IF(Sprache=\"FR\",F582,IF(Sprache=\"IT\",G582,\"Fehler: Sprache wählen\")))","v":"Massnahme 25, Formular F2:"}]
[11.1,535,"Blatt Beschreibungen","A118","Detaillierte Beschreibung der Massnahme:","Description détaillée de la mesure d’amélioration:","Descrizione dettagliata della misura:","Detaillierte Beschreibung der Massnahme:"]
[11.1,536,"Blatt Beschreibungen","A121","Massnahme 26, Formular F2:","Mesure d’amélioration 26, formulaire F2: ","Misura 26, Formulario F2:","Massnahme 26, Formular F2:"]
[11.1,537,"Blatt Beschreibungen","A122","Detaillierte Beschreibung der Massnahme:","Description détaillée de la mesure d’amélioration:","Descrizione dettagliata della misura:","Detaillierte Beschreibung der Massnahme:"]
[11.1,538,"Blatt Beschreibungen","A125","Massnahme 27, Formular F2:","Mesure d’amélioration 27, formulaire F2: ","Misura 27, Formulario F2:","Massnahme 27, Formular F2:"]
[11.1,539,"Blatt Beschreibungen","A126","Detaillierte Beschreibung der Massnahme:","Description détaillée de la mesure d’amélioration:","Descrizione dettagliata della misura:","Detaillierte Beschreibung der Massnahme:"]
[11.1,540,"Blatt Beschreibungen","A129","Massnahme 28, Formular F2:","Mesure d’amélioration 28, formulaire F2: ","Misura 28, Formulario F2:","Massnahme 28, Formular F2:"]
[11.1,541,"Blatt Beschreibungen","A130","Detaillierte Beschreibung der Massnahme:","Description détaillée de la mesure d’amélioration:","Descrizione dettagliata della misura:","Detaillierte Beschreibung der Massnahme:"]
[11.1,541.01,"Blatt Beschreibungen","B11 (in Formel)","Massnahme 1 wurde nicht eingetragen","La mesure d'amélioration 1 n'a pas été saisie. ","La misura 1 non è stata inserita","Massnahme 1 wurde nicht eingetragen"]
[11.1,541.02,"Blatt Beschreibungen","B15 (in Formel)","Massnahme 2 wurde nicht eingetragen","La mesure d'amélioration 2 n'a pas été saisie. ","La misura 2 non è stata inserita","Massnahme 2 wurde nicht eingetragen"]
[11.1,541.03,"Blatt Beschreibungen","B19 (in Formel)","Massnahme 3 wurde nicht eingetragen","La mesure d'amélioration 3 n'a pas été saisie. ","La misura 3 non è stata inserita","Massnahme 3 wurde nicht eingetragen"]
[11.1,541.04,"Blatt Beschreibungen","B.. (in Formel)","Massnahme 4 wurde nicht eingetragen","La mesure d'amélioration 4 n'a pas été saisie. ","La misura 4 non è stata inserita","Massnahme 4 wurde nicht eingetragen"]
[11.1,541.05,"Blatt Beschreibungen","B.. (in Formel)","Massnahme 5 wurde nicht eingetragen","La mesure d'amélioration 5 n'a pas été saisie. ","La misura 5 non è stata inserita","Massnahme 5 wurde nicht eingetragen"]
[11.1,541.06,"Blatt Beschreibungen","B.. (in Formel)","Massnahme 6 wurde nicht eingetragen","La mesure d'amélioration 6 n'a pas été saisie. ","La misura 6 non è stata inserita","Massnahme 6 wurde nicht eingetragen"]
[11.1,541.07,"Blatt Beschreibungen","B.. (in Formel)","Massnahme 7 wurde nicht eingetragen","La mesure d'amélioration 7 n'a pas été saisie. ","La misura 7 non è stata inserita","Massnahme 7 wurde nicht eingetragen"]
[11.1,541.08,"Blatt Beschreibungen","B.. (in Formel)","Massnahme 8 wurde nicht eingetragen","La mesure d'amélioration 8 n'a pas été saisie. ","La misura 8 non è stata inserita","Massnahme 8 wurde nicht eingetragen"]
[11.1,541.09,"Blatt Beschreibungen","B.. (in Formel)","Massnahme 9 wurde nicht eingetragen","La mesure d'amélioration 9 n'a pas été saisie. ","La misura 9 non è stata inserita","Massnahme 9 wurde nicht eingetragen"]
[11.1,{"v":541.1,"d":"541.10"},"Blatt Beschreibungen","B.. (in Formel)","Massnahme 10 wurde nicht eingetragen","La mesure d'amélioration 10 n'a pas été saisie. ","La misura 10 non è stata inserita","Massnahme 10 wurde nicht eingetragen"]
[11.1,541.11,"Blatt Beschreibungen","B.. (in Formel)","Massnahme 11 wurde nicht eingetragen","La mesure d'amélioration 11 n'a pas été saisie. ","La misura 11 non è stata inserita","Massnahme 11 wurde nicht eingetragen"]
[11.1,541.12,"Blatt Beschreibungen","B.. (in Formel)","Massnahme 12 wurde nicht eingetragen","La mesure d'amélioration 12 n'a pas été saisie. ","La misura 12 non è stata inserita","Massnahme 12 wurde nicht eingetragen"]
[11.1,541.13,"Blatt Beschreibungen","B.. (in Formel)","Massnahme 13 wurde nicht eingetragen","La mesure d'amélioration 13 n'a pas été saisie. ","La misura 13 non è stata inserita","Massnahme 13 wurde nicht eingetragen"]
[11.1,541.14,"Blatt Beschreibungen","B.. (in Formel)","Massnahme 14 wurde nicht eingetragen","La mesure d'amélioration 14 n'a pas été saisie. ","La misura 14 non è stata inserita","Massnahme 14 wurde nicht eingetragen"]
[11.1,541.15,"Blatt Beschreibungen","B.. (in Formel)","Massnahme 15 wurde nicht eingetragen","La mesure d'amélioration 15 n'a pas été saisie. ","La misura 15 non è stata inserita","Massnahme 15 wurde nicht eingetragen"]
[11.1,541.16,"Blatt Beschreibungen","B.. (in Formel)","Massnahme 16 wurde nicht eingetragen","La mesure d'amélioration 16 n'a pas été saisie. ","La misura 16 non è stata inserita","Massnahme 16 wurde nicht eingetragen"]
[11.1,541.17,"Blatt Beschreibungen","B.. (in Formel)","Massnahme 17 wurde nicht eingetragen","La mesure d'amélioration 17 n'a pas été saisie. ","La misura 17 non è stata inserita","Massnahme 17 wurde nicht eingetragen"]
[11.1,541.18,"Blatt Beschreibungen","B.. (in Formel)","Massnahme 18 wurde nicht eingetragen","La mesure d'amélioration 18 n'a pas été saisie. ","La misura 18 non è stata inserita","Massnahme 18 wurde nicht eingetragen"]
[11.1,541.19,"Blatt Beschreibungen","B.. (in Formel)","Massnahme 19 wurde nicht eingetragen","La mesure d'amélioration 19 n'a pas été saisie. ","La misura 19 non è stata inserita","Massnahme 19 wurde nicht eingetragen"]
[11.1,{"v":541.2,"d":"541.20"},"Blatt Beschreibungen","B.. (in Formel)","Massnahme 20 wurde nicht eingetragen","La mesure d'amélioration 20 n'a pas été saisie. ","La misura 20 non è stata inserita","Massnahme 20 wurde nicht eingetragen"]
[11.1,541.21,"Blatt Beschreibungen","B.. (in Formel)","Massnahme 21 wurde nicht eingetragen","La mesure d'amélioration 21 n'a pas été saisie. ","La misura 21 non è stata inserita","Massnahme 21 wurde nicht eingetragen"]
[11.1,541.22,"Blatt Beschreibungen","B.. (in Formel)","Massnahme 22 wurde nicht eingetragen","La mesure d'amélioration 22 n'a pas été saisie. ","La misura 22 non è stata inserita","Massnahme 22 wurde nicht eingetragen"]
[11.1,541.23,"Blatt Beschreibungen","B.. (in Formel)","Massnahme 23 wurde nicht eingetragen","La mesure d'amélioration 23 n'a pas été saisie. ","La misura 23 non è stata inserita","Massnahme 23 wurde nicht eingetragen"]
[11.1,541.24,"Blatt Beschreibungen","B.. (in Formel)","Massnahme 24 wurde nicht eingetragen","La mesure d'amélioration 24 n'a pas été saisie. ","La misura 24 non è stata inserita","Massnahme 24 wurde nicht eingetragen"]
[11.1,541.25,"Blatt Beschreibungen","B.. (in Formel)","Massnahme 25 wurde nicht eingetragen","La mesure d'amélioration 25 n'a pas été saisie. ","La misura 25 non è stata inserita",{"$f":"IF(Sprache=\"DE\",E614,IF(Sprache=\"FR\",F614,IF(Sprache=\"IT\",G614,\"Fehler: Sprache wählen\")))","v":"Massnahme 25 wurde nicht eingetragen"}]
[11.1,541.26,"Blatt Beschreibungen","B.. (in Formel)","Massnahme 26 wurde nicht eingetragen","La mesure d'amélioration 26 n'a pas été saisie. ","La misura 26 non è stata inserita","Massnahme 26 wurde nicht eingetragen"]
[11.1,541.27,"Blatt Beschreibungen","B.. (in Formel)","Massnahme 27 wurde nicht eingetragen","La mesure d'amélioration 27 n'a pas été saisie. ","La misura 27 non è stata inserita","Massnahme 27 wurde nicht eingetragen"]
[11.1,541.28,"Blatt Beschreibungen","B.. (in Formel)","Massnahme 28 wurde nicht eingetragen","La mesure d'amélioration 28 n'a pas été saisie. ","La misura 28 non è stata inserita","Massnahme 28 wurde nicht eingetragen"]
[11.1,542,"Blatt Beschreibungen","B12","Beschreibung der Einsparberechnung:","Description du calcul de l’économie:","Descrizione del risparmio calcolato:","Beschreibung der Einsparberechnung:"]
[11.1,543,"Blatt Beschreibungen","B16","Beschreibung der Einsparberechnung:","Description du calcul de l’économie:","Descrizione del risparmio calcolato:","Beschreibung der Einsparberechnung:"]
[11.1,544,"Blatt Beschreibungen","B20","Beschreibung der Einsparberechnung:","Description du calcul de l’économie:","Descrizione del risparmio calcolato:","Beschreibung der Einsparberechnung:"]
[11.1,545,"Blatt Beschreibungen","B24","Beschreibung der Einsparberechnung:","Description du calcul de l’économie:","Descrizione del risparmio calcolato:","Beschreibung der Einsparberechnung:"]
[11.1,546,"Blatt Beschreibungen","B28","Beschreibung der Einsparberechnung:","Description du calcul de l’économie:","Descrizione del risparmio calcolato:","Beschreibung der Einsparberechnung:"]
[11.1,547,"Blatt Beschreibungen","B32","Beschreibung der Einsparberechnung:","Description du calcul de l’économie:","Descrizione del risparmio calcolato:","Beschreibung der Einsparberechnung:"]
[11.1,548,"Blatt Beschreibungen","B36","Beschreibung der Einsparberechnung:","Description du calcul de l’économie:","Descrizione del risparmio calcolato:","Beschreibung der Einsparberechnung:"]
[11.1,549,"Blatt Beschreibungen","B40","Beschreibung der Einsparberechnung:","Description du calcul de l’économie:","Descrizione del risparmio calcolato:","Beschreibung der Einsparberechnung:"]
[11.1,550,"Blatt Beschreibungen","B44","Beschreibung der Einsparberechnung:","Description du calcul de l’économie:","Descrizione del risparmio calcolato:","Beschreibung der Einsparberechnung:"]
[11.1,551,"Blatt Beschreibungen","B48","Beschreibung der Einsparberechnung:","Description du calcul de l’économie:","Descrizione del risparmio calcolato:","Beschreibung der Einsparberechnung:"]
[11.1,552,"Blatt Beschreibungen","B52","Beschreibung der Einsparberechnung:","Description du calcul de l’économie:","Descrizione del risparmio calcolato:","Beschreibung der Einsparberechnung:"]
[11.1,553,"Blatt Beschreibungen","B56","Beschreibung der Einsparberechnung:","Description du calcul de l’économie:","Descrizione del risparmio calcolato:","Beschreibung der Einsparberechnung:"]
[11.1,554,"Blatt Beschreibungen","B60","Beschreibung der Einsparberechnung:","Description du calcul de l’économie:","Descrizione del risparmio calcolato:","Beschreibung der Einsparberechnung:"]
[11.1,555,"Blatt Beschreibungen","B64","Beschreibung der Einsparberechnung:","Description du calcul de l’économie:","Descrizione del risparmio calcolato:","Beschreibung der Einsparberechnung:"]
[11.1,556,"Blatt Beschreibungen","B68","Beschreibung der Einsparberechnung:","Description du calcul de l’économie:","Descrizione del risparmio calcolato:","Beschreibung der Einsparberechnung:"]
[11.1,557,"Blatt Beschreibungen","B72","Beschreibung der Einsparberechnung:","Description du calcul de l’économie:","Descrizione del risparmio calcolato:","Beschreibung der Einsparberechnung:"]
[11.1,558,"Blatt Beschreibungen","B76","Beschreibung der Einsparberechnung:","Description du calcul de l’économie:","Descrizione del risparmio calcolato:","Beschreibung der Einsparberechnung:"]
[11.1,559,"Blatt Beschreibungen","B80","Beschreibung der Einsparberechnung:","Description du calcul de l’économie:","Descrizione del risparmio calcolato:","Beschreibung der Einsparberechnung:"]
[11.1,560,"Blatt Beschreibungen","B84","Beschreibung der Einsparberechnung:","Description du calcul de l’économie:","Descrizione del risparmio calcolato:","Beschreibung der Einsparberechnung:"]
[11.1,561,"Blatt Beschreibungen","B88","Beschreibung der Einsparberechnung:","Description du calcul de l’économie:","Descrizione del risparmio calcolato:","Beschreibung der Einsparberechnung:"]
[11.1,562,"Blatt Beschreibungen","B102","Beschreibung der Einsparberechnung:","Description du calcul de l’économie:","Descrizione del risparmio calcolato:","Beschreibung der Einsparberechnung:"]
[11.1,563,"Blatt Beschreibungen","B106","Beschreibung der Einsparberechnung:","Description du calcul de l’économie:","Descrizione del risparmio calcolato:","Beschreibung der Einsparberechnung:"]
[11.1,564,"Blatt Beschreibungen","B110","Beschreibung der Einsparberechnung:","Description du calcul de l’économie:","Descrizione del risparmio calcolato:","Beschreibung der Einsparberechnung:"]
[11.1,565,"Blatt Beschreibungen","B114","Beschreibung der Einsparberechnung:","Description du calcul de l’économie:","Descrizione del risparmio calcolato:","Beschreibung der Einsparberechnung:"]
[11.1,566,"Blatt Beschreibungen","B118","Beschreibung der Einsparberechnung:","Description du calcul de l’économie:","Descrizione del risparmio calcolato:","Beschreibung der Einsparberechnung:"]
[11.1,567,"Blatt Beschreibungen","B122","Beschreibung der Einsparberechnung:","Description du calcul de l’économie:","Descrizione del risparmio calcolato:","Beschreibung der Einsparberechnung:"]
[11.1,568,"Blatt Beschreibungen","B126","Beschreibung der Einsparberechnung:","Description du calcul de l’économie:","Descrizione del risparmio calcolato:","Beschreibung der Einsparberechnung:"]
[11.1,569,"Blatt Beschreibungen","B130","Beschreibung der Einsparberechnung:","Description du calcul de l’économie:","Descrizione del risparmio calcolato:","Beschreibung der Einsparberechnung:"]
[11.1,570,"Blatt Beschreibungen","C11","zurück zu Formular E, Massnahme 1","retour au formulaire E, mesure d’amélioration 1","ritorna al Formulario E, misura 1",{"$f":"IF(Sprache=\"DE\",E646,IF(Sprache=\"FR\",F646,IF(Sprache=\"IT\",G646,\"Fehler: Sprache wählen\")))","v":"zurück zu Formular E, Massnahme 1"}]
[11.1,571,"Blatt Beschreibungen","C12","Beschreibung der Kostenberechnung (Total und KE):","Description du calcul des coûts (total et %E):","Descrizione dei costi calcolati (totale e QE):","Beschreibung der Kostenberechnung (Total und KE):"]
[11.1,572,"Blatt Beschreibungen","C15","zurück zu Formular E, Massnahme 2","retour au formulaire E, mesure d’amélioration 2","ritorna al Formulario E, misura 2","zurück zu Formular E, Massnahme 2"]
[11.1,573,"Blatt Beschreibungen","C16","Beschreibung der Kostenberechnung (Total und KE):","Description du calcul des coûts (total et %E):","Descrizione dei costi calcolati (totale e QE):","Beschreibung der Kostenberechnung (Total und KE):"]
[11.1,574,"Blatt Beschreibungen","C19","zurück zu Formular E, Massnahme 3","retour au formulaire E, mesure d’amélioration 3","ritorna al Formulario E, misura 3","zurück zu Formular E, Massnahme 3"]
[11.1,575,"Blatt Beschreibungen","C20","Beschreibung der Kostenberechnung (Total und KE):","Description du calcul des coûts (total et %E):","Descrizione dei costi calcolati (totale e QE):","Beschreibung der Kostenberechnung (Total und KE):"]
[11.1,576,"Blatt Beschreibungen","C23","zurück zu Formular E, Massnahme 4","retour au formulaire E, mesure d’amélioration 4","ritorna al Formulario E, misura 4","zurück zu Formular E, Massnahme 4"]
[11.1,577,"Blatt Beschreibungen","C24","Beschreibung der Kostenberechnung (Total und KE):","Description du calcul des coûts (total et %E):","Descrizione dei costi calcolati (totale e QE):","Beschreibung der Kostenberechnung (Total und KE):"]
[11.1,578,"Blatt Beschreibungen","C27","zurück zu Formular E, Massnahme 5","retour au formulaire E, mesure d’amélioration 5","ritorna al Formulario E, misura 5","zurück zu Formular E, Massnahme 5"]
[11.1,579,"Blatt Beschreibungen","C28","Beschreibung der Kostenberechnung (Total und KE):","Description du calcul des coûts (total et %E):","Descrizione dei costi calcolati (totale e QE):","Beschreibung der Kostenberechnung (Total und KE):"]
[11.1,580,"Blatt Beschreibungen","C31","zurück zu Formular E, Massnahme 6","retour au formulaire E, mesure d’amélioration 6","ritorna al Formulario E, misura 6","zurück zu Formular E, Massnahme 6"]
[11.1,581,"Blatt Beschreibungen","C32","Beschreibung der Kostenberechnung (Total und KE):","Description du calcul des coûts (total et %E):","Descrizione dei costi calcolati (totale e QE):","Beschreibung der Kostenberechnung (Total und KE):"]
[11.1,582,"Blatt Beschreibungen","C35","zurück zu Formular E, Massnahme 7","retour au formulaire E, mesure d’amélioration 7","ritorna al Formulario E, misura 7","zurück zu Formular E, Massnahme 7"]
[11.1,583,"Blatt Beschreibungen","C36","Beschreibung der Kostenberechnung (Total und KE):","Description du calcul des coûts (total et %E):","Descrizione dei costi calcolati (totale e QE):","Beschreibung der Kostenberechnung (Total und KE):"]
[11.1,584,"Blatt Beschreibungen","C39","zurück zu Formular E, Massnahme 8","retour au formulaire E, mesure d’amélioration 8","ritorna al Formulario E, misura 8","zurück zu Formular E, Massnahme 8"]
[11.1,585,"Blatt Beschreibungen","C40","Beschreibung der Kostenberechnung (Total und KE):","Description du calcul des coûts (total et %E):","Descrizione dei costi calcolati (totale e QE):","Beschreibung der Kostenberechnung (Total und KE):"]
[11.1,586,"Blatt Beschreibungen","C43","zurück zu Formular E, Massnahme 9","retour au formulaire E, mesure d’amélioration 9","ritorna al Formulario E, misura 9","zurück zu Formular E, Massnahme 9"]
[11.1,587,"Blatt Beschreibungen","C44","Beschreibung der Kostenberechnung (Total und KE):","Description du calcul des coûts (total et %E):","Descrizione dei costi calcolati (totale e QE):","Beschreibung der Kostenberechnung (Total und KE):"]
[11.1,588,"Blatt Beschreibungen","C47","zurück zu Formular E, Massnahme 10","retour au formulaire E, mesure d’amélioration 10","ritorna al Formulario E, misura 10","zurück zu Formular E, Massnahme 10"]
[11.1,589,"Blatt Beschreibungen","C48","Beschreibung der Kostenberechnung (Total und KE):","Description du calcul des coûts (total et %E):","Descrizione dei costi calcolati (totale e QE):","Beschreibung der Kostenberechnung (Total und KE):"]
[11.1,590,"Blatt Beschreibungen","C51","zurück zu Formular E, Massnahme 11","retour au formulaire E, mesure d’amélioration 11","ritorna al Formulario E, misura 11","zurück zu Formular E, Massnahme 11"]
[11.1,591,"Blatt Beschreibungen","C52","Beschreibung der Kostenberechnung (Total und KE):","Description du calcul des coûts (total et %E):","Descrizione dei costi calcolati (totale e QE):","Beschreibung der Kostenberechnung (Total und KE):"]
[11.1,592,"Blatt Beschreibungen","C55","zurück zu Formular E, Massnahme 12","retour au formulaire E, mesure d’amélioration 12","ritorna al Formulario E, misura 12","zurück zu Formular E, Massnahme 12"]
[11.1,593,"Blatt Beschreibungen","C56","Beschreibung der Kostenberechnung (Total und KE):","Description du calcul des coûts (total et %E):","Descrizione dei costi calcolati (totale e QE):","Beschreibung der Kostenberechnung (Total und KE):"]
[11.1,594,"Blatt Beschreibungen","C59","zurück zu Formular E, Massnahme 13","retour au formulaire E, mesure d’amélioration 13","ritorna al Formulario E, misura 13","zurück zu Formular E, Massnahme 13"]
[11.1,595,"Blatt Beschreibungen","C60","Beschreibung der Kostenberechnung (Total und KE):","Description du calcul des coûts (total et %E):","Descrizione dei costi calcolati (totale e QE):","Beschreibung der Kostenberechnung (Total und KE):"]
[11.1,596,"Blatt Beschreibungen","C63","zurück zu Formular E, Massnahme 14","retour au formulaire E, mesure d’amélioration 14","ritorna al Formulario E, misura 14","zurück zu Formular E, Massnahme 14"]
[11.1,597,"Blatt Beschreibungen","C64","Beschreibung der Kostenberechnung (Total und KE):","Description du calcul des coûts (total et %E):","Descrizione dei costi calcolati (totale e QE):","Beschreibung der Kostenberechnung (Total und KE):"]
[11.1,598,"Blatt Beschreibungen","C67","zurück zu Formular E, Massnahme 15","retour au formulaire E, mesure d’amélioration 15","ritorna al Formulario E, misura 15","zurück zu Formular E, Massnahme 15"]
[11.1,599,"Blatt Beschreibungen","C68","Beschreibung der Kostenberechnung (Total und KE):","Description du calcul des coûts (total et %E):","Descrizione dei costi calcolati (totale e QE):","Beschreibung der Kostenberechnung (Total und KE):"]
[11.1,600,"Blatt Beschreibungen","C71","zurück zu Formular E, Massnahme 16","retour au formulaire E, mesure d’amélioration 16","ritorna al Formulario E, misura 16","zurück zu Formular E, Massnahme 16"]
[11.1,601,"Blatt Beschreibungen","C72","Beschreibung der Kostenberechnung (Total und KE):","Description du calcul des coûts (total et %E):","Descrizione dei costi calcolati (totale e QE):","Beschreibung der Kostenberechnung (Total und KE):"]
[11.1,602,"Blatt Beschreibungen","C75","zurück zu Formular E, Massnahme 17","retour au formulaire E, mesure d’amélioration 17","ritorna al Formulario E, misura 17",{"$f":"IF(Sprache=\"DE\",E678,IF(Sprache=\"FR\",F678,IF(Sprache=\"IT\",G678,\"Fehler: Sprache wählen\")))","v":"zurück zu Formular E, Massnahme 17"}]
[11.1,603,"Blatt Beschreibungen","C76","Beschreibung der Kostenberechnung (Total und KE):","Description du calcul des coûts (total et %E):","Descrizione dei costi calcolati (totale e QE):","Beschreibung der Kostenberechnung (Total und KE):"]
[11.1,604,"Blatt Beschreibungen","C79","zurück zu Formular E, Massnahme 18","retour au formulaire E, mesure d’amélioration 18","ritorna al Formulario E, misura 18","zurück zu Formular E, Massnahme 18"]
[11.1,605,"Blatt Beschreibungen","C80","Beschreibung der Kostenberechnung (Total und KE):","Description du calcul des coûts (total et %E):","Descrizione dei costi calcolati (totale e QE):","Beschreibung der Kostenberechnung (Total und KE):"]
[11.1,606,"Blatt Beschreibungen","C83","zurück zu Formular E, Massnahme 19","retour au formulaire E, mesure d’amélioration 19","ritorna al Formulario E, misura 19","zurück zu Formular E, Massnahme 19"]
[11.1,607,"Blatt Beschreibungen","C84","Beschreibung der Kostenberechnung (Total und KE):","Description du calcul des coûts (total et %E):","Descrizione dei costi calcolati (totale e QE):","Beschreibung der Kostenberechnung (Total und KE):"]
[11.1,608,"Blatt Beschreibungen","C87","zurück zu Formular E, Massnahme 20","retour au formulaire E, mesure d’amélioration 20","ritorna al Formulario E, misura 20","zurück zu Formular E, Massnahme 20"]
[11.1,609,"Blatt Beschreibungen","C88","Beschreibung der Kostenberechnung (Total und KE):","Description du calcul des coûts (total et %E):","Descrizione dei costi calcolati (totale e QE):","Beschreibung der Kostenberechnung (Total und KE):"]
[11.1,612,"Blatt Beschreibungen","C101","zurück zu Formular F2, Massnahme 21","retour au formulaire E, mesure d’amélioration 21","ritorna al Formulario E, misura 21","zurück zu Formular F2, Massnahme 21"]
[11.1,613,"Blatt Beschreibungen","C102","Beschreibung der Kostenberechnung (Total und KE):","Description du calcul des coûts (total et %E):","Descrizione dei costi calcolati (totale e QE):","Beschreibung der Kostenberechnung (Total und KE):"]
[11.1,614,"Blatt Beschreibungen","C105","zurück zu Formular F2, Massnahme 22","retour au formulaire E, mesure d’amélioration 22","ritorna al Formulario E, misura 22","zurück zu Formular F2, Massnahme 22"]
[11.1,615,"Blatt Beschreibungen","C106","Beschreibung der Kostenberechnung (Total und KE):","Description du calcul des coûts (total et %E):","Descrizione dei costi calcolati (totale e QE):","Beschreibung der Kostenberechnung (Total und KE):"]
[11.1,616,"Blatt Beschreibungen","C109","zurück zu Formular F2, Massnahme 23","retour au formulaire E, mesure d’amélioration 23","ritorna al Formulario E, misura 23","zurück zu Formular F2, Massnahme 23"]
[11.1,617,"Blatt Beschreibungen","C110","Beschreibung der Kostenberechnung (Total und KE):","Description du calcul des coûts (total et %E):","Descrizione dei costi calcolati (totale e QE):","Beschreibung der Kostenberechnung (Total und KE):"]
[11.1,618,"Blatt Beschreibungen","C113","zurück zu Formular F2, Massnahme 24","retour au formulaire E, mesure d’amélioration 24","ritorna al Formulario E, misura 24","zurück zu Formular F2, Massnahme 24"]
[11.1,619,"Blatt Beschreibungen","C114","Beschreibung der Kostenberechnung (Total und KE):","Description du calcul des coûts (total et %E):","Descrizione dei costi calcolati (totale e QE):","Beschreibung der Kostenberechnung (Total und KE):"]
[11.1,620,"Blatt Beschreibungen","C117","zurück zu Formular F2, Massnahme 25","retour au formulaire E, mesure d’amélioration 25","ritorna al Formulario E, misura 25","zurück zu Formular F2, Massnahme 25"]
[11.1,621,"Blatt Beschreibungen","C118","Beschreibung der Kostenberechnung (Total und KE):","Description du calcul des coûts (total et %E):","Descrizione dei costi calcolati (totale e QE):","Beschreibung der Kostenberechnung (Total und KE):"]
[11.1,622,"Blatt Beschreibungen","C121","zurück zu Formular F2, Massnahme 26","retour au formulaire E, mesure d’amélioration 26","ritorna al Formulario E, misura 26","zurück zu Formular F2, Massnahme 26"]
[11.1,623,"Blatt Beschreibungen","C122","Beschreibung der Kostenberechnung (Total und KE):","Description du calcul des coûts (total et %E):","Descrizione dei costi calcolati (totale e QE):","Beschreibung der Kostenberechnung (Total und KE):"]
[11.1,624,"Blatt Beschreibungen","C125","zurück zu Formular F2, Massnahme 27","retour au formulaire E, mesure d’amélioration 27","ritorna al Formulario E, misura 27","zurück zu Formular F2, Massnahme 27"]
[11.1,625,"Blatt Beschreibungen","C126","Beschreibung der Kostenberechnung (Total und KE):","Description du calcul des coûts (total et %E):","Descrizione dei costi calcolati (totale e QE):","Beschreibung der Kostenberechnung (Total und KE):"]
[11.1,626,"Blatt Beschreibungen","C129","zurück zu Formular F2, Massnahme 28","retour au formulaire E, mesure d’amélioration 28","ritorna al Formulario E, misura 28","zurück zu Formular F2, Massnahme 28"]
[11.1,627,"Blatt Beschreibungen","C130","Beschreibung der Kostenberechnung (Total und KE):","Description du calcul des coûts (total et %E):","Descrizione dei costi calcolati (totale e QE):","Beschreibung der Kostenberechnung (Total und KE):"]
[12,628,"Blatt Report"]
[12.1,629,"Blatt Report","A1","Report","Rapport","Rapporto",{"$f":"IF(Sprache=\"DE\",E703,IF(Sprache=\"FR\",F703,IF(Sprache=\"IT\",G703,\"Fehler: Sprache wählen\")))","v":"Report"}]
[12.1,630,"Blatt Report","A2","Übersicht zur Energieverbrauchsanalyse 1 / 2","Vue d’ensemble de l’analyse de la consommation d’énergie 1 / 2 ","Panoramica sull’analisi del consumo energetico 1 / 2","Übersicht zur Energieverbrauchsanalyse 1 / 2"]
[12.1,631,"Blatt Report","A5","Energieverbrauchsanalyse der Betriebsstätte:","Analyse de la consommation énergétique du site d’exploitation:","Analisi del consumo energetico dello stabilimento:","Energieverbrauchsanalyse der Betriebsstätte:"]
[12.1,632,"Blatt Report","A6","Unternehmen:","Entreprise:","Azienda:","Unternehmen:"]
[12.1,633,"Blatt Report","A8","Datum der Berichterfassung:","Date de la saisie du rapport:","Data del rapporto:","Datum der Berichterfassung:"]
[12.1,634,"Blatt Report","A10","Energiebezug der letzten fünf Jahre","Achat d’énergie des cinq dernières années ","Prelievo di energia degli ultimi cinque anni","Energiebezug der letzten fünf Jahre"]
[12.1,635,"Blatt Report","A12","Absoluter Energiebezug","Achat d’énergie absolu:","Prelievo di energia assoluto","Absoluter Energiebezug"]
[12.1,636,"Blatt Report","A13","Thermische Energie","Energie thermique ","Energia termica","Thermische Energie"]
[12.1,637,"Blatt Report","A14","Elektrische Energie","Energie électrique","Energia elettrica","Elektrische Energie"]
[12.1,638,"Blatt Report","A15","Energiebezug Total","Total achat d’énergie ","Totale prelievo di energia","Energiebezug Total"]
[12.1,639,"Blatt Report","A16","Gewichteter Energiebezug Total ¹⁾","Total achat d’énergie pondéré ¹⁾","Totale prelievo di energia ponderato ¹⁾","Gewichteter Energiebezug Total ¹⁾"]
[12.1,640,"Blatt Report","A17","1) Gewichtungsfaktoren: Elektrische Energie: 2, Heizöl & Erdgas: 1, Fernwärme/-kälte: 0.6, Holz & Biomasse: 0.7, Umweltwärme & erneuerbare Stromeigenproduktion: 0","1) Facteurs de pondération selon le formulaire C, remarque 2) ","1) Fattori di ponderazione: elettricità: 2; olio combust. e gas naturale: 1; teleriscald./teleraffresc.: 0,6; legna e biomassa: 0,7; calore ambient. e prod. auton. elettr. rinnovabili: 0","1) Gewichtungsfaktoren: Elektrische Energie: 2, Heizöl & Erdgas: 1, Fernwärme/-kälte: 0.6, Holz & Biomasse: 0.7, Umweltwärme & erneuerbare Stromeigenproduktion: 0"]
[12.1,641,"Blatt Report","A18","Spezifischer Energiebezug ²⁾","Achat d’énergie spécifique ²⁾","Prelievo di energia specifico ²⁾","Spezifischer Energiebezug ²⁾"]
[12.1,642,"Blatt Report","A19","Produzierter Laufmeter","Mètre linéaire produit ","Metro lineare prodotto","Produzierter Laufmeter"]
[12.1,643,"Blatt Report","A20","Spez. Therm. Energie","En. therm. spécifique ","En. termica specifica","Spez. Therm. Energie"]
[12.1,644,"Blatt Report","A21","Spez. Elektr. Energie","En. électr. spécifique  ","En. elettrica specifica","Spez. Elektr. Energie"]
[12.1,645,"Blatt Report","A22","2) Energiebezug pro Bezugsgrösse (der spezifische Energiebezug ist ein Indikator für die Veränderung der Energieeffizienz der Betriebsstätte).","2) Achat d’énergie par valeur de référence (l’achat d’énergie spécifique signale une évolution de l’efficacité énergétique du site d’exploitation)"," 2) Prelievo di energia per parametro di riferimento (il prelievo di energia specifico è un indicatore dell’andamento dell’efficienza energetica dello stabilimento).","2) Energiebezug pro Bezugsgrösse (der spezifische Energiebezug ist ein Indikator für die Veränderung der Energieeffizienz der Betriebsstätte)."]
[12.1,646,"Blatt Report","A23","Energiekosten ³⁾","Coûts énergétiques 3) ","Costi energetici ³⁾","Energiekosten ³⁾"]
[12.1,647,"Blatt Report","A24","Kosten Therm. Energie","Coûts énergie thermique","Costi energia termica","Kosten Therm. Energie"]
[12.1,648,"Blatt Report","A25","Kosten Elektr. Energie","Coûts énergie électrique","Costi energia elettrica","Kosten Elektr. Energie"]
[12.1,649,"Blatt Report","A26","Energiekosten Total","Total Coûts énergétiques ","Totale costi energetici","Energiekosten Total"]
[12.1,650,"Blatt Report","A27","3) Bei aktuellen Energiepreisen (gemäss Angabe in Formular C, Ziffer C.1).","3) Pour les prix actuels de l’énergie (selon saisie dans le formulaire C, chiffre C.1)","3) Con i prezzi attuali dell’energia (secondo le indicazioni nel Formulario C, cifra C.1).","3) Bei aktuellen Energiepreisen (gemäss Angabe in Formular C, Ziffer C.1)."]
[12.1,651,"Blatt Report","A42","Energieflüsse","Flux énergétiques","Flussi energetici","Energieflüsse"]
[12.1,652,"Blatt Report","A65","Report","Rapport","Rapporto","Report"]
[12.1,653,"Blatt Report","A66","Übersicht zur Energieverbrauchsanalyse 2 / 2","Vue d’ensemble de l’analyse de la consommation d’énergie 2 / 2 ","Panoramica sull’analisi del consumo energetico 2 / 2","Übersicht zur Energieverbrauchsanalyse 2 / 2"]
[12.1,654,"Blatt Report","A69","Neue Massnahmen zur Energieeinsparung","Nouvelles mesures d’économies d’énergie ","Nuove misure per il risparmio energetico","Neue Massnahmen zur Energieeinsparung"]
[12.1,655,"Blatt Report","A70","Aufgeführte Massnahmen welche mit Umsetzung \"ja\" deklariert sind müssen innerhalb der nächsten 3 Jahre umgesetzt werden:","Les mesures d’amélioration énumérées dont la mise en œuvre est annoncée (« oui ») doivent être mises en œuvre dans les trois ans:","Le misure elencate la cui attuazione è stata dichiarata con un «sì» devono essere realizzate entro i prossimi 3 anni:","Aufgeführte Massnahmen welche mit Umsetzung \"ja\" deklariert sind müssen innerhalb der nächsten 3 Jahre umgesetzt werden:"]
[12.1,656,"Blatt Report","A71","Massnahmen im Bereich Haustechnikanlagen / Gebäudehülle ¹⁾","Mesures d’amélioration dans le domaine des installations techniques du bâtiment / de l’enveloppe du bâtiment ¹⁾","Misure nell’ambito tecnica impiantistica/involucro edilizio ¹⁾","Massnahmen im Bereich Haustechnikanlagen / Gebäudehülle ¹⁾"]
[12.1,657,"Blatt Report","A87","1) Massnahmen im Bereich Haustechnikanlagen / Gebäudehülle mit einem Payback von weniger als 8 Jahren gelten als wirtschaftlich und müssen umgesetzt werden.","1) Les mesures d’amélioration dans le domaine des installations techniques  du bâtiment / de l’enveloppe du bâtiment avec un retour sur investissement de moins de 8 ans sont considérées comme rentables et doivent mises en œuvre.","1) Le misure nell’ambito della tecnica impiantistica o dell’involucro edilizio con un payback inferiore agli 8 anni sono considerate redditizie e devono essere realizzate.","1) Massnahmen im Bereich Haustechnikanlagen / Gebäudehülle mit einem Payback von weniger als 8 Jahren gelten als wirtschaftlich und müssen umgesetzt werden."]
[12.1,658,"Blatt Report","A88","Massnahmen im Bereich\nProzess- und Produktionsanlagen ²⁾","Mesures d’amélioration dans le domaine\ndes installations destinées aux processus et à la production ²⁾","Misure nell’ambito\nimpianti di processo e produzione ²⁾\n","Massnahmen im Bereich\nProzess- und Produktionsanlagen ²⁾"]
[12.1,659,"Blatt Report","A96","2) Massnahmen im Bereich Prozess- und Produktionsanlagen mit einem Payback von weniger als 4 Jahren gelten als wirtschaftlich und müssen umgesetzt werden.","2) Les mesures d’amélioration dans le domaine des installations destinées aux processus et à la production avec un retour sur investissement de moins de 4 ans sont considérées comme rentables et doivent être mises en œuvre.","2) Le misure nell’ambito degli impianti di processo e produzione con un payback inferiore ai 4 anni sono considerate redditizie e devono essere realizzate.","2) Massnahmen im Bereich Prozess- und Produktionsanlagen mit einem Payback von weniger als 4 Jahren gelten als wirtschaftlich und müssen umgesetzt werden."]
[12.1,660,"Blatt Report","A99","Kennwerte zur Massnahmenumsetzung","Chiffres de référence concernant la mise en œuvre des mesures d’amélioration ","Dati di riferimento concernenti l’attuazione delle misure","Kennwerte zur Massnahmenumsetzung"]
[12.1,661,"Blatt Report","A100","Kennwerte zur Massnahmenumsetzung innerhalb der nächsten drei Jahre:","Chiffres de référence concernant la mise en œuvre des mesures d’amélioration dans les trois ans:","Dati di riferimento concernenti l’attuazione delle misure nei prossimi tre anni:",{"$f":"IF(Sprache=\"DE\",E735,IF(Sprache=\"FR\",F735,IF(Sprache=\"IT\",G735,\"Fehler: Sprache wählen\")))","v":"Kennwerte zur Massnahmenumsetzung innerhalb der nächsten drei Jahre:"}]
[12.1,662,"Blatt Report","A101","Energetische Kennwerte","Chiffres de référence énergétiques ","Dati di riferimento energetici","Energetische Kennwerte"]
[12.1,663,"Blatt Report","A102","Einsparung thermischer Energie","Economie d’énergie thermique","Risparmio energia termica","Einsparung thermischer Energie"]
[12.1,664,"Blatt Report","A103","Einsparung elektrischer Energie","Economie d’énergie électrique","Risparmio energia elettrica","Einsparung elektrischer Energie"]
[12.1,665,"Blatt Report","A104","Total der Einsparungen","Total des économies ","Totale risparmio","Total der Einsparungen"]
[12.1,666,"Blatt Report","A105","Gewichtetes Total der Einsparungen ¹⁾","Total pondéré des économies ¹⁾","Totale risparmio ponderato ¹⁾","Gewichtetes Total der Einsparungen ¹⁾"]
[12.1,667,"Blatt Report","A106","Gewichteter aktueller Jahresenergiebezug","Achat d’énergie actuel pondéré ","Prelievo attuale annuo di energia ponderato","Gewichteter aktueller Jahresenergiebezug"]
[12.1,668,"Blatt Report","A107","Gewichtete prozentuale Einsparung","Economie pondérée en pourcentage","Risparmio percentuale ponderato","Gewichtete prozentuale Einsparung"]
[12.1,669,"Blatt Report","A108",{"$f":"E714","v":"1) Gewichtungsfaktoren: Elektrische Energie: 2, Heizöl & Erdgas: 1, Fernwärme/-kälte: 0.6, Holz & Biomasse: 0.7, Umweltwärme & erneuerbare Stromeigenproduktion: 0"},"1) Facteurs de pondération selon le formulaire C, remarque 2) ","1) Fattori di ponderazione: elettricità: 2; olio combust. e gas naturale: 1; teleriscald./teleraffresc.: 0,6; legna e biomassa: 0,7; calore ambient. e prod. auton. elettr. rinnovabili: 0","1) Gewichtungsfaktoren: Elektrische Energie: 2, Heizöl & Erdgas: 1, Fernwärme/-kälte: 0.6, Holz & Biomasse: 0.7, Umweltwärme & erneuerbare Stromeigenproduktion: 0"]
[12.1,670,"Blatt Report","A109","2) Total der angegebenen Investitionskosten aller umzusetzenden neuen Massnahmen.","2) Total des coûts d’investissement indiqués pour toutes les nouvelles mesures d’amélioration à mettre en œuvre ","2) Totale dei costi di investimento indicati per tutte le misure nuove da realizzare.","2) Total der angegebenen Investitionskosten aller umzusetzenden neuen Massnahmen."]
[12.1,671,"Blatt Report","A110","3) Anteil der Investitionskosten welcher für die energetischen Verbesserungen aufgewendet wird.","3) Pourcentage des coûts d’investissement affecté aux améliorations énergétiques","3) Quota dei costi di investimento destinata ai miglioramenti energetici.","3) Anteil der Investitionskosten welcher für die energetischen Verbesserungen aufgewendet wird."]
[12.1,672,"Blatt Report","L71","Energieeinsparung","Economie d’énergie","Risparmio energetico","Energieeinsparung"]
[12.1,673,"Blatt Report","L72","Total (gew.)\n[kWh/a]","Total (pondéré) \n[kWh/an]","Totale (pond.)\n[kWh/a]","Total (gew.)\n[kWh/a]"]
[12.1,674,"Blatt Report","L88","Energieeinsparung","Economie d’énergie","Risparmio energetico","Energieeinsparung"]
[12.1,675,"Blatt Report","L89","Total (gew.)\n[kWh/a]","Total (pondéré) \n[kWh/an]","Totale (pond.)\n[kWh/a]","Total (gew.)\n[kWh/a]"]
[12.1,676,"Blatt Report","M72","Prozentuale\nEinsp. [-]","Economie\nen % [-]","Risparmio\npercent. [-]","Prozentuale\nEinsp. [-]"]
[12.1,677,"Blatt Report","M89","Prozentuale\nEinsp. [-]","Economie\nen % [-]","Risparmio\npercent. [-]","Prozentuale\nEinsp. [-]"]
[12.1,678,"Blatt Report","N71","Investitionen","Investissements","Investimenti","Investitionen"]
[12.1,679,"Blatt Report","N72","Total\n[CHF]","Total \n[CHF]","Totale\n[CHF]","Total\n[CHF]"]
[12.1,680,"Blatt Report","N88","Investitionen","Investissements","Investimenti","Investitionen"]
[12.1,681,"Blatt Report","N89","Total\n[CHF]","Total \n[CHF]","Totale\n[CHF]","Total\n[CHF]"]
[12.1,682,"Blatt Report","N101","Finanzielle Kennwerte","Chiffres financiers de référence ","Dati di riferimento finanziari","Finanzielle Kennwerte"]
[12.1,683,"Blatt Report","N102","Energiekosteneinsp. thermisch","Econ.: coûts de l’énergie therm.","Risp. costi energia termica","Energiekosteneinsp. thermisch"]
[12.1,684,"Blatt Report","N103","Energiekosteneinsp. elektrisch","Econ.: coûts de l’énergie électr. ","Risp. costi energia elettrica","Energiekosteneinsp. elektrisch"]
[12.1,685,"Blatt Report","N104","Total Energiekosteneinsp.","Total écon. coûts de l’énergie","Totale risp. costi energetici","Total Energiekosteneinsp."]
[12.1,686,"Blatt Report","N105","Total der Investitionskosten ²⁾","Total des coûts d’investissements ²⁾","Totale costi di investimento ²⁾","Total der Investitionskosten ²⁾"]
[12.1,687,"Blatt Report","N106","Kostenanteil Energie ³⁾","Part des coûts liée à l’énergie ³⁾","Quota costi energia ³⁾","Kostenanteil Energie ³⁾"]
[12.1,688,"Blatt Report","N107","Mittlere Paybackdauer","Durée moyenne du RSI","Durata del payback media","Mittlere Paybackdauer"]
[12.1,689,"Blatt Report","O72","Kostenanteil Energie [-]","Part des coûts liée à l’énergie [-]","Quota costi energia [-]","Kostenanteil Energie [-]"]
[12.1,690,"Blatt Report","O89","Kostenanteil Energie [-]","Part des coûts liée à l’énergie [-]","Quota costi energia [-]","Kostenanteil Energie [-]"]
[12.1,691,"Blatt Report","R71","Payback","Retour s. investiss.","Payback","Payback"]
[12.1,692,"Blatt Report","R72","Jahre\n[a]","Années\n[an]","Anni\n[a]","Jahre\n[a]"]
[12.1,693,"Blatt Report","R88","Payback","Retour s. investiss.","Payback",{"$f":"IF(Sprache=\"DE\",E767,IF(Sprache=\"FR\",F767,IF(Sprache=\"IT\",G767,\"Fehler: Sprache wählen\")))","v":"Payback"}]
[12.1,694,"Blatt Report","R89","Jahre\n[a]","Années\n[an]","Anni\n[a]","Jahre\n[a]"]
[12.1,695,"Blatt Report","S71","Umsetzung","Mise en œuvre ","Attuazione","Umsetzung"]
[12.1,696,"Blatt Report","S72","[ja] oder\n[nein]","[oui] ou\n[non]","[si] o\n[no]","[ja] oder\n[nein]"]
[12.1,697,"Blatt Report","S88","Umsetzung","Mise en œuvre ","Attuazione","Umsetzung"]
[12.1,698,"Blatt Report","S89","[ja] oder\n[nein]","[oui] ou\n[non]","[si] o\n[no]","[ja] oder\n[nein]"]
[12.1,699,"Blatt Report","Diagramm 1","Absoluter Energiebezug [kWh/a]","Achat d’énergie absolu [kWh/an]","Prelievo di energia assoluto [kWh/a]","Absoluter Energiebezug [kWh/a]"]
[12.1,700,"Blatt Report","Diagramm 2","Spez. Energiebezug","Achat d’énergie spéc.","Prelievo di energia specifico","Spez. Energiebezug"]
[12.1,701,"Blatt Report","Diagramm 3","Energiekosten [CHF/a]","Coûts de l’énergie [CHF/an]","Costi energetici [CHF/a]","Energiekosten [CHF/a]"]
["END",702,"END","END","END","END","END","END"]

{"sheet":"Admin","index":3,"n_rows":72,"n_cols":2,"rows_kept":72,"hidden":true,"merged":[[7,0,7,1],[8,0,8,1]]}
["Admin"]
[]
[{"$f":"Sprachen!H23","v":"Version"}]
[{"$f":"Sprachen!H24","v":"Version:"},"v1.9"]
[{"$f":"Sprachen!H25","v":"Versionsdatum:"},"2017-03-24"]
[]
["Wichtige Hinweise für Admin"]
["- Beim Sperren des Arbeitsblattes \"Formular D\" muss die Option \"Objekte bearbeiten\" erlaubt werden. Anderenfalls kann das Sankeydiagramm nicht mehr eingefügt und bearbeitet werden."]
["- Beim Sperren des Arbeitsblattes \"Beschreibungen\" soll die Option \"Zeilen Formatieren\" erlaubt werden, damit der Anwender bei Bedarf die Eingabezeilen vergrössern und verkleinern kann. Zu diesem Zweck soll dieses Arbeitsblatt als einziges auch mit Anzeige der \"Überschriften\" abgespeichert werden."]
[]
[{"$f":"Sprachen!H26","v":"Dropdowns"}]
[{"$f":"Sprachen!H27","v":"Anzahl Gebaeude"}]
[1]
[2]
[3]
[4]
[5]
[6]
[7]
[8]
[9]
[10]
[{"$f":"Sprachen!H28","v":"Massnahmenbeschreibung"}]
[{"$f":"Sprachen!H29","v":"a) im Arbeitsblatt \"Beschreibungen\""}]
[{"$f":"Sprachen!H30","v":"b) in separatem Beilagendokument"}]
[{"$f":"Sprachen!H31","v":"Ja oder Nein"}]
[{"$f":"Sprachen!H32","v":"ja"}]
[{"$f":"Sprachen!H33","v":"nein"}]
[{"$f":"Sprachen!H34","v":"Zustand"}]
[{"$f":"Sprachen!H35","v":"gut"}]
[{"$f":"Sprachen!H36","v":"mittel"}]
[{"$f":"Sprachen!H37","v":"schlecht"}]
[{"$f":"Sprachen!H38","v":"Energieträger"}]
[{"$f":"Sprachen!H39","v":"Ö"},{"$f":"Sprachen!H45","v":"Heizöl"}]
[{"$f":"Sprachen!H40","v":"G"},{"$f":"Sprachen!H46","v":"Erdgas"}]
[{"$f":"Sprachen!H41","v":"F"},{"$f":"Sprachen!H47","v":"Fernwärme/-kälte"}]
[{"$f":"Sprachen!H42","v":"H"},{"$f":"Sprachen!H48","v":"Holz, Biomasse"}]
[{"$f":"Sprachen!H43","v":"W"},{"$f":"Sprachen!H49","v":"Weitere Brennstoffe"}]
[{"$f":"Sprachen!H44","v":"E"},{"$f":"Sprachen!H50","v":"Elektrische Energie"}]
["Umweltwärme"]
[{"v":1,"d":"100%"}]
[{"v":0.9,"d":"90%"}]
[{"v":0.8,"d":"80%"}]
[{"v":0.7,"d":"70%"}]
[{"v":0.6,"d":"60%"}]
[{"v":0.5,"d":"50%"}]
[{"v":0.4,"d":"40%"}]
[{"v":0.3,"d":"30%"}]
[{"v":0.2,"d":"20%"}]
[{"v":0.1,"d":"10%"}]
[{"v":0,"d":"0%"}]
[{"$f":"Sprachen!H51","v":"Kostenanteil Energie"}]
[{"v":0,"d":"0%"}]
[{"v":0.05,"d":"5%"}]
[{"v":0.1,"d":"10%"}]
[{"v":0.15,"d":"15%"}]
[{"v":0.2,"d":"20%"}]
[{"v":0.25,"d":"25%"}]
[{"v":0.5,"d":"50%"}]
[{"v":0.75,"d":"75%"}]
[{"v":1,"d":"100%"}]
[{"$f":"Sprachen!H52","v":"Sprachwahl"}]
["DE"]
["FR"]
["IT"]
[{"$f":"Sprachen!H53","v":"Gewichtungsfaktoren"}]
[{"$f":"Sprachen!H39","v":"Ö"},1]
[{"$f":"Sprachen!H40","v":"G"},1]
[{"$f":"Sprachen!H41","v":"F"},0.6]
[{"$f":"Sprachen!H42","v":"H"},0.7]
[{"$f":"Sprachen!H43","v":"W"},1]
[{"$f":"Sprachen!H44","v":"E"},2]

{"sheet":"Anleitung","index":4,"n_rows":46,"n_cols":12,"rows_kept":46,"merged":[[8,0,8,11],[9,0,9,11],[10,0,10,11],[14,3,14,11],[15,3,15,11],[16,3,16,11],[17,3,17,11],[18,3,18,11],[19,3,19,11],[20,3,20,11],[21,3,21,11],[22,3,22,11],[23,3,23,11],[26,1,26,11],[27,1,27,11],[28,1,28,11],[29,1,29,11],[40,1,40,11],[41,1,41,11],[44,0,44,11]]}
[{"$f":"Sprachen!H70","v":"Kurzanleitung"}]
[{"$f":"Sprachen!H71","v":"Energieverbrauchsanalyse EVA"}]
[]
[]
[{"$f":"Sprachen!H72","v":"Sprache"},null,"DE"]
["DE: Bitte wählen Sie Ihre gewünschte Sprache",{"$nulls":4},"FR: Veuillez choisir votre langue",{"$nulls":3},"IT: Scegliere la lingua"]
[]
[{"$f":"Sprachen!H73","v":"Zweck und Ziel"}]
[{"$f":"Sprachen!H74","v":"Bei einer Energieverbrauchsanalyse sind Massnahmen aufzuzeigen, mit denen der gesamte Energieverbrauch in den Gebäuden und Anlagen (unter Berücksichtigung der Wirtschaftlichkeit) um 15 Prozent reduziert werden kann."}]
[{"$f":"Sprachen!H75","v":"Die zu realisierenden Massnahmen zur Energieverbrauchsreduktion werden durch den Grossverbraucher resp. den vom Grossverbraucher beauftragten Energiespezialisten selbst deklariert. Diese Massnahmen werden anschliessend durch die zuständige kantonale Behörde genehmigt. Die Massnahmen sind innert der drei vom Kanton vorgegebenen Jahre auszuführen."}]
[{"$f":"Sprachen!H76","v":"Die Energieträger werden mit folgenden Gewichtungsfaktoren gewichtet: Elektrizität: 2, Heizöl & Erdgas: 1, Fernwärme/-kälte (inkl. externer Abwärme): 0.6, Holz & Biomasse: 0.7, Umweltwärme (inkl. interner Abwärme) & erneuerbare Stromeigenproduktion: 0"}]
[]
[{"$f":"Sprachen!H77","v":"Aufbau"}]
[{"$f":"Sprachen!H78","v":"Dieses Excel-Tool besteht aus mehreren Arbeitsblättern:"}]
["-",{"$f":"Sprachen!H83","v":"Titelblatt:"},null,{"$f":"Sprachen!H99","v":"Allgemeine Angaben zum Unternehmen und zum Energiespezialisten"}]
["-",{"$f":"Sprachen!H84","v":"Formular A:"},null,{"$f":"Sprachen!H100","v":"Allgemeine Angaben zur Betriebsstätte"}]
["-",{"$f":"Sprachen!H85","v":"Formular B:"},null,{"$f":"Sprachen!H101","v":"Angaben zu den Gebäuden und technischen Anlagen"}]
["-",{"$f":"Sprachen!H86","v":"Formular C:"},null,{"$f":"Sprachen!H102","v":"Angaben zum Endenergiebezug"}]
["-",{"$f":"Sprachen!H87","v":"Formular D:"},null,{"$f":"Sprachen!H103","v":"Angaben zum Energiebedarf der Hauptverbraucher"}]
["-",{"$f":"Sprachen!H88","v":"Formular E:"},null,{"$f":"Sprachen!H104","v":"Neue Massnahmen und Wirtschaftlichkeit"}]
["-",{"$f":"Sprachen!H89","v":"Formular F1:"},null,{"$f":"Sprachen!H105","v":"Deklaration der umzusetzenden neuen Massnahmen"}]
["-",{"$f":"Sprachen!H90","v":"Formular F2:"},null,{"$f":"Sprachen!H106","v":"Massnahmen der letzten 5 Jahre"}]
["-",{"$f":"Sprachen!H91","v":"Beschreibungen:"},null,{"$f":"Sprachen!H107","v":"Beschreibung der Massnahmen von Formular E und F2"}]
["-",{"$f":"Sprachen!H92","v":"Report:"},null,{"$f":"Sprachen!H108","v":"Übersicht zu den wichtigsten Daten der Energieverbrauchsanalyse"}]
[]
[{"$f":"Sprachen!H79","v":"Bedienung"}]
["-",{"$f":"Sprachen!H93","v":"Die Eingaben müssen in chronologischer Reihenfolge von oben nach unten erfolgen. Resultate werden zum Teil erst angezeigt, wenn alle dazugehörigen zwingenden Eingabefelder ausgefüllt wurden."}]
["-",{"$f":"Sprachen!H94","v":"Bitte beachten Sie, dass diese Arbeitsmappe nur funktioniert, wenn die Makroausführung in Excel erlaubt ist (Excel-Option)."}]
["-",{"$f":"Sprachen!H95","v":"Die Blätter dieser Arbeitsmappe sind geschützt, um zu verhindern, dass versehentlich Formeln überschrieben werden."}]
["-",{"$f":"Sprachen!H96","v":"Die Felder sind zum Teil farblich markiert:"}]
[]
[{"$nulls":3},{"$f":"Sprachen!H109","v":"Zwingende Angaben"}]
[]
[{"$nulls":3},{"$f":"Sprachen!H110","v":"Fakultative Angaben"}]
[]
[{"$nulls":3},{"$f":"Sprachen!H111","v":"Wichtige Hinweise"}]
[]
[{"$nulls":3},{"$f":"Sprachen!H112","v":"Zielgrösse der Energieverbrauchsanalyse"}]
[]
[{"$f":"Sprachen!H80","v":"Problembehebung"}]
["-",{"$f":"Sprachen!H97","v":"Diese Arbeitsmappe wurde in der Ansicht \"Seitenlayout\" erstellt. In dieser Ansicht kann es passieren, dass Excel fälschlicherweise zwei oder mehr Zellen gleichzeitig auswählt (und dadurch allenfalls Links nicht mehr funktionieren). Vergrössern oder verkleinern Sie in diesem Fall die Ansicht (Zoom) oder wählen Sie in der Registerkarte Ansicht anstatt \"Seitenlayout\" die Darstellung \"Normal\"."}]
["-",{"$f":"Sprachen!H98","v":"Eingabemeldungen unterstützen Sie mit Hinweisen zu den Eingaben und erscheinen im Normalfall automatisch neben der Eingabezelle. Sollten die Kommentare die Eingabezellen fälschlicherweise jedoch überdecken, können diese mit der Maus verschoben werden."}]
[]
[{"$f":"Sprachen!H81","v":"Disclaimer"}]
[{"$f":"Sprachen!H82","v":"Diese Arbeitsmappe wurde im Auftrag der Konferenz Kantonaler Energiefachstellen (EnFK) erstellt. Weder der  Auftraggeber noch der Ersteller haften für die Richtigkeit der Resultate oder Schlussfolgerungen, welche aus dieser Arbeitsmappe gezogen werden. Für die Richtigkeit der Angaben haftet der Benutzer dieser Arbeitsmappe."}]
[{"$f":"Version","v":"v1.9"},{"$nulls":10},{"$f":"Versionsdatum","v":"2017-03-24"}]

{"sheet":"Titelblatt","index":5,"n_rows":25,"n_cols":10,"rows_kept":25,"merged":[[2,5,2,13],[3,1,3,3],[3,5,3,13],[4,1,4,3],[4,5,4,13],[5,1,5,3],[5,5,5,13],[6,1,6,3],[6,5,6,13],[7,1,7,3],[7,6,7,13],[8,1,8,3],[8,6,8,8],[8,10,8,13],[9,1,9,3],[9,6,9,13],[10,1,10,3],[10,5,10,13],[11,1,11,3],[11,5,11,13],[12,1,12,3],[12,5,12,13],[13,1,13,3],[13,5,13,13],[14,1,14,3],[14,5,14,13],[15,1,15,3],[15,5,15,13],[16,1,16,3],[16,5,16,13],[17,1,17,3],[17,5,17,13],[18,1,18,3],[18,6,18,13],[19,1,19,3],[19,6,19,8],[19,10,19,13],[20,1,20,3],[20,6,20,13],[21,1,21,3],[21,5,21,13],[22,1,22,3],[22,5,22,13],[23,1,23,3],[23,5,23,13],[24,1,24,3],[24,5,24,8],[24,10,24,13],[25,1,25,3],[25,5,25,13]]}
[]
[{"$f":"Sprachen!H114","v":"Energieverbrauchsanalyse für Grossverbraucher"}]
[{"$f":"Sprachen!H115","v":"Titelblatt"}]
[]
[null,{"$f":"Sprachen!H116","v":"Firmenname / Adresse:"}]
[]
[]
[null,{"$f":"Sprachen!H117","v":"Kontaktperson Firma:"},{"$nulls":3},{"$f":"Sprachen!H122","v":"Name:"}]
[{"$nulls":5},{"$f":"Sprachen!H123","v":"Tel.:"},{"$nulls":3},{"$f":"Sprachen!H128","v":"  Fax:"}]
[{"$nulls":5},{"$f":"Sprachen!H124","v":"Email:"}]
[]
[null,{"$f":"Sprachen!H118","v":"Betriebsstätte:"}]
[]
[]
[]
[null,{"$f":"Sprachen!H119","v":"Energiespezialist/In / Ingenieurbüro:"}]
[]
[]
[null,{"$f":"Sprachen!H120","v":"Kontaktperson Firma:"},{"$nulls":3},{"$f":"Sprachen!H125","v":"Name:"}]
[{"$nulls":5},{"$f":"Sprachen!H126","v":"Tel.:"},{"$nulls":3},{"$f":"Sprachen!H129","v":"  Fax:"}]
[{"$nulls":5},{"$f":"Sprachen!H127","v":"Email:"}]
[]
[]
[]
[null,{"$f":"Sprachen!H121","v":"Datum der Berichterfassung:"},{"$nulls":7},{"$f":"Sprachen!H130","v":"  Version:"}]

{"sheet":"Formular A","index":6,"n_rows":32,"n_cols":35,"rows_kept":32,"merged":[[4,1,4,2],[4,4,4,33],[5,1,5,2],[5,4,5,13],[5,14,5,16],[5,17,5,22],[5,23,5,25],[5,26,5,33],[6,1,6,2],[6,4,6,33],[7,1,7,2],[7,4,7,33],[8,1,8,2],[8,4,8,5],[8,6,8,16],[8,17,8,33],[9,1,9,2],[9,4,9,5],[9,6,9,16],[9,17,9,33],[10,1,10,2],[10,10,10,33],[11,1,11,2],[11,5,11,9],[11,11,11,16],[11,17,11,33],[12,1,12,2],[12,4,12,33],[13,1,13,2],[13,5,13,33],[15,0,15,34],[17,21,17,33],[18,4,18,16],[18,21,18,33],[19,2,19,33],[20,2,20,33],[22,4,22,16],[22,21,22,33],[23,4,23,16],[23,21,23,33],[26,4,26,16],[26,21,26,33],[27,4,27,16],[27,21,27,33],[28,4,28,16],[28,21,28,33],[29,4,29,16],[29,21,29,33],[30,4,30,16],[30,21,30,33],[31,4,31,16],[31,21,31,33]]}
[{"$f":"Sprachen!H132","v":"Formular A "},{"$nulls":33},{"$f":"IF(Titelblatt!$F$12=\"\",\"\",Titelblatt!$F$12)","v":""}]
[{"$f":"Sprachen!H133","v":"Allgemeine Angaben zur Betriebsstätte"},{"$nulls":33},{"$f":"IF(Titelblatt!$F$25=\"\",\"\",Titelblatt!$F$25)","v":""}]
[]
[]
["A.1",{"$f":"Sprachen!H135","v":"Firmenname und Adresse:"},null,null,{"$f":"IF(Titelblatt!$F$5=\"\",\"\",CONCATENATE(Titelblatt!$F$5,\", \",Titelblatt!$F$6))","v":""}]
[null,{"$f":"Sprachen!H136","v":"Kontaktperson:"},null,null,{"$f":"IF(Titelblatt!G8=\"\",\"\",Titelblatt!G8)","v":""},{"$nulls":9},{"$f":"Sprachen!H164","v":"Tel.:  "},null,null,{"$f":"IF(Titelblatt!G9=\"\",\"\",Titelblatt!G9)","v":""},{"$nulls":5},{"$f":"Sprachen!H165","v":"Email:"},null,null,{"$f":"IF(Titelblatt!G10=\"\",\"\",Titelblatt!G10)","v":""}]
["A.2",{"$f":"Sprachen!H137","v":"Branche:"}]
[null,{"$f":"Sprachen!H138","v":"Geschäftstätigkeit:"}]
["A.3",{"$f":"Sprachen!H139","v":"Anzahl Mitarbeiter Total:"},{"$nulls":4},{"$f":"Sprachen!H160","v":"Personen"}]
[null,{"$f":"Sprachen!H140","v":"Anzahl Mitarbeiter auf Vollzeitstellen umgerechnet:"},{"$nulls":4},{"$f":"Sprachen!H161","v":"Personen"}]
["A.4",{"$f":"Sprachen!H141","v":"Betriebsorganisation:"},{"$nulls":3},"1",null,"2",null,"3",{"$f":"Sprachen!H162","v":"- schichtig"}]
[null,{"$f":"Sprachen!H142","v":"Produktionszeit / Arbeitszeit:"},{"$nulls":3},{"$f":"Sprachen!H158","v":"Stunden pro Tag"},{"$nulls":5},{"$f":"Sprachen!H163","v":"Tage pro Woche"}]
["A.5",{"$f":"Sprachen!H143","v":"Absatz oder Umsatz pro Jahr:"}]
["A.6",{"$f":"Sprachen!H144","v":"Anzahl Gebäude:"},null,null,1,{"$f":"Sprachen!H159","v":"Hinweis: In Formular B wird die Anzahl Eingabeblätter (zur Angabe der Gebäudedaten) automatisch dieser Eingabe angepasst."}]
[]
[{"$f":"Sprachen!H134","v":"Beilagenverzeichnis und ergänzende Dokumente"}]
[]
[null,{"$f":"Sprachen!H145","v":"Erforderliche Beilagen:"},null,null,{"$f":"Sprachen!H155","v":"Auswahl Massnahmenbeschreibungen:"},{"$nulls":16},{"$f":"IF(LEFT(E19,1)=\"b\",Sprachen!H166,\"\")","v":""}]
["A.7",{"$f":"Sprachen!H146","v":"Massnahmenbeschreibungen:"},{"$nulls":18},{"$f":"IF(LEFT(E19,1)=\"b\",\"-\",\"\")","v":""}]
[null,{"$f":"Sprachen!H147","v":"Hinweise:"},{"$f":"Sprachen!H153","v":"- Massnahmen der Formulare E und F müssen im Blatt \"Beschreibungen\" dieses EVA-Tools oder einer Beilage nachvollziehbar beschrieben werden. Bitte per obigem Dropdown auswählen."}]
[null,null,{"$f":"Sprachen!H154","v":"- Auch in der Beilage müssen Einspar- und Kostenberechnungen nachvollziehbar aufzeigt werden."}]
[{"$nulls":4},{"$f":"Sprachen!H156","v":"Dokumentenname:"},{"$nulls":16},{"$f":"Sprachen!H167","v":"Dokumentenname:"}]
["A.8",{"$f":"Sprachen!H148","v":"Situations-/Katasterplan der Gebäude:"},null,"-",{"$nulls":16},"-"]
[{"$nulls":3},"-",{"$nulls":16},"-"]
[]
["A.9",{"$f":"Sprachen!H149","v":"Fakultative Beilagen:"},null,null,{"$f":"Sprachen!H157","v":"Dokumentenname:"},{"$nulls":16},{"$f":"Sprachen!H168","v":"Dokumentenname:"}]
[null,{"$f":"Sprachen!H150","v":"Berichte:"},null,"-",{"$nulls":16},"-"]
[{"$nulls":3},"-",{"$nulls":16},"-"]
[null,{"$f":"Sprachen!H151","v":"Wichtigste Grundrisse und Schemata:"},null,"-",{"$nulls":16},"-"]
[{"$nulls":3},"-",{"$nulls":16},"-"]
[null,{"$f":"Sprachen!H152","v":"Weiteres:"},null,"-",{"$nulls":16},"-"]
[{"$nulls":3},"-",{"$nulls":16},"-"]

{"sheet":"Formular B","index":7,"n_rows":432,"n_cols":49,"rows_kept":432,"merged":[[75,13,75,24],[75,25,75,27],[75,28,75,30],[75,31,75,33],[75,34,75,36],[75,37,75,39],[75,40,75,42],[82,13,82,24],[82,25,82,27],[82,28,82,30],[82,31,82,33],[82,34,82,36],[82,37,82,39],[82,40,82,42],[83,13,83,24],[83,25,83,27],[83,28,83,30],[83,31,83,33],[83,34,83,36],[83,37,83,39],[83,40,83,42],[84,13,84,24],[84,25,84,27],[84,28,84,30],[84,31,84,33],[84,34,84,36],[84,37,84,39],[84,40,84,42],[85,13,85,24],[85,25,85,27],[85,28,85,30],[85,31,85,33],[85,34,85,36],[85,37,85,39],[85,40,85,42],[86,13,86,24],[86,25,86,27],[86,28,86,30],[86,31,86,33],[86,34,86,36],[86,37,86,39],[86,40,86,42],[87,13,87,24],[87,25,87,27],[87,28,87,30],[87,31,87,33],[87,34,87,36],[87,37,87,39],[87,40,87,42],[101,21,101,22],[101,33,101,34],[104,34,104,36],[104,37,104,39],[104,40,104,42],[105,13,105,24],[105,25,105,27],[105,28,105,30],[105,31,105,33],[105,34,105,36],[105,37,105,39],[106,13,106,24],[106,25,106,27],[106,28,106,30],[106,31,106,33],[106,34,106,36],[106,37,106,39],[106,40,106,42],[113,28,113,30],[113,31,113,33],[113,34,113,36],[113,37,113,39],[113,40,113,42],[114,13,114,24],[114,25,114,27],[114,28,114,30],[114,31,114,33],[114,34,114,36],[114,37,114,39],[114,40,114,42],[117,13,117,24],[117,25,117,27],[117,28,117,30],[117,31,117,33],[117,34,117,36],[117,37,117,39],[117,40,117,42],[118,13,118,24],[118,25,118,27],[118,28,118,30],[118,31,118,33],[118,34,118,36],[118,37,118,39],[118,40,118,42],[119,13,119,24],[119,25,119,27],[119,28,119,30],[119,31,119,33],[119,34,119,36],[119,37,119,39],[119,40,119,42],[120,31,120,33],[120,34,120,36],[120,37,120,39],[120,40,120,42],[124,40,124,42],[125,13,125,24],[125,25,125,27],[125,28,125,30],[125,31,125,33],[125,34,125,36],[125,37,125,39],[125,40,125,42],[128,13,128,24],[128,25,128,27],[128,28,128,30],[128,31,128,33],[128,34,128,36],[128,37,128,39],[128,40,128,42],[129,13,129,24],[129,25,129,27],[129,28,129,30],[129,31,129,33],[129,34,129,36],[129,37,129,39],[131,37,131,39],[131,40,131,42],[147,13,147,24],[148,25,148,27],[148,28,148,30],[148,34,148,36],[148,37,148,39],[148,40,148,42],[149,13,149,24],[149,25,149,27],[149,28,149,30],[149,31,149,33],[149,34,149,36],[149,37,149,39],[149,40,149,42],[150,28,150,30],[150,31,150,33],[150,34,150,36],[150,37,150,39],[150,40,150,42],[155,28,155,30],[155,34,155,36],[155,37,155,39],[156,28,156,30],[156,34,156,36],[156,37,156,39],[157,13,157,24],[157,25,157,27],[157,28,157,30],[157,31,157,33],[157,34,157,36],[157,37,157,39],[157,40,157,42],[158,13,158,24],[158,25,158,27],[158,28,158,30],[158,31,158,33],[158,34,158,36],[158,37,158,39],[158,40,158,42],[159,13,159,24],[159,25,159,27],[159,28,159,30],[159,31,159,33],[159,34,159,36],[159,37,159,39],[159,40,159,42],[160,13,160,24],[160,25,160,27],[160,28,160,30],[160,31,160,33],[160,34,160,36],[160,37,160,39],[160,40,160,42],[161,13,161,24],[161,25,161,27],[163,40,163,42],[166,28,166,30],[166,34,166,36],[166,37,166,39],[167,28,167,30],[167,34,167,36],[167,37,167,39],[168,13,168,24],[168,25,168,27],[168,28,168,30],[168,31,168,33],[168,34,168,36],[168,37,168,39],[168,40,168,42],[171,13,171,24],[171,25,171,27],[171,28,171,30],[171,31,171,33],[171,34,171,36],[171,37,171,39],[171,40,171,42],[173,34,173,36],[173,37,173,39],[173,40,173,42],[174,13,174,24],[174,25,174,27],[174,28,174,30],[174,31,174,33],[174,34,174,36],[174,37,174,39],[174,40,174,42],[175,25,175,27],[175,28,175,30],[175,31,175,33],[175,34,175,36],[175,37,175,39],[175,40,175,42],[175,43,175,45],[183,8,183,16],[183,18,183,45],[191,13,191,24],[191,25,191,27],[191,28,191,30],[191,31,191,33],[191,34,191,36],[191,37,191,39],[191,40,191,42],[193,1,193,12],[194,1,194,12],[194,37,194,39],[194,40,194,42],[195,1,195,12],[195,13,195,24],[195,25,195,27],[195,28,195,30],[195,31,195,33],[195,34,195,36],[195,37,195,39],[195,40,195,42],[196,1,196,12],[196,13,196,24],[196,25,196,27],[196,28,196,30],[196,31,196,33],[196,34,196,36],[196,37,196,39],[196,40,196,42],[197,1,197,12],[197,28,197,30],[197,31,197,33],[197,34,197,36],[197,37,197,39],[197,40,197,42],[198,28,198,30],[198,31,198,33],[198,34,198,36],[198,37,198,39],[198,40,198,42],[199,28,199,30],[199,34,199,36],[199,37,199,39],[200,28,200,30],[200,34,200,36],[200,37,200,39],[201,13,201,24],[201,25,201,27],[201,28,201,30],[201,31,201,33],[201,34,201,36],[201,37,201,39],[203,37,203,39],[204,40,204,42],[205,13,205,24],[205,25,205,27],[205,28,205,30],[205,31,205,33],[205,34,205,36],[205,37,205,39],[205,40,205,42],[207,37,207,39],[207,40,207,42],[208,13,208,24],[208,25,208,27],[208,28,208,30],[208,31,208,33],[208,34,208,36],[208,37,208,39],[208,40,208,42],[209,13,209,24],[209,25,209,27],[209,28,209,30],[209,31,209,33],[209,34,209,36],[209,37,209,39],[209,40,209,42],[210,28,210,30],[210,34,210,36],[210,37,210,39],[211,28,211,30],[211,34,211,36],[211,37,211,39],[212,13,212,24],[212,25,212,27],[212,28,212,30],[212,31,212,33],[212,34,212,36],[212,37,212,39],[212,40,212,42],[213,13,213,24],[213,25,213,27],[213,28,213,30],[213,31,213,33],[213,37,213,39],[213,40,213,42],[215,40,215,42],[216,13,216,24],[216,25,216,27],[216,28,216,30],[216,31,216,33],[216,34,216,36],[216,37,216,39],[216,40,216,42],[217,13,217,24],[217,25,217,27],[217,28,217,30],[217,31,217,33],[217,34,217,36],[217,37,217,39],[217,40,217,42],[218,13,218,24],[218,25,218,27],[218,28,218,30],[218,31,218,33],[218,34,218,36],[218,37,218,39],[218,40,218,42],[232,23,232,28],[235,25,235,27],[235,28,235,30],[235,31,235,33],[235,34,235,36],[235,37,235,39],[235,40,235,42],[236,25,236,27],[236,28,236,30],[236,34,236,36],[236,37,236,39],[236,40,236,42],[237,13,237,24],[237,25,237,27],[237,28,237,30],[237,31,237,33],[237,34,237,36],[237,37,237,39],[237,40,237,42],[238,13,238,24],[238,25,238,27],[238,28,238,30],[238,31,238,33],[238,34,238,36],[238,37,238,39],[238,40,238,42],[239,13,239,24],[239,25,239,27],[239,28,239,30],[239,31,239,33],[239,34,239,36],[239,37,239,39],[239,40,239,42],[240,13,240,24],[240,25,240,27],[240,28,240,30],[240,31,240,33],[240,34,240,36],[240,37,240,39],[240,40,240,42],[241,13,241,24],[241,25,241,27],[241,28,241,30],[241,31,241,33],[241,34,241,36],[241,37,241,39],[241,40,241,42],[242,13,242,24],[242,25,242,27],[242,28,242,30],[242,31,242,33],[242,34,242,36],[242,37,242,39],[242,40,242,42],[243,28,243,30],[243,34,243,36],[243,37,243,39],[244,28,244,30],[244,34,244,36],[244,37,244,39],[245,13,245,24],[245,25,245,27],[245,28,245,30],[245,31,245,33],[245,34,245,36],[245,37,245,39],[245,40,245,42],[247,31,247,33],[247,34,247,36],[247,37,247,39],[247,40,247,42],[248,13,248,24],[248,25,248,27],[248,28,248,30],[248,31,248,33],[248,34,248,36],[248,37,248,39],[248,40,248,42],[249,13,249,24],[249,25,249,27],[253,40,253,42],[254,28,254,30],[254,34,254,36],[254,37,254,39],[255,28,255,30],[255,34,255,36],[255,37,255,39],[256,13,256,24],[256,25,256,27],[256,28,256,30],[256,31,256,33],[256,34,256,36],[256,37,256,39],[256,40,256,42],[257,13,257,24],[257,25,257,27],[257,28,257,30],[257,31,257,33],[257,34,257,36],[257,37,257,39],[257,40,257,42],[258,31,258,33],[258,34,258,36],[258,37,258,39],[258,40,258,42],[259,13,259,24],[259,25,259,27],[259,28,259,30],[259,31,259,33],[259,34,259,36],[259,37,259,39],[259,40,259,42],[260,13,260,24],[260,25,260,27],[260,28,260,30],[260,31,260,33],[260,34,260,36],[260,37,260,39],[260,40,260,42],[262,37,262,39],[262,40,262,42],[263,13,263,24],[263,25,263,27],[263,28,263,30],[263,31,263,33],[263,34,263,36],[263,37,263,39],[263,40,263,42],[271,8,271,16],[271,18,271,45],[272,7,272,19],[275,8,275,19],[275,21,275,32],[276,7,276,22],[276,29,276,45],[277,13,277,14],[277,21,277,22],[277,33,277,34],[277,42,277,43],[279,13,279,24],[279,25,279,27],[279,28,279,30],[279,31,279,33],[279,34,279,36],[279,37,279,39],[279,40,279,42],[280,25,280,27],[280,28,280,30],[280,34,280,36],[280,37,280,39],[280,40,280,42],[281,13,281,24],[281,25,281,27],[281,28,281,30],[281,31,281,33],[281,34,281,36],[281,37,281,39],[281,40,281,42],[282,13,282,24],[282,25,282,27],[282,28,282,30],[282,31,282,33],[282,34,282,36],[282,37,282,39],[282,40,282,42],[283,13,283,24],[283,25,283,27],[283,28,283,30],[283,31,283,33],[283,34,283,36],[283,37,283,39],[283,40,283,42],[284,13,284,24],[284,25,284,27],[284,28,284,30],[284,31,284,33],[284,34,284,36],[284,37,284,39],[284,40,284,42],[285,13,285,24],[285,25,285,27],[285,28,285,30],[285,31,285,33],[285,34,285,36],[285,37,285,39],[285,40,285,42],[287,28,287,30],[287,34,287,36],[287,37,287,39],[288,28,288,30],[288,34,288,36],[288,37,288,39],[289,13,289,24],[289,25,289,27],[289,28,289,30],[289,31,289,33],[289,34,289,36],[289,37,289,39],[289,40,289,42],[293,13,293,24],[293,25,293,27],[293,28,293,30],[293,31,293,33],[293,34,293,36],[293,37,293,39],[293,40,293,42],[294,13,294,24],[294,25,294,27],[294,28,294,30],[294,31,294,33],[294,34,294,36],[294,37,294,39],[294,40,294,42],[295,13,295,24],[295,25,295,27],[295,28,295,30],[295,31,295,33],[295,34,295,36],[295,37,295,39],[295,40,295,42],[296,13,296,24],[296,25,296,27],[296,28,296,30],[296,31,296,33],[296,34,296,36],[296,37,296,39],[296,40,296,42],[297,13,297,24],[297,25,297,27],[297,28,297,30],[297,31,297,33],[297,34,297,36],[297,37,297,39],[297,40,297,42],[298,28,298,30],[298,34,298,36],[298,37,298,39],[299,28,299,30],[299,34,299,36],[299,37,299,39],[300,13,300,24],[300,25,300,27],[300,28,300,30],[300,31,300,33],[300,34,300,36],[300,37,300,39],[300,40,300,42],[301,13,301,24],[301,25,301,27],[301,28,301,30],[301,31,301,33],[301,34,301,36],[301,37,301,39],[301,40,301,42],[305,34,305,36],[305,37,305,39],[305,40,305,42],[307,28,307,30],[307,31,307,33],[307,34,307,36],[307,37,307,39],[307,40,307,42],[314,20,314,24],[316,7,316,19],[318,7,318,13],[319,8,319,19],[319,21,319,32],[319,34,319,45],[320,7,320,22],[320,29,320,45],[321,7,321,12],[321,13,321,14],[321,17,321,20],[321,42,321,43],[323,13,323,24],[323,25,323,27],[323,28,323,30],[323,31,323,33],[323,34,323,36],[323,37,323,39],[323,40,323,42],[324,25,324,27],[324,28,324,30],[324,34,324,36],[324,37,324,39],[324,40,324,42],[326,13,326,24],[326,25,326,27],[326,28,326,30],[326,31,326,33],[326,34,326,36],[326,37,326,39],[326,40,326,42],[327,13,327,24],[327,25,327,27],[327,28,327,30],[327,31,327,33],[327,34,327,36],[327,37,327,39],[327,40,327,42],[329,37,329,39],[329,40,329,42],[330,13,330,24],[330,25,330,27],[330,28,330,30],[330,31,330,33],[330,34,330,36],[330,37,330,39],[330,40,330,42],[331,28,331,30],[331,34,331,36],[331,37,331,39],[332,28,332,30],[332,34,332,36],[332,37,332,39],[333,13,333,24],[333,25,333,27],[333,28,333,30],[333,31,333,33],[333,34,333,36],[333,37,333,39],[333,40,333,42],[335,13,335,24],[335,25,335,27],[335,28,335,30],[335,31,335,33],[335,34,335,36],[335,37,335,39],[335,40,335,42],[336,13,336,24],[336,25,336,27],[336,28,336,30],[336,31,336,33],[336,34,336,36],[336,37,336,39],[336,40,336,42],[337,13,337,24],[337,25,337,27],[337,28,337,30],[337,31,337,33],[337,34,337,36],[337,37,337,39],[337,40,337,42],[338,13,338,24],[338,25,338,27],[338,28,338,30],[338,31,338,33],[338,34,338,36],[338,37,338,39],[338,40,338,42],[342,28,342,30],[342,34,342,36],[342,37,342,39],[343,28,343,30],[343,34,343,36],[343,37,343,39],[344,13,344,24],[344,25,344,27],[344,28,344,30],[344,31,344,33],[344,34,344,36],[344,37,344,39],[344,40,344,42],[345,13,345,24],[345,25,345,27],[345,28,345,30],[345,31,345,33],[345,34,345,36],[345,37,345,39],[345,40,345,42],[346,13,346,24],[346,25,346,27],[346,28,346,30],[346,31,346,33],[346,34,346,36],[346,37,346,39],[346,40,346,42],[347,13,347,24],[347,25,347,27],[347,28,347,30],[347,31,347,33],[347,34,347,36],[347,37,347,39],[347,40,347,42],[348,13,348,24],[348,25,348,27],[348,28,348,30],[348,31,348,33],[348,34,348,36],[348,37,348,39],[348,40,348,42],[349,13,349,24],[349,25,349,27],[349,28,349,30],[349,31,349,33],[349,34,349,36],[349,37,349,39],[349,40,349,42],[350,13,350,24],[350,25,350,27],[350,28,350,30],[350,31,350,33],[350,34,350,36],[350,37,350,39],[350,40,350,42],[351,13,351,24],[351,25,351,27],[351,28,351,30],[351,31,351,33],[351,34,351,36],[351,37,351,39],[351,40,351,42],[367,25,367,27],[367,28,367,30],[367,31,367,33],[367,34,367,36],[367,37,367,39],[367,40,367,42],[368,25,368,27],[368,28,368,30],[368,34,368,36],[368,37,368,39],[368,40,368,42],[369,13,369,24],[369,25,369,27],[369,28,369,30],[369,31,369,33],[369,34,369,36],[369,37,369,39],[369,40,369,42],[371,28,371,30],[371,31,371,33],[371,34,371,36],[371,37,371,39],[371,40,371,42],[372,13,372,24],[372,25,372,27],[372,28,372,30],[372,31,372,33],[372,34,372,36],[372,37,372,39],[372,40,372,42],[373,13,373,24],[373,25,373,27],[373,28,373,30],[373,31,373,33],[373,34,373,36],[373,37,373,39],[373,40,373,42],[377,31,377,33],[377,34,377,36],[377,37,377,39],[377,40,377,42],[378,13,378,24],[378,25,378,27],[378,28,378,30],[378,31,378,33],[378,34,378,36],[378,37,378,39],[378,40,378,42],[379,13,379,24],[379,25,379,27],[379,28,379,30],[379,31,379,33],[379,34,379,36],[379,37,379,39],[379,40,379,42],[380,13,380,24],[380,25,380,27],[380,28,380,30],[380,31,380,33],[380,34,380,36],[380,37,380,39],[380,40,380,42],[381,13,381,24],[381,25,381,27],[381,28,381,30],[381,31,381,33],[381,34,381,36],[381,37,381,39],[381,40,381,42],[383,25,383,27],[383,28,383,30],[383,31,383,33],[383,34,383,36],[383,37,383,39],[383,40,383,42],[384,13,384,24],[384,25,384,27],[384,28,384,30],[384,37,384,39],[384,40,384,42],[385,13,385,24],[385,25,385,27],[385,28,385,30],[385,31,385,33],[385,34,385,36],[385,37,385,39],[385,40,385,42],[390,13,390,24],[390,25,390,27],[390,28,390,30],[390,31,390,33],[390,34,390,36],[390,37,390,39],[390,40,390,42],[391,13,391,24],[391,25,391,27],[391,28,391,30],[391,31,391,33],[391,34,391,36],[391,37,391,39],[391,40,391,42],[392,13,392,24],[392,25,392,27],[392,28,392,30],[392,31,392,33],[392,34,392,36],[392,37,392,39],[392,40,392,42],[393,13,393,24],[393,25,393,27],[393,28,393,30],[393,31,393,33],[393,34,393,36],[393,37,393,39],[393,40,393,42],[394,1,394,12],[394,13,394,24],[394,25,394,27],[394,28,394,30],[394,31,394,33],[394,34,394,36],[394,37,394,39],[394,40,394,42],[395,13,395,24],[395,25,395,27],[395,28,395,30],[395,31,395,33],[395,34,395,36],[395,37,395,39],[395,40,395,42],[402,20,402,24],[404,7,404,19],[404,20,404,22],[404,23,404,26],[409,7,409,12],[411,13,411,24],[411,25,411,27],[411,28,411,30],[411,31,411,33],[411,34,411,36],[411,37,411,39],[411,40,411,42],[413,28,413,30],[413,31,413,33],[413,34,413,36],[413,37,413,39],[413,40,413,42],[414,13,414,24],[414,25,414,27],[414,28,414,30],[414,31,414,33],[414,34,414,36],[414,37,414,39],[414,40,414,42],[415,13,415,24],[415,25,415,27],[415,28,415,30],[415,31,415,33],[415,34,415,36],[415,37,415,39],[415,40,415,42],[417,25,417,27],[417,28,417,30],[417,31,417,33],[417,34,417,36],[417,37,417,39],[417,40,417,42],[418,13,418,24],[418,25,418,27],[418,28,418,30],[418,31,418,33],[418,34,418,36],[418,37,418,39],[418,40,418,42],[419,28,419,30],[419,34,419,36],[419,37,419,39],[420,28,420,30],[420,34,420,36],[420,37,420,39],[421,13,421,24],[421,25,421,27],[421,28,421,30],[421,31,421,33],[421,34,421,36],[421,37,421,39],[421,40,421,42],[427,25,427,27],[427,28,427,30],[427,31,427,33],[427,34,427,36],[427,37,427,39],[427,40,427,42],[429,13,429,24],[429,25,429,27],[429,28,429,30],[429,31,429,33],[429,34,429,36],[429,37,429,39],[429,40,429,42],[430,28,430,30],[430,34,430,36],[430,37,430,39],[431,28,431,30],[431,34,431,36],[431,37,431,39],[432,13,432,24],[432,25,432,27],[432,28,432,30],[432,31,432,33],[432,34,432,36],[432,37,432,39],[432,40,432,42],[433,13,433,24],[433,25,433,27],[433,28,433,30],[433,31,433,33],[433,34,433,36],[433,37,433,39],[433,40,433,42],[434,13,434,24],[434,25,434,27],[434,28,434,30],[435,13,435,24],[435,25,435,27],[435,28,435,30],[435,31,435,33],[435,34,435,36],[435,37,435,39],[435,40,435,42],[436,13,436,24],[436,25,436,27],[436,28,436,30],[436,31,436,33],[436,34,436,36],[437,37,437,39],[437,40,437,42],[438,13,438,24],[438,25,438,27],[438,28,438,30],[438,31,438,33],[438,34,438,36],[438,37,438,39],[438,40,438,42],[439,13,439,24],[439,25,439,27],[439,28,439,30],[439,31,439,33],[439,34,439,36],[439,37,439,39],[439,40,439,42]],"merged_total":2830,"flags":["merged_cut"]}
[{"$f":"Sprachen!H$170","v":"Formular B "},{"$nulls":44},{"$f":"IF(Titelblatt!$F$12=\"\",\"\",Titelblatt!$F$12)","v":""},"Eingabemeldungen"]
[{"$f":"CONCATENATE(Sprachen!H$171,\" \",H6)","v":"Angaben zu den Gebäuden und Technischen Anlagen 1 / 1"},{"$nulls":44},{"$f":"IF(Titelblatt!$F$25=\"\",\"\",Titelblatt!$F$25)","v":""}]
[]
[]
[{"$f":"Sprachen!H$172","v":"Gebäudedaten"}]
["B.1",{"$f":"Sprachen!H$178","v":"Gebäude-Nr.:"},{"$nulls":5},{"$f":"CONCATENATE(\"1 / \",'Formular A'!$E$14)","v":"1 / 1"}]
["B.2",{"$f":"Sprachen!H$179","v":"Gebäudebezeichnung:"},{"$nulls":18},{"$f":"Sprachen!H$199","v":"Adresse:"}]
["B.3",{"$f":"Sprachen!H$180","v":"Anzahl Geschosse:"},{"$nulls":6},{"$f":"Sprachen!H$194","v":" Obergeschosse"},{"$nulls":9},{"$f":"Sprachen!H$198","v":" Untergeschosse"}]
["B.4",{"$f":"Sprachen!H$181","v":"Geschossflächen:"},{"$nulls":5},{"$f":"Sprachen!H$192","v":"Bruttogeschossfläche"},{"$nulls":15},{"$f":"Sprachen!H$200","v":" m² BGF"},{"$nulls":3},{"$f":"Sprachen!H$204","v":"Beheizte Geschossfläche"},{"$nulls":15},{"$f":"Sprachen!H$212","v":" m² BGF"}]
["B.5",{"$f":"Sprachen!H$182","v":"Nutzungsarten:"},{"$nulls":5},"1.",{"$nulls":9},{"$f":"Sprachen!H$196","v":" m² BGF"},null,null,"2.",{"$nulls":9},{"$f":"Sprachen!H$207","v":" m² BGF"},null,null,"3.",{"$nulls":9},{"$f":"Sprachen!H$213","v":" m² BGF"},null,null,{"$f":"Eingabemeldung(Sprachen!$H$184,Sprachen!$H$183,I10)","v":""},{"$f":"Eingabemeldung(Sprachen!$H$184,Sprachen!$H$183,V10)","v":""},{"$f":"Eingabemeldung(Sprachen!$H$184,Sprachen!$H$183,AI10)","v":""}]
["B.6",{"$f":"Sprachen!H$185","v":"Baujahr:"}]
[null,{"$f":"Sprachen!H$186","v":"Sanierungen/Erweiterungen:"},{"$nulls":5},"1.",{"$nulls":12},"2.",{"$nulls":12},"3.",{"$nulls":12},{"$f":"Eingabemeldung(Sprachen!$H$188,Sprachen!$H$187,I12)","v":""},{"$f":"Eingabemeldung(Sprachen!$H$188,Sprachen!$H$187,V12)","v":""},{"$f":"Eingabemeldung(Sprachen!$H$188,Sprachen!$H$187,AI12)","v":""}]
["B.7",{"$f":"Sprachen!H$189","v":"Art der Gebäudehülle:"},{"$nulls":21},{"$f":"Sprachen!H$201","v":"Sonnenschutz:"}]
["B.8",{"$f":"Sprachen!H$190","v":"U-Werte:"},{"$nulls":5},{"$f":"Sprachen!H$193","v":"Aussenwand"},{"$nulls":7},"W/m²K",null,{"$f":"Sprachen!H$197","v":" Fenster"},{"$nulls":5},"W/m²K",null,{"$f":"Sprachen!H$202","v":" Boden gegen \"unbeheizt\""},{"$nulls":9},"W/m²K",null,{"$f":"Sprachen!H$210","v":"Dach"},{"$nulls":6},"W/m²K"]
[{"$f":"Sprachen!H$173","v":"Anlagedaten"}]
[{"$f":"Sprachen!H$174","v":"Nr."},{"$f":"Sprachen!H$191","v":"Anlage"},{"$nulls":11},{"$f":"Sprachen!H$195","v":"Technische Daten"},{"$nulls":11},{"$f":"Sprachen!H$203","v":"Leistung [kW]"},null,null,{"$f":"Sprachen!H$205","v":"Betriebsst.\n[h/a]"},null,null,{"$f":"Sprachen!H$206","v":"WRG"},null,null,{"$f":"Sprachen!H$208","v":"Baujahr"},null,null,{"$f":"Sprachen!H$209","v":"Zustand"},null,null,{"$f":"Sprachen!H$211","v":"Sanie-\nrungspflicht"},null,null,{"$f":"Sprachen!H$214","v":"Schema (Beilage)"}]
[{"$f":"Sprachen!H$175","v":"B.9  Energieerzeugungsanlagen"}]
{"$rows_empty":7}
[{"$f":"Sprachen!H$176","v":"B.10  Energieverbraucher Haustechnik"}]
{"$rows_empty":10}
[{"$f":"Sprachen!H$177","v":"B.11  Energieverbraucher Prozess u. Produktion"}]
{"$rows_empty":8}
[{"$f":"Sprachen!H$170","v":"Formular B "},{"$nulls":44},{"$f":"IF(Titelblatt!$F$12=\"\",\"\",Titelblatt!$F$12)","v":""}]
[{"$f":"CONCATENATE(Sprachen!H$171,\" \",H50)","v":"Angaben zu den Gebäuden und Technischen Anlagen 2 / 1"},{"$nulls":44},{"$f":"IF(Titelblatt!$F$25=\"\",\"\",Titelblatt!$F$25)","v":""}]
[]
[]
[{"$f":"Sprachen!H$172","v":"Gebäudedaten"}]
["B.1",{"$f":"Sprachen!H$178","v":"Gebäude-Nr.:"},{"$nulls":5},{"$f":"CONCATENATE(\"2 / \",'Formular A'!$E$14)","v":"2 / 1"}]
["B.2",{"$f":"Sprachen!H$179","v":"Gebäudebezeichnung:"},{"$nulls":18},{"$f":"Sprachen!H$199","v":"Adresse:"}]
["B.3",{"$f":"Sprachen!H$180","v":"Anzahl Geschosse:"},{"$nulls":6},{"$f":"Sprachen!H$194","v":" Obergeschosse"},{"$nulls":9},{"$f":"Sprachen!H$198","v":" Untergeschosse"}]
["B.4",{"$f":"Sprachen!H$181","v":"Geschossflächen:"},{"$nulls":5},{"$f":"Sprachen!H$192","v":"Bruttogeschossfläche"},{"$nulls":15},{"$f":"Sprachen!H$200","v":" m² BGF"},{"$nulls":3},{"$f":"Sprachen!H$204","v":"Beheizte Geschossfläche"},{"$nulls":15},{"$f":"Sprachen!H$212","v":" m² BGF"}]
["B.5",{"$f":"Sprachen!H$182","v":"Nutzungsarten:"},{"$nulls":5},"1.",{"$nulls":9},{"$f":"Sprachen!H$196","v":" m² BGF"},null,null,"2.",{"$nulls":9},{"$f":"Sprachen!H$207","v":" m² BGF"},null,null,"3.",{"$nulls":9},{"$f":"Sprachen!H$213","v":" m² BGF"},null,null,{"$f":"Eingabemeldung(Sprachen!$H$184,Sprachen!$H$183,I54)","v":""},{"$f":"Eingabemeldung(Sprachen!$H$184,Sprachen!$H$183,V54)","v":""},{"$f":"Eingabemeldung(Sprachen!$H$184,Sprachen!$H$183,AI54)","v":""}]
["B.6",{"$f":"Sprachen!H$185","v":"Baujahr:"}]
[null,{"$f":"Sprachen!H$186","v":"Sanierungen/Erweiterungen:"},{"$nulls":5},"1.",{"$nulls":12},"2.",{"$nulls":12},"3.",{"$nulls":12},{"$f":"Eingabemeldung(Sprachen!$H$188,Sprachen!$H$187,I56)","v":""},{"$f":"Eingabemeldung(Sprachen!$H$188,Sprachen!$H$187,V56)","v":""},{"$f":"Eingabemeldung(Sprachen!$H$188,Sprachen!$H$187,AI56)","v":""}]
["B.7",{"$f":"Sprachen!H$189","v":"Art der Gebäudehülle:"},{"$nulls":21},{"$f":"Sprachen!H$201","v":"Sonnenschutz:"}]
["B.8",{"$f":"Sprachen!H$190","v":"U-Werte:"},{"$nulls":5},{"$f":"Sprachen!H$193","v":"Aussenwand"},{"$nulls":7},"W/m²K",null,{"$f":"Sprachen!H$197","v":" Fenster"},{"$nulls":5},"W/m²K",null,{"$f":"Sprachen!H$202","v":" Boden gegen \"unbeheizt\""},{"$nulls":9},"W/m²K",null,{"$f":"Sprachen!H$210","v":"Dach"},{"$nulls":6},"W/m²K"]
[{"$f":"Sprachen!H$173","v":"Anlagedaten"}]
[{"$f":"Sprachen!H$174","v":"Nr."},{"$f":"Sprachen!H$191","v":"Anlage"},{"$nulls":11},{"$f":"Sprachen!H$195","v":"Technische Daten"},{"$nulls":11},{"$f":"Sprachen!H$203","v":"Leistung [kW]"},null,null,{"$f":"Sprachen!H$205","v":"Betriebsst.\n[h/a]"},null,null,{"$f":"Sprachen!H$206","v":"WRG"},null,null,{"$f":"Sprachen!H$208","v":"Baujahr"},null,null,{"$f":"Sprachen!H$209","v":"Zustand"},null,null,{"$f":"Sprachen!H$211","v":"Sanie-\nrungspflicht"},null,null,{"$f":"Sprachen!H$214","v":"Schema (Beilage)"}]
[{"$f":"Sprachen!H$175","v":"B.9  Energieerzeugungsanlagen"}]
{"$rows_empty":7}
[{"$f":"Sprachen!H$176","v":"B.10  Energieverbraucher Haustechnik"}]
{"$rows_empty":10}
[{"$f":"Sprachen!H$177","v":"B.11  Energieverbraucher Prozess u. Produktion"}]
{"$rows_empty":8}
[{"$f":"Sprachen!H$170","v":"Formular B "},{"$nulls":44},{"$f":"IF(Titelblatt!$F$12=\"\",\"\",Titelblatt!$F$12)","v":""}]
[{"$f":"CONCATENATE(Sprachen!H$171,\" \",H94)","v":"Angaben zu den Gebäuden und Technischen Anlagen 3 / 1"},{"$nulls":44},{"$f":"IF(Titelblatt!$F$25=\"\",\"\",Titelblatt!$F$25)","v":""}]
[]
[]
[{"$f":"Sprachen!H$172","v":"Gebäudedaten"}]
["B.1",{"$f":"Sprachen!H$178","v":"Gebäude-Nr.:"},{"$nulls":5},{"$f":"CONCATENATE(\"3 / \",'Formular A'!$E$14)","v":"3 / 1"}]
["B.2",{"$f":"Sprachen!H$179","v":"Gebäudebezeichnung:"},{"$nulls":18},{"$f":"Sprachen!H$199","v":"Adresse:"}]
["B.3",{"$f":"Sprachen!H$180","v":"Anzahl Geschosse:"},{"$nulls":6},{"$f":"Sprachen!H$194","v":" Obergeschosse"},{"$nulls":9},{"$f":"Sprachen!H$198","v":" Untergeschosse"}]
["B.4",{"$f":"Sprachen!H$181","v":"Geschossflächen:"},{"$nulls":5},{"$f":"Sprachen!H$192","v":"Bruttogeschossfläche"},{"$nulls":15},{"$f":"Sprachen!H$200","v":" m² BGF"},{"$nulls":3},{"$f":"Sprachen!H$204","v":"Beheizte Geschossfläche"},{"$nulls":15},{"$f":"Sprachen!H$212","v":" m² BGF"}]
["B.5",{"$f":"Sprachen!H$182","v":"Nutzungsarten:"},{"$nulls":5},"1.",{"$nulls":9},{"$f":"Sprachen!H$196","v":" m² BGF"},null,null,"2.",{"$nulls":9},{"$f":"Sprachen!H$207","v":" m² BGF"},null,null,"3.",{"$nulls":9},{"$f":"Sprachen!H$213","v":" m² BGF"},null,null,{"$f":"Eingabemeldung(Sprachen!$H$184,Sprachen!$H$183,I98)","v":""},{"$f":"Eingabemeldung(Sprachen!$H$184,Sprachen!$H$183,V98)","v":""},{"$f":"Eingabemeldung(Sprachen!$H$184,Sprachen!$H$183,AI98)","v":""}]
["B.6",{"$f":"Sprachen!H$185","v":"Baujahr:"}]
[null,{"$f":"Sprachen!H$186","v":"Sanierungen/Erweiterungen:"},{"$nulls":5},"1.",{"$nulls":12},"2.",{"$nulls":12},"3.",{"$nulls":12},{"$f":"Eingabemeldung(Sprachen!$H$188,Sprachen!$H$187,I100)","v":""},{"$f":"Eingabemeldung(Sprachen!$H$188,Sprachen!$H$187,V100)","v":""},{"$f":"Eingabemeldung(Sprachen!$H$188,Sprachen!$H$187,AI100)","v":""}]
["B.7",{"$f":"Sprachen!H$189","v":"Art der Gebäudehülle:"},{"$nulls":21},{"$f":"Sprachen!H$201","v":"Sonnenschutz:"}]
["B.8",{"$f":"Sprachen!H$190","v":"U-Werte:"},{"$nulls":5},{"$f":"Sprachen!H$193","v":"Aussenwand"},{"$nulls":7},"W/m²K",null,{"$f":"Sprachen!H$197","v":" Fenster"},{"$nulls":5},"W/m²K",null,{"$f":"Sprachen!H$202","v":" Boden gegen \"unbeheizt\""},{"$nulls":9},"W/m²K",null,{"$f":"Sprachen!H$210","v":"Dach"},{"$nulls":6},"W/m²K"]
[{"$f":"Sprachen!H$173","v":"Anlagedaten"}]
[{"$f":"Sprachen!H$174","v":"Nr."},{"$f":"Sprachen!H$191","v":"Anlage"},{"$nulls":11},{"$f":"Sprachen!H$195","v":"Technische Daten"},{"$nulls":11},{"$f":"Sprachen!H$203","v":"Leistung [kW]"},null,null,{"$f":"Sprachen!H$205","v":"Betriebsst.\n[h/a]"},null,null,{"$f":"Sprachen!H$206","v":"WRG"},null,null,{"$f":"Sprachen!H$208","v":"Baujahr"},null,null,{"$f":"Sprachen!H$209","v":"Zustand"},null,null,{"$f":"Sprachen!H$211","v":"Sanie-\nrungspflicht"},null,null,{"$f":"Sprachen!H$214","v":"Schema (Beilage)"}]
[{"$f":"Sprachen!H$175","v":"B.9  Energieerzeugungsanlagen"}]
{"$rows_empty":7}
[{"$f":"Sprachen!H$176","v":"B.10  Energieverbraucher Haustechnik"}]
{"$rows_empty":10}
[{"$f":"Sprachen!H$177","v":"B.11  Energieverbraucher Prozess u. Produktion"}]
{"$rows_empty":8}
[{"$f":"Sprachen!H$170","v":"Formular B "},{"$nulls":44},{"$f":"IF(Titelblatt!$F$12=\"\",\"\",Titelblatt!$F$12)","v":""}]
[{"$f":"CONCATENATE(Sprachen!H$171,\" \",H138)","v":"Angaben zu den Gebäuden und Technischen Anlagen 4 / 1"},{"$nulls":44},{"$f":"IF(Titelblatt!$F$25=\"\",\"\",Titelblatt!$F$25)","v":""}]
[]
[]
[{"$f":"Sprachen!H$172","v":"Gebäudedaten"}]
["B.1",{"$f":"Sprachen!H$178","v":"Gebäude-Nr.:"},{"$nulls":5},{"$f":"CONCATENATE(\"4 / \",'Formular A'!$E$14)","v":"4 / 1"}]
["B.2",{"$f":"Sprachen!H$179","v":"Gebäudebezeichnung:"},{"$nulls":18},{"$f":"Sprachen!H$199","v":"Adresse:"}]
["B.3",{"$f":"Sprachen!H$180","v":"Anzahl Geschosse:"},{"$nulls":6},{"$f":"Sprachen!H$194","v":" Obergeschosse"},{"$nulls":9},{"$f":"Sprachen!H$198","v":" Untergeschosse"}]
["B.4",{"$f":"Sprachen!H$181","v":"Geschossflächen:"},{"$nulls":5},{"$f":"Sprachen!H$192","v":"Bruttogeschossfläche"},{"$nulls":15},{"$f":"Sprachen!H$200","v":" m² BGF"},{"$nulls":3},{"$f":"Sprachen!H$204","v":"Beheizte Geschossfläche"},{"$nulls":15},{"$f":"Sprachen!H$212","v":" m² BGF"}]
["B.5",{"$f":"Sprachen!H$182","v":"Nutzungsarten:"},{"$nulls":5},"1.",{"$nulls":9},{"$f":"Sprachen!H$196","v":" m² BGF"},null,null,"2.",{"$nulls":9},{"$f":"Sprachen!H$207","v":" m² BGF"},null,null,"3.",{"$nulls":9},{"$f":"Sprachen!H$213","v":" m² BGF"},null,null,{"$f":"Eingabemeldung(Sprachen!$H$184,Sprachen!$H$183,I142)","v":""},{"$f":"Eingabemeldung(Sprachen!$H$184,Sprachen!$H$183,V142)","v":""},{"$f":"Eingabemeldung(Sprachen!$H$184,Sprachen!$H$183,AI142)","v":""}]
["B.6",{"$f":"Sprachen!H$185","v":"Baujahr:"}]
[null,{"$f":"Sprachen!H$186","v":"Sanierungen/Erweiterungen:"},{"$nulls":5},"1.",{"$nulls":12},"2.",{"$nulls":12},"3.",{"$nulls":12},{"$f":"Eingabemeldung(Sprachen!$H$188,Sprachen!$H$187,I144)","v":""},{"$f":"Eingabemeldung(Sprachen!$H$188,Sprachen!$H$187,V144)","v":""},{"$f":"Eingabemeldung(Sprachen!$H$188,Sprachen!$H$187,AI144)","v":""}]
["B.7",{"$f":"Sprachen!H$189","v":"Art der Gebäudehülle:"},{"$nulls":21},{"$f":"Sprachen!H$201","v":"Sonnenschutz:"}]
["B.8",{"$f":"Sprachen!H$190","v":"U-Werte:"},{"$nulls":5},{"$f":"Sprachen!H$193","v":"Aussenwand"},{"$nulls":7},"W/m²K",null,{"$f":"Sprachen!H$197","v":" Fenster"},{"$nulls":5},"W/m²K",null,{"$f":"Sprachen!H$202","v":" Boden gegen \"unbeheizt\""},{"$nulls":9},"W/m²K",null,{"$f":"Sprachen!H$210","v":"Dach"},{"$nulls":6},"W/m²K"]
[{"$f":"Sprachen!H$173","v":"Anlagedaten"}]
[{"$f":"Sprachen!H$174","v":"Nr."},{"$f":"Sprachen!H$191","v":"Anlage"},{"$nulls":11},{"$f":"Sprachen!H$195","v":"Technische Daten"},{"$nulls":11},{"$f":"Sprachen!H$203","v":"Leistung [kW]"},null,null,{"$f":"Sprachen!H$205","v":"Betriebsst.\n[h/a]"},null,null,{"$f":"Sprachen!H$206","v":"WRG"},null,null,{"$f":"Sprachen!H$208","v":"Baujahr"},null,null,{"$f":"Sprachen!H$209","v":"Zustand"},null,null,{"$f":"Sprachen!H$211","v":"Sanie-\nrungspflicht"},null,null,{"$f":"Sprachen!H$214","v":"Schema (Beilage)"}]
[{"$f":"Sprachen!H$175","v":"B.9  Energieerzeugungsanlagen"}]
{"$rows_empty":7}
[{"$f":"Sprachen!H$176","v":"B.10  Energieverbraucher Haustechnik"}]
{"$rows_empty":10}
[{"$f":"Sprachen!H$177","v":"B.11  Energieverbraucher Prozess u. Produktion"}]
{"$rows_empty":8}
[{"$f":"Sprachen!H$170","v":"Formular B "},{"$nulls":44},{"$f":"IF(Titelblatt!$F$12=\"\",\"\",Titelblatt!$F$12)","v":""}]
[{"$f":"CONCATENATE(Sprachen!H$171,\" \",H182)","v":"Angaben zu den Gebäuden und Technischen Anlagen 5 / 1"},{"$nulls":44},{"$f":"IF(Titelblatt!$F$25=\"\",\"\",Titelblatt!$F$25)","v":""}]
[]
[]
[{"$f":"Sprachen!H$172","v":"Gebäudedaten"}]
["B.1",{"$f":"Sprachen!H$178","v":"Gebäude-Nr.:"},{"$nulls":5},{"$f":"CONCATENATE(\"5 / \",'Formular A'!$E$14)","v":"5 / 1"}]
["B.2",{"$f":"Sprachen!H$179","v":"Gebäudebezeichnung:"},{"$nulls":18},{"$f":"Sprachen!H$199","v":"Adresse:"}]
["B.3",{"$f":"Sprachen!H$180","v":"Anzahl Geschosse:"},{"$nulls":6},{"$f":"Sprachen!H$194","v":" Obergeschosse"},{"$nulls":9},{"$f":"Sprachen!H$198","v":" Untergeschosse"}]
["B.4",{"$f":"Sprachen!H$181","v":"Geschossflächen:"},{"$nulls":5},{"$f":"Sprachen!H$192","v":"Bruttogeschossfläche"},{"$nulls":15},{"$f":"Sprachen!H$200","v":" m² BGF"},{"$nulls":3},{"$f":"Sprachen!H$204","v":"Beheizte Geschossfläche"},{"$nulls":15},{"$f":"Sprachen!H$212","v":" m² BGF"}]
["B.5",{"$f":"Sprachen!H$182","v":"Nutzungsarten:"},{"$nulls":5},"1.",{"$nulls":9},{"$f":"Sprachen!H$196","v":" m² BGF"},null,null,"2.",{"$nulls":9},{"$f":"Sprachen!H$207","v":" m² BGF"},null,null,"3.",{"$nulls":9},{"$f":"Sprachen!H$213","v":" m² BGF"},null,null,{"$f":"Eingabemeldung(Sprachen!$H$184,Sprachen!$H$183,I186)","v":""},{"$f":"Eingabemeldung(Sprachen!$H$184,Sprachen!$H$183,V186)","v":""},{"$f":"Eingabemeldung(Sprachen!$H$184,Sprachen!$H$183,AI186)","v":""}]
["B.6",{"$f":"Sprachen!H$185","v":"Baujahr:"}]
[null,{"$f":"Sprachen!H$186","v":"Sanierungen/Erweiterungen:"},{"$nulls":5},"1.",{"$nulls":12},"2.",{"$nulls":12},"3.",{"$nulls":12},{"$f":"Eingabemeldung(Sprachen!$H$188,Sprachen!$H$187,I188)","v":""},{"$f":"Eingabemeldung(Sprachen!$H$188,Sprachen!$H$187,V188)","v":""},{"$f":"Eingabemeldung(Sprachen!$H$188,Sprachen!$H$187,AI188)","v":""}]
["B.7",{"$f":"Sprachen!H$189","v":"Art der Gebäudehülle:"},{"$nulls":21},{"$f":"Sprachen!H$201","v":"Sonnenschutz:"}]
["B.8",{"$f":"Sprachen!H$190","v":"U-Werte:"},{"$nulls":5},{"$f":"Sprachen!H$193","v":"Aussenwand"},{"$nulls":7},"W/m²K",null,{"$f":"Sprachen!H$197","v":" Fenster"},{"$nulls":5},"W/m²K",null,{"$f":"Sprachen!H$202","v":" Boden gegen \"unbeheizt\""},{"$nulls":9},"W/m²K",null,{"$f":"Sprachen!H$210","v":"Dach"},{"$nulls":6},"W/m²K"]
[{"$f":"Sprachen!H$173","v":"Anlagedaten"}]
[{"$f":"Sprachen!H$174","v":"Nr."},{"$f":"Sprachen!H$191","v":"Anlage"},{"$nulls":11},{"$f":"Sprachen!H$195","v":"Technische Daten"},{"$nulls":11},{"$f":"Sprachen!H$203","v":"Leistung [kW]"},null,null,{"$f":"Sprachen!H$205","v":"Betriebsst.\n[h/a]"},null,null,{"$f":"Sprachen!H$206","v":"WRG"},null,null,{"$f":"Sprachen!H$208","v":"Baujahr"},null,null,{"$f":"Sprachen!H$209","v":"Zustand"},null,null,{"$f":"Sprachen!H$211","v":"Sanie-\nrungspflicht"},null,null,{"$f":"Sprachen!H$214","v":"Schema (Beilage)"}]
[{"$f":"Sprachen!H$175","v":"B.9  Energieerzeugungsanlagen"}]
{"$rows_empty":7}
[{"$f":"Sprachen!H$176","v":"B.10  Energieverbraucher Haustechnik"}]
{"$rows_empty":10}
[{"$f":"Sprachen!H$177","v":"B.11  Energieverbraucher Prozess u. Produktion"}]
{"$rows_empty":8}
[{"$f":"Sprachen!H$170","v":"Formular B "},{"$nulls":44},{"$f":"IF(Titelblatt!$F$12=\"\",\"\",Titelblatt!$F$12)","v":""}]
[{"$f":"CONCATENATE(Sprachen!H$171,\" \",H226)","v":"Angaben zu den Gebäuden und Technischen Anlagen 6 / 1"},{"$nulls":44},{"$f":"IF(Titelblatt!$F$25=\"\",\"\",Titelblatt!$F$25)","v":""}]
[]
[]
[{"$f":"Sprachen!H$172","v":"Gebäudedaten"}]
["B.1",{"$f":"Sprachen!H$178","v":"Gebäude-Nr.:"},{"$nulls":5},{"$f":"CONCATENATE(\"6 / \",'Formular A'!$E$14)","v":"6 / 1"}]
["B.2",{"$f":"Sprachen!H$179","v":"Gebäudebezeichnung:"},{"$nulls":18},{"$f":"Sprachen!H$199","v":"Adresse:"}]
["B.3",{"$f":"Sprachen!H$180","v":"Anzahl Geschosse:"},{"$nulls":6},{"$f":"Sprachen!H$194","v":" Obergeschosse"},{"$nulls":9},{"$f":"Sprachen!H$198","v":" Untergeschosse"}]
["B.4",{"$f":"Sprachen!H$181","v":"Geschossflächen:"},{"$nulls":5},{"$f":"Sprachen!H$192","v":"Bruttogeschossfläche"},{"$nulls":15},{"$f":"Sprachen!H$200","v":" m² BGF"},{"$nulls":3},{"$f":"Sprachen!H$204","v":"Beheizte Geschossfläche"},{"$nulls":15},{"$f":"Sprachen!H$212","v":" m² BGF"}]
["B.5",{"$f":"Sprachen!H$182","v":"Nutzungsarten:"},{"$nulls":5},"1.",{"$nulls":9},{"$f":"Sprachen!H$196","v":" m² BGF"},null,null,"2.",{"$nulls":9},{"$f":"Sprachen!H$207","v":" m² BGF"},null,null,"3.",{"$nulls":9},{"$f":"Sprachen!H$213","v":" m² BGF"},null,null,{"$f":"Eingabemeldung(Sprachen!$H$184,Sprachen!$H$183,I230)","v":""},{"$f":"Eingabemeldung(Sprachen!$H$184,Sprachen!$H$183,V230)","v":""},{"$f":"Eingabemeldung(Sprachen!$H$184,Sprachen!$H$183,AI230)","v":""}]
["B.6",{"$f":"Sprachen!H$185","v":"Baujahr:"}]
[null,{"$f":"Sprachen!H$186","v":"Sanierungen/Erweiterungen:"},{"$nulls":5},"1.",{"$nulls":12},"2.",{"$nulls":12},"3.",{"$nulls":12},{"$f":"Eingabemeldung(Sprachen!$H$188,Sprachen!$H$187,I232)","v":""},{"$f":"Eingabemeldung(Sprachen!$H$188,Sprachen!$H$187,V232)","v":""},{"$f":"Eingabemeldung(Sprachen!$H$188,Sprachen!$H$187,AI232)","v":""}]
["B.7",{"$f":"Sprachen!H$189","v":"Art der Gebäudehülle:"},{"$nulls":21},{"$f":"Sprachen!H$201","v":"Sonnenschutz:"}]
["B.8",{"$f":"Sprachen!H$190","v":"U-Werte:"},{"$nulls":5},{"$f":"Sprachen!H$193","v":"Aussenwand"},{"$nulls":7},"W/m²K",null,{"$f":"Sprachen!H$197","v":" Fenster"},{"$nulls":5},"W/m²K",null,{"$f":"Sprachen!H$202","v":" Boden gegen \"unbeheizt\""},{"$nulls":9},"W/m²K",null,{"$f":"Sprachen!H$210","v":"Dach"},{"$nulls":6},"W/m²K"]
[{"$f":"Sprachen!H$173","v":"Anlagedaten"}]
[{"$f":"Sprachen!H$174","v":"Nr."},{"$f":"Sprachen!H$191","v":"Anlage"},{"$nulls":11},{"$f":"Sprachen!H$195","v":"Technische Daten"},{"$nulls":11},{"$f":"Sprachen!H$203","v":"Leistung [kW]"},null,null,{"$f":"Sprachen!H$205","v":"Betriebsst.\n[h/a]"},null,null,{"$f":"Sprachen!H$206","v":"WRG"},null,null,{"$f":"Sprachen!H$208","v":"Baujahr"},null,null,{"$f":"Sprachen!H$209","v":"Zustand"},null,null,{"$f":"Sprachen!H$211","v":"Sanie-\nrungspflicht"},null,null,{"$f":"Sprachen!H$214","v":"Schema (Beilage)"}]
[{"$f":"Sprachen!H$175","v":"B.9  Energieerzeugungsanlagen"}]
{"$rows_empty":7}
[{"$f":"Sprachen!H$176","v":"B.10  Energieverbraucher Haustechnik"}]
{"$rows_empty":10}
[{"$f":"Sprachen!H$177","v":"B.11  Energieverbraucher Prozess u. Produktion"}]
{"$rows_empty":8}
[{"$f":"Sprachen!H$170","v":"Formular B "},{"$nulls":44},{"$f":"IF(Titelblatt!$F$12=\"\",\"\",Titelblatt!$F$12)","v":""}]
[{"$f":"CONCATENATE(Sprachen!H$171,\" \",H270)","v":"Angaben zu den Gebäuden und Technischen Anlagen 7 / 1"},{"$nulls":44},{"$f":"IF(Titelblatt!$F$25=\"\",\"\",Titelblatt!$F$25)","v":""}]
[]
[]
[{"$f":"Sprachen!H$172","v":"Gebäudedaten"}]
["B.1",{"$f":"Sprachen!H$178","v":"Gebäude-Nr.:"},{"$nulls":5},{"$f":"CONCATENATE(\"7 / \",'Formular A'!$E$14)","v":"7 / 1"}]
["B.2",{"$f":"Sprachen!H$179","v":"Gebäudebezeichnung:"},{"$nulls":18},{"$f":"Sprachen!H$199","v":"Adresse:"}]
["B.3",{"$f":"Sprachen!H$180","v":"Anzahl Geschosse:"},{"$nulls":6},{"$f":"Sprachen!H$194","v":" Obergeschosse"},{"$nulls":9},{"$f":"Sprachen!H$198","v":" Untergeschosse"}]
["B.4",{"$f":"Sprachen!H$181","v":"Geschossflächen:"},{"$nulls":5},{"$f":"Sprachen!H$192","v":"Bruttogeschossfläche"},{"$nulls":15},{"$f":"Sprachen!H$200","v":" m² BGF"},{"$nulls":3},{"$f":"Sprachen!H$204","v":"Beheizte Geschossfläche"},{"$nulls":15},{"$f":"Sprachen!H$212","v":" m² BGF"}]
["B.5",{"$f":"Sprachen!H$182","v":"Nutzungsarten:"},{"$nulls":5},"1.",{"$nulls":9},{"$f":"Sprachen!H$196","v":" m² BGF"},null,null,"2.",{"$nulls":9},{"$f":"Sprachen!H$207","v":" m² BGF"},null,null,"3.",{"$nulls":9},{"$f":"Sprachen!H$213","v":" m² BGF"},null,null,{"$f":"Eingabemeldung(Sprachen!$H$184,Sprachen!$H$183,I274)","v":""},{"$f":"Eingabemeldung(Sprachen!$H$184,Sprachen!$H$183,V274)","v":""},{"$f":"Eingabemeldung(Sprachen!$H$184,Sprachen!$H$183,AI274)","v":""}]
["B.6",{"$f":"Sprachen!H$185","v":"Baujahr:"}]
[null,{"$f":"Sprachen!H$186","v":"Sanierungen/Erweiterungen:"},{"$nulls":5},"1.",{"$nulls":12},"2.",{"$nulls":12},"3.",{"$nulls":12},{"$f":"Eingabemeldung(Sprachen!$H$188,Sprachen!$H$187,I276)","v":""},{"$f":"Eingabemeldung(Sprachen!$H$188,Sprachen!$H$187,V276)","v":""},{"$f":"Eingabemeldung(Sprachen!$H$188,Sprachen!$H$187,AI276)","v":""}]
["B.7",{"$f":"Sprachen!H$189","v":"Art der Gebäudehülle:"},{"$nulls":21},{"$f":"Sprachen!H$201","v":"Sonnenschutz:"}]
["B.8",{"$f":"Sprachen!H$190","v":"U-Werte:"},{"$nulls":5},{"$f":"Sprachen!H$193","v":"Aussenwand"},{"$nulls":7},"W/m²K",null,{"$f":"Sprachen!H$197","v":" Fenster"},{"$nulls":5},"W/m²K",null,{"$f":"Sprachen!H$202","v":" Boden gegen \"unbeheizt\""},{"$nulls":9},"W/m²K",null,{"$f":"Sprachen!H$210","v":"Dach"},{"$nulls":6},"W/m²K"]
[{"$f":"Sprachen!H$173","v":"Anlagedaten"}]
[{"$f":"Sprachen!H$174","v":"Nr."},{"$f":"Sprachen!H$191","v":"Anlage"},{"$nulls":11},{"$f":"Sprachen!H$195","v":"Technische Daten"},{"$nulls":11},{"$f":"Sprachen!H$203","v":"Leistung [kW]"},null,null,{"$f":"Sprachen!H$205","v":"Betriebsst.\n[h/a]"},null,null,{"$f":"Sprachen!H$206","v":"WRG"},null,null,{"$f":"Sprachen!H$208","v":"Baujahr"},null,null,{"$f":"Sprachen!H$209","v":"Zustand"},null,null,{"$f":"Sprachen!H$211","v":"Sanie-\nrungspflicht"},null,null,{"$f":"Sprachen!H$214","v":"Schema (Beilage)"}]
[{"$f":"Sprachen!H$175","v":"B.9  Energieerzeugungsanlagen"}]
{"$rows_empty":7}
[{"$f":"Sprachen!H$176","v":"B.10  Energieverbraucher Haustechnik"}]
{"$rows_empty":10}
[{"$f":"Sprachen!H$177","v":"B.11  Energieverbraucher Prozess u. Produktion"}]
{"$rows_empty":8}
[{"$f":"Sprachen!H$170","v":"Formular B "},{"$nulls":44},{"$f":"IF(Titelblatt!$F$12=\"\",\"\",Titelblatt!$F$12)","v":""}]
[{"$f":"CONCATENATE(Sprachen!H$171,\" \",H314)","v":"Angaben zu den Gebäuden und Technischen Anlagen 8 / 1"},{"$nulls":44},{"$f":"IF(Titelblatt!$F$25=\"\",\"\",Titelblatt!$F$25)","v":""}]
[]
[]
[{"$f":"Sprachen!H$172","v":"Gebäudedaten"}]
["B.1",{"$f":"Sprachen!H$178","v":"Gebäude-Nr.:"},{"$nulls":5},{"$f":"CONCATENATE(\"8 / \",'Formular A'!$E$14)","v":"8 / 1"}]
["B.2",{"$f":"Sprachen!H$179","v":"Gebäudebezeichnung:"},{"$nulls":18},{"$f":"Sprachen!H$199","v":"Adresse:"}]
["B.3",{"$f":"Sprachen!H$180","v":"Anzahl Geschosse:"},{"$nulls":6},{"$f":"Sprachen!H$194","v":" Obergeschosse"},{"$nulls":9},{"$f":"Sprachen!H$198","v":" Untergeschosse"}]
["B.4",{"$f":"Sprachen!H$181","v":"Geschossflächen:"},{"$nulls":5},{"$f":"Sprachen!H$192","v":"Bruttogeschossfläche"},{"$nulls":15},{"$f":"Sprachen!H$200","v":" m² BGF"},{"$nulls":3},{"$f":"Sprachen!H$204","v":"Beheizte Geschossfläche"},{"$nulls":15},{"$f":"Sprachen!H$212","v":" m² BGF"}]
["B.5",{"$f":"Sprachen!H$182","v":"Nutzungsarten:"},{"$nulls":5},"1.",{"$nulls":9},{"$f":"Sprachen!H$196","v":" m² BGF"},null,null,"2.",{"$nulls":9},{"$f":"Sprachen!H$207","v":" m² BGF"},null,null,"3.",{"$nulls":9},{"$f":"Sprachen!H$213","v":" m² BGF"},null,null,{"$f":"Eingabemeldung(Sprachen!$H$184,Sprachen!$H$183,I318)","v":""},{"$f":"Eingabemeldung(Sprachen!$H$184,Sprachen!$H$183,V318)","v":""},{"$f":"Eingabemeldung(Sprachen!$H$184,Sprachen!$H$183,AI318)","v":""}]
["B.6",{"$f":"Sprachen!H$185","v":"Baujahr:"}]
[null,{"$f":"Sprachen!H$186","v":"Sanierungen/Erweiterungen:"},{"$nulls":5},"1.",{"$nulls":12},"2.",{"$nulls":12},"3.",{"$nulls":12},{"$f":"Eingabemeldung(Sprachen!$H$188,Sprachen!$H$187,I320)","v":""},{"$f":"Eingabemeldung(Sprachen!$H$188,Sprachen!$H$187,V320)","v":""},{"$f":"Eingabemeldung(Sprachen!$H$188,Sprachen!$H$187,AI320)","v":""}]
["B.7",{"$f":"Sprachen!H$189","v":"Art der Gebäudehülle:"},{"$nulls":21},{"$f":"Sprachen!H$201","v":"Sonnenschutz:"}]
["B.8",{"$f":"Sprachen!H$190","v":"U-Werte:"},{"$nulls":5},{"$f":"Sprachen!H$193","v":"Aussenwand"},{"$nulls":7},"W/m²K",null,{"$f":"Sprachen!H$197","v":" Fenster"},{"$nulls":5},"W/m²K",null,{"$f":"Sprachen!H$202","v":" Boden gegen \"unbeheizt\""},{"$nulls":9},"W/m²K",null,{"$f":"Sprachen!H$210","v":"Dach"},{"$nulls":6},"W/m²K"]
[{"$f":"Sprachen!H$173","v":"Anlagedaten"}]
[{"$f":"Sprachen!H$174","v":"Nr."},{"$f":"Sprachen!H$191","v":"Anlage"},{"$nulls":11},{"$f":"Sprachen!H$195","v":"Technische Daten"},{"$nulls":11},{"$f":"Sprachen!H$203","v":"Leistung [kW]"},null,null,{"$f":"Sprachen!H$205","v":"Betriebsst.\n[h/a]"},null,null,{"$f":"Sprachen!H$206","v":"WRG"},null,null,{"$f":"Sprachen!H$208","v":"Baujahr"},null,null,{"$f":"Sprachen!H$209","v":"Zustand"},null,null,{"$f":"Sprachen!H$211","v":"Sanie-\nrungspflicht"},null,null,{"$f":"Sprachen!H$214","v":"Schema (Beilage)"}]
[{"$f":"Sprachen!H$175","v":"B.9  Energieerzeugungsanlagen"}]
{"$rows_empty":7}
[{"$f":"Sprachen!H$176","v":"B.10  Energieverbraucher Haustechnik"}]
{"$rows_empty":10}
[{"$f":"Sprachen!H$177","v":"B.11  Energieverbraucher Prozess u. Produktion"}]
{"$rows_empty":8}
[{"$f":"Sprachen!H$170","v":"Formular B "},{"$nulls":44},{"$f":"IF(Titelblatt!$F$12=\"\",\"\",Titelblatt!$F$12)","v":""}]
[{"$f":"CONCATENATE(Sprachen!H$171,\" \",H358)","v":"Angaben zu den Gebäuden und Technischen Anlagen 9 / 1"},{"$nulls":44},{"$f":"IF(Titelblatt!$F$25=\"\",\"\",Titelblatt!$F$25)","v":""}]
[]
[]
[{"$f":"Sprachen!H$172","v":"Gebäudedaten"}]
["B.1",{"$f":"Sprachen!H$178","v":"Gebäude-Nr.:"},{"$nulls":5},{"$f":"CONCATENATE(\"9 / \",'Formular A'!$E$14)","v":"9 / 1"}]
["B.2",{"$f":"Sprachen!H$179","v":"Gebäudebezeichnung:"},{"$nulls":18},{"$f":"Sprachen!H$199","v":"Adresse:"}]
["B.3",{"$f":"Sprachen!H$180","v":"Anzahl Geschosse:"},{"$nulls":6},{"$f":"Sprachen!H$194","v":" Obergeschosse"},{"$nulls":9},{"$f":"Sprachen!H$198","v":" Untergeschosse"}]
["B.4",{"$f":"Sprachen!H$181","v":"Geschossflächen:"},{"$nulls":5},{"$f":"Sprachen!H$192","v":"Bruttogeschossfläche"},{"$nulls":15},{"$f":"Sprachen!H$200","v":" m² BGF"},{"$nulls":3},{"$f":"Sprachen!H$204","v":"Beheizte Geschossfläche"},{"$nulls":15},{"$f":"Sprachen!H$212","v":" m² BGF"}]
["B.5",{"$f":"Sprachen!H$182","v":"Nutzungsarten:"},{"$nulls":5},"1.",{"$nulls":9},{"$f":"Sprachen!H$196","v":" m² BGF"},null,null,"2.",{"$nulls":9},{"$f":"Sprachen!H$207","v":" m² BGF"},null,null,"3.",{"$nulls":9},{"$f":"Sprachen!H$213","v":" m² BGF"},null,null,{"$f":"Eingabemeldung(Sprachen!$H$184,Sprachen!$H$183,I362)","v":""},{"$f":"Eingabemeldung(Sprachen!$H$184,Sprachen!$H$183,V362)","v":""},{"$f":"Eingabemeldung(Sprachen!$H$184,Sprachen!$H$183,AI362)","v":""}]
["B.6",{"$f":"Sprachen!H$185","v":"Baujahr:"}]
[null,{"$f":"Sprachen!H$186","v":"Sanierungen/Erweiterungen:"},{"$nulls":5},"1.",{"$nulls":12},"2.",{"$nulls":12},"3.",{"$nulls":12},{"$f":"Eingabemeldung(Sprachen!$H$188,Sprachen!$H$187,I364)","v":""},{"$f":"Eingabemeldung(Sprachen!$H$188,Sprachen!$H$187,V364)","v":""},{"$f":"Eingabemeldung(Sprachen!$H$188,Sprachen!$H$187,AI364)","v":""}]
["B.7",{"$f":"Sprachen!H$189","v":"Art der Gebäudehülle:"},{"$nulls":21},{"$f":"Sprachen!H$201","v":"Sonnenschutz:"}]
["B.8",{"$f":"Sprachen!H$190","v":"U-Werte:"},{"$nulls":5},{"$f":"Sprachen!H$193","v":"Aussenwand"},{"$nulls":7},"W/m²K",null,{"$f":"Sprachen!H$197","v":" Fenster"},{"$nulls":5},"W/m²K",null,{"$f":"Sprachen!H$202","v":" Boden gegen \"unbeheizt\""},{"$nulls":9},"W/m²K",null,{"$f":"Sprachen!H$210","v":"Dach"},{"$nulls":6},"W/m²K"]
[{"$f":"Sprachen!H$173","v":"Anlagedaten"}]
[{"$f":"Sprachen!H$174","v":"Nr."},{"$f":"Sprachen!H$191","v":"Anlage"},{"$nulls":11},{"$f":"Sprachen!H$195","v":"Technische Daten"},{"$nulls":11},{"$f":"Sprachen!H$203","v":"Leistung [kW]"},null,null,{"$f":"Sprachen!H$205","v":"Betriebsst.\n[h/a]"},null,null,{"$f":"Sprachen!H$206","v":"WRG"},null,null,{"$f":"Sprachen!H$208","v":"Baujahr"},null,null,{"$f":"Sprachen!H$209","v":"Zustand"},null,null,{"$f":"Sprachen!H$211","v":"Sanie-\nrungspflicht"},null,null,{"$f":"Sprachen!H$214","v":"Schema (Beilage)"}]
[{"$f":"Sprachen!H$175","v":"B.9  Energieerzeugungsanlagen"}]
{"$rows_empty":7}
[{"$f":"Sprachen!H$176","v":"B.10  Energieverbraucher Haustechnik"}]
{"$rows_empty":10}
[{"$f":"Sprachen!H$177","v":"B.11  Energieverbraucher Prozess u. Produktion"}]
{"$rows_empty":8}
[{"$f":"Sprachen!H$170","v":"Formular B "},{"$nulls":44},{"$f":"IF(Titelblatt!$F$12=\"\",\"\",Titelblatt!$F$12)","v":""}]
[{"$f":"CONCATENATE(Sprachen!H$171,\" \",H402)","v":"Angaben zu den Gebäuden und Technischen Anlagen 10 / 1"},{"$nulls":44},{"$f":"IF(Titelblatt!$F$25=\"\",\"\",Titelblatt!$F$25)","v":""}]
[]
[]
[{"$f":"Sprachen!H$172","v":"Gebäudedaten"}]
["B.1",{"$f":"Sprachen!H$178","v":"Gebäude-Nr.:"},{"$nulls":5},{"$f":"CONCATENATE(\"10 / \",'Formular A'!$E$14)","v":"10 / 1"}]
["B.2",{"$f":"Sprachen!H$179","v":"Gebäudebezeichnung:"},{"$nulls":18},{"$f":"Sprachen!H$199","v":"Adresse:"}]
["B.3",{"$f":"Sprachen!H$180","v":"Anzahl Geschosse:"},{"$nulls":6},{"$f":"Sprachen!H$194","v":" Obergeschosse"},{"$nulls":9},{"$f":"Sprachen!H$198","v":" Untergeschosse"}]
["B.4",{"$f":"Sprachen!H$181","v":"Geschossflächen:"},{"$nulls":5},{"$f":"Sprachen!H$192","v":"Bruttogeschossfläche"},{"$nulls":15},{"$f":"Sprachen!H$200","v":" m² BGF"},{"$nulls":3},{"$f":"Sprachen!H$204","v":"Beheizte Geschossfläche"},{"$nulls":15},{"$f":"Sprachen!H$212","v":" m² BGF"}]
["B.5",{"$f":"Sprachen!H$182","v":"Nutzungsarten:"},{"$nulls":5},"1.",{"$nulls":9},{"$f":"Sprachen!H$196","v":" m² BGF"},null,null,"2.",{"$nulls":9},{"$f":"Sprachen!H$207","v":" m² BGF"},null,null,"3.",{"$nulls":9},{"$f":"Sprachen!H$213","v":" m² BGF"},null,null,{"$f":"Eingabemeldung(Sprachen!$H$184,Sprachen!$H$183,I406)","v":""},{"$f":"Eingabemeldung(Sprachen!$H$184,Sprachen!$H$183,V406)","v":""},{"$f":"Eingabemeldung(Sprachen!$H$184,Sprachen!$H$183,AI406)","v":""}]
["B.6",{"$f":"Sprachen!H$185","v":"Baujahr:"}]
[null,{"$f":"Sprachen!H$186","v":"Sanierungen/Erweiterungen:"},{"$nulls":5},"1.",{"$nulls":12},"2.",{"$nulls":12},"3.",{"$nulls":12},{"$f":"Eingabemeldung(Sprachen!$H$188,Sprachen!$H$187,I408)","v":""},{"$f":"Eingabemeldung(Sprachen!$H$188,Sprachen!$H$187,V408)","v":""},{"$f":"Eingabemeldung(Sprachen!$H$188,Sprachen!$H$187,AI408)","v":""}]
["B.7",{"$f":"Sprachen!H$189","v":"Art der Gebäudehülle:"},{"$nulls":21},{"$f":"Sprachen!H$201","v":"Sonnenschutz:"}]
["B.8",{"$f":"Sprachen!H$190","v":"U-Werte:"},{"$nulls":5},{"$f":"Sprachen!H$193","v":"Aussenwand"},{"$nulls":7},"W/m²K",null,{"$f":"Sprachen!H$197","v":" Fenster"},{"$nulls":5},"W/m²K",null,{"$f":"Sprachen!H$202","v":" Boden gegen \"unbeheizt\""},{"$nulls":9},"W/m²K",null,{"$f":"Sprachen!H$210","v":"Dach"},{"$nulls":6},"W/m²K"]
[{"$f":"Sprachen!H$173","v":"Anlagedaten"}]
[{"$f":"Sprachen!H$174","v":"Nr."},{"$f":"Sprachen!H$191","v":"Anlage"},{"$nulls":11},{"$f":"Sprachen!H$195","v":"Technische Daten"},{"$nulls":11},{"$f":"Sprachen!H$203","v":"Leistung [kW]"},null,null,{"$f":"Sprachen!H$205","v":"Betriebsst.\n[h/a]"},null,null,{"$f":"Sprachen!H$206","v":"WRG"},null,null,{"$f":"Sprachen!H$208","v":"Baujahr"},null,null,{"$f":"Sprachen!H$209","v":"Zustand"},null,null,{"$f":"Sprachen!H$211","v":"Sanie-\nrungspflicht"},null,null,{"$f":"Sprachen!H$214","v":"Schema (Beilage)"}]
[{"$f":"Sprachen!H$175","v":"B.9  Energieerzeugungsanlagen"}]
{"$rows_empty":7}
[{"$f":"Sprachen!H$176","v":"B.10  Energieverbraucher Haustechnik"}]
{"$rows_empty":10}
[{"$f":"Sprachen!H$177","v":"B.11  Energieverbraucher Prozess u. Produktion"}]

{"sheet":"Formular C","index":8,"n_rows":43,"n_cols":17,"rows_kept":43,"merged":[[6,0,6,7],[8,0,9,1],[8,2,9,2],[8,3,9,3],[8,4,8,8],[10,0,10,1],[16,0,16,1],[22,0,22,3],[23,0,23,3],[27,0,27,1],[31,0,31,1],[32,0,32,1],[33,0,33,8],[37,0,37,1],[38,0,38,1],[39,0,39,1],[40,0,40,1],[43,0,45,8]]}
[{"$f":"Sprachen!H216","v":"Formular C"},{"$nulls":15},{"$f":"IF(Titelblatt!$F$12=\"\",\"\",Titelblatt!$F$12)","v":""}]
[{"$f":"Sprachen!H217","v":"Angaben zum Endenergiebezug"},{"$nulls":15},{"$f":"IF(Titelblatt!$F$25=\"\",\"\",Titelblatt!$F$25)","v":""}]
[]
[]
[{"$f":"Sprachen!H218","v":"C.1  Angabe des absoluten Endenergiebezugs"}]
[]
[{"$f":"Sprachen!H219","v":"Aktuellstes abgeschlossenes Kalenderjahr:"},{"$nulls":8},{"$f":"Eingabemeldung(Sprachen!H258,Sprachen!H257,I7)","v":""}]
[]
[{"$f":"IF(akt_Jahr=\"\",Sprachen!H251,\"\")","v":"Bitte zuerst aktuellstes Kalenderjahr angeben!"},null,{"$f":"Sprachen!H53","v":"Gewichtungsfaktoren"},{"$f":"CONCATENATE(Sprachen!H249,\" \",IF(akt_Jahr=\"\",Sprachen!H250,akt_Jahr))","v":"Energiepreis Jahr?"},{"$f":"Sprachen!H254","v":"Energiebezug der letzten fünf Jahre"}]
[{"$nulls":4},{"$f":"IF(akt_Jahr=\"\",Sprachen!H250,I10-4)","v":"Jahr?"},{"$f":"IF(akt_Jahr=\"\",Sprachen!H250,I10-3)","v":"Jahr?"},{"$f":"IF(akt_Jahr=\"\",Sprachen!H250,I10-2)","v":"Jahr?"},{"$f":"IF(akt_Jahr=\"\",Sprachen!H250,I10-1)","v":"Jahr?"},{"$f":"IF(akt_Jahr=\"\",Sprachen!H250,akt_Jahr)","v":"Jahr?"}]
[{"$f":"Sprachen!H220","v":"Thermische Energie ¹⁾:"},{"$f":"Sprachen!#REF!","v":{"$error":"#REF!"}},null,"[CHF/kWh]","[kWh/a]","[kWh/a]","[kWh/a]","[kWh/a]","[kWh/a]"]
[{"$f":"Sprachen!H221","v":"Ö"},{"$f":"Sprachen!H242","v":"Heizöl"},{"$f":"Admin!B67","v":1}]
[{"$f":"Sprachen!H222","v":"G"},{"$f":"Sprachen!H243","v":"Erdgas"},{"$f":"Admin!B68","v":1}]
[{"$f":"Sprachen!H223","v":"F"},{"$f":"Sprachen!H244","v":"Fernwärme/-kälte"},{"$f":"Admin!B69","v":0.6}]
[{"$f":"Sprachen!H224","v":"H"},{"$f":"Sprachen!H245","v":"Holz, Biomasse"},{"$f":"Admin!B70","v":0.7}]
[{"$f":"Sprachen!H225","v":"W"},null,{"$f":"Admin!B71","v":1}]
[{"$f":"Sprachen!H226","v":"Thermische Energie Total"},{"$f":"Sprachen!#REF!","v":{"$error":"#REF!"}},null,null,{"$f":"SUM(E12:E16)","v":0},{"$f":"SUM(F12:F16)","v":0},{"$f":"SUM(G12:G16)","v":0},{"$f":"SUM(H12:H16)","v":0},{"$f":"SUM(I12:I16)","v":0}]
[null,"Kosten Thermische Energie",null,"[CHF/a]",{"$f":"$D$12*E12+$D$13*E13+$D$14*E14+$D$15*E15+$D$16*E16","v":0},{"$f":"$D$12*F12+$D$13*F13+$D$14*F14+$D$15*F15+$D$16*F16","v":0},0,0,0]
[null,{"$f":"Sprachen!H246","v":"Thermische Energie"}]
[{"$f":"Sprachen!H227","v":"E"},{"$f":"Sprachen!H247","v":"Elektr. Energie Total ¹⁾:"},{"$f":"Admin!B72","v":2}]
[null,"Kosten Elektrische Energie",null,"[CHF/a]",{"$f":"$D$20*E20","v":0},{"$f":"$D$20*F20","v":0},0,0,0]
[null,{"$f":"Sprachen!H248","v":"Elektrische Energie"}]
[{"$f":"Sprachen!H228","v":"Jahresendenergiebezug ungewichtet"},{"$f":"Sprachen!#REF!","v":{"$error":"#REF!"}},null,{"$f":"Sprachen!I228","v":0},{"$f":"SUM(E17,E20)","v":0},{"$f":"SUM(F17,F20)","v":0},{"$f":"SUM(G17,G20)","v":0},{"$f":"SUM(H17,H20)","v":0},{"$f":"SUM(I17,I20)","v":0}]
[{"$f":"Sprachen!H229","v":"Jahresendenergiebezug gewichtet ²⁾"},{"$f":"Sprachen!#REF!","v":{"$error":"#REF!"}},null,{"$f":"Sprachen!I229","v":0},{"$f":"SUM(($C$12:$C$16)*(E$12:E$16),$C$20*E$20)","v":0},{"$f":"SUM(($C$12:$C$16)*(F$12:F$16),$C$20*F$20)","v":0},{"$f":"SUM(($C$12:$C$16)*(G$12:G$16),$C$20*G$20)","v":0},{"$f":"SUM(($C$12:$C$16)*(H$12:H$16),$C$20*H$20)","v":0},{"$f":"SUM(($C$12:$C$16)*(I$12:I$16),$C$20*I$20)","v":0}]
[{"$f":"Sprachen!H230","v":"1) Bei Verwendung einer Photovoltaik-, WP-, oder BHKW-Anlage sind dazugehörige Energiezahlen in Formular D, Ziffer D.1 anzugeben."}]
[{"$f":"Sprachen!H231","v":"2) Gewichtungsfaktoren: Elektrische Energie: 2, Heizöl & Erdgas: 1, Fernwärme/-kälte: 0.6, Holz & Biomasse: 0.7, Weitere (W): 1"}]
[]
[{"$f":"Sprachen!H232","v":"Wasserverbrauch:"},{"$f":"Sprachen!#REF!","v":{"$error":"#REF!"}},null,"[m3/a]"]
[]
[{"$f":"Sprachen!H233","v":"C.2  Angabe der Bezugsgrösse"}]
[]
[{"$f":"Sprachen!H234","v":"Bezeichnung Bezugsgrösse ³⁾"},{"$f":"Sprachen!#REF!","v":{"$error":"#REF!"}},null,{"$f":"Sprachen!H252","v":"Einheit"},{"$f":"E10","v":"Jahr?"},{"$f":"F10","v":"Jahr?"},"Jahr?","Jahr?","Jahr?"]
[]
[{"$f":"Sprachen!H236","v":"3) Die Bezugsgrösse muss ein geeigneter Indikator für den Energieverbrauch der Betriebsstätte sein (z.B. beheizte Geschossfläche, Anzahl Mitarbeiter, Umsatz, Produktionszahlen, etc.)."}]
[]
[{"$f":"Sprachen!H237","v":"C.3  Resultierender spezifischer Endenergiebezug"}]
[]
[{"$nulls":3},{"$f":"Sprachen!H253","v":"Einheit"},{"$f":"E10","v":"Jahr?"},{"$f":"F10","v":"Jahr?"},"Jahr?","Jahr?","Jahr?"]
[{"$f":"Sprachen!H238","v":"Spez. Therm. Energie"},{"$f":"Sprachen!#REF!","v":{"$error":"#REF!"}},null,{"$f":"IF(D33=\"\",\"-\",\"[kWh/\"&$D$33&\"/a]\")","v":"-"},{"$f":"IF(OR(E33=\"\",E33=0),\"-\",E17/E33)","v":"-"},{"$f":"IF(OR(F33=\"\",F33=0),\"-\",F17/F33)","v":"-"},{"$f":"IF(OR(G33=\"\",G33=0),\"-\",G17/G33)","v":"-"},{"$f":"IF(OR(H33=\"\",H33=0),\"-\",H17/H33)","v":"-"},{"$f":"IF(OR(I33=\"\",I33=0),\"-\",I17/I33)","v":"-"}]
[{"$f":"Sprachen!H239","v":"Spez. Elektr. Energie"},{"$f":"Sprachen!#REF!","v":{"$error":"#REF!"}},null,{"$f":"IF(D33=\"\",\"-\",\"[kWh/\"&$D$33&\"/a]\")","v":"-"},{"$f":"IF(OR(E33=\"\",E33=0),\"-\",E20/E33)","v":"-"},{"$f":"IF(OR(F33=\"\",F33=0),\"-\",F20/F33)","v":"-"},{"$f":"IF(OR(G33=\"\",G33=0),\"-\",G20/G33)","v":"-"},{"$f":"IF(OR(H33=\"\",H33=0),\"-\",H20/H33)","v":"-"},{"$f":"IF(OR(I33=\"\",I33=0),\"-\",I20/I33)","v":"-"}]
[{"$f":"Sprachen!H240","v":"Spez. Jahresenergiebezug"},{"$f":"Sprachen!#REF!","v":{"$error":"#REF!"}},null,{"$f":"IF(D33=\"\",\"-\",\"[kWh/\"&$D$33&\"/a]\")","v":"-"},{"$f":"IF(OR(E33=\"\",E33=0),\"-\",E23/E33)","v":"-"},{"$f":"IF(OR(F33=\"\",F33=0),\"-\",F23/F33)","v":"-"},{"$f":"IF(OR(G33=\"\",G33=0),\"-\",G23/G33)","v":"-"},{"$f":"IF(OR(H33=\"\",H33=0),\"-\",H23/H33)","v":"-"},{"$f":"IF(OR(I33=\"\",I33=0),\"-\",I23/I33)","v":"-"}]
[null,{"$f":"CONCATENATE(Sprachen!H256,\" \",D39)","v":"Entwicklung Spez. Energiebezug -"}]
[{"$f":"Sprachen!H241","v":"Kommentar zu den Bezugsgrössen und den spezifischen Energiebezügen:"}]

{"sheet":"Formular D","index":9,"n_rows":74,"n_cols":17,"rows_kept":74,"merged":[[5,0,6,2],[5,3,5,4],[5,5,5,6],[7,0,7,2],[7,7,7,12],[9,0,9,12],[10,0,10,2],[10,7,10,8],[10,10,10,11],[11,0,11,2],[11,7,11,12],[12,0,12,2],[12,7,12,12],[13,0,13,2],[13,7,13,12],[14,0,14,2],[14,7,14,12],[16,0,16,2],[16,7,16,12],[18,0,18,2],[18,7,18,12],[21,0,22,2],[21,3,21,4],[21,5,21,6],[21,9,21,10],[21,11,21,12],[23,0,23,2],[23,7,23,8],[24,0,28,0],[24,1,24,2],[24,7,28,7],[25,1,25,2],[26,1,26,2],[27,1,27,2],[28,1,28,2],[29,0,33,0],[29,1,29,2],[29,7,33,7],[30,1,30,2],[31,1,31,2],[32,1,32,2],[33,1,33,2],[34,0,38,0],[34,1,34,2],[35,1,35,2],[36,1,36,2],[37,1,37,2],[38,1,38,2],[39,0,43,0],[39,1,39,2],[40,1,40,2],[41,1,41,2],[42,1,42,2],[43,1,43,2],[45,7,45,8],[53,8,53,9],[54,8,54,9],[55,1,55,7],[56,1,56,9],[57,1,57,9],[58,1,58,9],[59,1,59,9],[60,0,60,9],[61,0,61,9],[62,1,62,9],[63,1,63,8],[64,1,64,9],[65,1,65,9],[66,1,66,9],[67,1,67,9],[68,1,68,9],[70,2,70,8],[72,8,72,9],[73,8,73,9]]}
[{"$f":"Sprachen!H260","v":"Formular D"},{"$nulls":11},{"$f":"IF(Titelblatt!$F$12=\"\",\"\",Titelblatt!$F$12)","v":""},"Eingabemeldung","Eingabemeldung"]
[{"$f":"Sprachen!H264","v":"Angaben zum Energiebedarf der Hauptverbraucher 1 / 2"},{"$nulls":11},{"$f":"IF(Titelblatt!$F$25=\"\",\"\",Titelblatt!$F$25)","v":""}]
[]
[]
[{"$f":"Sprachen!H265","v":"D.1 Ermittlung des Energiebedarfs des aktuellen Jahres:"}]
[{"$nulls":3},{"$f":"Sprachen!H307","v":"Thermische Energie"},null,{"$f":"Sprachen!H312","v":"Elektrische Energie"}]
[{"$nulls":3},"[kWh/a]",{"$f":"Sprachen!H310","v":"(Vorzeichen)"},"[kWh/a]",{"$f":"Sprachen!H315","v":"(Vorzeichen)"}]
[{"$f":"Sprachen!H266","v":"Aktueller Jahresenergiebezug ungewichtet:"},{"$f":"Sprachen!#REF!","v":{"$error":"#REF!"}},{"$f":"Sprachen!I266","v":0},{"$f":"'Formular C'!I17","v":0},null,{"$f":"'Formular C'!I20","v":0},null,{"$f":"Sprachen!H317","v":"Gemäss Angaben von Formular C, Ziffer C.1"}]
[]
[{"$f":"Sprachen!H267","v":"Hinweis: Die nachfolgenden fünf Eingabezeilen sind nur bei einer aktuellen Verwendung von WP-, AWN-, UE-, BHKW- oder SE-Anlagen (siehe nachfolgend) auszufüllen.  Beachten Sie auch die Eingabemeldungen."}]
[{"$f":"Sprachen!H270","v":"Wärmepumpen/Kältemaschinen (WP/KM):"},{"$f":"Sprachen!#REF!","v":{"$error":"#REF!"}},{"$f":"Sprachen!#REF!","v":{"$error":"#REF!"}},{"$f":"IF(AND(F11<>\"\",J11<>\"\",M11<>\"\"),(-1)*F11*J11,IF(AND(F11<>\"\",F11<>0,J11=\"\"),Sprachen!H271,IF(AND(F11<>\"\",F11<>0,J11<>\"\",M11=\"\"),Sprachen!H272,\"0\")))","v":"0"},"        (+)",null,"(-)",{"$f":"Sprachen!H322","v":"(durchschn.) Jahresarbeitszahl (JAZ):"},null,null,{"$f":"Sprachen!H321","v":"Anteil Umweltenergie:"},null,null,{"$f":"Eingabemeldung(Sprachen!H346,Sprachen!H345,F11)","v":""},{"$f":"Eingabemeldung(Sprachen!H350,Sprachen!H349,J11)","v":""},{"$f":"Eingabemeldung(Sprachen!H348,Sprachen!H347,D11)","v":""},{"$f":"Eingabemeldung(Sprachen!H352,Sprachen!H351,M11)","v":""}]
[{"$f":"Sprachen!H273","v":"Direktnutzung interner Abwärme (AWN):"},{"$f":"Sprachen!#REF!","v":{"$error":"#REF!"}},{"$f":"Sprachen!I270","v":0},null,"(+)",null,null,{"$f":"Sprachen!H318","v":"Direkt genutzte Abwärme von externen Arealen ist als Fernwärme zu erfassen (Formular C, Ziffer C.1)."},{"$nulls":5},{"$f":"Eingabemeldung(Sprachen!H342,Sprachen!H341,D12)","v":""}]
[{"$f":"Sprachen!H269","v":"Thermische Nutzung Umweltenergie (UE):"},{"$f":"Sprachen!#REF!","v":{"$error":"#REF!"}},{"$f":"Sprachen!I269","v":0},null,"(+)",null,null,{"$f":"Sprachen!H320","v":"Z.B. Free-Cooling oder solarthermisch erzeugte Wärme- oder Kälteenergie für den Eigengebrauch."},{"$nulls":5},{"$f":"Eingabemeldung(Sprachen!H344,Sprachen!H343,D13)","v":""}]
[{"$f":"Sprachen!H274","v":"Stromeigenprod. Blockheizkraftwerk (BHKW):"},{"$f":"Sprachen!#REF!","v":{"$error":"#REF!"}},{"$f":"Sprachen!I274","v":0},{"$f":"(-1)*45/35*F14","v":0},"1)      (-)",null,"(+)",{"$f":"Sprachen!H323","v":"1) Die benötigte thermische Energie wird vereinfacht mit einem Wirkungsgrad von 90% berechnet."},{"$nulls":5},{"$f":"Eingabemeldung(Sprachen!H354,Sprachen!H353,F14)","v":""}]
[{"$f":"Sprachen!H268","v":"Stromeigenproduktion Erneuerbar (SE):"},{"$f":"Sprachen!#REF!","v":{"$error":"#REF!"}},{"$f":"Sprachen!I268","v":0},{"$nulls":3},"(+)",{"$f":"Sprachen!H319","v":"Stromeigenproduktion Erneuerbar (PV, Kleinwasser, etc.) für den Eigenverbrauch; ohne Zukäufe von Zertifikaten."},{"$nulls":5},{"$f":"Eingabemeldung(Sprachen!H340,Sprachen!H339,F15)","v":""}]
[]
[{"$f":"Sprachen!H275","v":"Energieverluste (Erzeugung/Verteilung):"},{"$f":"Sprachen!#REF!","v":{"$error":"#REF!"}},{"$f":"Sprachen!I275","v":0},null,"(-)",null,"(-)",{"$f":"Sprachen!H324","v":"Eine Abschätzung der Energieverluste aller Energieerzeugungsanlagen und Verteilsysteme ist hier anzugeben."}]
[]
[{"$f":"Sprachen!H276","v":"Total Energiebedarf:"},{"$f":"Sprachen!#REF!","v":{"$error":"#REF!"}},{"$f":"Sprachen!I276","v":0},{"$f":"D8+D13+D11+D12+D14+D17","v":0},{"v":1,"d":"100%"},{"$f":"F8+F15+F11+F14+F17","v":0},{"v":1,"d":"100%"},{"$f":"Sprachen!H325","v":"Dieser Energiebedarf muss nachfolgend den Haustechnik- und Prozessanlagen zugeordnet werden."}]
[]
[{"$f":"Sprachen!H277","v":"D.2 Aufteilung des Energiebedarfs des aktuellen Jahres nach (Haupt-)Verbrauchern:"}]
[{"$nulls":3},{"$f":"Sprachen!H308","v":"Thermische Energie"},null,{"$f":"Sprachen!H313","v":"Elektrische Energie"},{"$nulls":3},{"$f":"Sprachen!H332","v":"Thermische Energie"},null,{"$f":"Sprachen!H336","v":"Elektrische Energie"}]
[{"$nulls":3},{"$f":"Sprachen!H309","v":"Energie"},{"$f":"Sprachen!H311","v":"Anteil"},{"$f":"Sprachen!H314","v":"Energie"},{"$f":"Sprachen!H316","v":"Anteil"},null,null,{"$f":"Sprachen!H333","v":"Energie"},{"$f":"Sprachen!H335","v":"Anteil"},{"$f":"Sprachen!H337","v":"Energie"},{"$f":"Sprachen!H338","v":"Anteil"}]
[{"$f":"Sprachen!H278","v":"Haustechnikanlagen:"},{"$f":"Sprachen!#REF!","v":{"$error":"#REF!"}},{"$f":"Sprachen!I278","v":0},"[kWh/a]","[-]","[kWh/a]","[-]",{"$f":"Sprachen!H326","v":"Haustechnikanlagen:"},null,"[kWh/a]","[-]","[kWh/a]","[-]"]
[{"$f":"Sprachen!H279","v":"Heizung"},{"$nulls":3},{"$f":"IF($D$19=0,\"\",D25/$D$19)","v":""},null,{"$f":"IF($F$19=0,\"\",F25/$F$19)","v":""},{"$f":"Sprachen!H327","v":"Druckluft"},null,null,{"$f":"IF($D$19=0,\"\",J25/$D$19)","v":""},null,{"$f":"IF($F$19=0,\"\",L25/$F$19)","v":""}]
[{"$f":"Sprachen!#REF!","v":{"$error":"#REF!"}},{"$nulls":3},{"$f":"IF($D$19=0,\"\",D26/$D$19)","v":""},null,{"$f":"IF($F$19=0,\"\",F26/$F$19)","v":""},{"$f":"Sprachen!#REF!","v":{"$error":"#REF!"}},null,null,"",null,""]
[{"$f":"Sprachen!#REF!","v":{"$error":"#REF!"}},{"$nulls":3},"",null,"",{"$f":"Sprachen!#REF!","v":{"$error":"#REF!"}},null,null,"",null,""]
[{"$f":"Sprachen!#REF!","v":{"$error":"#REF!"}},{"$nulls":3},"",null,"",{"$f":"Sprachen!#REF!","v":{"$error":"#REF!"}},null,null,"",null,""]
[{"$f":"Sprachen!#REF!","v":{"$error":"#REF!"}},{"$nulls":3},"",null,"",{"$f":"Sprachen!#REF!","v":{"$error":"#REF!"}},null,null,"",null,""]
[{"$f":"Sprachen!H280","v":"Warmwasser"},{"$nulls":3},"",null,"",{"$f":"Sprachen!H328","v":"Andere"},null,null,"",null,""]
[{"$f":"Sprachen!#REF!","v":{"$error":"#REF!"}},{"$nulls":3},"",null,"",{"$nulls":3},"",null,""]
[{"$f":"Sprachen!#REF!","v":{"$error":"#REF!"}},{"$nulls":3},"",null,"",{"$nulls":3},"",null,""]
[{"$f":"Sprachen!#REF!","v":{"$error":"#REF!"}},{"$nulls":3},"",null,"",{"$nulls":3},"",null,""]
[{"$f":"Sprachen!#REF!","v":{"$error":"#REF!"}},{"$nulls":3},"",null,"",null,{"$f":"Sprachen!H331","v":"Diverse Verbraucher ²⁾"},null,"",null,""]
[{"$f":"Sprachen!H281","v":"Lüftung/Klima"},{"$nulls":3},"",null,"",{"$f":"Sprachen!H329","v":"Prozess- und Produktionsanlagen:"}]
[{"$f":"Sprachen!#REF!","v":{"$error":"#REF!"}},{"$nulls":3},"",null,"",{"$nulls":3},{"$f":"IF($D$19=0,\"\",J36/$D$19)","v":""},null,{"$f":"IF($F$19=0,\"\",L36/$F$19)","v":""}]
[{"$f":"Sprachen!#REF!","v":{"$error":"#REF!"}},{"$nulls":3},"",null,"",{"$nulls":3},"",null,""]
[{"$f":"Sprachen!#REF!","v":{"$error":"#REF!"}},{"$nulls":3},"",null,"",{"$nulls":3},"",null,""]
[{"$f":"Sprachen!#REF!","v":{"$error":"#REF!"}},{"$nulls":3},"",null,"",{"$nulls":3},"",null,""]
[{"$f":"Sprachen!H282","v":"Beleuchtung"},{"$nulls":3},"",null,"",{"$nulls":3},"",null,""]
[{"$f":"Sprachen!#REF!","v":{"$error":"#REF!"}},{"$nulls":3},"",null,"",{"$nulls":3},"",null,""]
[{"$f":"Sprachen!#REF!","v":{"$error":"#REF!"}},{"$nulls":3},"",null,"",{"$nulls":3},"",null,""]
[{"$f":"Sprachen!#REF!","v":{"$error":"#REF!"}},{"$nulls":3},"",null,"",{"$nulls":3},"",null,""]
[{"$f":"Sprachen!#REF!","v":{"$error":"#REF!"}},{"$nulls":3},"",null,"",{"$nulls":3},"",null,""]
[]
[{"$f":"Sprachen!H283","v":"2) Max. 20% Diverse. Gesamthaft muss der Energiebedarf zu 100% einzelnen Verbrauchern zugeordnet werden."},{"$nulls":6},{"$f":"Sprachen!H330","v":"Total zugeordneter Energiebedarf:"},null,{"$f":"SUM(D25:D44,J25:J34,J36:J44)","v":0},{"$f":"IF($D$19=0,\"\",J46/D19)","v":""},{"$f":"SUM(F25:F44,L25:L34,L36:L44)","v":0},{"$f":"IF($F$19=0,\"\",L46/F19)","v":""}]
[{"$f":"Sprachen!H284","v":"Hinweis: Im nachfolgenden Punkt D.3 ist ein Energieflussdiagramm zu erstellen. Beachten Sie bitte dazu die Anleitung \"In fünf Schritten zum Energieflussdiagramm\"."}]
[{"$f":"Sprachen!H285","v":"Formular D"},{"$nulls":11},{"$f":"IF(Titelblatt!$F$12=\"\",\"\",Titelblatt!$F$12)","v":""}]
[{"$f":"Sprachen!H286","v":"Angaben zum Energiebedarf der Hauptverbraucher 2 / 2"},{"$nulls":11},{"$f":"IF(Titelblatt!$F$25=\"\",\"\",Titelblatt!$F$25)","v":""}]
[]
[]
[{"$f":"Sprachen!H287","v":"D.3 Energieflussdiagramm"}]
[{"$f":"Sprachen!H288","v":"In fünf Schritten zum Energieflussdiagramm:"}]
["1.",{"$f":"Sprachen!H289","v":"Drücken Sie den Button \"Energieflussdiagramm erzeugen\":"}]
["->",{"$f":"Sprachen!H290","v":"Bei einer allfälligen Sicherheitswarnung des Internet-Browsers: Lassen Sie geblockte Inhalte zu."}]
["->",{"$f":"Sprachen!H291","v":"das Energieflussdiagramm öffnet sich in Ihrem Internet-Browser."}]
["2.",{"$f":"Sprachen!H292","v":"Passen Sie das Energieflussdiagramm bei Bedarf an (fakultativ)."},{"$f":"Sprachen!#REF!","v":{"$error":"#REF!"}},{"$f":"Sprachen!I292","v":0},{"$f":"Sprachen!J292","v":0},{"$f":"Sprachen!K292","v":0},{"$f":"Sprachen!L292","v":0},{"$f":"Sprachen!M292","v":0},{"$f":"Sprachen!N292","v":0},{"$f":"Sprachen!O292","v":0}]
["->",{"$f":"Sprachen!H293","v":"mit der Maus können die Balken vertikal verschoben werden."},{"$f":"Sprachen!#REF!","v":{"$error":"#REF!"}},{"$f":"Sprachen!I293","v":0},{"$f":"Sprachen!J293","v":0},{"$f":"Sprachen!K293","v":0},{"$f":"Sprachen!L293","v":0},{"$f":"Sprachen!M293","v":0},{"$f":"Sprachen!N293","v":0},{"$f":"Sprachen!O293","v":0}]
["->",{"$f":"Sprachen!H294","v":"dadurch kann die Darstellung verbessert und die Reihenfolge der Energieträger und Anlagen bei Bedarf verändert werden."},{"$f":"Sprachen!#REF!","v":{"$error":"#REF!"}},{"$f":"Sprachen!I294","v":0},{"$f":"Sprachen!J294","v":0},{"$f":"Sprachen!K294","v":0},{"$f":"Sprachen!L294","v":0},{"$f":"Sprachen!M294","v":0},{"$f":"Sprachen!N294","v":0},{"$f":"Sprachen!O294","v":0}]
["3.",{"$f":"Sprachen!H295","v":"Kopieren Sie das Energieflussdiagramm."},{"$f":"Sprachen!#REF!","v":{"$error":"#REF!"}},{"$f":"Sprachen!I295","v":0},{"$f":"Sprachen!J295","v":0},{"$f":"Sprachen!K295","v":0},{"$f":"Sprachen!L295","v":0},{"$f":"Sprachen!M295","v":0},{"$f":"Sprachen!N295","v":0},{"$f":"Sprachen!O295","v":0}]
[{"$f":"Sprachen!H296","v":"Internet Explorer: drücken Sie mir der rechten Maustaste auf die Grafik und wählen sie \"Kopieren\"."}]
[{"$f":"Sprachen!H297","v":"Firefox oder Chrome: Kopieren Sie das Energieflussdiagramm mit Hilfe eines Screenshot-Programmes:"}]
["->",{"$f":"Sprachen!H298","v":"auf  Computern mit dem Betriebssystem Windows Vista (oder neuer) ist standardmässig das Screenshot-Programm \"Snipping-Tool\" installiert."},{"$f":"Sprachen!#REF!","v":{"$error":"#REF!"}},{"$f":"Sprachen!I298","v":0},{"$f":"Sprachen!J298","v":0},{"$f":"Sprachen!K298","v":0},{"$f":"Sprachen!L298","v":0},{"$f":"Sprachen!M298","v":0},{"$f":"Sprachen!N298","v":0},{"$f":"Sprachen!O298","v":0}]
["->",{"$f":"Sprachen!H299","v":"klicken Sie auf folgenden Button, damit sich das Programm automatisch öffnet: "},{"$f":"Sprachen!#REF!","v":{"$error":"#REF!"}},{"$f":"Sprachen!I299","v":0},{"$f":"Sprachen!J299","v":0},{"$f":"Sprachen!K299","v":0},{"$f":"Sprachen!L299","v":0},{"$f":"Sprachen!M299","v":0},{"$f":"Sprachen!N299","v":0}]
["->",{"$f":"Sprachen!H300","v":"oder starten Sie das SnippingTool manuell, indem Sie in der Schaltfläche \"Start\" (Taskleiste) im Suchfeld den Begriff \"SnippingTool\" eingeben."},{"$f":"Sprachen!#REF!","v":{"$error":"#REF!"}},{"$f":"Sprachen!I300","v":0},{"$f":"Sprachen!J300","v":0},{"$f":"Sprachen!K300","v":0},{"$f":"Sprachen!L300","v":0},{"$f":"Sprachen!M300","v":0},{"$f":"Sprachen!N300","v":0},{"$f":"Sprachen!O300","v":0}]
["->",{"$f":"Sprachen!H301","v":"schneiden Sie das Energieflussdiagramm mit dem Screenshot-Programm aus. Es befindet sich nun automatisch in der Zwischenablage."},{"$f":"Sprachen!#REF!","v":{"$error":"#REF!"}},{"$f":"Sprachen!I301","v":0},{"$f":"Sprachen!J301","v":0},{"$f":"Sprachen!K301","v":0},{"$f":"Sprachen!L301","v":0},{"$f":"Sprachen!M301","v":0},{"$f":"Sprachen!N301","v":0},{"$f":"Sprachen!O301","v":0}]
["4.",{"$f":"Sprachen!H302","v":"Fügen Sie das Energieflussdiagramm innerhalb des weissen Rahmens ein."},{"$f":"Sprachen!#REF!","v":{"$error":"#REF!"}},{"$f":"Sprachen!I302","v":0},{"$f":"Sprachen!J302","v":0},{"$f":"Sprachen!K302","v":0},{"$f":"Sprachen!L302","v":0},{"$f":"Sprachen!M302","v":0},{"$f":"Sprachen!N302","v":0},{"$f":"Sprachen!O302","v":0}]
["->",{"$f":"Sprachen!H303","v":"drücken Sie mit der rechten Maustaste auf die weisse Fläche und wählen Sie \"Einfügen\"."},{"$f":"Sprachen!#REF!","v":{"$error":"#REF!"}},{"$f":"Sprachen!I303","v":0},{"$f":"Sprachen!J303","v":0},{"$f":"Sprachen!K303","v":0},{"$f":"Sprachen!L303","v":0},{"$f":"Sprachen!M303","v":0},{"$f":"Sprachen!N303","v":0},{"$f":"Sprachen!O303","v":0}]
["->",{"$f":"Sprachen!H304","v":"passen Sie das Energieflussdiagramm falls nötig der Grösse der weissen Fläche an."},{"$f":"Sprachen!#REF!","v":{"$error":"#REF!"}},{"$f":"Sprachen!I304","v":0},{"$f":"Sprachen!J304","v":0},{"$f":"Sprachen!K304","v":0},{"$f":"Sprachen!L304","v":0},{"$f":"Sprachen!M304","v":0},{"$f":"Sprachen!N304","v":0},{"$f":"Sprachen!O304","v":0}]
[]
[]
[]
["5.",{"$f":"Sprachen!H305","v":"Drücken Sie den Button \"Speichern und Übertragen\""}]
["->",{"$f":"Sprachen!H306","v":"das Energieflussdiagramm wird gespeichert und  in das Arbeitsblatt \"Report\" übertragen."}]

{"sheet":"Formular E","index":10,"n_rows":40,"n_cols":20,"rows_kept":40,"merged":[[3,7,3,8],[3,10,3,15],[5,0,6,0],[5,1,6,2],[5,3,5,9],[5,10,6,11],[5,12,6,12],[5,13,6,14],[5,15,6,15],[5,16,6,16],[6,3,6,7],[6,8,6,9],[7,3,7,4],[7,5,7,6],[7,16,10,16],[11,1,11,2],[12,1,12,2],[13,1,13,2],[14,1,14,2],[15,1,15,2],[16,1,16,2],[17,1,17,2],[18,1,18,2],[19,1,19,2],[20,1,20,2],[21,1,21,2],[22,1,22,2],[23,1,23,2],[24,1,24,2],[26,1,26,2],[27,1,27,2],[28,1,28,2],[29,1,29,2],[30,1,30,2],[31,1,31,2],[32,10,33,15],[37,0,37,15],[39,2,39,6],[39,11,39,14]]}
[{"$f":"Sprachen!H356","v":"Formular E"},{"$nulls":14},{"$f":"IF(Titelblatt!$F$12=\"\",\"\",Titelblatt!$F$12)","v":""},null,"Eingabemeldung","Eingabemeldung","Eingabemeldung"]
[{"$f":"Sprachen!H357","v":"Neue Massnahmen und Wirtschaftlichkeit"},{"$nulls":14},{"$f":"IF(Titelblatt!$F$25=\"\",\"\",Titelblatt!$F$25)","v":""}]
[]
["a",{"$f":"Sprachen!H366","v":"Gewichteter Energiebezug des aktuellsten Jahres ¹⁾ ²⁾:"},{"$nulls":5},{"$f":"'Formular C'!I24","v":0},null," kWh/a",{"$f":"Sprachen!H379","v":"1) Gem. Formular C, Ziffer C.1      2) Gewichtungsfaktoren gemäss Formular C, Hinweis 2)"}]
[]
[{"$f":"Sprachen!H358","v":"Nr."},{"$f":"Sprachen!H367","v":"Massnahmentitel"},null,{"$f":"Sprachen!H368","v":"Energieeinsparung"},{"$nulls":6},{"$f":"Sprachen!H380","v":"Energiepreis ¹⁾"},null,{"$f":"Sprachen!H385","v":"Kosteneinsp."},{"$f":"Sprachen!H387","v":"Investitionen"},null,{"$f":"Sprachen!H390","v":"Payback"},{"$f":"Sprachen!H392","v":"Beschrei-bung"}]
[{"$nulls":3},{"$f":"Sprachen!H369","v":"Ungewichtet"},{"$nulls":4},{"$f":"Sprachen!H375","v":"Gewichtet ²⁾"}]
[{"$nulls":3},{"$f":"Sprachen!H370","v":"Einsparung 1"},null,{"$f":"Sprachen!H372","v":"Einsparung 2"},null,{"$f":"Sprachen!H374","v":"Total"},{"$f":"Sprachen!H376","v":"Total"},{"$f":"Sprachen!H377","v":"Anteil"},{"$f":"Sprachen!H381","v":"Einspar.1"},{"$f":"Sprachen!H384","v":"Einspar.2"},{"$f":"Sprachen!H386","v":"Total"},{"$f":"Sprachen!H388","v":"Total"},{"$f":"Sprachen!H389","v":"KE"},null,{"$f":"Sprachen!H393","v":"Klicken um zum Blatt Beschreibung zu wechseln:"}]
[{"$nulls":3},{"$f":"Sprachen!H371","v":"Art"},"[kWh/a]",{"$f":"Sprachen!H373","v":"Art"},"[kWh/a]","[kWh/a]","[kWh/a]","[ - ]","[CHF/kWh]","[CHF/kWh]","[CHF/a]","[CHF]","[ - ]","[a]"]
[{"$nulls":4},"b",null,"c","b + c","d = b + c 2)","d / a","e 1)","f 1)","g =  b * e + c * f","h","i","h * i / g"]
[{"$f":"Sprachen!H359","v":"Haustechnikanlagen / Gebäudehülle"}]
[1,{"$nulls":6},{"$f":"IF(B12=\"\",\"\",E12+G12)","v":""},{"$f":"IF(B12=\"\",\"\",IFERROR(E12*VLOOKUP(D12,Admin!$A$67:$B$72,2,FALSE),0)+IFERROR(G12*VLOOKUP(F12,Admin!$A$67:$B$72,2,FALSE),0))","v":""},{"$f":"IF(B12=\"\",\"\",IF($H$4=0,0,I12/$H$4))","v":""},{"$f":"IF(B12=\"\",\"\",IF(D12=\"\",\"0\",IF(VLOOKUP(D12,'Formular C'!$A$12:$D$20,4,0)=\"\",Sprachen!H$382,VLOOKUP(D12,'Formular C'!$A$12:$D$20,4,0))))","v":""},{"$f":"IF(B12=\"\",\"\",IF(F12=\"\",\"0\",IF(VLOOKUP(F12,'Formular C'!$A$12:$D$20,4,0)=\"\",Sprachen!H$382,VLOOKUP(F12,'Formular C'!$A$12:$D$20,4,0))))","v":""},{"$f":"IF(B12=\"\",\"\",(E12*K12)+(G12*L12))","v":""},null,null,{"$f":"IF(OR(M12=\"\",M12=0),\"\",IF(N12=\"\",0,IF(O12=\"\",Sprachen!H$391,N12*O12/M12)))","v":""},{"$f":"Sprachen!H394","v":"Beschr. 1"},{"$f":"Eingabemeldung(Sprachen!H$415,Sprachen!H$414,'Formular E'!D12)","v":""},{"$f":"Eingabemeldung(Sprachen!H$415,Sprachen!H$414,'Formular E'!F12)","v":""},{"$f":"Eingabemeldung(Sprachen!H$417,Sprachen!H$416,'Formular E'!O12)","v":""}]
[2,{"$nulls":6},"",{"$f":"IF(B13=\"\",\"\",IFERROR(E13*VLOOKUP(D13,Admin!$A$67:$B$72,2,FALSE),0)+IFERROR(G13*VLOOKUP(F13,Admin!$A$67:$B$72,2,FALSE),0))","v":""},"",{"$f":"IF(B13=\"\",\"\",IF(D13=\"\",\"0\",IF(VLOOKUP(D13,'Formular C'!$A$12:$D$20,4,0)=\"\",Sprachen!H$382,VLOOKUP(D13,'Formular C'!$A$12:$D$20,4,0))))","v":""},{"$f":"IF(B13=\"\",\"\",IF(F13=\"\",\"0\",IF(VLOOKUP(F13,'Formular C'!$A$12:$D$20,4,0)=\"\",Sprachen!H$382,VLOOKUP(F13,'Formular C'!$A$12:$D$20,4,0))))","v":""},"",null,null,{"$f":"IF(OR(M13=\"\",M13=0),\"\",IF(N13=\"\",0,IF(O13=\"\",Sprachen!H$391,N13*O13/M13)))","v":""},{"$f":"Sprachen!H395","v":"Beschr. 2"},{"$f":"Eingabemeldung(Sprachen!H$415,Sprachen!H$414,'Formular E'!D13)","v":""},{"$f":"Eingabemeldung(Sprachen!H$415,Sprachen!H$414,'Formular E'!F13)","v":""},{"$f":"Eingabemeldung(Sprachen!H$417,Sprachen!H$416,'Formular E'!O13)","v":""}]
[3,{"$nulls":6},"",{"$f":"IF(B14=\"\",\"\",IFERROR(E14*VLOOKUP(D14,Admin!$A$67:$B$72,2,FALSE),0)+IFERROR(G14*VLOOKUP(F14,Admin!$A$67:$B$72,2,FALSE),0))","v":""},"",{"$f":"IF(B14=\"\",\"\",IF(D14=\"\",\"0\",IF(VLOOKUP(D14,'Formular C'!$A$12:$D$20,4,0)=\"\",Sprachen!H$382,VLOOKUP(D14,'Formular C'!$A$12:$D$20,4,0))))","v":""},{"$f":"IF(B14=\"\",\"\",IF(F14=\"\",\"0\",IF(VLOOKUP(F14,'Formular C'!$A$12:$D$20,4,0)=\"\",Sprachen!H$382,VLOOKUP(F14,'Formular C'!$A$12:$D$20,4,0))))","v":""},"",null,null,{"$f":"IF(OR(M14=\"\",M14=0),\"\",IF(N14=\"\",0,IF(O14=\"\",Sprachen!H$391,N14*O14/M14)))","v":""},{"$f":"Sprachen!H396","v":"Beschr. 3"},{"$f":"Eingabemeldung(Sprachen!H$415,Sprachen!H$414,'Formular E'!D14)","v":""},{"$f":"Eingabemeldung(Sprachen!H$415,Sprachen!H$414,'Formular E'!F14)","v":""},{"$f":"Eingabemeldung(Sprachen!H$417,Sprachen!H$416,'Formular E'!O14)","v":""}]
[4,{"$nulls":6},"",{"$f":"IF(B15=\"\",\"\",IFERROR(E15*VLOOKUP(D15,Admin!$A$67:$B$72,2,FALSE),0)+IFERROR(G15*VLOOKUP(F15,Admin!$A$67:$B$72,2,FALSE),0))","v":""},"",{"$f":"IF(B15=\"\",\"\",IF(D15=\"\",\"0\",IF(VLOOKUP(D15,'Formular C'!$A$12:$D$20,4,0)=\"\",Sprachen!H$382,VLOOKUP(D15,'Formular C'!$A$12:$D$20,4,0))))","v":""},{"$f":"IF(B15=\"\",\"\",IF(F15=\"\",\"0\",IF(VLOOKUP(F15,'Formular C'!$A$12:$D$20,4,0)=\"\",Sprachen!H$382,VLOOKUP(F15,'Formular C'!$A$12:$D$20,4,0))))","v":""},"",null,null,{"$f":"IF(OR(M15=\"\",M15=0),\"\",IF(N15=\"\",0,IF(O15=\"\",Sprachen!H$391,N15*O15/M15)))","v":""},{"$f":"Sprachen!H397","v":"Beschr. 4"},{"$f":"Eingabemeldung(Sprachen!H$415,Sprachen!H$414,'Formular E'!D15)","v":""},{"$f":"Eingabemeldung(Sprachen!H$415,Sprachen!H$414,'Formular E'!F15)","v":""},{"$f":"Eingabemeldung(Sprachen!H$417,Sprachen!H$416,'Formular E'!O15)","v":""}]
[5,{"$nulls":6},"",{"$f":"IF(B16=\"\",\"\",IFERROR(E16*VLOOKUP(D16,Admin!$A$67:$B$72,2,FALSE),0)+IFERROR(G16*VLOOKUP(F16,Admin!$A$67:$B$72,2,FALSE),0))","v":""},"",{"$f":"IF(B16=\"\",\"\",IF(D16=\"\",\"0\",IF(VLOOKUP(D16,'Formular C'!$A$12:$D$20,4,0)=\"\",Sprachen!H$382,VLOOKUP(D16,'Formular C'!$A$12:$D$20,4,0))))","v":""},{"$f":"IF(B16=\"\",\"\",IF(F16=\"\",\"0\",IF(VLOOKUP(F16,'Formular C'!$A$12:$D$20,4,0)=\"\",Sprachen!H$382,VLOOKUP(F16,'Formular C'!$A$12:$D$20,4,0))))","v":""},"",null,null,{"$f":"IF(OR(M16=\"\",M16=0),\"\",IF(N16=\"\",0,IF(O16=\"\",Sprachen!H$391,N16*O16/M16)))","v":""},{"$f":"Sprachen!H398","v":"Beschr. 5"},{"$f":"Eingabemeldung(Sprachen!H$415,Sprachen!H$414,'Formular E'!D16)","v":""},{"$f":"Eingabemeldung(Sprachen!H$415,Sprachen!H$414,'Formular E'!F16)","v":""},{"$f":"Eingabemeldung(Sprachen!H$417,Sprachen!H$416,'Formular E'!O16)","v":""}]
[6,{"$nulls":6},"",{"$f":"IF(B17=\"\",\"\",IFERROR(E17*VLOOKUP(D17,Admin!$A$67:$B$72,2,FALSE),0)+IFERROR(G17*VLOOKUP(F17,Admin!$A$67:$B$72,2,FALSE),0))","v":""},"",{"$f":"IF(B17=\"\",\"\",IF(D17=\"\",\"0\",IF(VLOOKUP(D17,'Formular C'!$A$12:$D$20,4,0)=\"\",Sprachen!H$382,VLOOKUP(D17,'Formular C'!$A$12:$D$20,4,0))))","v":""},{"$f":"IF(B17=\"\",\"\",IF(F17=\"\",\"0\",IF(VLOOKUP(F17,'Formular C'!$A$12:$D$20,4,0)=\"\",Sprachen!H$382,VLOOKUP(F17,'Formular C'!$A$12:$D$20,4,0))))","v":""},"",null,null,{"$f":"IF(OR(M17=\"\",M17=0),\"\",IF(N17=\"\",0,IF(O17=\"\",Sprachen!H$391,N17*O17/M17)))","v":""},{"$f":"Sprachen!H399","v":"Beschr. 6"},{"$f":"Eingabemeldung(Sprachen!H$415,Sprachen!H$414,'Formular E'!D17)","v":""},{"$f":"Eingabemeldung(Sprachen!H$415,Sprachen!H$414,'Formular E'!F17)","v":""},{"$f":"Eingabemeldung(Sprachen!H$417,Sprachen!H$416,'Formular E'!O17)","v":""}]
[7,{"$nulls":6},"",{"$f":"IF(B18=\"\",\"\",IFERROR(E18*VLOOKUP(D18,Admin!$A$67:$B$72,2,FALSE),0)+IFERROR(G18*VLOOKUP(F18,Admin!$A$67:$B$72,2,FALSE),0))","v":""},"",{"$f":"IF(B18=\"\",\"\",IF(D18=\"\",\"0\",IF(VLOOKUP(D18,'Formular C'!$A$12:$D$20,4,0)=\"\",Sprachen!H$382,VLOOKUP(D18,'Formular C'!$A$12:$D$20,4,0))))","v":""},{"$f":"IF(B18=\"\",\"\",IF(F18=\"\",\"0\",IF(VLOOKUP(F18,'Formular C'!$A$12:$D$20,4,0)=\"\",Sprachen!H$382,VLOOKUP(F18,'Formular C'!$A$12:$D$20,4,0))))","v":""},"",null,null,{"$f":"IF(OR(M18=\"\",M18=0),\"\",IF(N18=\"\",0,IF(O18=\"\",Sprachen!H$391,N18*O18/M18)))","v":""},{"$f":"Sprachen!H400","v":"Beschr. 7"},{"$f":"Eingabemeldung(Sprachen!H$415,Sprachen!H$414,'Formular E'!D18)","v":""},{"$f":"Eingabemeldung(Sprachen!H$415,Sprachen!H$414,'Formular E'!F18)","v":""},{"$f":"Eingabemeldung(Sprachen!H$417,Sprachen!H$416,'Formular E'!O18)","v":""}]
[8,{"$nulls":6},"",{"$f":"IF(B19=\"\",\"\",IFERROR(E19*VLOOKUP(D19,Admin!$A$67:$B$72,2,FALSE),0)+IFERROR(G19*VLOOKUP(F19,Admin!$A$67:$B$72,2,FALSE),0))","v":""},"",{"$f":"IF(B19=\"\",\"\",IF(D19=\"\",\"0\",IF(VLOOKUP(D19,'Formular C'!$A$12:$D$20,4,0)=\"\",Sprachen!H$382,VLOOKUP(D19,'Formular C'!$A$12:$D$20,4,0))))","v":""},{"$f":"IF(B19=\"\",\"\",IF(F19=\"\",\"0\",IF(VLOOKUP(F19,'Formular C'!$A$12:$D$20,4,0)=\"\",Sprachen!H$382,VLOOKUP(F19,'Formular C'!$A$12:$D$20,4,0))))","v":""},"",null,null,{"$f":"IF(OR(M19=\"\",M19=0),\"\",IF(N19=\"\",0,IF(O19=\"\",Sprachen!H$391,N19*O19/M19)))","v":""},{"$f":"Sprachen!H401","v":"Beschr. 8"},{"$f":"Eingabemeldung(Sprachen!H$415,Sprachen!H$414,'Formular E'!D19)","v":""},{"$f":"Eingabemeldung(Sprachen!H$415,Sprachen!H$414,'Formular E'!F19)","v":""},{"$f":"Eingabemeldung(Sprachen!H$417,Sprachen!H$416,'Formular E'!O19)","v":""}]
[9,{"$nulls":6},"",{"$f":"IF(B20=\"\",\"\",IFERROR(E20*VLOOKUP(D20,Admin!$A$67:$B$72,2,FALSE),0)+IFERROR(G20*VLOOKUP(F20,Admin!$A$67:$B$72,2,FALSE),0))","v":""},"",{"$f":"IF(B20=\"\",\"\",IF(D20=\"\",\"0\",IF(VLOOKUP(D20,'Formular C'!$A$12:$D$20,4,0)=\"\",Sprachen!H$382,VLOOKUP(D20,'Formular C'!$A$12:$D$20,4,0))))","v":""},{"$f":"IF(B20=\"\",\"\",IF(F20=\"\",\"0\",IF(VLOOKUP(F20,'Formular C'!$A$12:$D$20,4,0)=\"\",Sprachen!H$382,VLOOKUP(F20,'Formular C'!$A$12:$D$20,4,0))))","v":""},"",null,null,{"$f":"IF(OR(M20=\"\",M20=0),\"\",IF(N20=\"\",0,IF(O20=\"\",Sprachen!H$391,N20*O20/M20)))","v":""},{"$f":"Sprachen!H402","v":"Beschr. 9"},{"$f":"Eingabemeldung(Sprachen!H$415,Sprachen!H$414,'Formular E'!D20)","v":""},{"$f":"Eingabemeldung(Sprachen!H$415,Sprachen!H$414,'Formular E'!F20)","v":""},{"$f":"Eingabemeldung(Sprachen!H$417,Sprachen!H$416,'Formular E'!O20)","v":""}]
[10,{"$nulls":6},"",{"$f":"IF(B21=\"\",\"\",IFERROR(E21*VLOOKUP(D21,Admin!$A$67:$B$72,2,FALSE),0)+IFERROR(G21*VLOOKUP(F21,Admin!$A$67:$B$72,2,FALSE),0))","v":""},"",{"$f":"IF(B21=\"\",\"\",IF(D21=\"\",\"0\",IF(VLOOKUP(D21,'Formular C'!$A$12:$D$20,4,0)=\"\",Sprachen!H$382,VLOOKUP(D21,'Formular C'!$A$12:$D$20,4,0))))","v":""},{"$f":"IF(B21=\"\",\"\",IF(F21=\"\",\"0\",IF(VLOOKUP(F21,'Formular C'!$A$12:$D$20,4,0)=\"\",Sprachen!H$382,VLOOKUP(F21,'Formular C'!$A$12:$D$20,4,0))))","v":""},"",null,null,{"$f":"IF(OR(M21=\"\",M21=0),\"\",IF(N21=\"\",0,IF(O21=\"\",Sprachen!H$391,N21*O21/M21)))","v":""},{"$f":"Sprachen!H403","v":"Beschr. 10"},{"$f":"Eingabemeldung(Sprachen!H$415,Sprachen!H$414,'Formular E'!D21)","v":""},{"$f":"Eingabemeldung(Sprachen!H$415,Sprachen!H$414,'Formular E'!F21)","v":""},{"$f":"Eingabemeldung(Sprachen!H$417,Sprachen!H$416,'Formular E'!O21)","v":""}]
[11,{"$nulls":6},"",{"$f":"IF(B22=\"\",\"\",IFERROR(E22*VLOOKUP(D22,Admin!$A$67:$B$72,2,FALSE),0)+IFERROR(G22*VLOOKUP(F22,Admin!$A$67:$B$72,2,FALSE),0))","v":""},"",{"$f":"IF(B22=\"\",\"\",IF(D22=\"\",\"0\",IF(VLOOKUP(D22,'Formular C'!$A$12:$D$20,4,0)=\"\",Sprachen!H$382,VLOOKUP(D22,'Formular C'!$A$12:$D$20,4,0))))","v":""},{"$f":"IF(B22=\"\",\"\",IF(F22=\"\",\"0\",IF(VLOOKUP(F22,'Formular C'!$A$12:$D$20,4,0)=\"\",Sprachen!H$382,VLOOKUP(F22,'Formular C'!$A$12:$D$20,4,0))))","v":""},"",null,null,{"$f":"IF(OR(M22=\"\",M22=0),\"\",IF(N22=\"\",0,IF(O22=\"\",Sprachen!H$391,N22*O22/M22)))","v":""},{"$f":"Sprachen!H404","v":"Beschr. 11"},{"$f":"Eingabemeldung(Sprachen!H$415,Sprachen!H$414,'Formular E'!D22)","v":""},{"$f":"Eingabemeldung(Sprachen!H$415,Sprachen!H$414,'Formular E'!F22)","v":""},{"$f":"Eingabemeldung(Sprachen!H$417,Sprachen!H$416,'Formular E'!O22)","v":""}]
[12,{"$nulls":6},"",{"$f":"IF(B23=\"\",\"\",IFERROR(E23*VLOOKUP(D23,Admin!$A$67:$B$72,2,FALSE),0)+IFERROR(G23*VLOOKUP(F23,Admin!$A$67:$B$72,2,FALSE),0))","v":""},"",{"$f":"IF(B23=\"\",\"\",IF(D23=\"\",\"0\",IF(VLOOKUP(D23,'Formular C'!$A$12:$D$20,4,0)=\"\",Sprachen!H$382,VLOOKUP(D23,'Formular C'!$A$12:$D$20,4,0))))","v":""},{"$f":"IF(B23=\"\",\"\",IF(F23=\"\",\"0\",IF(VLOOKUP(F23,'Formular C'!$A$12:$D$20,4,0)=\"\",Sprachen!H$382,VLOOKUP(F23,'Formular C'!$A$12:$D$20,4,0))))","v":""},"",null,null,{"$f":"IF(OR(M23=\"\",M23=0),\"\",IF(N23=\"\",0,IF(O23=\"\",Sprachen!H$391,N23*O23/M23)))","v":""},{"$f":"Sprachen!H405","v":"Beschr. 12"},{"$f":"Eingabemeldung(Sprachen!H$415,Sprachen!H$414,'Formular E'!D23)","v":""},{"$f":"Eingabemeldung(Sprachen!H$415,Sprachen!H$414,'Formular E'!F23)","v":""},{"$f":"Eingabemeldung(Sprachen!H$417,Sprachen!H$416,'Formular E'!O23)","v":""}]
[13,{"$nulls":6},"",{"$f":"IF(B24=\"\",\"\",IFERROR(E24*VLOOKUP(D24,Admin!$A$67:$B$72,2,FALSE),0)+IFERROR(G24*VLOOKUP(F24,Admin!$A$67:$B$72,2,FALSE),0))","v":""},"",{"$f":"IF(B24=\"\",\"\",IF(D24=\"\",\"0\",IF(VLOOKUP(D24,'Formular C'!$A$12:$D$20,4,0)=\"\",Sprachen!H$382,VLOOKUP(D24,'Formular C'!$A$12:$D$20,4,0))))","v":""},{"$f":"IF(B24=\"\",\"\",IF(F24=\"\",\"0\",IF(VLOOKUP(F24,'Formular C'!$A$12:$D$20,4,0)=\"\",Sprachen!H$382,VLOOKUP(F24,'Formular C'!$A$12:$D$20,4,0))))","v":""},"",null,null,{"$f":"IF(OR(M24=\"\",M24=0),\"\",IF(N24=\"\",0,IF(O24=\"\",Sprachen!H$391,N24*O24/M24)))","v":""},{"$f":"Sprachen!H406","v":"Beschr. 13"},{"$f":"Eingabemeldung(Sprachen!H$415,Sprachen!H$414,'Formular E'!D24)","v":""},{"$f":"Eingabemeldung(Sprachen!H$415,Sprachen!H$414,'Formular E'!F24)","v":""},{"$f":"Eingabemeldung(Sprachen!H$417,Sprachen!H$416,'Formular E'!O24)","v":""}]
[14,{"$nulls":6},"",{"$f":"IF(B25=\"\",\"\",IFERROR(E25*VLOOKUP(D25,Admin!$A$67:$B$72,2,FALSE),0)+IFERROR(G25*VLOOKUP(F25,Admin!$A$67:$B$72,2,FALSE),0))","v":""},"",{"$f":"IF(B25=\"\",\"\",IF(D25=\"\",\"0\",IF(VLOOKUP(D25,'Formular C'!$A$12:$D$20,4,0)=\"\",Sprachen!H$382,VLOOKUP(D25,'Formular C'!$A$12:$D$20,4,0))))","v":""},{"$f":"IF(B25=\"\",\"\",IF(F25=\"\",\"0\",IF(VLOOKUP(F25,'Formular C'!$A$12:$D$20,4,0)=\"\",Sprachen!H$382,VLOOKUP(F25,'Formular C'!$A$12:$D$20,4,0))))","v":""},"",null,null,{"$f":"IF(OR(M25=\"\",M25=0),\"\",IF(N25=\"\",0,IF(O25=\"\",Sprachen!H$391,N25*O25/M25)))","v":""},{"$f":"Sprachen!H407","v":"Beschr. 14"},{"$f":"Eingabemeldung(Sprachen!H$415,Sprachen!H$414,'Formular E'!D25)","v":""},{"$f":"Eingabemeldung(Sprachen!H$415,Sprachen!H$414,'Formular E'!F25)","v":""},{"$f":"Eingabemeldung(Sprachen!H$417,Sprachen!H$416,'Formular E'!O25)","v":""}]
[{"$f":"Sprachen!H360","v":"Prozess- und Produktionsanlagen"}]
[15,{"$nulls":6},{"$f":"IF(B27=\"\",\"\",E27+G27)","v":""},{"$f":"IF(B27=\"\",\"\",IFERROR(E27*VLOOKUP(D27,Admin!$A$67:$B$72,2,FALSE),0)+IFERROR(G27*VLOOKUP(F27,Admin!$A$67:$B$72,2,FALSE),0))","v":""},{"$f":"IF(B27=\"\",\"\",IF($H$4=0,0,I27/$H$4))","v":""},{"$f":"IF(B27=\"\",\"\",IF(D27=\"\",\"0\",IF(VLOOKUP(D27,'Formular C'!$A$12:$D$20,4,0)=\"\",Sprachen!H$382,VLOOKUP(D27,'Formular C'!$A$12:$D$20,4,0))))","v":""},{"$f":"IF(B27=\"\",\"\",IF(F27=\"\",\"0\",IF(VLOOKUP(F27,'Formular C'!$A$12:$D$20,4,0)=\"\",Sprachen!H$382,VLOOKUP(F27,'Formular C'!$A$12:$D$20,4,0))))","v":""},{"$f":"IF(B27=\"\",\"\",(E27*K27)+(G27*L27))","v":""},null,null,{"$f":"IF(OR(M27=\"\",M27=0),\"\",IF(N27=\"\",0,IF(O27=\"\",Sprachen!H$391,N27*O27/M27)))","v":""},{"$f":"Sprachen!H408","v":"Beschr. 15"},{"$f":"Eingabemeldung(Sprachen!H$415,Sprachen!H$414,'Formular E'!D27)","v":""},{"$f":"Eingabemeldung(Sprachen!H$415,Sprachen!H$414,'Formular E'!F27)","v":""},{"$f":"Eingabemeldung(Sprachen!H$417,Sprachen!H$416,'Formular E'!O27)","v":""}]
[16,{"$nulls":6},"",{"$f":"IF(B28=\"\",\"\",IFERROR(E28*VLOOKUP(D28,Admin!$A$67:$B$72,2,FALSE),0)+IFERROR(G28*VLOOKUP(F28,Admin!$A$67:$B$72,2,FALSE),0))","v":""},"",{"$f":"IF(B28=\"\",\"\",IF(D28=\"\",\"0\",IF(VLOOKUP(D28,'Formular C'!$A$12:$D$20,4,0)=\"\",Sprachen!H$382,VLOOKUP(D28,'Formular C'!$A$12:$D$20,4,0))))","v":""},{"$f":"IF(B28=\"\",\"\",IF(F28=\"\",\"0\",IF(VLOOKUP(F28,'Formular C'!$A$12:$D$20,4,0)=\"\",Sprachen!H$382,VLOOKUP(F28,'Formular C'!$A$12:$D$20,4,0))))","v":""},"",null,null,{"$f":"IF(OR(M28=\"\",M28=0),\"\",IF(N28=\"\",0,IF(O28=\"\",Sprachen!H$391,N28*O28/M28)))","v":""},{"$f":"Sprachen!H409","v":"Beschr. 16"},{"$f":"Eingabemeldung(Sprachen!H$415,Sprachen!H$414,'Formular E'!D28)","v":""},{"$f":"Eingabemeldung(Sprachen!H$415,Sprachen!H$414,'Formular E'!F28)","v":""},{"$f":"Eingabemeldung(Sprachen!H$417,Sprachen!H$416,'Formular E'!O28)","v":""}]
[17,{"$nulls":6},"",{"$f":"IF(B29=\"\",\"\",IFERROR(E29*VLOOKUP(D29,Admin!$A$67:$B$72,2,FALSE),0)+IFERROR(G29*VLOOKUP(F29,Admin!$A$67:$B$72,2,FALSE),0))","v":""},"",{"$f":"IF(B29=\"\",\"\",IF(D29=\"\",\"0\",IF(VLOOKUP(D29,'Formular C'!$A$12:$D$20,4,0)=\"\",Sprachen!H$382,VLOOKUP(D29,'Formular C'!$A$12:$D$20,4,0))))","v":""},{"$f":"IF(B29=\"\",\"\",IF(F29=\"\",\"0\",IF(VLOOKUP(F29,'Formular C'!$A$12:$D$20,4,0)=\"\",Sprachen!H$382,VLOOKUP(F29,'Formular C'!$A$12:$D$20,4,0))))","v":""},"",null,null,{"$f":"IF(OR(M29=\"\",M29=0),\"\",IF(N29=\"\",0,IF(O29=\"\",Sprachen!H$391,N29*O29/M29)))","v":""},{"$f":"Sprachen!H410","v":"Beschr. 17"},{"$f":"Eingabemeldung(Sprachen!H$415,Sprachen!H$414,'Formular E'!D29)","v":""},{"$f":"Eingabemeldung(Sprachen!H$415,Sprachen!H$414,'Formular E'!F29)","v":""},{"$f":"Eingabemeldung(Sprachen!H$417,Sprachen!H$416,'Formular E'!O29)","v":""}]
[18,{"$nulls":6},"",{"$f":"IF(B30=\"\",\"\",IFERROR(E30*VLOOKUP(D30,Admin!$A$67:$B$72,2,FALSE),0)+IFERROR(G30*VLOOKUP(F30,Admin!$A$67:$B$72,2,FALSE),0))","v":""},"",{"$f":"IF(B30=\"\",\"\",IF(D30=\"\",\"0\",IF(VLOOKUP(D30,'Formular C'!$A$12:$D$20,4,0)=\"\",Sprachen!H$382,VLOOKUP(D30,'Formular C'!$A$12:$D$20,4,0))))","v":""},{"$f":"IF(B30=\"\",\"\",IF(F30=\"\",\"0\",IF(VLOOKUP(F30,'Formular C'!$A$12:$D$20,4,0)=\"\",Sprachen!H$382,VLOOKUP(F30,'Formular C'!$A$12:$D$20,4,0))))","v":""},"",null,null,{"$f":"IF(OR(M30=\"\",M30=0),\"\",IF(N30=\"\",0,IF(O30=\"\",Sprachen!H$391,N30*O30/M30)))","v":""},{"$f":"Sprachen!H411","v":"Beschr. 18"},{"$f":"Eingabemeldung(Sprachen!H$415,Sprachen!H$414,'Formular E'!D30)","v":""},{"$f":"Eingabemeldung(Sprachen!H$415,Sprachen!H$414,'Formular E'!F30)","v":""},{"$f":"Eingabemeldung(Sprachen!H$417,Sprachen!H$416,'Formular E'!O30)","v":""}]
[19,{"$nulls":6},"",{"$f":"IF(B31=\"\",\"\",IFERROR(E31*VLOOKUP(D31,Admin!$A$67:$B$72,2,FALSE),0)+IFERROR(G31*VLOOKUP(F31,Admin!$A$67:$B$72,2,FALSE),0))","v":""},"",{"$f":"IF(B31=\"\",\"\",IF(D31=\"\",\"0\",IF(VLOOKUP(D31,'Formular C'!$A$12:$D$20,4,0)=\"\",Sprachen!H$382,VLOOKUP(D31,'Formular C'!$A$12:$D$20,4,0))))","v":""},{"$f":"IF(B31=\"\",\"\",IF(F31=\"\",\"0\",IF(VLOOKUP(F31,'Formular C'!$A$12:$D$20,4,0)=\"\",Sprachen!H$382,VLOOKUP(F31,'Formular C'!$A$12:$D$20,4,0))))","v":""},"",null,null,{"$f":"IF(OR(M31=\"\",M31=0),\"\",IF(N31=\"\",0,IF(O31=\"\",Sprachen!H$391,N31*O31/M31)))","v":""},{"$f":"Sprachen!H412","v":"Beschr. 19"},{"$f":"Eingabemeldung(Sprachen!H$415,Sprachen!H$414,'Formular E'!D31)","v":""},{"$f":"Eingabemeldung(Sprachen!H$415,Sprachen!H$414,'Formular E'!F31)","v":""},{"$f":"Eingabemeldung(Sprachen!H$417,Sprachen!H$416,'Formular E'!O31)","v":""}]
[20,{"$nulls":6},"",{"$f":"IF(B32=\"\",\"\",IFERROR(E32*VLOOKUP(D32,Admin!$A$67:$B$72,2,FALSE),0)+IFERROR(G32*VLOOKUP(F32,Admin!$A$67:$B$72,2,FALSE),0))","v":""},"",{"$f":"IF(B32=\"\",\"\",IF(D32=\"\",\"0\",IF(VLOOKUP(D32,'Formular C'!$A$12:$D$20,4,0)=\"\",Sprachen!H$382,VLOOKUP(D32,'Formular C'!$A$12:$D$20,4,0))))","v":""},{"$f":"IF(B32=\"\",\"\",IF(F32=\"\",\"0\",IF(VLOOKUP(F32,'Formular C'!$A$12:$D$20,4,0)=\"\",Sprachen!H$382,VLOOKUP(F32,'Formular C'!$A$12:$D$20,4,0))))","v":""},"",null,null,{"$f":"IF(OR(M32=\"\",M32=0),\"\",IF(N32=\"\",0,IF(O32=\"\",Sprachen!H$391,N32*O32/M32)))","v":""},{"$f":"Sprachen!H413","v":"Beschr. 20"},{"$f":"Eingabemeldung(Sprachen!H$415,Sprachen!H$414,'Formular E'!D32)","v":""},{"$f":"Eingabemeldung(Sprachen!H$415,Sprachen!H$414,'Formular E'!F32)","v":""},{"$f":"Eingabemeldung(Sprachen!H$417,Sprachen!H$416,'Formular E'!O32)","v":""}]
[{"$f":"Sprachen!H361","v":"S1 / Summe aller neuen Massnahmen"},{"$nulls":6},{"$f":"SUM(H12:H25,H27:H32)","v":0},{"$f":"SUM(I12:I25,I27:I32)","v":0},{"$f":"SUM(J12:J25,J27:J32)","v":{"v":0,"d":"0.0%"}},{"$f":"Sprachen!H383","v":"Hinweis: Die Richtgrösse zur Energieeinsparung mit umzusetzenden Massnahmen (gemäss Deklaration in Formular F1) liegt bei 15%."}]
[{"$f":"Sprachen!H362","v":"S2 / Summe aller neuen, wirtschaftlichen Massnahmen"},{"$nulls":6},{"$f":"(SUMIF(P12:P25,\"<8\",H12:H25))+(SUMIF(P27:P32,\"<4\",H27:H32))","v":0},{"$f":"(SUMIF(P12:P25,\"<8\",I12:I25))+(SUMIF(P27:P32,\"<4\",I27:I32))","v":0},{"$f":"(SUMIF(P12:P25,\"<8\",J12:J25))+(SUMIF(P27:P32,\"<4\",J27:J32))","v":{"v":0,"d":"0.0%"}}]
[]
[{"$f":"Sprachen!H363","v":"Bestätigung"}]
[]
[{"$f":"Sprachen!H364","v":"Der/die Ingenieur/In,  Energiespezialist/In bestätigt mit dieser Unterschrift, alle Massnahmen zur Energieeffizienzsteigerung, unabhängig von einer hohen oder tiefen Payback-Dauer, auf dem Formular E aufgelistet zu haben."}]
[]
[{"$f":"Sprachen!H365","v":"Ort, Datum:"},{"$nulls":8},{"$f":"Sprachen!H378","v":"Unterschrift:"}]

{"sheet":"Formular F1 + F2","index":11,"n_rows":76,"n_cols":24,"rows_kept":76,"merged":[[0,18,8,18],[0,19,7,19],[4,0,5,0],[4,1,5,3],[4,4,4,10],[4,11,5,12],[4,13,5,13],[4,14,5,14],[4,15,4,17],[5,4,5,8],[5,9,5,10],[5,15,5,17],[6,1,6,3],[6,4,6,5],[6,6,6,7],[6,15,6,17],[7,1,7,3],[7,15,7,17],[8,15,8,17],[9,1,9,3],[9,15,9,17],[10,1,10,3],[10,15,10,17],[11,1,11,3],[11,15,11,17],[12,1,12,3],[12,15,12,17],[13,1,13,3],[13,15,13,17],[14,1,14,3],[14,15,14,17],[15,1,15,3],[15,15,15,17],[16,1,16,3],[16,15,16,17],[17,1,17,3],[17,15,17,17],[18,1,18,3],[18,15,18,17],[19,1,19,3],[19,15,19,17],[20,1,20,3],[20,15,20,17],[21,1,21,3],[21,15,21,17],[22,1,22,3],[22,15,22,17],[23,15,23,17],[24,1,24,3],[24,15,24,17],[25,1,25,3],[25,15,25,17],[26,1,26,3],[26,15,26,17],[27,1,27,3],[27,15,27,17],[28,1,28,3],[28,15,28,17],[29,1,29,3],[29,15,29,17],[30,0,30,7],[30,11,30,17],[32,0,32,17],[33,0,33,17],[35,0,35,17],[36,0,36,17],[40,0,40,17],[41,0,41,17],[42,0,42,17],[44,8,44,9],[46,0,47,0],[46,1,47,3],[46,4,46,10],[46,11,47,12],[46,13,47,13],[46,14,47,16],[46,17,47,17],[46,20,47,20],[47,4,47,8],[47,9,47,10],[48,1,48,3],[48,4,48,5],[48,6,48,7],[48,14,48,15],[48,20,51,20],[49,1,49,3],[49,14,49,15],[50,1,50,3],[50,14,50,15],[52,1,52,3],[52,14,52,15],[53,1,53,3],[53,14,53,15],[54,1,54,3],[54,14,54,15],[55,1,55,3],[55,14,55,15],[56,1,56,3],[56,14,56,15],[57,1,57,3],[57,14,57,15],[58,1,58,3],[58,14,58,15],[59,1,59,3],[59,14,59,15],[60,0,60,7],[60,11,60,17],[61,0,61,7],[61,11,61,17],[62,0,62,7],[62,11,62,17],[65,0,65,17],[69,0,69,16],[71,3,71,17],[73,3,73,17],[75,3,75,6],[75,12,75,16]]}
[{"$f":"Sprachen!H419","v":"Formular F1"},{"$nulls":16},{"$f":"IF(Titelblatt!$F$12=\"\",\"\",Titelblatt!$F$12)","v":""},"FLAGS [ja/nein]","FLAG [Begründung!]",null,"Eingabemeldung","Eingabemeldung","Eingabemeldung"]
[{"$f":"Sprachen!H420","v":"Deklaration auszuführende neue Massnahmen"},{"$nulls":16},{"$f":"IF(Titelblatt!$F$25=\"\",\"\",Titelblatt!$F$25)","v":""}]
[]
[]
[{"$f":"Sprachen!H421","v":"Nr."},{"$f":"Sprachen!H437","v":"Massnahmentitel"},null,null,{"$f":"Sprachen!H442","v":"Energieeinsparung"},{"$nulls":6},{"$f":"Sprachen!H462","v":"Investitionen"},null,{"$f":"Sprachen!H470","v":"Payback"},{"$f":"Sprachen!H473","v":"Umset-zung"},{"$f":"Sprachen!H478","v":"- Per Dropdown anpassbar"}]
[{"$nulls":4},{"$f":"Sprachen!H443","v":"Ungewichtet"},{"$nulls":4},{"$f":"Sprachen!H456","v":"Gewichtet"},{"$nulls":5},{"$f":"Sprachen!H479","v":"- Änderungen begründen"}]
[{"$nulls":4},{"$f":"Sprachen!H444","v":"Einsparung 1"},null,{"$f":"Sprachen!H450","v":"Einsparung 2"},null,{"$f":"Sprachen!H454","v":"Total"},{"$f":"Sprachen!H457","v":"Total"},{"$f":"Sprachen!H460","v":"Anteil"},{"$f":"Sprachen!H463","v":"Total"},{"$f":"Sprachen!H467","v":"KE"},null,{"$f":"Sprachen!H474","v":"ja"},{"$f":"Sprachen!H480","v":"= Umsetzung innerh. 3 Jahren"}]
[{"$nulls":4},{"$f":"Sprachen!H445","v":"Art"},"[kWh/a]",{"$f":"Sprachen!H451","v":"Art"},"[kWh/a]","[kWh/a]","[kWh/a]","[-]","[CHF]","[-]","[a]",{"$f":"Sprachen!H475","v":"nein"},{"$f":"Sprachen!H481","v":"= keine Umsetzung"}]
[{"$f":"Sprachen!H422","v":"Haustechnikanlagen / Gebäudehülle"},{"$nulls":13},{"$f":"IF(B9=\"\",\"\",IF(OR(N9=\"\",AND(N9<>\"\",N9<8)),Sprachen!H$501,Sprachen!H$502))","v":""}]
[1,{"$f":"IF('Formular E'!B12<>\"\",'Formular E'!B12,\"\")","v":""},null,null,{"$f":"IF('Formular E'!D12<>\"\",'Formular E'!D12,\"\")","v":""},{"$f":"IF('Formular E'!E12<>\"\",'Formular E'!E12,\"\")","v":""},{"$f":"IF('Formular E'!F12<>\"\",'Formular E'!F12,\"\")","v":""},{"$f":"IF('Formular E'!G12<>\"\",'Formular E'!G12,\"\")","v":""},{"$f":"IF('Formular E'!H12<>\"\",'Formular E'!H12,\"\")","v":""},{"$f":"IF('Formular E'!I12<>\"\",'Formular E'!I12,\"\")","v":""},{"$f":"IF('Formular E'!J12<>\"\",'Formular E'!J12,\"\")","v":""},{"$f":"IF('Formular E'!N12<>\"\",'Formular E'!N12,\"\")","v":""},{"$f":"IF('Formular E'!O12<>\"\",'Formular E'!O12,\"\")","v":""},{"$f":"IF('Formular E'!P12<>\"\",'Formular E'!P12,\"\")","v":""},{"$f":"IF(B10=\"\",\"\",IF(OR(N10=\"\",AND(N10<>\"\",N10<8)),Sprachen!H$501,Sprachen!H$502))","v":""},{"$f":"IF(B10=\"\",\"\",IF(AND(OR(N10=\"\",N10<8),OR(O10=\"nein\",O10=\"non\",O10=\"no\")),Sprachen!H$495,IF(OR(O10=\"ja\",O10=\"oui\",O10=\"si\"),Sprachen!H$496,\"\")))","v":""},null,null,{"$f":"IF(OR(O10=\"ja\",O10=\"oui\",O10=\"si\"),1,0)","v":0},{"$f":"IF(B10=\"\",0,IF(AND(OR(N10=\"\",N10<8),OR(O10=\"nein\",O10=\"non\",O10=\"no\")),1,0))","v":0}]
[2,{"$f":"IF('Formular E'!B13<>\"\",'Formular E'!B13,\"\")","v":""},null,null,{"$f":"IF('Formular E'!D13<>\"\",'Formular E'!D13,\"\")","v":""},{"$f":"IF('Formular E'!E13<>\"\",'Formular E'!E13,\"\")","v":""},{"$f":"IF('Formular E'!F13<>\"\",'Formular E'!F13,\"\")","v":""},{"$f":"IF('Formular E'!G13<>\"\",'Formular E'!G13,\"\")","v":""},{"$f":"IF('Formular E'!H13<>\"\",'Formular E'!H13,\"\")","v":""},{"$f":"IF('Formular E'!I13<>\"\",'Formular E'!I13,\"\")","v":""},{"$f":"IF('Formular E'!J13<>\"\",'Formular E'!J13,\"\")","v":""},{"$f":"IF('Formular E'!N13<>\"\",'Formular E'!N13,\"\")","v":""},{"$f":"IF('Formular E'!O13<>\"\",'Formular E'!O13,\"\")","v":""},{"$f":"IF('Formular E'!P13<>\"\",'Formular E'!P13,\"\")","v":""},{"$f":"IF(B11=\"\",\"\",IF(OR(N11=\"\",AND(N11<>\"\",N11<8)),Sprachen!H$501,Sprachen!H$502))","v":""},{"$f":"IF(B11=\"\",\"\",IF(AND(OR(N11=\"\",N11<8),OR(O11=\"nein\",O11=\"non\",O11=\"no\")),Sprachen!H$495,IF(OR(O11=\"ja\",O11=\"oui\",O11=\"si\"),Sprachen!H$496,\"\")))","v":""},null,null,{"$f":"IF(OR(O11=\"ja\",O11=\"oui\",O11=\"si\"),1,0)","v":0},0]
[3,{"$f":"IF('Formular E'!B14<>\"\",'Formular E'!B14,\"\")","v":""},null,null,{"$f":"IF('Formular E'!D14<>\"\",'Formular E'!D14,\"\")","v":""},{"$f":"IF('Formular E'!E14<>\"\",'Formular E'!E14,\"\")","v":""},{"$f":"IF('Formular E'!F14<>\"\",'Formular E'!F14,\"\")","v":""},{"$f":"IF('Formular E'!G14<>\"\",'Formular E'!G14,\"\")","v":""},{"$f":"IF('Formular E'!H14<>\"\",'Formular E'!H14,\"\")","v":""},{"$f":"IF('Formular E'!I14<>\"\",'Formular E'!I14,\"\")","v":""},{"$f":"IF('Formular E'!J14<>\"\",'Formular E'!J14,\"\")","v":""},{"$f":"IF('Formular E'!N14<>\"\",'Formular E'!N14,\"\")","v":""},{"$f":"IF('Formular E'!O14<>\"\",'Formular E'!O14,\"\")","v":""},{"$f":"IF('Formular E'!P14<>\"\",'Formular E'!P14,\"\")","v":""},{"$f":"IF(B12=\"\",\"\",IF(OR(N12=\"\",AND(N12<>\"\",N12<8)),Sprachen!H$501,Sprachen!H$502))","v":""},{"$f":"IF(B12=\"\",\"\",IF(AND(OR(N12=\"\",N12<8),OR(O12=\"nein\",O12=\"non\",O12=\"no\")),Sprachen!H$495,IF(OR(O12=\"ja\",O12=\"oui\",O12=\"si\"),Sprachen!H$496,\"\")))","v":""},null,null,0,0]
[4,{"$f":"IF('Formular E'!B15<>\"\",'Formular E'!B15,\"\")","v":""},null,null,{"$f":"IF('Formular E'!D15<>\"\",'Formular E'!D15,\"\")","v":""},{"$f":"IF('Formular E'!E15<>\"\",'Formular E'!E15,\"\")","v":""},{"$f":"IF('Formular E'!F15<>\"\",'Formular E'!F15,\"\")","v":""},{"$f":"IF('Formular E'!G15<>\"\",'Formular E'!G15,\"\")","v":""},{"$f":"IF('Formular E'!H15<>\"\",'Formular E'!H15,\"\")","v":""},{"$f":"IF('Formular E'!I15<>\"\",'Formular E'!I15,\"\")","v":""},{"$f":"IF('Formular E'!J15<>\"\",'Formular E'!J15,\"\")","v":""},{"$f":"IF('Formular E'!N15<>\"\",'Formular E'!N15,\"\")","v":""},{"$f":"IF('Formular E'!O15<>\"\",'Formular E'!O15,\"\")","v":""},{"$f":"IF('Formular E'!P15<>\"\",'Formular E'!P15,\"\")","v":""},{"$f":"IF(B13=\"\",\"\",IF(OR(N13=\"\",AND(N13<>\"\",N13<8)),Sprachen!H$501,Sprachen!H$502))","v":""},{"$f":"IF(B13=\"\",\"\",IF(AND(OR(N13=\"\",N13<8),OR(O13=\"nein\",O13=\"non\",O13=\"no\")),Sprachen!H$495,IF(OR(O13=\"ja\",O13=\"oui\",O13=\"si\"),Sprachen!H$496,\"\")))","v":""},null,null,0,0]
[5,{"$f":"IF('Formular E'!B16<>\"\",'Formular E'!B16,\"\")","v":""},null,null,{"$f":"IF('Formular E'!D16<>\"\",'Formular E'!D16,\"\")","v":""},{"$f":"IF('Formular E'!E16<>\"\",'Formular E'!E16,\"\")","v":""},{"$f":"IF('Formular E'!F16<>\"\",'Formular E'!F16,\"\")","v":""},{"$f":"IF('Formular E'!G16<>\"\",'Formular E'!G16,\"\")","v":""},{"$f":"IF('Formular E'!H16<>\"\",'Formular E'!H16,\"\")","v":""},{"$f":"IF('Formular E'!I16<>\"\",'Formular E'!I16,\"\")","v":""},{"$f":"IF('Formular E'!J16<>\"\",'Formular E'!J16,\"\")","v":""},{"$f":"IF('Formular E'!N16<>\"\",'Formular E'!N16,\"\")","v":""},{"$f":"IF('Formular E'!O16<>\"\",'Formular E'!O16,\"\")","v":""},{"$f":"IF('Formular E'!P16<>\"\",'Formular E'!P16,\"\")","v":""},{"$f":"IF(B14=\"\",\"\",IF(OR(N14=\"\",AND(N14<>\"\",N14<8)),Sprachen!H$501,Sprachen!H$502))","v":""},{"$f":"IF(B14=\"\",\"\",IF(AND(OR(N14=\"\",N14<8),OR(O14=\"nein\",O14=\"non\",O14=\"no\")),Sprachen!H$495,IF(OR(O14=\"ja\",O14=\"oui\",O14=\"si\"),Sprachen!H$496,\"\")))","v":""},null,null,0,0]
[6,{"$f":"IF('Formular E'!B17<>\"\",'Formular E'!B17,\"\")","v":""},null,null,{"$f":"IF('Formular E'!D17<>\"\",'Formular E'!D17,\"\")","v":""},{"$f":"IF('Formular E'!E17<>\"\",'Formular E'!E17,\"\")","v":""},{"$f":"IF('Formular E'!F17<>\"\",'Formular E'!F17,\"\")","v":""},{"$f":"IF('Formular E'!G17<>\"\",'Formular E'!G17,\"\")","v":""},{"$f":"IF('Formular E'!H17<>\"\",'Formular E'!H17,\"\")","v":""},{"$f":"IF('Formular E'!I17<>\"\",'Formular E'!I17,\"\")","v":""},{"$f":"IF('Formular E'!J17<>\"\",'Formular E'!J17,\"\")","v":""},{"$f":"IF('Formular E'!N17<>\"\",'Formular E'!N17,\"\")","v":""},{"$f":"IF('Formular E'!O17<>\"\",'Formular E'!O17,\"\")","v":""},{"$f":"IF('Formular E'!P17<>\"\",'Formular E'!P17,\"\")","v":""},{"$f":"IF(B15=\"\",\"\",IF(OR(N15=\"\",AND(N15<>\"\",N15<8)),Sprachen!H$501,Sprachen!H$502))","v":""},{"$f":"IF(B15=\"\",\"\",IF(AND(OR(N15=\"\",N15<8),OR(O15=\"nein\",O15=\"non\",O15=\"no\")),Sprachen!H$495,IF(OR(O15=\"ja\",O15=\"oui\",O15=\"si\"),Sprachen!H$496,\"\")))","v":""},null,null,0,0]
[7,{"$f":"IF('Formular E'!B18<>\"\",'Formular E'!B18,\"\")","v":""},null,null,{"$f":"IF('Formular E'!D18<>\"\",'Formular E'!D18,\"\")","v":""},{"$f":"IF('Formular E'!E18<>\"\",'Formular E'!E18,\"\")","v":""},{"$f":"IF('Formular E'!F18<>\"\",'Formular E'!F18,\"\")","v":""},{"$f":"IF('Formular E'!G18<>\"\",'Formular E'!G18,\"\")","v":""},{"$f":"IF('Formular E'!H18<>\"\",'Formular E'!H18,\"\")","v":""},{"$f":"IF('Formular E'!I18<>\"\",'Formular E'!I18,\"\")","v":""},{"$f":"IF('Formular E'!J18<>\"\",'Formular E'!J18,\"\")","v":""},{"$f":"IF('Formular E'!N18<>\"\",'Formular E'!N18,\"\")","v":""},{"$f":"IF('Formular E'!O18<>\"\",'Formular E'!O18,\"\")","v":""},{"$f":"IF('Formular E'!P18<>\"\",'Formular E'!P18,\"\")","v":""},{"$f":"IF(B16=\"\",\"\",IF(OR(N16=\"\",AND(N16<>\"\",N16<8)),Sprachen!H$501,Sprachen!H$502))","v":""},{"$f":"IF(B16=\"\",\"\",IF(AND(OR(N16=\"\",N16<8),OR(O16=\"nein\",O16=\"non\",O16=\"no\")),Sprachen!H$495,IF(OR(O16=\"ja\",O16=\"oui\",O16=\"si\"),Sprachen!H$496,\"\")))","v":""},null,null,0,0]
[8,{"$f":"IF('Formular E'!B19<>\"\",'Formular E'!B19,\"\")","v":""},null,null,{"$f":"IF('Formular E'!D19<>\"\",'Formular E'!D19,\"\")","v":""},{"$f":"IF('Formular E'!E19<>\"\",'Formular E'!E19,\"\")","v":""},{"$f":"IF('Formular E'!F19<>\"\",'Formular E'!F19,\"\")","v":""},{"$f":"IF('Formular E'!G19<>\"\",'Formular E'!G19,\"\")","v":""},{"$f":"IF('Formular E'!H19<>\"\",'Formular E'!H19,\"\")","v":""},{"$f":"IF('Formular E'!I19<>\"\",'Formular E'!I19,\"\")","v":""},{"$f":"IF('Formular E'!J19<>\"\",'Formular E'!J19,\"\")","v":""},{"$f":"IF('Formular E'!N19<>\"\",'Formular E'!N19,\"\")","v":""},{"$f":"IF('Formular E'!O19<>\"\",'Formular E'!O19,\"\")","v":""},{"$f":"IF('Formular E'!P19<>\"\",'Formular E'!P19,\"\")","v":""},{"$f":"IF(B17=\"\",\"\",IF(OR(N17=\"\",AND(N17<>\"\",N17<8)),Sprachen!H$501,Sprachen!H$502))","v":""},{"$f":"IF(B17=\"\",\"\",IF(AND(OR(N17=\"\",N17<8),OR(O17=\"nein\",O17=\"non\",O17=\"no\")),Sprachen!H$495,IF(OR(O17=\"ja\",O17=\"oui\",O17=\"si\"),Sprachen!H$496,\"\")))","v":""},null,null,0,0]
[9,{"$f":"IF('Formular E'!B20<>\"\",'Formular E'!B20,\"\")","v":""},null,null,{"$f":"IF('Formular E'!D20<>\"\",'Formular E'!D20,\"\")","v":""},{"$f":"IF('Formular E'!E20<>\"\",'Formular E'!E20,\"\")","v":""},{"$f":"IF('Formular E'!F20<>\"\",'Formular E'!F20,\"\")","v":""},{"$f":"IF('Formular E'!G20<>\"\",'Formular E'!G20,\"\")","v":""},{"$f":"IF('Formular E'!H20<>\"\",'Formular E'!H20,\"\")","v":""},{"$f":"IF('Formular E'!I20<>\"\",'Formular E'!I20,\"\")","v":""},{"$f":"IF('Formular E'!J20<>\"\",'Formular E'!J20,\"\")","v":""},{"$f":"IF('Formular E'!N20<>\"\",'Formular E'!N20,\"\")","v":""},{"$f":"IF('Formular E'!O20<>\"\",'Formular E'!O20,\"\")","v":""},{"$f":"IF('Formular E'!P20<>\"\",'Formular E'!P20,\"\")","v":""},{"$f":"IF(B18=\"\",\"\",IF(OR(N18=\"\",AND(N18<>\"\",N18<8)),Sprachen!H$501,Sprachen!H$502))","v":""},{"$f":"IF(B18=\"\",\"\",IF(AND(OR(N18=\"\",N18<8),OR(O18=\"nein\",O18=\"non\",O18=\"no\")),Sprachen!H$495,IF(OR(O18=\"ja\",O18=\"oui\",O18=\"si\"),Sprachen!H$496,\"\")))","v":""},null,null,0,0]
[10,{"$f":"IF('Formular E'!B21<>\"\",'Formular E'!B21,\"\")","v":""},null,null,{"$f":"IF('Formular E'!D21<>\"\",'Formular E'!D21,\"\")","v":""},{"$f":"IF('Formular E'!E21<>\"\",'Formular E'!E21,\"\")","v":""},{"$f":"IF('Formular E'!F21<>\"\",'Formular E'!F21,\"\")","v":""},{"$f":"IF('Formular E'!G21<>\"\",'Formular E'!G21,\"\")","v":""},{"$f":"IF('Formular E'!H21<>\"\",'Formular E'!H21,\"\")","v":""},{"$f":"IF('Formular E'!I21<>\"\",'Formular E'!I21,\"\")","v":""},{"$f":"IF('Formular E'!J21<>\"\",'Formular E'!J21,\"\")","v":""},{"$f":"IF('Formular E'!N21<>\"\",'Formular E'!N21,\"\")","v":""},{"$f":"IF('Formular E'!O21<>\"\",'Formular E'!O21,\"\")","v":""},{"$f":"IF('Formular E'!P21<>\"\",'Formular E'!P21,\"\")","v":""},{"$f":"IF(B19=\"\",\"\",IF(OR(N19=\"\",AND(N19<>\"\",N19<8)),Sprachen!H$501,Sprachen!H$502))","v":""},{"$f":"IF(B19=\"\",\"\",IF(AND(OR(N19=\"\",N19<8),OR(O19=\"nein\",O19=\"non\",O19=\"no\")),Sprachen!H$495,IF(OR(O19=\"ja\",O19=\"oui\",O19=\"si\"),Sprachen!H$496,\"\")))","v":""},null,null,0,0]
[11,{"$f":"IF('Formular E'!B22<>\"\",'Formular E'!B22,\"\")","v":""},null,null,{"$f":"IF('Formular E'!D22<>\"\",'Formular E'!D22,\"\")","v":""},{"$f":"IF('Formular E'!E22<>\"\",'Formular E'!E22,\"\")","v":""},{"$f":"IF('Formular E'!F22<>\"\",'Formular E'!F22,\"\")","v":""},{"$f":"IF('Formular E'!G22<>\"\",'Formular E'!G22,\"\")","v":""},{"$f":"IF('Formular E'!H22<>\"\",'Formular E'!H22,\"\")","v":""},{"$f":"IF('Formular E'!I22<>\"\",'Formular E'!I22,\"\")","v":""},{"$f":"IF('Formular E'!J22<>\"\",'Formular E'!J22,\"\")","v":""},{"$f":"IF('Formular E'!N22<>\"\",'Formular E'!N22,\"\")","v":""},{"$f":"IF('Formular E'!O22<>\"\",'Formular E'!O22,\"\")","v":""},{"$f":"IF('Formular E'!P22<>\"\",'Formular E'!P22,\"\")","v":""},{"$f":"IF(B20=\"\",\"\",IF(OR(N20=\"\",AND(N20<>\"\",N20<8)),Sprachen!H$501,Sprachen!H$502))","v":""},{"$f":"IF(B20=\"\",\"\",IF(AND(OR(N20=\"\",N20<8),OR(O20=\"nein\",O20=\"non\",O20=\"no\")),Sprachen!H$495,IF(OR(O20=\"ja\",O20=\"oui\",O20=\"si\"),Sprachen!H$496,\"\")))","v":""},null,null,0,0]
[12,{"$f":"IF('Formular E'!B23<>\"\",'Formular E'!B23,\"\")","v":""},null,null,{"$f":"IF('Formular E'!D23<>\"\",'Formular E'!D23,\"\")","v":""},{"$f":"IF('Formular E'!E23<>\"\",'Formular E'!E23,\"\")","v":""},{"$f":"IF('Formular E'!F23<>\"\",'Formular E'!F23,\"\")","v":""},{"$f":"IF('Formular E'!G23<>\"\",'Formular E'!G23,\"\")","v":""},{"$f":"IF('Formular E'!H23<>\"\",'Formular E'!H23,\"\")","v":""},{"$f":"IF('Formular E'!I23<>\"\",'Formular E'!I23,\"\")","v":""},{"$f":"IF('Formular E'!J23<>\"\",'Formular E'!J23,\"\")","v":""},{"$f":"IF('Formular E'!N23<>\"\",'Formular E'!N23,\"\")","v":""},{"$f":"IF('Formular E'!O23<>\"\",'Formular E'!O23,\"\")","v":""},{"$f":"IF('Formular E'!P23<>\"\",'Formular E'!P23,\"\")","v":""},{"$f":"IF(B21=\"\",\"\",IF(OR(N21=\"\",AND(N21<>\"\",N21<8)),Sprachen!H$501,Sprachen!H$502))","v":""},{"$f":"IF(B21=\"\",\"\",IF(AND(OR(N21=\"\",N21<8),OR(O21=\"nein\",O21=\"non\",O21=\"no\")),Sprachen!H$495,IF(OR(O21=\"ja\",O21=\"oui\",O21=\"si\"),Sprachen!H$496,\"\")))","v":""},null,null,0,0]
[13,{"$f":"IF('Formular E'!B24<>\"\",'Formular E'!B24,\"\")","v":""},null,null,{"$f":"IF('Formular E'!D24<>\"\",'Formular E'!D24,\"\")","v":""},{"$f":"IF('Formular E'!E24<>\"\",'Formular E'!E24,\"\")","v":""},{"$f":"IF('Formular E'!F24<>\"\",'Formular E'!F24,\"\")","v":""},{"$f":"IF('Formular E'!G24<>\"\",'Formular E'!G24,\"\")","v":""},{"$f":"IF('Formular E'!H24<>\"\",'Formular E'!H24,\"\")","v":""},{"$f":"IF('Formular E'!I24<>\"\",'Formular E'!I24,\"\")","v":""},{"$f":"IF('Formular E'!J24<>\"\",'Formular E'!J24,\"\")","v":""},{"$f":"IF('Formular E'!N24<>\"\",'Formular E'!N24,\"\")","v":""},{"$f":"IF('Formular E'!O24<>\"\",'Formular E'!O24,\"\")","v":""},{"$f":"IF('Formular E'!P24<>\"\",'Formular E'!P24,\"\")","v":""},{"$f":"IF(B22=\"\",\"\",IF(OR(N22=\"\",AND(N22<>\"\",N22<8)),Sprachen!H$501,Sprachen!H$502))","v":""},{"$f":"IF(B22=\"\",\"\",IF(AND(OR(N22=\"\",N22<8),OR(O22=\"nein\",O22=\"non\",O22=\"no\")),Sprachen!H$495,IF(OR(O22=\"ja\",O22=\"oui\",O22=\"si\"),Sprachen!H$496,\"\")))","v":""},null,null,0,0]
[14,{"$f":"IF('Formular E'!B25<>\"\",'Formular E'!B25,\"\")","v":""},null,null,{"$f":"IF('Formular E'!D25<>\"\",'Formular E'!D25,\"\")","v":""},{"$f":"IF('Formular E'!E25<>\"\",'Formular E'!E25,\"\")","v":""},{"$f":"IF('Formular E'!F25<>\"\",'Formular E'!F25,\"\")","v":""},{"$f":"IF('Formular E'!G25<>\"\",'Formular E'!G25,\"\")","v":""},{"$f":"IF('Formular E'!H25<>\"\",'Formular E'!H25,\"\")","v":""},{"$f":"IF('Formular E'!I25<>\"\",'Formular E'!I25,\"\")","v":""},{"$f":"IF('Formular E'!J25<>\"\",'Formular E'!J25,\"\")","v":""},{"$f":"IF('Formular E'!N25<>\"\",'Formular E'!N25,\"\")","v":""},{"$f":"IF('Formular E'!O25<>\"\",'Formular E'!O25,\"\")","v":""},{"$f":"IF('Formular E'!P25<>\"\",'Formular E'!P25,\"\")","v":""},{"$f":"IF(B23=\"\",\"\",IF(OR(N23=\"\",AND(N23<>\"\",N23<8)),Sprachen!H$501,Sprachen!H$502))","v":""},{"$f":"IF(B23=\"\",\"\",IF(AND(OR(N23=\"\",N23<8),OR(O23=\"nein\",O23=\"non\",O23=\"no\")),Sprachen!H$495,IF(OR(O23=\"ja\",O23=\"oui\",O23=\"si\"),Sprachen!H$496,\"\")))","v":""},null,null,0,0]
[{"$f":"Sprachen!H423","v":"Prozess- und Produktionsanlagen"}]
[15,{"$f":"IF('Formular E'!B27<>\"\",'Formular E'!B27,\"\")","v":""},null,null,{"$f":"IF('Formular E'!D27<>\"\",'Formular E'!D27,\"\")","v":""},{"$f":"IF('Formular E'!E27<>\"\",'Formular E'!E27,\"\")","v":""},{"$f":"IF('Formular E'!F27<>\"\",'Formular E'!F27,\"\")","v":""},{"$f":"IF('Formular E'!G27<>\"\",'Formular E'!G27,\"\")","v":""},{"$f":"IF('Formular E'!H27<>\"\",'Formular E'!H27,\"\")","v":""},{"$f":"IF('Formular E'!I27<>\"\",'Formular E'!I27,\"\")","v":""},{"$f":"IF('Formular E'!J27<>\"\",'Formular E'!J27,\"\")","v":""},{"$f":"IF('Formular E'!N27<>\"\",'Formular E'!N27,\"\")","v":""},{"$f":"IF('Formular E'!O27<>\"\",'Formular E'!O27,\"\")","v":""},{"$f":"IF('Formular E'!P27<>\"\",'Formular E'!P27,\"\")","v":""},{"$f":"IF(B25=\"\",\"\",IF(OR(N25=\"\",AND(N25<>\"\",N25<4)),Sprachen!H$501,Sprachen!H$502))","v":""},{"$f":"IF(B25=\"\",\"\",IF(AND(OR(N25=\"\",N25<4),OR(O25=\"nein\",O25=\"non\",O25=\"no\")),Sprachen!H$495,IF(OR(O25=\"ja\",O25=\"oui\",O25=\"si\"),Sprachen!H$496,\"\")))","v":""},null,null,0,{"$f":"IF(B25=\"\",0,IF(AND(OR(N25=\"\",N25<4),OR(O25=\"nein\",O25=\"non\",O25=\"no\")),1,0))","v":0}]
[16,{"$f":"IF('Formular E'!B28<>\"\",'Formular E'!B28,\"\")","v":""},null,null,{"$f":"IF('Formular E'!D28<>\"\",'Formular E'!D28,\"\")","v":""},{"$f":"IF('Formular E'!E28<>\"\",'Formular E'!E28,\"\")","v":""},{"$f":"IF('Formular E'!F28<>\"\",'Formular E'!F28,\"\")","v":""},{"$f":"IF('Formular E'!G28<>\"\",'Formular E'!G28,\"\")","v":""},{"$f":"IF('Formular E'!H28<>\"\",'Formular E'!H28,\"\")","v":""},{"$f":"IF('Formular E'!I28<>\"\",'Formular E'!I28,\"\")","v":""},{"$f":"IF('Formular E'!J28<>\"\",'Formular E'!J28,\"\")","v":""},{"$f":"IF('Formular E'!N28<>\"\",'Formular E'!N28,\"\")","v":""},{"$f":"IF('Formular E'!O28<>\"\",'Formular E'!O28,\"\")","v":""},{"$f":"IF('Formular E'!P28<>\"\",'Formular E'!P28,\"\")","v":""},{"$f":"IF(B26=\"\",\"\",IF(OR(N26=\"\",AND(N26<>\"\",N26<4)),Sprachen!H$501,Sprachen!H$502))","v":""},{"$f":"IF(B26=\"\",\"\",IF(AND(OR(N26=\"\",N26<4),OR(O26=\"nein\",O26=\"non\",O26=\"no\")),Sprachen!H$495,IF(OR(O26=\"ja\",O26=\"oui\",O26=\"si\"),Sprachen!H$496,\"\")))","v":""},null,null,0,0]
[17,{"$f":"IF('Formular E'!B29<>\"\",'Formular E'!B29,\"\")","v":""},null,null,{"$f":"IF('Formular E'!D29<>\"\",'Formular E'!D29,\"\")","v":""},{"$f":"IF('Formular E'!E29<>\"\",'Formular E'!E29,\"\")","v":""},{"$f":"IF('Formular E'!F29<>\"\",'Formular E'!F29,\"\")","v":""},{"$f":"IF('Formular E'!G29<>\"\",'Formular E'!G29,\"\")","v":""},{"$f":"IF('Formular E'!H29<>\"\",'Formular E'!H29,\"\")","v":""},{"$f":"IF('Formular E'!I29<>\"\",'Formular E'!I29,\"\")","v":""},{"$f":"IF('Formular E'!J29<>\"\",'Formular E'!J29,\"\")","v":""},{"$f":"IF('Formular E'!N29<>\"\",'Formular E'!N29,\"\")","v":""},{"$f":"IF('Formular E'!O29<>\"\",'Formular E'!O29,\"\")","v":""},{"$f":"IF('Formular E'!P29<>\"\",'Formular E'!P29,\"\")","v":""},{"$f":"IF(B27=\"\",\"\",IF(OR(N27=\"\",AND(N27<>\"\",N27<4)),Sprachen!H$501,Sprachen!H$502))","v":""},{"$f":"IF(B27=\"\",\"\",IF(AND(OR(N27=\"\",N27<4),OR(O27=\"nein\",O27=\"non\",O27=\"no\")),Sprachen!H$495,IF(OR(O27=\"ja\",O27=\"oui\",O27=\"si\"),Sprachen!H$496,\"\")))","v":""},null,null,0,0]
[18,{"$f":"IF('Formular E'!B30<>\"\",'Formular E'!B30,\"\")","v":""},null,null,{"$f":"IF('Formular E'!D30<>\"\",'Formular E'!D30,\"\")","v":""},{"$f":"IF('Formular E'!E30<>\"\",'Formular E'!E30,\"\")","v":""},{"$f":"IF('Formular E'!F30<>\"\",'Formular E'!F30,\"\")","v":""},{"$f":"IF('Formular E'!G30<>\"\",'Formular E'!G30,\"\")","v":""},{"$f":"IF('Formular E'!H30<>\"\",'Formular E'!H30,\"\")","v":""},{"$f":"IF('Formular E'!I30<>\"\",'Formular E'!I30,\"\")","v":""},{"$f":"IF('Formular E'!J30<>\"\",'Formular E'!J30,\"\")","v":""},{"$f":"IF('Formular E'!N30<>\"\",'Formular E'!N30,\"\")","v":""},{"$f":"IF('Formular E'!O30<>\"\",'Formular E'!O30,\"\")","v":""},{"$f":"IF('Formular E'!P30<>\"\",'Formular E'!P30,\"\")","v":""},{"$f":"IF(B28=\"\",\"\",IF(OR(N28=\"\",AND(N28<>\"\",N28<4)),Sprachen!H$501,Sprachen!H$502))","v":""},{"$f":"IF(B28=\"\",\"\",IF(AND(OR(N28=\"\",N28<4),OR(O28=\"nein\",O28=\"non\",O28=\"no\")),Sprachen!H$495,IF(OR(O28=\"ja\",O28=\"oui\",O28=\"si\"),Sprachen!H$496,\"\")))","v":""},null,null,0,0]
[19,{"$f":"IF('Formular E'!B31<>\"\",'Formular E'!B31,\"\")","v":""},null,null,{"$f":"IF('Formular E'!D31<>\"\",'Formular E'!D31,\"\")","v":""},{"$f":"IF('Formular E'!E31<>\"\",'Formular E'!E31,\"\")","v":""},{"$f":"IF('Formular E'!F31<>\"\",'Formular E'!F31,\"\")","v":""},{"$f":"IF('Formular E'!G31<>\"\",'Formular E'!G31,\"\")","v":""},{"$f":"IF('Formular E'!H31<>\"\",'Formular E'!H31,\"\")","v":""},{"$f":"IF('Formular E'!I31<>\"\",'Formular E'!I31,\"\")","v":""},{"$f":"IF('Formular E'!J31<>\"\",'Formular E'!J31,\"\")","v":""},{"$f":"IF('Formular E'!N31<>\"\",'Formular E'!N31,\"\")","v":""},{"$f":"IF('Formular E'!O31<>\"\",'Formular E'!O31,\"\")","v":""},{"$f":"IF('Formular E'!P31<>\"\",'Formular E'!P31,\"\")","v":""},{"$f":"IF(B29=\"\",\"\",IF(OR(N29=\"\",AND(N29<>\"\",N29<4)),Sprachen!H$501,Sprachen!H$502))","v":""},{"$f":"IF(B29=\"\",\"\",IF(AND(OR(N29=\"\",N29<4),OR(O29=\"nein\",O29=\"non\",O29=\"no\")),Sprachen!H$495,IF(OR(O29=\"ja\",O29=\"oui\",O29=\"si\"),Sprachen!H$496,\"\")))","v":""},null,null,0,0]
[20,{"$f":"IF('Formular E'!B32<>\"\",'Formular E'!B32,\"\")","v":""},null,null,{"$f":"IF('Formular E'!D32<>\"\",'Formular E'!D32,\"\")","v":""},{"$f":"IF('Formular E'!E32<>\"\",'Formular E'!E32,\"\")","v":""},{"$f":"IF('Formular E'!F32<>\"\",'Formular E'!F32,\"\")","v":""},{"$f":"IF('Formular E'!G32<>\"\",'Formular E'!G32,\"\")","v":""},{"$f":"IF('Formular E'!H32<>\"\",'Formular E'!H32,\"\")","v":""},{"$f":"IF('Formular E'!I32<>\"\",'Formular E'!I32,\"\")","v":""},{"$f":"IF('Formular E'!J32<>\"\",'Formular E'!J32,\"\")","v":""},{"$f":"IF('Formular E'!N32<>\"\",'Formular E'!N32,\"\")","v":""},{"$f":"IF('Formular E'!O32<>\"\",'Formular E'!O32,\"\")","v":""},{"$f":"IF('Formular E'!P32<>\"\",'Formular E'!P32,\"\")","v":""},{"$f":"IF(B30=\"\",\"\",IF(OR(N30=\"\",AND(N30<>\"\",N30<4)),Sprachen!H$501,Sprachen!H$502))","v":""},{"$f":"IF(B30=\"\",\"\",IF(AND(OR(N30=\"\",N30<4),OR(O30=\"nein\",O30=\"non\",O30=\"no\")),Sprachen!H$495,IF(OR(O30=\"ja\",O30=\"oui\",O30=\"si\"),Sprachen!H$496,\"\")))","v":""},null,null,0,0]
[{"$f":"Sprachen!H424","v":"S3 / Summe aller auszuführenden neuen Massnahmen"},{"$nulls":7},{"$f":"SUMIF(S10:S30,1,I10:I30)","v":0},{"$f":"SUMIF(S10:S30,1,J10:J30)","v":0},{"$f":"IF(I45=0,0,J31/I45)","v":{"v":0,"d":"0.0%"}},{"$f":"IF(K31<0.15,Sprachen!H497,Sprachen!H498)","v":"=> Begründung zur Einsparung < 15%  hinzufügen und Formular F2 ausfüllen."},{"$nulls":7},{"$f":"IF(SUM(T10:T30)=0,0,1)","v":0}]
[]
[{"$f":"IF(T31=1,Sprachen!H503,Sprachen!H504)","v":"Kommentar zur Deklaration auszuführender Massnahmen (fakultativ):"}]
[]
[]
[{"$f":"IF(K31<0.15,Sprachen!H505,Sprachen!H506)","v":"Begründung weshalb die Richtgrösse von 15% Einsparung nicht erreicht werden kann:"}]
[]
[{"$f":"Sprachen!H425","v":"Formular F2"},{"$nulls":16},{"$f":"IF(Titelblatt!$F$12=\"\",\"\",Titelblatt!$F$12)","v":""}]
[{"$f":"Sprachen!H426","v":"Realisierte Massnahmen der letzten 5 Jahre"},{"$nulls":16},{"$f":"IF(Titelblatt!$F$25=\"\",\"\",Titelblatt!$F$25)","v":""}]
[]
[{"$f":"Sprachen!H427","v":"Hinweise:"}]
[{"$f":"Sprachen!H428","v":"- Realisierte Massnahmen sind nur auszufüllen, falls mit den umzusetzenden neuen Massnahmen die Richtgrösse von 15% nicht erreicht wird."}]
[{"$f":"Sprachen!H429","v":"- Eine zusätzliche Begründung ist anzugeben, falls auch zusammen mit den Massnahmen der letzten 5 Jahre die Richtgrösse von 15% nicht erreicht wird."}]
[]
["a",{"$f":"Sprachen!H438","v":"Gewichteter Energiebezug des aktuellsten Jahres ¹⁾ ²⁾:"},{"$nulls":6},{"$f":"'Formular C'!I24","v":0},null," kWh/a",{"$nulls":6},{"$f":"Sprachen!H483","v":"1) Gem. Formular C, Ziffer C.1      2) Gewichtungsfaktoren gemäss Formular C, Hinweis 2)"}]
[]
[{"$f":"Sprachen!H430","v":"Nr."},{"$f":"Sprachen!H439","v":"Massnahmentitel"},null,null,{"$f":"Sprachen!H446","v":"Energieeinsparung"},{"$nulls":6},{"$f":"Sprachen!H464","v":"Energiepreis ¹⁾"},null,{"$f":"Sprachen!H471","v":"Kosten-\neinsp."},{"$f":"Sprachen!H476","v":"Investitionen"},null,null,{"$f":"Sprachen!H484","v":"Payback"},null,null,{"$f":"Sprachen!H485","v":"Beschrei-bung"}]
[{"$nulls":4},{"$f":"Sprachen!H447","v":"Ungewichtet"},{"$nulls":4},{"$f":"Sprachen!H458","v":"Gewichtet ²⁾"}]
[{"$nulls":4},{"$f":"Sprachen!H448","v":"Einsparung 1"},null,{"$f":"Sprachen!H452","v":"Einsparung 2"},null,{"$f":"Sprachen!H455","v":"Total"},{"$f":"Sprachen!H459","v":"Total"},{"$f":"Sprachen!H461","v":"Anteil"},{"$f":"Sprachen!H465","v":"Einspar.1"},{"$f":"Sprachen!H468","v":"Einspar.2"},{"$f":"Sprachen!H472","v":"Total"},{"$f":"Sprachen!H477","v":"Total"},null,{"$f":"Sprachen!H482","v":"KE"},{"$nulls":3},{"$f":"Sprachen!H486","v":"Klicken um zum Blatt Beschrei-bung zu wechseln:"}]
[{"$nulls":4},{"$f":"Sprachen!H449","v":"Art"},"[kWh/a]",{"$f":"Sprachen!H453","v":"Art"},"[kWh/a]","[kWh/a]","[kWh/a]","[-]","[CHF/kWh]","[CHF/kWh]","[CHF/a]","[CHF]",null,"[-]","[a]"]
[{"$nulls":5},"b",null,"c","b + c","d = b + c 2)","d / a","e 1)","f 1)","g = b*e + c*f","h",null,"i","h * i / g"]
[{"$f":"IF(AND(K31<0.15,A37=\"\"),Sprachen!H507,IF(K31>=0.15,Sprachen!H508,Sprachen!H509))","v":"Eingabefelder gesperrt: Bitte zuerst Formular F1 komplett ausfüllen!"}]
[21,{"$nulls":7},{"$f":"IF(massnahme21=\"\",\"\",F53+H53)","v":""},{"$f":"IF(B53=\"\",\"\",IFERROR(F53*VLOOKUP(E53,Admin!$A$67:$B$72,2,FALSE),0)+IFERROR(H53*VLOOKUP(G53,Admin!$A$67:$B$72,2,FALSE),0))","v":""},{"$f":"IF(massnahme21=\"\",\"\",IF($I$45=0,0,J53/$I$45))","v":""},{"$f":"IF(massnahme21=\"\",\"\",IF(E53=\"\",\"0\",IF(VLOOKUP(E53,'Formular C'!$A$12:$D$20,4,0)=\"\",Sprachen!H$499,VLOOKUP(E53,'Formular C'!$A$12:$D$20,4,0))))","v":""},{"$f":"IF(massnahme21=\"\",\"\",IF(G53=\"\",\"0\",IF(VLOOKUP(G53,'Formular C'!$A$12:$D$20,4,0)=\"\",Sprachen!H$499,VLOOKUP(G53,'Formular C'!$A$12:$D$20,4,0))))","v":""},{"$f":"IF(massnahme21=\"\",\"\",(F53*L53)+(H53*M53))","v":""},{"$nulls":3},{"$f":"IF(massnahme21=\"\",\"\",IF(N53=\"\",\"\",IF(O53=\"\",0,IF(Q53=\"\",Sprachen!H$500,O53*Q53/N53))))","v":""},null,null,{"$f":"Sprachen!H487","v":"Beschr. 21"},{"$f":"Eingabemeldung(Sprachen!H$514,Sprachen!H$513,'Formular F1 + F2'!E53)","v":""},{"$f":"Eingabemeldung(Sprachen!H$514,Sprachen!H$513,'Formular F1 + F2'!G53)","v":""},{"$f":"Eingabemeldung(Sprachen!H$516,Sprachen!H$515,'Formular F1 + F2'!Q53)","v":""}]
[22,{"$nulls":7},{"$f":"IF(massnahme22=\"\",\"\",F54+H54)","v":""},{"$f":"IF(B54=\"\",\"\",IFERROR(F54*VLOOKUP(E54,Admin!$A$67:$B$72,2,FALSE),0)+IFERROR(H54*VLOOKUP(G54,Admin!$A$67:$B$72,2,FALSE),0))","v":""},{"$f":"IF(massnahme22=\"\",\"\",IF($I$45=0,0,J54/$I$45))","v":""},{"$f":"IF(massnahme21=\"\",\"\",IF(E54=\"\",\"0\",IF(VLOOKUP(E54,'Formular C'!$A$12:$D$20,4,0)=\"\",Sprachen!H$499,VLOOKUP(E54,'Formular C'!$A$12:$D$20,4,0))))","v":""},{"$f":"IF(massnahme21=\"\",\"\",IF(G54=\"\",\"0\",IF(VLOOKUP(G54,'Formular C'!$A$12:$D$20,4,0)=\"\",Sprachen!H$499,VLOOKUP(G54,'Formular C'!$A$12:$D$20,4,0))))","v":""},{"$f":"IF(massnahme22=\"\",\"\",(F54*L54)+(H54*M54))","v":""},{"$nulls":3},{"$f":"IF(massnahme22=\"\",\"\",IF(N54=\"\",\"\",IF(O54=\"\",0,IF(Q54=\"\",Sprachen!H$500,O54*Q54/N54))))","v":""},null,null,{"$f":"Sprachen!H488","v":"Beschr. 22"},{"$f":"Eingabemeldung(Sprachen!H$514,Sprachen!H$513,'Formular F1 + F2'!E54)","v":""},{"$f":"Eingabemeldung(Sprachen!H$514,Sprachen!H$513,'Formular F1 + F2'!G54)","v":""},{"$f":"Eingabemeldung(Sprachen!H$516,Sprachen!H$515,'Formular F1 + F2'!Q54)","v":""}]
[23,{"$nulls":7},{"$f":"IF(massnahme23=\"\",\"\",F55+H55)","v":""},{"$f":"IF(B55=\"\",\"\",IFERROR(F55*VLOOKUP(E55,Admin!$A$67:$B$72,2,FALSE),0)+IFERROR(H55*VLOOKUP(G55,Admin!$A$67:$B$72,2,FALSE),0))","v":""},{"$f":"IF(massnahme23=\"\",\"\",IF($I$45=0,0,J55/$I$45))","v":""},{"$f":"IF(massnahme21=\"\",\"\",IF(E55=\"\",\"0\",IF(VLOOKUP(E55,'Formular C'!$A$12:$D$20,4,0)=\"\",Sprachen!H$499,VLOOKUP(E55,'Formular C'!$A$12:$D$20,4,0))))","v":""},{"$f":"IF(massnahme21=\"\",\"\",IF(G55=\"\",\"0\",IF(VLOOKUP(G55,'Formular C'!$A$12:$D$20,4,0)=\"\",Sprachen!H$499,VLOOKUP(G55,'Formular C'!$A$12:$D$20,4,0))))","v":""},{"$f":"IF(massnahme23=\"\",\"\",(F55*L55)+(H55*M55))","v":""},{"$nulls":3},{"$f":"IF(massnahme23=\"\",\"\",IF(N55=\"\",\"\",IF(O55=\"\",0,IF(Q55=\"\",Sprachen!H$500,O55*Q55/N55))))","v":""},null,null,{"$f":"Sprachen!H489","v":"Beschr. 23"},{"$f":"Eingabemeldung(Sprachen!H$514,Sprachen!H$513,'Formular F1 + F2'!E55)","v":""},{"$f":"Eingabemeldung(Sprachen!H$514,Sprachen!H$513,'Formular F1 + F2'!G55)","v":""},{"$f":"Eingabemeldung(Sprachen!H$516,Sprachen!H$515,'Formular F1 + F2'!Q55)","v":""}]
[24,{"$nulls":7},{"$f":"IF(massnahme24=\"\",\"\",F56+H56)","v":""},{"$f":"IF(B56=\"\",\"\",IFERROR(F56*VLOOKUP(E56,Admin!$A$67:$B$72,2,FALSE),0)+IFERROR(H56*VLOOKUP(G56,Admin!$A$67:$B$72,2,FALSE),0))","v":""},{"$f":"IF(massnahme24=\"\",\"\",IF($I$45=0,0,J56/$I$45))","v":""},{"$f":"IF(massnahme21=\"\",\"\",IF(E56=\"\",\"0\",IF(VLOOKUP(E56,'Formular C'!$A$12:$D$20,4,0)=\"\",Sprachen!H$499,VLOOKUP(E56,'Formular C'!$A$12:$D$20,4,0))))","v":""},{"$f":"IF(massnahme21=\"\",\"\",IF(G56=\"\",\"0\",IF(VLOOKUP(G56,'Formular C'!$A$12:$D$20,4,0)=\"\",Sprachen!H$499,VLOOKUP(G56,'Formular C'!$A$12:$D$20,4,0))))","v":""},{"$f":"IF(massnahme24=\"\",\"\",(F56*L56)+(H56*M56))","v":""},{"$nulls":3},{"$f":"IF(massnahme24=\"\",\"\",IF(N56=\"\",\"\",IF(O56=\"\",0,IF(Q56=\"\",Sprachen!H$500,O56*Q56/N56))))","v":""},null,null,{"$f":"Sprachen!H490","v":"Beschr. 24"},{"$f":"Eingabemeldung(Sprachen!H$514,Sprachen!H$513,'Formular F1 + F2'!E56)","v":""},{"$f":"Eingabemeldung(Sprachen!H$514,Sprachen!H$513,'Formular F1 + F2'!G56)","v":""},{"$f":"Eingabemeldung(Sprachen!H$516,Sprachen!H$515,'Formular F1 + F2'!Q56)","v":""}]
[25,{"$nulls":7},{"$f":"IF(massnahme25=\"\",\"\",F57+H57)","v":""},{"$f":"IF(B57=\"\",\"\",IFERROR(F57*VLOOKUP(E57,Admin!$A$67:$B$72,2,FALSE),0)+IFERROR(H57*VLOOKUP(G57,Admin!$A$67:$B$72,2,FALSE),0))","v":""},{"$f":"IF(massnahme25=\"\",\"\",IF($I$45=0,0,J57/$I$45))","v":""},{"$f":"IF(massnahme21=\"\",\"\",IF(E57=\"\",\"0\",IF(VLOOKUP(E57,'Formular C'!$A$12:$D$20,4,0)=\"\",Sprachen!H$499,VLOOKUP(E57,'Formular C'!$A$12:$D$20,4,0))))","v":""},{"$f":"IF(massnahme21=\"\",\"\",IF(G57=\"\",\"0\",IF(VLOOKUP(G57,'Formular C'!$A$12:$D$20,4,0)=\"\",Sprachen!H$499,VLOOKUP(G57,'Formular C'!$A$12:$D$20,4,0))))","v":""},{"$f":"IF(massnahme25=\"\",\"\",(F57*L57)+(H57*M57))","v":""},{"$nulls":3},{"$f":"IF(massnahme25=\"\",\"\",IF(N57=\"\",\"\",IF(O57=\"\",0,IF(Q57=\"\",Sprachen!H$500,O57*Q57/N57))))","v":""},null,null,{"$f":"Sprachen!H491","v":"Beschr. 25"},{"$f":"Eingabemeldung(Sprachen!H$514,Sprachen!H$513,'Formular F1 + F2'!E57)","v":""},{"$f":"Eingabemeldung(Sprachen!H$514,Sprachen!H$513,'Formular F1 + F2'!G57)","v":""},{"$f":"Eingabemeldung(Sprachen!H$516,Sprachen!H$515,'Formular F1 + F2'!Q57)","v":""}]
[26,{"$nulls":7},{"$f":"IF(massnahme26=\"\",\"\",F58+H58)","v":""},{"$f":"IF(B58=\"\",\"\",IFERROR(F58*VLOOKUP(E58,Admin!$A$67:$B$72,2,FALSE),0)+IFERROR(H58*VLOOKUP(G58,Admin!$A$67:$B$72,2,FALSE),0))","v":""},{"$f":"IF(massnahme26=\"\",\"\",IF($I$45=0,0,J58/$I$45))","v":""},{"$f":"IF(massnahme21=\"\",\"\",IF(E58=\"\",\"0\",IF(VLOOKUP(E58,'Formular C'!$A$12:$D$20,4,0)=\"\",Sprachen!H$499,VLOOKUP(E58,'Formular C'!$A$12:$D$20,4,0))))","v":""},{"$f":"IF(massnahme21=\"\",\"\",IF(G58=\"\",\"0\",IF(VLOOKUP(G58,'Formular C'!$A$12:$D$20,4,0)=\"\",Sprachen!H$499,VLOOKUP(G58,'Formular C'!$A$12:$D$20,4,0))))","v":""},{"$f":"IF(massnahme26=\"\",\"\",(F58*L58)+(H58*M58))","v":""},{"$nulls":3},{"$f":"IF(massnahme26=\"\",\"\",IF(N58=\"\",\"\",IF(O58=\"\",0,IF(Q58=\"\",Sprachen!H$500,O58*Q58/N58))))","v":""},null,null,{"$f":"Sprachen!H492","v":"Beschr. 26"},{"$f":"Eingabemeldung(Sprachen!H$514,Sprachen!H$513,'Formular F1 + F2'!E58)","v":""},{"$f":"Eingabemeldung(Sprachen!H$514,Sprachen!H$513,'Formular F1 + F2'!G58)","v":""},{"$f":"Eingabemeldung(Sprachen!H$516,Sprachen!H$515,'Formular F1 + F2'!Q58)","v":""}]
[27,{"$nulls":7},{"$f":"IF(massnahme27=\"\",\"\",F59+H59)","v":""},{"$f":"IF(B59=\"\",\"\",IFERROR(F59*VLOOKUP(E59,Admin!$A$67:$B$72,2,FALSE),0)+IFERROR(H59*VLOOKUP(G59,Admin!$A$67:$B$72,2,FALSE),0))","v":""},{"$f":"IF(massnahme27=\"\",\"\",IF($I$45=0,0,J59/$I$45))","v":""},{"$f":"IF(massnahme21=\"\",\"\",IF(E59=\"\",\"0\",IF(VLOOKUP(E59,'Formular C'!$A$12:$D$20,4,0)=\"\",Sprachen!H$499,VLOOKUP(E59,'Formular C'!$A$12:$D$20,4,0))))","v":""},{"$f":"IF(massnahme21=\"\",\"\",IF(G59=\"\",\"0\",IF(VLOOKUP(G59,'Formular C'!$A$12:$D$20,4,0)=\"\",Sprachen!H$499,VLOOKUP(G59,'Formular C'!$A$12:$D$20,4,0))))","v":""},{"$f":"IF(massnahme27=\"\",\"\",(F59*L59)+(H59*M59))","v":""},{"$nulls":3},{"$f":"IF(massnahme27=\"\",\"\",IF(N59=\"\",\"\",IF(O59=\"\",0,IF(Q59=\"\",Sprachen!H$500,O59*Q59/N59))))","v":""},null,null,{"$f":"Sprachen!H493","v":"Beschr. 27"},{"$f":"Eingabemeldung(Sprachen!H$514,Sprachen!H$513,'Formular F1 + F2'!E59)","v":""},{"$f":"Eingabemeldung(Sprachen!H$514,Sprachen!H$513,'Formular F1 + F2'!G59)","v":""},{"$f":"Eingabemeldung(Sprachen!H$516,Sprachen!H$515,'Formular F1 + F2'!Q59)","v":""}]
[28,{"$nulls":7},{"$f":"IF(massnahme28=\"\",\"\",F60+H60)","v":""},{"$f":"IF(B60=\"\",\"\",IFERROR(F60*VLOOKUP(E60,Admin!$A$67:$B$72,2,FALSE),0)+IFERROR(H60*VLOOKUP(G60,Admin!$A$67:$B$72,2,FALSE),0))","v":""},{"$f":"IF(massnahme28=\"\",\"\",IF($I$45=0,0,J60/$I$45))","v":""},{"$f":"IF(massnahme21=\"\",\"\",IF(E60=\"\",\"0\",IF(VLOOKUP(E60,'Formular C'!$A$12:$D$20,4,0)=\"\",Sprachen!H$499,VLOOKUP(E60,'Formular C'!$A$12:$D$20,4,0))))","v":""},{"$f":"IF(massnahme21=\"\",\"\",IF(G60=\"\",\"0\",IF(VLOOKUP(G60,'Formular C'!$A$12:$D$20,4,0)=\"\",Sprachen!H$499,VLOOKUP(G60,'Formular C'!$A$12:$D$20,4,0))))","v":""},{"$f":"IF(massnahme28=\"\",\"\",(F60*L60)+(H60*M60))","v":""},{"$nulls":3},{"$f":"IF(massnahme28=\"\",\"\",IF(N60=\"\",\"\",IF(O60=\"\",0,IF(Q60=\"\",Sprachen!H$500,O60*Q60/N60))))","v":""},null,null,{"$f":"Sprachen!H494","v":"Beschr. 28"},{"$f":"Eingabemeldung(Sprachen!H$514,Sprachen!H$513,'Formular F1 + F2'!E60)","v":""},{"$f":"Eingabemeldung(Sprachen!H$514,Sprachen!H$513,'Formular F1 + F2'!G60)","v":""},{"$f":"Eingabemeldung(Sprachen!H$516,Sprachen!H$515,'Formular F1 + F2'!Q60)","v":""}]
[{"$f":"Sprachen!H431","v":"S4 / Summe aller realisierten Massnahmen der letzten 5 Jahre"},{"$nulls":7},{"$f":"SUM(I53:I60)","v":0},{"$f":"SUM(J53:J60)","v":0},{"$f":"IF(AND($K$31<0.15,$A$37=\"\"),0,SUM(K53:K60))","v":{"v":0,"d":"0.0%"}}]
[{"$f":"Sprachen!H432","v":"S3 / Summe aller auszuführenden neuen Massnahmen"},{"$nulls":7},{"$f":"I31","v":0},{"$f":"J31","v":0},{"$f":"K31","v":{"v":0,"d":"0.0%"}},{"$f":"Sprachen!H469","v":"(gemäss Formular F1)"}]
[{"$f":"Sprachen!H433","v":"S5 / Summe aller realisierten und auszuführenden Massnahmen"},{"$nulls":7},{"$f":"SUM(I61:I62)","v":0},{"$f":"SUM(J61:J62)","v":0},{"$f":"SUM(K61:K62)","v":{"v":0,"d":"0.0%"}}]
[]
[{"$f":"IF(AND(K31<0.15,A37=\"\"),Sprachen!H510,IF(K63<0.15,Sprachen!H511,Sprachen!H512))","v":"Eingabefeld gesperrt: Bitte zuerst Formular F1 komplett ausfüllen!"}]
[]
[]
[{"$f":"Sprachen!H434","v":"Bestätigung"}]
[]
[{"$f":"Sprachen!H435","v":"Der/die Eigentümer/In der Betriebsstätte bestätigt mit dieser rechtsgültigen Unterschrift, dass er/sie:"}]
[]
[null,"1.",null,{"$f":"Sprachen!H440","v":"Die auf Formular F1 zur Umsetzung deklarierten neuen Massnahmen (Umsetzung \"ja\") innerhalb der drei vom Kanton vorgegebenen Jahre ausführt und der zuständigen Amtsstelle den Abschluss mittels Ausführungsbestätigungsschreiben meldet."}]
[]
[null,"2.",null,{"$f":"Sprachen!H441","v":"Die auf Formular F2 aufgelisteten Massnahmen (\"Realisierte Massnahmen der letzten 5 Jahre\") in den letzten fünf Jahren realisiert hat."}]
[]
[{"$f":"Sprachen!H436","v":"Ort, Dat.:"},{"$nulls":9},{"$f":"Sprachen!H466","v":"Unterschrift:"}]

{"sheet":"Beschreibungen","index":12,"n_rows":130,"n_cols":3,"rows_kept":130,"merged":[[3,0,3,2],[93,0,93,2]]}
[{"$f":"Sprachen!H518","v":"Beschreibungen 1 / 2"},null,{"$f":"IF(Titelblatt!$F$12=\"\",\"\",Titelblatt!$F$12)","v":""}]
[{"$f":"Sprachen!H519","v":"Neue Massnahmen (Formular E)"},null,{"$f":"IF(Titelblatt!$F$25=\"\",\"\",Titelblatt!$F$25)","v":""}]
[]
[{"$f":"Sprachen!H520","v":"Hinweise:\n- Die im Formular E und F aufgeführten Massnahmen müssen in diesem Arbeitsblatt detailliert und nachvollziehbar beschrieben werden.\n- Wird für die Massnahmenbeschreibung mehr Platz benötigt, kann die Zeilenhöhe manuell angepasst werden.\n- Zeilenumbrüche können durch die Tastenkombination \"Alt\" & \"Enter\" eingefügt werden.\n"}]
[{"$f":"Sprachen!H521","v":"- Die im Formular E und F aufgeführten Massnahmen müssen* in diesem Arbeitsblatt detailliert und nachvollziehbar beschrieben werden."}]
[{"$f":"Sprachen!H522","v":"- Die Beschreibungsfelder werden erst angezeigt, wenn die Massnahmentitel in Formular E eingetragen wurden."}]
[{"$f":"Sprachen!H523","v":"- Wird für die Massnahmenbeschreibung mehr Platz benötigt, kann die Zeilenhöhe manuell angepasst werden."}]
[{"$f":"Sprachen!H524","v":"- Zeilenumbrüche können durch die Tastenkombination \"Alt\" & \"Enter\" eingefügt werden."}]
[{"$f":"Sprachen!H525","v":"* Alternativ können die Massnahmen auch in einem Beilagendokument beschrieben werden. Auch in der Beilage müssen Einspar- und Kostenberechnungen nachvollziehbar aufzeigt werden."}]
[]
[{"$f":"Sprachen!H526","v":"Massnahme 1, Formular E:"},{"$f":"IF('Formular E'!B12=\"\",Sprachen!H590,'Formular E'!B12)","v":"Massnahme 1 wurde nicht eingetragen"},{"$f":"Sprachen!H646","v":"zurück zu Formular E, Massnahme 1"}]
[{"$f":"Sprachen!H527","v":"Detaillierte Beschreibung der Massnahme:"},{"$f":"Sprachen!H618","v":"Beschreibung der Einsparberechnung:"},{"$f":"Sprachen!H647","v":"Beschreibung der Kostenberechnung (Total und KE):"}]
[]
[]
[{"$f":"Sprachen!H528","v":"Massnahme 2, Formular E:"},{"$f":"IF('Formular E'!B13=\"\",Sprachen!H591,'Formular E'!B13)","v":"Massnahme 2 wurde nicht eingetragen"},{"$f":"Sprachen!H648","v":"zurück zu Formular E, Massnahme 2"}]
[{"$f":"Sprachen!H529","v":"Detaillierte Beschreibung der Massnahme:"},{"$f":"Sprachen!H619","v":"Beschreibung der Einsparberechnung:"},{"$f":"Sprachen!H649","v":"Beschreibung der Kostenberechnung (Total und KE):"}]
[]
[]
[{"$f":"Sprachen!H530","v":"Massnahme 3, Formular E:"},{"$f":"IF('Formular E'!B14=\"\",Sprachen!H592,'Formular E'!B14)","v":"Massnahme 3 wurde nicht eingetragen"},{"$f":"Sprachen!H650","v":"zurück zu Formular E, Massnahme 3"}]
[{"$f":"Sprachen!H531","v":"Detaillierte Beschreibung der Massnahme:"},{"$f":"Sprachen!H620","v":"Beschreibung der Einsparberechnung:"},{"$f":"Sprachen!H651","v":"Beschreibung der Kostenberechnung (Total und KE):"}]
[]
[]
[{"$f":"Sprachen!H532","v":"Massnahme 4, Formular E:"},{"$f":"IF('Formular E'!B15=\"\",Sprachen!H593,'Formular E'!B15)","v":"Massnahme 4 wurde nicht eingetragen"},{"$f":"Sprachen!H652","v":"zurück zu Formular E, Massnahme 4"}]
[{"$f":"Sprachen!H533","v":"Detaillierte Beschreibung der Massnahme:"},{"$f":"Sprachen!H621","v":"Beschreibung der Einsparberechnung:"},{"$f":"Sprachen!H653","v":"Beschreibung der Kostenberechnung (Total und KE):"}]
[]
[]
[{"$f":"Sprachen!H534","v":"Massnahme 5, Formular E:"},{"$f":"IF('Formular E'!B16=\"\",Sprachen!H594,'Formular E'!B16)","v":"Massnahme 5 wurde nicht eingetragen"},{"$f":"Sprachen!H654","v":"zurück zu Formular E, Massnahme 5"}]
[{"$f":"Sprachen!H535","v":"Detaillierte Beschreibung der Massnahme:"},{"$f":"Sprachen!H622","v":"Beschreibung der Einsparberechnung:"},{"$f":"Sprachen!H655","v":"Beschreibung der Kostenberechnung (Total und KE):"}]
[]
[]
[{"$f":"Sprachen!H536","v":"Massnahme 6, Formular E:"},{"$f":"IF('Formular E'!B17=\"\",Sprachen!H595,'Formular E'!B17)","v":"Massnahme 6 wurde nicht eingetragen"},{"$f":"Sprachen!H656","v":"zurück zu Formular E, Massnahme 6"}]
[{"$f":"Sprachen!H537","v":"Detaillierte Beschreibung der Massnahme:"},{"$f":"Sprachen!H623","v":"Beschreibung der Einsparberechnung:"},{"$f":"Sprachen!H657","v":"Beschreibung der Kostenberechnung (Total und KE):"}]
[]
[]
[{"$f":"Sprachen!H538","v":"Massnahme 7, Formular E:"},{"$f":"IF('Formular E'!B18=\"\",Sprachen!H596,'Formular E'!B18)","v":"Massnahme 7 wurde nicht eingetragen"},{"$f":"Sprachen!H658","v":"zurück zu Formular E, Massnahme 7"}]
[{"$f":"Sprachen!H539","v":"Detaillierte Beschreibung der Massnahme:"},{"$f":"Sprachen!H624","v":"Beschreibung der Einsparberechnung:"},{"$f":"Sprachen!H659","v":"Beschreibung der Kostenberechnung (Total und KE):"}]
[]
[]
[{"$f":"Sprachen!H540","v":"Massnahme 8, Formular E:"},{"$f":"IF('Formular E'!B19=\"\",Sprachen!H597,'Formular E'!B19)","v":"Massnahme 8 wurde nicht eingetragen"},{"$f":"Sprachen!H660","v":"zurück zu Formular E, Massnahme 8"}]
[{"$f":"Sprachen!H541","v":"Detaillierte Beschreibung der Massnahme:"},{"$f":"Sprachen!H625","v":"Beschreibung der Einsparberechnung:"},{"$f":"Sprachen!H661","v":"Beschreibung der Kostenberechnung (Total und KE):"}]
[]
[]
[{"$f":"Sprachen!H542","v":"Massnahme 9, Formular E:"},{"$f":"IF('Formular E'!B20=\"\",Sprachen!H598,'Formular E'!B20)","v":"Massnahme 9 wurde nicht eingetragen"},{"$f":"Sprachen!H662","v":"zurück zu Formular E, Massnahme 9"}]
[{"$f":"Sprachen!H543","v":"Detaillierte Beschreibung der Massnahme:"},{"$f":"Sprachen!H626","v":"Beschreibung der Einsparberechnung:"},{"$f":"Sprachen!H663","v":"Beschreibung der Kostenberechnung (Total und KE):"}]
[]
[]
[{"$f":"Sprachen!H544","v":"Massnahme 10, Formular E:"},{"$f":"IF('Formular E'!B21=\"\",Sprachen!H599,'Formular E'!B21)","v":"Massnahme 10 wurde nicht eingetragen"},{"$f":"Sprachen!H664","v":"zurück zu Formular E, Massnahme 10"}]
[{"$f":"Sprachen!H545","v":"Detaillierte Beschreibung der Massnahme:"},{"$f":"Sprachen!H627","v":"Beschreibung der Einsparberechnung:"},{"$f":"Sprachen!H665","v":"Beschreibung der Kostenberechnung (Total und KE):"}]
[]
[]
[{"$f":"Sprachen!H546","v":"Massnahme 11, Formular E:"},{"$f":"IF('Formular E'!B22=\"\",Sprachen!H600,'Formular E'!B22)","v":"Massnahme 11 wurde nicht eingetragen"},{"$f":"Sprachen!H666","v":"zurück zu Formular E, Massnahme 11"}]
[{"$f":"Sprachen!H547","v":"Detaillierte Beschreibung der Massnahme:"},{"$f":"Sprachen!H628","v":"Beschreibung der Einsparberechnung:"},{"$f":"Sprachen!H667","v":"Beschreibung der Kostenberechnung (Total und KE):"}]
[]
[]
[{"$f":"Sprachen!H548","v":"Massnahme 12, Formular E:"},{"$f":"IF('Formular E'!B23=\"\",Sprachen!H601,'Formular E'!B23)","v":"Massnahme 12 wurde nicht eingetragen"},{"$f":"Sprachen!H668","v":"zurück zu Formular E, Massnahme 12"}]
[{"$f":"Sprachen!H549","v":"Detaillierte Beschreibung der Massnahme:"},{"$f":"Sprachen!H629","v":"Beschreibung der Einsparberechnung:"},{"$f":"Sprachen!H669","v":"Beschreibung der Kostenberechnung (Total und KE):"}]
[]
[]
[{"$f":"Sprachen!H550","v":"Massnahme 13, Formular E:"},{"$f":"IF('Formular E'!B24=\"\",Sprachen!H602,'Formular E'!B24)","v":"Massnahme 13 wurde nicht eingetragen"},{"$f":"Sprachen!H670","v":"zurück zu Formular E, Massnahme 13"}]
[{"$f":"Sprachen!H551","v":"Detaillierte Beschreibung der Massnahme:"},{"$f":"Sprachen!H630","v":"Beschreibung der Einsparberechnung:"},{"$f":"Sprachen!H671","v":"Beschreibung der Kostenberechnung (Total und KE):"}]
[]
[]
[{"$f":"Sprachen!H552","v":"Massnahme 14, Formular E:"},{"$f":"IF('Formular E'!B25=\"\",Sprachen!H603,'Formular E'!B25)","v":"Massnahme 14 wurde nicht eingetragen"},{"$f":"Sprachen!H672","v":"zurück zu Formular E, Massnahme 14"}]
[{"$f":"Sprachen!H553","v":"Detaillierte Beschreibung der Massnahme:"},{"$f":"Sprachen!H631","v":"Beschreibung der Einsparberechnung:"},{"$f":"Sprachen!H673","v":"Beschreibung der Kostenberechnung (Total und KE):"}]
[]
[]
[{"$f":"Sprachen!H554","v":"Massnahme 15, Formular E:"},{"$f":"IF('Formular E'!B27=\"\",Sprachen!H604,'Formular E'!B27)","v":"Massnahme 15 wurde nicht eingetragen"},{"$f":"Sprachen!H674","v":"zurück zu Formular E, Massnahme 15"}]
[{"$f":"Sprachen!H555","v":"Detaillierte Beschreibung der Massnahme:"},{"$f":"Sprachen!H632","v":"Beschreibung der Einsparberechnung:"},{"$f":"Sprachen!H675","v":"Beschreibung der Kostenberechnung (Total und KE):"}]
[]
[]
[{"$f":"Sprachen!H556","v":"Massnahme 16, Formular E:"},{"$f":"IF('Formular E'!B28=\"\",Sprachen!H605,'Formular E'!B28)","v":"Massnahme 16 wurde nicht eingetragen"},{"$f":"Sprachen!H676","v":"zurück zu Formular E, Massnahme 16"}]
[{"$f":"Sprachen!H557","v":"Detaillierte Beschreibung der Massnahme:"},{"$f":"Sprachen!H633","v":"Beschreibung der Einsparberechnung:"},{"$f":"Sprachen!H677","v":"Beschreibung der Kostenberechnung (Total und KE):"}]
[]
[]
[{"$f":"Sprachen!H558","v":"Massnahme 17, Formular E:"},{"$f":"IF('Formular E'!B29=\"\",Sprachen!H606,'Formular E'!B29)","v":"Massnahme 17 wurde nicht eingetragen"},{"$f":"Sprachen!H678","v":"zurück zu Formular E, Massnahme 17"}]
[{"$f":"Sprachen!H559","v":"Detaillierte Beschreibung der Massnahme:"},{"$f":"Sprachen!H634","v":"Beschreibung der Einsparberechnung:"},{"$f":"Sprachen!H679","v":"Beschreibung der Kostenberechnung (Total und KE):"}]
[]
[]
[{"$f":"Sprachen!H560","v":"Massnahme 18, Formular E:"},{"$f":"IF('Formular E'!B30=\"\",Sprachen!H607,'Formular E'!B30)","v":"Massnahme 18 wurde nicht eingetragen"},{"$f":"Sprachen!H680","v":"zurück zu Formular E, Massnahme 18"}]
[{"$f":"Sprachen!H561","v":"Detaillierte Beschreibung der Massnahme:"},{"$f":"Sprachen!H635","v":"Beschreibung der Einsparberechnung:"},{"$f":"Sprachen!H681","v":"Beschreibung der Kostenberechnung (Total und KE):"}]
[]
[]
[{"$f":"Sprachen!H562","v":"Massnahme 19, Formular E:"},{"$f":"IF('Formular E'!B31=\"\",Sprachen!H608,'Formular E'!B31)","v":"Massnahme 19 wurde nicht eingetragen"},{"$f":"Sprachen!H682","v":"zurück zu Formular E, Massnahme 19"}]
[{"$f":"Sprachen!H563","v":"Detaillierte Beschreibung der Massnahme:"},{"$f":"Sprachen!H636","v":"Beschreibung der Einsparberechnung:"},{"$f":"Sprachen!H683","v":"Beschreibung der Kostenberechnung (Total und KE):"}]
[]
[]
[{"$f":"Sprachen!H564","v":"Massnahme 20, Formular E:"},{"$f":"IF('Formular E'!B32=\"\",Sprachen!H609,'Formular E'!B32)","v":"Massnahme 20 wurde nicht eingetragen"},{"$f":"Sprachen!H684","v":"zurück zu Formular E, Massnahme 20"}]
[{"$f":"Sprachen!H565","v":"Detaillierte Beschreibung der Massnahme:"},{"$f":"Sprachen!H637","v":"Beschreibung der Einsparberechnung:"},{"$f":"Sprachen!H685","v":"Beschreibung der Kostenberechnung (Total und KE):"}]
[]
[]
[{"$f":"Sprachen!H566","v":"Beschreibungen 2 / 2"},null,{"$f":"IF(Titelblatt!$F$12=\"\",\"\",Titelblatt!$F$12)","v":""}]
[{"$f":"Sprachen!H567","v":"Massnahmen der letzten 5 Jahre (Formular F2)"},null,{"$f":"IF(Titelblatt!$F$25=\"\",\"\",Titelblatt!$F$25)","v":""}]
[]
[{"$f":"Sprachen!H568","v":"Hinweise:"},{"$f":"Sprachen!#REF!","v":{"$error":"#REF!"}},{"$f":"Sprachen!I568","v":0}]
[{"$f":"Sprachen!H569","v":"- Die im Formular E und F aufgeführten Massnahmen müssen* in diesem Arbeitsblatt detailliert und nachvollziehbar beschrieben werden."}]
[{"$f":"Sprachen!H570","v":"- Die Beschreibungsfelder werden erst angezeigt, wenn die Massnahmentitel in Formular F2 eingetragen wurden."}]
[{"$f":"Sprachen!H571","v":"- Wird für die Massnahmenbeschreibung mehr Platz benötigt, kann die Zeilenhöhe manuell angepasst werden."}]
[{"$f":"Sprachen!H572","v":"- Zeilenumbrüche können durch die Tastenkombination \"Alt\" & \"Enter\" eingefügt werden."}]
[{"$f":"Sprachen!H573","v":"* Alternativ können die Massnahmen auch in einem Beilagendokument beschrieben werden. Auch in der Beilage müssen Einspar- und Kostenberechnungen nachvollziehbar aufzeigt werden."}]
[]
[{"$f":"Sprachen!H574","v":"Massnahme 21, Formular F2:"},{"$f":"IF(massnahme21=\"\",Sprachen!H610,massnahme21)","v":"Massnahme 21 wurde nicht eingetragen"},{"$f":"Sprachen!H686","v":"zurück zu Formular F2, Massnahme 21"}]
[{"$f":"Sprachen!H575","v":"Detaillierte Beschreibung der Massnahme:"},{"$f":"Sprachen!H638","v":"Beschreibung der Einsparberechnung:"},{"$f":"Sprachen!H687","v":"Beschreibung der Kostenberechnung (Total und KE):"}]
[]
[]
[{"$f":"Sprachen!H576","v":"Massnahme 22, Formular F2:"},{"$f":"IF(massnahme22=\"\",Sprachen!H611,massnahme22)","v":"Massnahme 22 wurde nicht eingetragen"},{"$f":"Sprachen!H688","v":"zurück zu Formular F2, Massnahme 22"}]
[{"$f":"Sprachen!H577","v":"Detaillierte Beschreibung der Massnahme:"},{"$f":"Sprachen!H639","v":"Beschreibung der Einsparberechnung:"},{"$f":"Sprachen!H689","v":"Beschreibung der Kostenberechnung (Total und KE):"}]
[]
[]
[{"$f":"Sprachen!H578","v":"Massnahme 23, Formular F2:"},{"$f":"IF(massnahme23=\"\",Sprachen!H612,massnahme23)","v":"Massnahme 23 wurde nicht eingetragen"},{"$f":"Sprachen!H690","v":"zurück zu Formular F2, Massnahme 23"}]
[{"$f":"Sprachen!H579","v":"Detaillierte Beschreibung der Massnahme:"},{"$f":"Sprachen!H640","v":"Beschreibung der Einsparberechnung:"},{"$f":"Sprachen!H691","v":"Beschreibung der Kostenberechnung (Total und KE):"}]
[]
[]
[{"$f":"Sprachen!H580","v":"Massnahme 24, Formular F2:"},{"$f":"IF(massnahme24=\"\",Sprachen!H613,massnahme24)","v":"Massnahme 24 wurde nicht eingetragen"},{"$f":"Sprachen!H692","v":"zurück zu Formular F2, Massnahme 24"}]
[{"$f":"Sprachen!H581","v":"Detaillierte Beschreibung der Massnahme:"},{"$f":"Sprachen!H641","v":"Beschreibung der Einsparberechnung:"},{"$f":"Sprachen!H693","v":"Beschreibung der Kostenberechnung (Total und KE):"}]
[]
[]
[{"$f":"Sprachen!H582","v":"Massnahme 25, Formular F2:"},{"$f":"IF(massnahme25=\"\",Sprachen!H614,massnahme25)","v":"Massnahme 25 wurde nicht eingetragen"},{"$f":"Sprachen!H694","v":"zurück zu Formular F2, Massnahme 25"}]
[{"$f":"Sprachen!H583","v":"Detaillierte Beschreibung der Massnahme:"},{"$f":"Sprachen!H642","v":"Beschreibung der Einsparberechnung:"},{"$f":"Sprachen!H695","v":"Beschreibung der Kostenberechnung (Total und KE):"}]
[]
[]
[{"$f":"Sprachen!H584","v":"Massnahme 26, Formular F2:"},{"$f":"IF(massnahme26=\"\",Sprachen!H615,massnahme26)","v":"Massnahme 26 wurde nicht eingetragen"},{"$f":"Sprachen!H696","v":"zurück zu Formular F2, Massnahme 26"}]
[{"$f":"Sprachen!H585","v":"Detaillierte Beschreibung der Massnahme:"},{"$f":"Sprachen!H643","v":"Beschreibung der Einsparberechnung:"},{"$f":"Sprachen!H697","v":"Beschreibung der Kostenberechnung (Total und KE):"}]
[]
[]
[{"$f":"Sprachen!H586","v":"Massnahme 27, Formular F2:"},{"$f":"IF(massnahme27=\"\",Sprachen!H616,massnahme27)","v":"Massnahme 27 wurde nicht eingetragen"},{"$f":"Sprachen!H698","v":"zurück zu Formular F2, Massnahme 27"}]
[{"$f":"Sprachen!H587","v":"Detaillierte Beschreibung der Massnahme:"},{"$f":"Sprachen!H644","v":"Beschreibung der Einsparberechnung:"},{"$f":"Sprachen!H699","v":"Beschreibung der Kostenberechnung (Total und KE):"}]
[]
[]
[{"$f":"Sprachen!H588","v":"Massnahme 28, Formular F2:"},{"$f":"IF(massnahme28=\"\",Sprachen!H617,massnahme28)","v":"Massnahme 28 wurde nicht eingetragen"},{"$f":"Sprachen!H700","v":"zurück zu Formular F2, Massnahme 28"}]
[{"$f":"Sprachen!H589","v":"Detaillierte Beschreibung der Massnahme:"},{"$f":"Sprachen!H645","v":"Beschreibung der Einsparberechnung:"},{"$f":"Sprachen!H701","v":"Beschreibung der Kostenberechnung (Total und KE):"}]

{"sheet":"Report","index":13,"n_rows":111,"n_cols":19,"rows_kept":111,"merged":[[71,0,72,0],[71,11,71,12],[71,13,71,14],[87,0,87,18],[88,0,89,0],[88,11,88,12],[88,13,88,14],[96,0,96,18]]}
[{"$f":"Sprachen!H703","v":"Report"},"FLAG","FLAG","FLAG","FLAG","FLAG","FLAG","FLAG","FLAG","FLAG","FLAG",{"$nulls":4},"FLAG","FLAG"]
[{"$f":"Sprachen!H704","v":"Übersicht zur Energieverbrauchsanalyse 1 / 2"},"(hide!)","(hide!)","(hide!)","(hide!)","(hide!)","(hide!)","(hide!)","(hide!)","(hide!)","(hide!)",{"$nulls":4},"(hide!)","(hide!)"]
[]
[]
[{"$f":"Sprachen!H705","v":"Energieverbrauchsanalyse der Betriebsstätte:"},{"$nulls":12},{"$f":"IF(Titelblatt!$F$12=\"\",\"\",Titelblatt!$F$12)","v":""}]
[{"$f":"Sprachen!H706","v":"Unternehmen:"},{"$nulls":12},{"$f":"IF(Titelblatt!F5=\"\",\"\",Titelblatt!F5)","v":""}]
[{"$nulls":13},{"$f":"IF(Titelblatt!F6=\"\",\"\",Titelblatt!F6)","v":""}]
[{"$f":"Sprachen!H707","v":"Datum der Berichterfassung:"},{"$nulls":12},{"$f":"IF(Titelblatt!$F$25=\"\",\"\",Titelblatt!$F$25)","v":""}]
[]
[]
[{"$f":"Sprachen!H708","v":"Energiebezug der letzten fünf Jahre"}]
[]
[{"$f":"Sprachen!H709","v":"Absoluter Energiebezug"},{"$nulls":11},{"$f":"IF(akt_Jahr=\"\",\"Jahr?\",S13-4)","v":"Jahr?"},{"$f":"IF(akt_Jahr=\"\",\"Jahr?\",S13-3)","v":"Jahr?"},{"$f":"IF(akt_Jahr=\"\",\"Jahr?\",S13-2)","v":"Jahr?"},null,null,{"$f":"IF(akt_Jahr=\"\",\"Jahr?\",S13-1)","v":"Jahr?"},{"$f":"IF(akt_Jahr=\"\",\"Jahr?\",akt_Jahr)","v":"Jahr?"}]
[{"$f":"Sprachen!H710","v":"Thermische Energie"},{"$nulls":10},"[kWh/a]",{"$f":"'Formular C'!E17","v":0},{"$f":"'Formular C'!F17","v":0},{"$f":"'Formular C'!G17","v":0},null,null,{"$f":"'Formular C'!H17","v":0},{"$f":"'Formular C'!I17","v":0}]
[{"$f":"Sprachen!H711","v":"Elektrische Energie"},{"$nulls":10},"[kWh/a]",{"$f":"'Formular C'!E20","v":0},{"$f":"'Formular C'!F20","v":0},{"$f":"'Formular C'!G20","v":0},null,null,{"$f":"'Formular C'!H20","v":0},{"$f":"'Formular C'!I20","v":0}]
[{"$f":"Sprachen!H712","v":"Energiebezug Total"},{"$nulls":10},"[kWh/a]",{"$f":"'Formular C'!E23","v":0},{"$f":"'Formular C'!F23","v":0},{"$f":"'Formular C'!G23","v":0},null,null,{"$f":"'Formular C'!H23","v":0},{"$f":"'Formular C'!I23","v":0}]
[{"$f":"Sprachen!H713","v":"Gewichteter Energiebezug Total ¹⁾"},{"$nulls":10},"[kWh/a]",{"$f":"'Formular C'!E24","v":0},{"$f":"'Formular C'!F24","v":0},{"$f":"'Formular C'!G24","v":0},null,null,{"$f":"'Formular C'!H24","v":0},{"$f":"'Formular C'!I24","v":0}]
[{"$f":"Sprachen!H714","v":"1) Gewichtungsfaktoren: Elektrische Energie: 2, Heizöl & Erdgas: 1, Fernwärme/-kälte: 0.6, Holz & Biomasse: 0.7, Umweltwärme & erneuerbare Stromeigenproduktion: 0"}]
[{"$f":"Sprachen!H715","v":"Spezifischer Energiebezug ²⁾"},{"$nulls":11},{"$f":"M13","v":"Jahr?"},"Jahr?","Jahr?",0,0,"Jahr?",{"$f":"S13","v":"Jahr?"}]
[{"$f":"IF('Formular C'!A33:B33=\"\",\"-\",'Formular C'!A33:B33)","v":"-"},{"$nulls":10},{"$f":"IF('Formular C'!D33=\"\",\"-\",\"[\"&'Formular C'!D33&\"]\")","v":"-"},{"$f":"'Formular C'!E33","v":0},{"$f":"'Formular C'!F33","v":0},{"$f":"'Formular C'!G33","v":0},null,null,{"$f":"'Formular C'!H33","v":0},{"$f":"'Formular C'!I33","v":0}]
[{"$f":"Sprachen!H717","v":"Spez. Therm. Energie"},{"$nulls":10},{"$f":"IF('Formular C'!D33=\"\",\"-\",\"[kWh/\"&'Formular C'!D33&\"/a]\")","v":"-"},{"$f":"'Formular C'!E39","v":"-"},{"$f":"'Formular C'!F39","v":"-"},{"$f":"'Formular C'!G39","v":"-"},null,null,{"$f":"'Formular C'!H39","v":"-"},{"$f":"'Formular C'!I39","v":"-"}]
[{"$f":"Sprachen!H718","v":"Spez. Elektr. Energie"},{"$nulls":10},{"$f":"IF('Formular C'!D33=\"\",\"-\",\"[kWh/\"&'Formular C'!D33&\"/a]\")","v":"-"},{"$f":"'Formular C'!E40","v":"-"},{"$f":"'Formular C'!F40","v":"-"},{"$f":"'Formular C'!G40","v":"-"},null,null,{"$f":"'Formular C'!H40","v":"-"},{"$f":"'Formular C'!I40","v":"-"}]
[{"$f":"Sprachen!H719","v":"2) Energiebezug pro Bezugsgrösse (der spezifische Energiebezug ist ein Indikator für die Veränderung der Energieeffizienz der Betriebsstätte)."}]
[{"$f":"Sprachen!H720","v":"Energiekosten ³⁾"},{"$nulls":11},{"$f":"M13","v":"Jahr?"},"Jahr?","Jahr?",0,0,"Jahr?",{"$f":"S13","v":"Jahr?"}]
[{"$f":"Sprachen!H721","v":"Kosten Therm. Energie"},{"$nulls":10},"[CHF/a]",{"$f":"'Formular C'!E18","v":0},{"$f":"'Formular C'!F18","v":0},{"$f":"'Formular C'!G18","v":0},null,null,{"$f":"'Formular C'!H18","v":0},{"$f":"'Formular C'!I18","v":0}]
[{"$f":"Sprachen!H722","v":"Kosten Elektr. Energie"},{"$nulls":10},"[CHF/a]",{"$f":"'Formular C'!E21","v":0},{"$f":"'Formular C'!F21","v":0},{"$f":"'Formular C'!G21","v":0},null,null,{"$f":"'Formular C'!H21","v":0},{"$f":"'Formular C'!I21","v":0}]
[{"$f":"Sprachen!H723","v":"Energiekosten Total"},{"$nulls":10},"[CHF/a]",{"$f":"M25+M26","v":0},{"$f":"N25+N26","v":0},{"$f":"O25+O26","v":0},null,null,{"$f":"R25+R26","v":0},0]
[{"$f":"Sprachen!H724","v":"3) Bei aktuellen Energiepreisen (gemäss Angabe in Formular C, Ziffer C.1)."},{"$nulls":12},{"$f":"CONCATENATE(Sprachen!H774,\" \",Report!$L$21)","v":"Spez. Energiebezug -"}]
{"$rows_empty":13}
[{"$f":"Sprachen!H725","v":"Energieflüsse"}]
{"$rows_empty":23}
[{"$f":"Sprachen!H726","v":"Report"},"FLAG","FLAG","FLAG","FLAG","FLAG","FLAG","FLAG","FLAG","FLAG","FLAG",{"$nulls":4},"FLAG","FLAG",null,{"$f":"IF(Titelblatt!$F$12=\"\",\"\",Titelblatt!$F$12)","v":""}]
[{"$f":"Sprachen!H727","v":"Übersicht zur Energieverbrauchsanalyse 2 / 2"},"(hide!)","(hide!)","(hide!)","(hide!)","(hide!)","(hide!)","(hide!)","(hide!)","(hide!)","(hide!)",{"$nulls":4},"(hide!)","(hide!)",null,{"$f":"IF(Titelblatt!$F$25=\"\",\"\",Titelblatt!$F$25)","v":""}]
[]
[]
[{"$f":"Sprachen!H728","v":"Neue Massnahmen zur Energieeinsparung"}]
[{"$f":"Sprachen!H729","v":"Aufgeführte Massnahmen welche mit Umsetzung \"ja\" deklariert sind müssen innerhalb der nächsten 3 Jahre umgesetzt werden:"}]
[{"$f":"Sprachen!H730","v":"Massnahmen im Bereich Haustechnikanlagen / Gebäudehülle ¹⁾"},"Einsparung 1",null,null,"Einsparung 2",null,null,"Elektr.",null,"Therm.",null,{"$f":"Sprachen!H746","v":"Energieeinsparung"},null,{"$f":"Sprachen!H752","v":"Investitionen"},null,"KE",null,{"$f":"Sprachen!H765","v":"Payback"},{"$f":"Sprachen!H769","v":"Umsetzung"}]
[{"$f":"Sprachen!#REF!","v":{"$error":"#REF!"}},"Art","[kWh/a]","[CHF/kWh]","Art","[kWh/a]","[CHF/kWh]","[kWh/a]","[CHF/a]","[kWh]","[CHF/a]",{"$f":"Sprachen!H747","v":"Total (gew.)\n[kWh/a]"},{"$f":"Sprachen!H750","v":"Prozentuale\nEinsp. [-]"},{"$f":"Sprachen!H753","v":"Total\n[CHF]"},{"$f":"Sprachen!H763","v":"Kostenanteil Energie [-]"},"[CHF]",null,{"$f":"Sprachen!H766","v":"Jahre\n[a]"},{"$f":"Sprachen!H770","v":"[ja] oder\n[nein]"}]
[{"$f":"IF('Formular F1 + F2'!B10=\"\",\"\",'Formular F1 + F2'!B10)","v":""},{"$f":"IF('Formular F1 + F2'!E10=\"E\",1,0)","v":0},{"$f":"IF('Formular F1 + F2'!F10=\"\",0,'Formular F1 + F2'!F10)","v":0},{"$f":"IF('Formular E'!K12=\"\",0,'Formular E'!K12)","v":{"v":0,"d":"0.000"}},{"$f":"IF('Formular F1 + F2'!G10=\"E\",1,0)","v":0},{"$f":"IF('Formular F1 + F2'!H10=\"\",0,'Formular F1 + F2'!H10)","v":0},{"$f":"IF('Formular E'!L12=\"\",0,'Formular E'!L12)","v":{"v":0,"d":"0.000"}},{"$f":"B74*C74+E74*F74","v":0},{"$f":"B74*C74*D74+E74*F74*G74","v":0},{"$f":"C74+F74-H74","v":0},{"$f":"C74*D74+F74*G74-I74","v":0},{"$f":"IF('Formular F1 + F2'!B10=\"\",\"\",'Formular F1 + F2'!J10)","v":""},{"$f":"IF('Formular F1 + F2'!B10=\"\",\"\",'Formular F1 + F2'!K10)","v":""},{"$f":"IF('Formular F1 + F2'!B10=\"\",\"\",IF('Formular F1 + F2'!L10=\"\",\"k. A.\",'Formular F1 + F2'!L10))","v":""},{"$f":"IF('Formular F1 + F2'!B10=\"\",\"\",IF('Formular F1 + F2'!M10=\"\",\"k. A.\",'Formular F1 + F2'!M10))","v":""},{"$f":"IFERROR(N74*O74,0)","v":0},{"$f":"'Formular F1 + F2'!S10","v":0},{"$f":"IF('Formular F1 + F2'!B10=\"\",\"\",IF('Formular F1 + F2'!N10=\"\",\"-\",'Formular F1 + F2'!N10))","v":""},{"$f":"IF('Formular F1 + F2'!B10=\"\",\"\",'Formular F1 + F2'!O10)","v":""}]
[{"$f":"IF('Formular F1 + F2'!B11=\"\",\"\",'Formular F1 + F2'!B11)","v":""},{"$f":"IF('Formular F1 + F2'!E11=\"E\",1,0)","v":0},{"$f":"IF('Formular F1 + F2'!F11=\"\",0,'Formular F1 + F2'!F11)","v":0},{"$f":"IF('Formular E'!K13=\"\",0,'Formular E'!K13)","v":{"v":0,"d":"0.000"}},{"$f":"IF('Formular F1 + F2'!G11=\"E\",1,0)","v":0},{"$f":"IF('Formular F1 + F2'!H11=\"\",0,'Formular F1 + F2'!H11)","v":0},{"$f":"IF('Formular E'!L13=\"\",0,'Formular E'!L13)","v":{"v":0,"d":"0.000"}},0,{"$f":"B75*C75*D75+E75*F75*G75","v":0},{"$f":"C75+F75-H75","v":0},{"$f":"C75*D75+F75*G75-I75","v":0},{"$f":"IF('Formular F1 + F2'!B11=\"\",\"\",'Formular F1 + F2'!J11)","v":""},{"$f":"IF('Formular F1 + F2'!B11=\"\",\"\",'Formular F1 + F2'!K11)","v":""},{"$f":"IF('Formular F1 + F2'!B11=\"\",\"\",IF('Formular F1 + F2'!L11=\"\",\"k. A.\",'Formular F1 + F2'!L11))","v":""},{"$f":"IF('Formular F1 + F2'!B11=\"\",\"\",IF('Formular F1 + F2'!M11=\"\",\"k. A.\",'Formular F1 + F2'!M11))","v":""},{"$f":"IFERROR(N75*O75,0)","v":0},{"$f":"'Formular F1 + F2'!S11","v":0},{"$f":"IF('Formular F1 + F2'!B11=\"\",\"\",IF('Formular F1 + F2'!N11=\"\",\"-\",'Formular F1 + F2'!N11))","v":""},{"$f":"IF('Formular F1 + F2'!B11=\"\",\"\",'Formular F1 + F2'!O11)","v":""}]
[{"$f":"IF('Formular F1 + F2'!B12=\"\",\"\",'Formular F1 + F2'!B12)","v":""},{"$f":"IF('Formular F1 + F2'!E12=\"E\",1,0)","v":0},{"$f":"IF('Formular F1 + F2'!F12=\"\",0,'Formular F1 + F2'!F12)","v":0},{"$f":"IF('Formular E'!K14=\"\",0,'Formular E'!K14)","v":{"v":0,"d":"0.000"}},{"$f":"IF('Formular F1 + F2'!G12=\"E\",1,0)","v":0},{"$f":"IF('Formular F1 + F2'!H12=\"\",0,'Formular F1 + F2'!H12)","v":0},{"$f":"IF('Formular E'!L14=\"\",0,'Formular E'!L14)","v":{"v":0,"d":"0.000"}},0,0,0,0,{"$f":"IF('Formular F1 + F2'!B12=\"\",\"\",'Formular F1 + F2'!J12)","v":""},{"$f":"IF('Formular F1 + F2'!B12=\"\",\"\",'Formular F1 + F2'!K12)","v":""},{"$f":"IF('Formular F1 + F2'!B12=\"\",\"\",IF('Formular F1 + F2'!L12=\"\",\"k. A.\",'Formular F1 + F2'!L12))","v":""},{"$f":"IF('Formular F1 + F2'!B12=\"\",\"\",IF('Formular F1 + F2'!M12=\"\",\"k. A.\",'Formular F1 + F2'!M12))","v":""},0,{"$f":"'Formular F1 + F2'!S12","v":0},{"$f":"IF('Formular F1 + F2'!B12=\"\",\"\",IF('Formular F1 + F2'!N12=\"\",\"-\",'Formular F1 + F2'!N12))","v":""},{"$f":"IF('Formular F1 + F2'!B12=\"\",\"\",'Formular F1 + F2'!O12)","v":""}]
[{"$f":"IF('Formular F1 + F2'!B13=\"\",\"\",'Formular F1 + F2'!B13)","v":""},{"$f":"IF('Formular F1 + F2'!E13=\"E\",1,0)","v":0},{"$f":"IF('Formular F1 + F2'!F13=\"\",0,'Formular F1 + F2'!F13)","v":0},{"$f":"IF('Formular E'!K15=\"\",0,'Formular E'!K15)","v":{"v":0,"d":"0.000"}},{"$f":"IF('Formular F1 + F2'!G13=\"E\",1,0)","v":0},{"$f":"IF('Formular F1 + F2'!H13=\"\",0,'Formular F1 + F2'!H13)","v":0},{"$f":"IF('Formular E'!L15=\"\",0,'Formular E'!L15)","v":{"v":0,"d":"0.000"}},0,0,0,0,{"$f":"IF('Formular F1 + F2'!B13=\"\",\"\",'Formular F1 + F2'!J13)","v":""},{"$f":"IF('Formular F1 + F2'!B13=\"\",\"\",'Formular F1 + F2'!K13)","v":""},{"$f":"IF('Formular F1 + F2'!B13=\"\",\"\",IF('Formular F1 + F2'!L13=\"\",\"k. A.\",'Formular F1 + F2'!L13))","v":""},{"$f":"IF('Formular F1 + F2'!B13=\"\",\"\",IF('Formular F1 + F2'!M13=\"\",\"k. A.\",'Formular F1 + F2'!M13))","v":""},0,{"$f":"'Formular F1 + F2'!S13","v":0},{"$f":"IF('Formular F1 + F2'!B13=\"\",\"\",IF('Formular F1 + F2'!N13=\"\",\"-\",'Formular F1 + F2'!N13))","v":""},{"$f":"IF('Formular F1 + F2'!B13=\"\",\"\",'Formular F1 + F2'!O13)","v":""}]
[{"$f":"IF('Formular F1 + F2'!B14=\"\",\"\",'Formular F1 + F2'!B14)","v":""},{"$f":"IF('Formular F1 + F2'!E14=\"E\",1,0)","v":0},{"$f":"IF('Formular F1 + F2'!F14=\"\",0,'Formular F1 + F2'!F14)","v":0},{"$f":"IF('Formular E'!K16=\"\",0,'Formular E'!K16)","v":{"v":0,"d":"0.000"}},{"$f":"IF('Formular F1 + F2'!G14=\"E\",1,0)","v":0},{"$f":"IF('Formular F1 + F2'!H14=\"\",0,'Formular F1 + F2'!H14)","v":0},{"$f":"IF('Formular E'!L16=\"\",0,'Formular E'!L16)","v":{"v":0,"d":"0.000"}},0,0,0,0,{"$f":"IF('Formular F1 + F2'!B14=\"\",\"\",'Formular F1 + F2'!J14)","v":""},{"$f":"IF('Formular F1 + F2'!B14=\"\",\"\",'Formular F1 + F2'!K14)","v":""},{"$f":"IF('Formular F1 + F2'!B14=\"\",\"\",IF('Formular F1 + F2'!L14=\"\",\"k. A.\",'Formular F1 + F2'!L14))","v":""},{"$f":"IF('Formular F1 + F2'!B14=\"\",\"\",IF('Formular F1 + F2'!M14=\"\",\"k. A.\",'Formular F1 + F2'!M14))","v":""},0,{"$f":"'Formular F1 + F2'!S14","v":0},{"$f":"IF('Formular F1 + F2'!B14=\"\",\"\",IF('Formular F1 + F2'!N14=\"\",\"-\",'Formular F1 + F2'!N14))","v":""},{"$f":"IF('Formular F1 + F2'!B14=\"\",\"\",'Formular F1 + F2'!O14)","v":""}]
[{"$f":"IF('Formular F1 + F2'!B15=\"\",\"\",'Formular F1 + F2'!B15)","v":""},{"$f":"IF('Formular F1 + F2'!E15=\"E\",1,0)","v":0},{"$f":"IF('Formular F1 + F2'!F15=\"\",0,'Formular F1 + F2'!F15)","v":0},{"$f":"IF('Formular E'!K17=\"\",0,'Formular E'!K17)","v":{"v":0,"d":"0.000"}},{"$f":"IF('Formular F1 + F2'!G15=\"E\",1,0)","v":0},{"$f":"IF('Formular F1 + F2'!H15=\"\",0,'Formular F1 + F2'!H15)","v":0},{"$f":"IF('Formular E'!L17=\"\",0,'Formular E'!L17)","v":{"v":0,"d":"0.000"}},0,0,0,0,{"$f":"IF('Formular F1 + F2'!B15=\"\",\"\",'Formular F1 + F2'!J15)","v":""},{"$f":"IF('Formular F1 + F2'!B15=\"\",\"\",'Formular F1 + F2'!K15)","v":""},{"$f":"IF('Formular F1 + F2'!B15=\"\",\"\",IF('Formular F1 + F2'!L15=\"\",\"k. A.\",'Formular F1 + F2'!L15))","v":""},{"$f":"IF('Formular F1 + F2'!B15=\"\",\"\",IF('Formular F1 + F2'!M15=\"\",\"k. A.\",'Formular F1 + F2'!M15))","v":""},0,{"$f":"'Formular F1 + F2'!S15","v":0},{"$f":"IF('Formular F1 + F2'!B15=\"\",\"\",IF('Formular F1 + F2'!N15=\"\",\"-\",'Formular F1 + F2'!N15))","v":""},{"$f":"IF('Formular F1 + F2'!B15=\"\",\"\",'Formular F1 + F2'!O15)","v":""}]
[{"$f":"IF('Formular F1 + F2'!B16=\"\",\"\",'Formular F1 + F2'!B16)","v":""},{"$f":"IF('Formular F1 + F2'!E16=\"E\",1,0)","v":0},{"$f":"IF('Formular F1 + F2'!F16=\"\",0,'Formular F1 + F2'!F16)","v":0},{"$f":"IF('Formular E'!K18=\"\",0,'Formular E'!K18)","v":{"v":0,"d":"0.000"}},{"$f":"IF('Formular F1 + F2'!G16=\"E\",1,0)","v":0},{"$f":"IF('Formular F1 + F2'!H16=\"\",0,'Formular F1 + F2'!H16)","v":0},{"$f":"IF('Formular E'!L18=\"\",0,'Formular E'!L18)","v":{"v":0,"d":"0.000"}},0,0,0,0,{"$f":"IF('Formular F1 + F2'!B16=\"\",\"\",'Formular F1 + F2'!J16)","v":""},{"$f":"IF('Formular F1 + F2'!B16=\"\",\"\",'Formular F1 + F2'!K16)","v":""},{"$f":"IF('Formular F1 + F2'!B16=\"\",\"\",IF('Formular F1 + F2'!L16=\"\",\"k. A.\",'Formular F1 + F2'!L16))","v":""},{"$f":"IF('Formular F1 + F2'!B16=\"\",\"\",IF('Formular F1 + F2'!M16=\"\",\"k. A.\",'Formular F1 + F2'!M16))","v":""},0,{"$f":"'Formular F1 + F2'!S16","v":0},{"$f":"IF('Formular F1 + F2'!B16=\"\",\"\",IF('Formular F1 + F2'!N16=\"\",\"-\",'Formular F1 + F2'!N16))","v":""},{"$f":"IF('Formular F1 + F2'!B16=\"\",\"\",'Formular F1 + F2'!O16)","v":""}]
[{"$f":"IF('Formular F1 + F2'!B17=\"\",\"\",'Formular F1 + F2'!B17)","v":""},{"$f":"IF('Formular F1 + F2'!E17=\"E\",1,0)","v":0},{"$f":"IF('Formular F1 + F2'!F17=\"\",0,'Formular F1 + F2'!F17)","v":0},{"$f":"IF('Formular E'!K19=\"\",0,'Formular E'!K19)","v":{"v":0,"d":"0.000"}},{"$f":"IF('Formular F1 + F2'!G17=\"E\",1,0)","v":0},{"$f":"IF('Formular F1 + F2'!H17=\"\",0,'Formular F1 + F2'!H17)","v":0},{"$f":"IF('Formular E'!L19=\"\",0,'Formular E'!L19)","v":{"v":0,"d":"0.000"}},0,0,0,0,{"$f":"IF('Formular F1 + F2'!B17=\"\",\"\",'Formular F1 + F2'!J17)","v":""},{"$f":"IF('Formular F1 + F2'!B17=\"\",\"\",'Formular F1 + F2'!K17)","v":""},{"$f":"IF('Formular F1 + F2'!B17=\"\",\"\",IF('Formular F1 + F2'!L17=\"\",\"k. A.\",'Formular F1 + F2'!L17))","v":""},{"$f":"IF('Formular F1 + F2'!B17=\"\",\"\",IF('Formular F1 + F2'!M17=\"\",\"k. A.\",'Formular F1 + F2'!M17))","v":""},0,{"$f":"'Formular F1 + F2'!S17","v":0},{"$f":"IF('Formular F1 + F2'!B17=\"\",\"\",IF('Formular F1 + F2'!N17=\"\",\"-\",'Formular F1 + F2'!N17))","v":""},{"$f":"IF('Formular F1 + F2'!B17=\"\",\"\",'Formular F1 + F2'!O17)","v":""}]
[{"$f":"IF('Formular F1 + F2'!B18=\"\",\"\",'Formular F1 + F2'!B18)","v":""},{"$f":"IF('Formular F1 + F2'!E18=\"E\",1,0)","v":0},{"$f":"IF('Formular F1 + F2'!F18=\"\",0,'Formular F1 + F2'!F18)","v":0},{"$f":"IF('Formular E'!K20=\"\",0,'Formular E'!K20)","v":{"v":0,"d":"0.000"}},{"$f":"IF('Formular F1 + F2'!G18=\"E\",1,0)","v":0},{"$f":"IF('Formular F1 + F2'!H18=\"\",0,'Formular F1 + F2'!H18)","v":0},{"$f":"IF('Formular E'!L20=\"\",0,'Formular E'!L20)","v":{"v":0,"d":"0.000"}},0,0,0,0,{"$f":"IF('Formular F1 + F2'!B18=\"\",\"\",'Formular F1 + F2'!J18)","v":""},{"$f":"IF('Formular F1 + F2'!B18=\"\",\"\",'Formular F1 + F2'!K18)","v":""},{"$f":"IF('Formular F1 + F2'!B18=\"\",\"\",IF('Formular F1 + F2'!L18=\"\",\"k. A.\",'Formular F1 + F2'!L18))","v":""},{"$f":"IF('Formular F1 + F2'!B18=\"\",\"\",IF('Formular F1 + F2'!M18=\"\",\"k. A.\",'Formular F1 + F2'!M18))","v":""},0,{"$f":"'Formular F1 + F2'!S18","v":0},{"$f":"IF('Formular F1 + F2'!B18=\"\",\"\",IF('Formular F1 + F2'!N18=\"\",\"-\",'Formular F1 + F2'!N18))","v":""},{"$f":"IF('Formular F1 + F2'!B18=\"\",\"\",'Formular F1 + F2'!O18)","v":""}]
[{"$f":"IF('Formular F1 + F2'!B19=\"\",\"\",'Formular F1 + F2'!B19)","v":""},{"$f":"IF('Formular F1 + F2'!E19=\"E\",1,0)","v":0},{"$f":"IF('Formular F1 + F2'!F19=\"\",0,'Formular F1 + F2'!F19)","v":0},{"$f":"IF('Formular E'!K21=\"\",0,'Formular E'!K21)","v":{"v":0,"d":"0.000"}},{"$f":"IF('Formular F1 + F2'!G19=\"E\",1,0)","v":0},{"$f":"IF('Formular F1 + F2'!H19=\"\",0,'Formular F1 + F2'!H19)","v":0},{"$f":"IF('Formular E'!L21=\"\",0,'Formular E'!L21)","v":{"v":0,"d":"0.000"}},0,0,0,0,{"$f":"IF('Formular F1 + F2'!B19=\"\",\"\",'Formular F1 + F2'!J19)","v":""},{"$f":"IF('Formular F1 + F2'!B19=\"\",\"\",'Formular F1 + F2'!K19)","v":""},{"$f":"IF('Formular F1 + F2'!B19=\"\",\"\",IF('Formular F1 + F2'!L19=\"\",\"k. A.\",'Formular F1 + F2'!L19))","v":""},{"$f":"IF('Formular F1 + F2'!B19=\"\",\"\",IF('Formular F1 + F2'!M19=\"\",\"k. A.\",'Formular F1 + F2'!M19))","v":""},0,{"$f":"'Formular F1 + F2'!S19","v":0},{"$f":"IF('Formular F1 + F2'!B19=\"\",\"\",IF('Formular F1 + F2'!N19=\"\",\"-\",'Formular F1 + F2'!N19))","v":""},{"$f":"IF('Formular F1 + F2'!B19=\"\",\"\",'Formular F1 + F2'!O19)","v":""}]
[{"$f":"IF('Formular F1 + F2'!B20=\"\",\"\",'Formular F1 + F2'!B20)","v":""},{"$f":"IF('Formular F1 + F2'!E20=\"E\",1,0)","v":0},{"$f":"IF('Formular F1 + F2'!F20=\"\",0,'Formular F1 + F2'!F20)","v":0},{"$f":"IF('Formular E'!K22=\"\",0,'Formular E'!K22)","v":{"v":0,"d":"0.000"}},{"$f":"IF('Formular F1 + F2'!G20=\"E\",1,0)","v":0},{"$f":"IF('Formular F1 + F2'!H20=\"\",0,'Formular F1 + F2'!H20)","v":0},{"$f":"IF('Formular E'!L22=\"\",0,'Formular E'!L22)","v":{"v":0,"d":"0.000"}},0,0,0,0,{"$f":"IF('Formular F1 + F2'!B20=\"\",\"\",'Formular F1 + F2'!J20)","v":""},{"$f":"IF('Formular F1 + F2'!B20=\"\",\"\",'Formular F1 + F2'!K20)","v":""},{"$f":"IF('Formular F1 + F2'!B20=\"\",\"\",IF('Formular F1 + F2'!L20=\"\",\"k. A.\",'Formular F1 + F2'!L20))","v":""},{"$f":"IF('Formular F1 + F2'!B20=\"\",\"\",IF('Formular F1 + F2'!M20=\"\",\"k. A.\",'Formular F1 + F2'!M20))","v":""},0,{"$f":"'Formular F1 + F2'!S20","v":0},{"$f":"IF('Formular F1 + F2'!B20=\"\",\"\",IF('Formular F1 + F2'!N20=\"\",\"-\",'Formular F1 + F2'!N20))","v":""},{"$f":"IF('Formular F1 + F2'!B20=\"\",\"\",'Formular F1 + F2'!O20)","v":""}]
[{"$f":"IF('Formular F1 + F2'!B21=\"\",\"\",'Formular F1 + F2'!B21)","v":""},{"$f":"IF('Formular F1 + F2'!E21=\"E\",1,0)","v":0},{"$f":"IF('Formular F1 + F2'!F21=\"\",0,'Formular F1 + F2'!F21)","v":0},{"$f":"IF('Formular E'!K23=\"\",0,'Formular E'!K23)","v":{"v":0,"d":"0.000"}},{"$f":"IF('Formular F1 + F2'!G21=\"E\",1,0)","v":0},{"$f":"IF('Formular F1 + F2'!H21=\"\",0,'Formular F1 + F2'!H21)","v":0},{"$f":"IF('Formular E'!L23=\"\",0,'Formular E'!L23)","v":{"v":0,"d":"0.000"}},0,0,0,0,{"$f":"IF('Formular F1 + F2'!B21=\"\",\"\",'Formular F1 + F2'!J21)","v":""},{"$f":"IF('Formular F1 + F2'!B21=\"\",\"\",'Formular F1 + F2'!K21)","v":""},{"$f":"IF('Formular F1 + F2'!B21=\"\",\"\",IF('Formular F1 + F2'!L21=\"\",\"k. A.\",'Formular F1 + F2'!L21))","v":""},{"$f":"IF('Formular F1 + F2'!B21=\"\",\"\",IF('Formular F1 + F2'!M21=\"\",\"k. A.\",'Formular F1 + F2'!M21))","v":""},0,{"$f":"'Formular F1 + F2'!S21","v":0},{"$f":"IF('Formular F1 + F2'!B21=\"\",\"\",IF('Formular F1 + F2'!N21=\"\",\"-\",'Formular F1 + F2'!N21))","v":""},{"$f":"IF('Formular F1 + F2'!B21=\"\",\"\",'Formular F1 + F2'!O21)","v":""}]
[{"$f":"IF('Formular F1 + F2'!B22=\"\",\"\",'Formular F1 + F2'!B22)","v":""},{"$f":"IF('Formular F1 + F2'!E22=\"E\",1,0)","v":0},{"$f":"IF('Formular F1 + F2'!F22=\"\",0,'Formular F1 + F2'!F22)","v":0},{"$f":"IF('Formular E'!K24=\"\",0,'Formular E'!K24)","v":{"v":0,"d":"0.000"}},{"$f":"IF('Formular F1 + F2'!G22=\"E\",1,0)","v":0},{"$f":"IF('Formular F1 + F2'!H22=\"\",0,'Formular F1 + F2'!H22)","v":0},{"$f":"IF('Formular E'!L24=\"\",0,'Formular E'!L24)","v":{"v":0,"d":"0.000"}},0,0,0,0,{"$f":"IF('Formular F1 + F2'!B22=\"\",\"\",'Formular F1 + F2'!J22)","v":""},{"$f":"IF('Formular F1 + F2'!B22=\"\",\"\",'Formular F1 + F2'!K22)","v":""},{"$f":"IF('Formular F1 + F2'!B22=\"\",\"\",IF('Formular F1 + F2'!L22=\"\",\"k. A.\",'Formular F1 + F2'!L22))","v":""},{"$f":"IF('Formular F1 + F2'!B22=\"\",\"\",IF('Formular F1 + F2'!M22=\"\",\"k. A.\",'Formular F1 + F2'!M22))","v":""},0,{"$f":"'Formular F1 + F2'!S22","v":0},{"$f":"IF('Formular F1 + F2'!B22=\"\",\"\",IF('Formular F1 + F2'!N22=\"\",\"-\",'Formular F1 + F2'!N22))","v":""},{"$f":"IF('Formular F1 + F2'!B22=\"\",\"\",'Formular F1 + F2'!O22)","v":""}]
[{"$f":"IF('Formular F1 + F2'!B23=\"\",\"\",'Formular F1 + F2'!B23)","v":""},{"$f":"IF('Formular F1 + F2'!E23=\"E\",1,0)","v":0},{"$f":"IF('Formular F1 + F2'!F23=\"\",0,'Formular F1 + F2'!F23)","v":0},{"$f":"IF('Formular E'!K25=\"\",0,'Formular E'!K25)","v":{"v":0,"d":"0.000"}},{"$f":"IF('Formular F1 + F2'!G23=\"E\",1,0)","v":0},{"$f":"IF('Formular F1 + F2'!H23=\"\",0,'Formular F1 + F2'!H23)","v":0},{"$f":"IF('Formular E'!L25=\"\",0,'Formular E'!L25)","v":{"v":0,"d":"0.000"}},0,0,0,0,{"$f":"IF('Formular F1 + F2'!B23=\"\",\"\",'Formular F1 + F2'!J23)","v":""},{"$f":"IF('Formular F1 + F2'!B23=\"\",\"\",'Formular F1 + F2'!K23)","v":""},{"$f":"IF('Formular F1 + F2'!B23=\"\",\"\",IF('Formular F1 + F2'!L23=\"\",\"k. A.\",'Formular F1 + F2'!L23))","v":""},{"$f":"IF('Formular F1 + F2'!B23=\"\",\"\",IF('Formular F1 + F2'!M23=\"\",\"k. A.\",'Formular F1 + F2'!M23))","v":""},0,{"$f":"'Formular F1 + F2'!S23","v":0},{"$f":"IF('Formular F1 + F2'!B23=\"\",\"\",IF('Formular F1 + F2'!N23=\"\",\"-\",'Formular F1 + F2'!N23))","v":""},{"$f":"IF('Formular F1 + F2'!B23=\"\",\"\",'Formular F1 + F2'!O23)","v":""}]
[{"$f":"Sprachen!H731","v":"1) Massnahmen im Bereich Haustechnikanlagen / Gebäudehülle mit einem Payback von weniger als 8 Jahren gelten als wirtschaftlich und müssen umgesetzt werden."}]
[{"$f":"Sprachen!H732","v":"Massnahmen im Bereich\nProzess- und Produktionsanlagen ²⁾"},{"$nulls":10},{"$f":"Sprachen!H748","v":"Energieeinsparung"},null,{"$f":"Sprachen!H754","v":"Investitionen"},{"$nulls":3},{"$f":"Sprachen!H767","v":"Payback"},{"$f":"Sprachen!H771","v":"Umsetzung"}]
[{"$f":"Sprachen!#REF!","v":{"$error":"#REF!"}},{"$nulls":10},{"$f":"Sprachen!H749","v":"Total (gew.)\n[kWh/a]"},{"$f":"Sprachen!H751","v":"Prozentuale\nEinsp. [-]"},{"$f":"Sprachen!H755","v":"Total\n[CHF]"},{"$f":"Sprachen!H764","v":"Kostenanteil Energie [-]"},null,null,{"$f":"Sprachen!H768","v":"Jahre\n[a]"},{"$f":"Sprachen!H772","v":"[ja] oder\n[nein]"}]
[{"$f":"IF('Formular F1 + F2'!B25=\"\",\"\",'Formular F1 + F2'!B25)","v":""},{"$f":"IF('Formular F1 + F2'!E25=\"E\",1,0)","v":0},{"$f":"IF('Formular F1 + F2'!F25=\"\",0,'Formular F1 + F2'!F25)","v":0},{"$f":"IF('Formular E'!K27=\"\",0,'Formular E'!K27)","v":{"v":0,"d":"0.000"}},{"$f":"IF('Formular F1 + F2'!G25=\"E\",1,0)","v":0},{"$f":"IF('Formular F1 + F2'!H25=\"\",0,'Formular F1 + F2'!H25)","v":0},{"$f":"IF('Formular E'!L27=\"\",0,'Formular E'!L27)","v":{"v":0,"d":"0.000"}},{"$f":"B91*C91+E91*F91","v":0},0,{"$f":"C91+F91-H91","v":0},0,{"$f":"IF('Formular F1 + F2'!B25=\"\",\"\",'Formular F1 + F2'!J25)","v":""},{"$f":"IF('Formular F1 + F2'!B25=\"\",\"\",'Formular F1 + F2'!K25)","v":""},{"$f":"IF('Formular F1 + F2'!B25=\"\",\"\",IF('Formular F1 + F2'!L25=\"\",\"k. A.\",'Formular F1 + F2'!L25))","v":""},{"$f":"IF('Formular F1 + F2'!B25=\"\",\"\",IF('Formular F1 + F2'!M25=\"\",\"k. A.\",'Formular F1 + F2'!M25))","v":""},0,{"$f":"'Formular F1 + F2'!S25","v":0},{"$f":"IF('Formular F1 + F2'!B25=\"\",\"\",IF('Formular F1 + F2'!N25=\"\",\"-\",'Formular F1 + F2'!N25))","v":""},{"$f":"IF('Formular F1 + F2'!B25=\"\",\"\",'Formular F1 + F2'!O25)","v":""}]
[{"$f":"IF('Formular F1 + F2'!B26=\"\",\"\",'Formular F1 + F2'!B26)","v":""},{"$f":"IF('Formular F1 + F2'!E26=\"E\",1,0)","v":0},{"$f":"IF('Formular F1 + F2'!F26=\"\",0,'Formular F1 + F2'!F26)","v":0},{"$f":"IF('Formular E'!K28=\"\",0,'Formular E'!K28)","v":{"v":0,"d":"0.000"}},{"$f":"IF('Formular F1 + F2'!G26=\"E\",1,0)","v":0},{"$f":"IF('Formular F1 + F2'!H26=\"\",0,'Formular F1 + F2'!H26)","v":0},{"$f":"IF('Formular E'!L28=\"\",0,'Formular E'!L28)","v":{"v":0,"d":"0.000"}},{"$f":"B92*C92+E92*F92","v":0},0,{"$f":"C92+F92-H92","v":0},0,{"$f":"IF('Formular F1 + F2'!B26=\"\",\"\",'Formular F1 + F2'!J26)","v":""},{"$f":"IF('Formular F1 + F2'!B26=\"\",\"\",'Formular F1 + F2'!K26)","v":""},{"$f":"IF('Formular F1 + F2'!B26=\"\",\"\",IF('Formular F1 + F2'!L26=\"\",\"k. A.\",'Formular F1 + F2'!L26))","v":""},{"$f":"IF('Formular F1 + F2'!B26=\"\",\"\",IF('Formular F1 + F2'!M26=\"\",\"k. A.\",'Formular F1 + F2'!M26))","v":""},0,{"$f":"'Formular F1 + F2'!S26","v":0},{"$f":"IF('Formular F1 + F2'!B26=\"\",\"\",IF('Formular F1 + F2'!N26=\"\",\"-\",'Formular F1 + F2'!N26))","v":""},{"$f":"IF('Formular F1 + F2'!B26=\"\",\"\",'Formular F1 + F2'!O26)","v":""}]
[{"$f":"IF('Formular F1 + F2'!B27=\"\",\"\",'Formular F1 + F2'!B27)","v":""},{"$f":"IF('Formular F1 + F2'!E27=\"E\",1,0)","v":0},{"$f":"IF('Formular F1 + F2'!F27=\"\",0,'Formular F1 + F2'!F27)","v":0},{"$f":"IF('Formular E'!K29=\"\",0,'Formular E'!K29)","v":{"v":0,"d":"0.000"}},{"$f":"IF('Formular F1 + F2'!G27=\"E\",1,0)","v":0},{"$f":"IF('Formular F1 + F2'!H27=\"\",0,'Formular F1 + F2'!H27)","v":0},{"$f":"IF('Formular E'!L29=\"\",0,'Formular E'!L29)","v":{"v":0,"d":"0.000"}},0,0,0,0,{"$f":"IF('Formular F1 + F2'!B27=\"\",\"\",'Formular F1 + F2'!J27)","v":""},{"$f":"IF('Formular F1 + F2'!B27=\"\",\"\",'Formular F1 + F2'!K27)","v":""},{"$f":"IF('Formular F1 + F2'!B27=\"\",\"\",IF('Formular F1 + F2'!L27=\"\",\"k. A.\",'Formular F1 + F2'!L27))","v":""},{"$f":"IF('Formular F1 + F2'!B27=\"\",\"\",IF('Formular F1 + F2'!M27=\"\",\"k. A.\",'Formular F1 + F2'!M27))","v":""},0,{"$f":"'Formular F1 + F2'!S27","v":0},{"$f":"IF('Formular F1 + F2'!B27=\"\",\"\",IF('Formular F1 + F2'!N27=\"\",\"-\",'Formular F1 + F2'!N27))","v":""},{"$f":"IF('Formular F1 + F2'!B27=\"\",\"\",'Formular F1 + F2'!O27)","v":""}]
[{"$f":"IF('Formular F1 + F2'!B28=\"\",\"\",'Formular F1 + F2'!B28)","v":""},{"$f":"IF('Formular F1 + F2'!E28=\"E\",1,0)","v":0},{"$f":"IF('Formular F1 + F2'!F28=\"\",0,'Formular F1 + F2'!F28)","v":0},{"$f":"IF('Formular E'!K30=\"\",0,'Formular E'!K30)","v":{"v":0,"d":"0.000"}},{"$f":"IF('Formular F1 + F2'!G28=\"E\",1,0)","v":0},{"$f":"IF('Formular F1 + F2'!H28=\"\",0,'Formular F1 + F2'!H28)","v":0},{"$f":"IF('Formular E'!L30=\"\",0,'Formular E'!L30)","v":{"v":0,"d":"0.000"}},0,0,0,0,{"$f":"IF('Formular F1 + F2'!B28=\"\",\"\",'Formular F1 + F2'!J28)","v":""},{"$f":"IF('Formular F1 + F2'!B28=\"\",\"\",'Formular F1 + F2'!K28)","v":""},{"$f":"IF('Formular F1 + F2'!B28=\"\",\"\",IF('Formular F1 + F2'!L28=\"\",\"k. A.\",'Formular F1 + F2'!L28))","v":""},{"$f":"IF('Formular F1 + F2'!B28=\"\",\"\",IF('Formular F1 + F2'!M28=\"\",\"k. A.\",'Formular F1 + F2'!M28))","v":""},0,{"$f":"'Formular F1 + F2'!S28","v":0},{"$f":"IF('Formular F1 + F2'!B28=\"\",\"\",IF('Formular F1 + F2'!N28=\"\",\"-\",'Formular F1 + F2'!N28))","v":""},{"$f":"IF('Formular F1 + F2'!B28=\"\",\"\",'Formular F1 + F2'!O28)","v":""}]
[{"$f":"IF('Formular F1 + F2'!B29=\"\",\"\",'Formular F1 + F2'!B29)","v":""},{"$f":"IF('Formular F1 + F2'!E29=\"E\",1,0)","v":0},{"$f":"IF('Formular F1 + F2'!F29=\"\",0,'Formular F1 + F2'!F29)","v":0},{"$f":"IF('Formular E'!K31=\"\",0,'Formular E'!K31)","v":{"v":0,"d":"0.000"}},{"$f":"IF('Formular F1 + F2'!G29=\"E\",1,0)","v":0},{"$f":"IF('Formular F1 + F2'!H29=\"\",0,'Formular F1 + F2'!H29)","v":0},{"$f":"IF('Formular E'!L31=\"\",0,'Formular E'!L31)","v":{"v":0,"d":"0.000"}},0,0,0,0,{"$f":"IF('Formular F1 + F2'!B29=\"\",\"\",'Formular F1 + F2'!J29)","v":""},{"$f":"IF('Formular F1 + F2'!B29=\"\",\"\",'Formular F1 + F2'!K29)","v":""},{"$f":"IF('Formular F1 + F2'!B29=\"\",\"\",IF('Formular F1 + F2'!L29=\"\",\"k. A.\",'Formular F1 + F2'!L29))","v":""},{"$f":"IF('Formular F1 + F2'!B29=\"\",\"\",IF('Formular F1 + F2'!M29=\"\",\"k. A.\",'Formular F1 + F2'!M29))","v":""},0,{"$f":"'Formular F1 + F2'!S29","v":0},{"$f":"IF('Formular F1 + F2'!B29=\"\",\"\",IF('Formular F1 + F2'!N29=\"\",\"-\",'Formular F1 + F2'!N29))","v":""},{"$f":"IF('Formular F1 + F2'!B29=\"\",\"\",'Formular F1 + F2'!O29)","v":""}]
[{"$f":"IF('Formular F1 + F2'!B30=\"\",\"\",'Formular F1 + F2'!B30)","v":""},{"$f":"IF('Formular F1 + F2'!E30=\"E\",1,0)","v":0},{"$f":"IF('Formular F1 + F2'!F30=\"\",0,'Formular F1 + F2'!F30)","v":0},{"$f":"IF('Formular E'!K32=\"\",0,'Formular E'!K32)","v":{"v":0,"d":"0.000"}},{"$f":"IF('Formular F1 + F2'!G30=\"E\",1,0)","v":0},{"$f":"IF('Formular F1 + F2'!H30=\"\",0,'Formular F1 + F2'!H30)","v":0},{"$f":"IF('Formular E'!L32=\"\",0,'Formular E'!L32)","v":{"v":0,"d":"0.000"}},0,0,0,0,{"$f":"IF('Formular F1 + F2'!B30=\"\",\"\",'Formular F1 + F2'!J30)","v":""},{"$f":"IF('Formular F1 + F2'!B30=\"\",\"\",'Formular F1 + F2'!K30)","v":""},{"$f":"IF('Formular F1 + F2'!B30=\"\",\"\",IF('Formular F1 + F2'!L30=\"\",\"k. A.\",'Formular F1 + F2'!L30))","v":""},{"$f":"IF('Formular F1 + F2'!B30=\"\",\"\",IF('Formular F1 + F2'!M30=\"\",\"k. A.\",'Formular F1 + F2'!M30))","v":""},0,{"$f":"'Formular F1 + F2'!S30","v":0},{"$f":"IF('Formular F1 + F2'!B30=\"\",\"\",IF('Formular F1 + F2'!N30=\"\",\"-\",'Formular F1 + F2'!N30))","v":""},{"$f":"IF('Formular F1 + F2'!B30=\"\",\"\",'Formular F1 + F2'!O30)","v":""}]
[{"$f":"Sprachen!H733","v":"2) Massnahmen im Bereich Prozess- und Produktionsanlagen mit einem Payback von weniger als 4 Jahren gelten als wirtschaftlich und müssen umgesetzt werden."}]
[]
[]
[{"$f":"Sprachen!H734","v":"Kennwerte zur Massnahmenumsetzung"}]
[{"$f":"Sprachen!H735","v":"Kennwerte zur Massnahmenumsetzung innerhalb der nächsten drei Jahre:"}]
[{"$f":"Sprachen!H736","v":"Energetische Kennwerte"},{"$nulls":12},{"$f":"Sprachen!H756","v":"Finanzielle Kennwerte"}]
[{"$f":"Sprachen!H737","v":"Einsparung thermischer Energie"},{"$nulls":10},"[kWh/a]",{"$f":"SUMIF(Q74:Q96,1,J74:J96)","v":0},{"$f":"Sprachen!H757","v":"Energiekosteneinsp. thermisch"},{"$nulls":3},"[CHF/a]",{"$f":"SUMIF(Q74:Q96,1,K74:K96)","v":0}]
[{"$f":"Sprachen!H738","v":"Einsparung elektrischer Energie"},{"$nulls":10},"[kWh/a]",{"$f":"SUMIF(Q74:Q96,1,H74:H96)","v":0},{"$f":"Sprachen!H758","v":"Energiekosteneinsp. elektrisch"},{"$nulls":3},"[CHF/a]",{"$f":"SUMIF(Q74:Q96,1,I74:I96)","v":0}]
[{"$f":"Sprachen!H739","v":"Total der Einsparungen"},{"$nulls":10},"[kWh/a]",{"$f":"M103+M104","v":0},{"$f":"Sprachen!H759","v":"Total Energiekosteneinsp."},{"$nulls":3},"[CHF/a]",{"$f":"S103+S104","v":0}]
[{"$f":"Sprachen!H740","v":"Gewichtetes Total der Einsparungen ¹⁾"},{"$nulls":10},"[kWh/a]",{"$f":"'Formular F1 + F2'!J31","v":0},{"$f":"Sprachen!H760","v":"Total der Investitionskosten ²⁾"},{"$nulls":3},"[CHF]",{"$f":"SUMIF(Q74:Q87,1,N74:N87)+SUMIF(Q91:Q96,1,N91:N96)","v":0}]
[{"$f":"Sprachen!H741","v":"Gewichteter aktueller Jahresenergiebezug"},{"$nulls":10},"[kWh/a]",{"$f":"'Formular C'!I24","v":0},{"$f":"Sprachen!H761","v":"Kostenanteil Energie ³⁾"},{"$nulls":3},"[CHF]",{"$f":"SUMIF(Q74:Q87,1,P74:P87)+SUMIF(Q91:Q96,1,P91:P96)","v":0}]
[{"$f":"Sprachen!H742","v":"Gewichtete prozentuale Einsparung"},{"$nulls":10},"[-]",{"$f":"'Formular F1 + F2'!K31","v":{"v":0,"d":"0.0%"}},{"$f":"Sprachen!H762","v":"Mittlere Paybackdauer"},{"$nulls":3},"[a]",{"$f":"IF(S105=0,\"\",S107/S105)","v":""}]
[{"$f":"Sprachen!H743","v":"1) Gewichtungsfaktoren: Elektrische Energie: 2, Heizöl & Erdgas: 1, Fernwärme/-kälte: 0.6, Holz & Biomasse: 0.7, Umweltwärme & erneuerbare Stromeigenproduktion: 0"}]
[{"$f":"Sprachen!H744","v":"2) Total der angegebenen Investitionskosten aller umzusetzenden neuen Massnahmen."}]
[{"$f":"Sprachen!H745","v":"3) Anteil der Investitionskosten welcher für die energetischen Verbesserungen aufgewendet wird."}]